Workbook

Sheet Cover
A1: =RIGHT(CELL("filename", $A$1), LEN(CELL("filename", $A$1)) - SEARCH("]", CELL("filename", $A$1))) -> Cover
C3: Model name: | D3: WINEP Reconciliation Model
C4: Version number: | D4: DD v1
C5: Filename: | D5: PR24PD11-PR19 WINEP recon model-YKY
C6: Date: | D6: July 2024
C7: Author: | D7: Ofwat
C8: Contact: | D8: PR24@ofwat.gov.uk
C10: Summary of model: | D10: This illustrative model is designed to show how we will account for the impact of ministerial decisions on the scale of companies’ environmental enhancement programmes where this differs from our assumptions made at FD. Please note that, for brevity, the term 'WINEP' is used throughout. However, it should be taken to include both the WINEP in England and the NEP in Wales.
D11: On sheet "WINEP_Allowance" we set out the adjustments we will make for each scheme in the company's WINEP programme that at the time of the final determination was unconfirmed. We show what will happen to adjust allowed totex for cost sharing, whether the scheme is confirmed as required or confirmed not required for the period 2020-25. For some companies there will be schemes listed that were not included in our enhancement allowance when we made our final determinations. We will make an opposite adjustment for these.
D12: On sheet "WINEP_Schemes" we convert the units used for each company’s unit cost mechanism as set out in the Cost Efficiency appendix to the company summary document of our Final Determinations. This is a bespoke conversion required for each company and the units shown are for illustration. Not all units shown will be relevant to every company.
D13: For most schemes the proportion confirmed will be either 100% or 0%. We have included a 'Proportion Confirmed' column to allow for the possibility that a scheme is partially confirmed. For example, if a scheme involves work on all reservoirs in a region but some reservoirs are subsequently sold then a reconciliation will be made to recover a proportion of the scheme's costs. For the PR24 determination, on the "WINEP_Inputs" tab we have added some additional columns from column CY onwards. In all company models Column CY is for 'Water company comments'. This has been populated by the company, during the submission of the model with PR24 plans and in the following period where updated versions of the model may have been returned due to query responses. Column CZ is for 'Ofwat review and/or amend comment', it is populated where Ofwat have made amendments during the review of PR24 submitted models, to provide explanation. Explanation is provided in this column for any amendments and the relevant cell is highlighted lilac. In some company models there are additional columns, as required, to ensure company allowances can be calculated. In the "WINEP_Inputs" tab column DA details the Funding clawback category for all relevant actions.
D14: Where schemes have been partially removed the company must present evidence that the proportion remaining has been signed off by the Environment Agency or Natural Resources Wales.
D16: NB - The model price base is 'CPIH Financial year average 2017/18', unless otherwise stated.
C19: Company Specific Detail (only Ofwat populated if required): | D19: Yorkshire Water: In the draft determination model actions are reverted to the original groupings within the groupings in the Final Determination as the allowed totex rate cannot be altered. Any additional actions that were included in the company submitted model have been removed as the PR19 WINEP reconciliation is only for actions detailed in the Final Determination as being within the uncertainty mechanism. The PR19 Final Determination (Table 6) contains a list of sites which are sludge treatment centres that would receive increased bioresources from some satellite sites due to PR19 phosphorus removal. The table specifies the adjustments that would have been made should there be a reduction in the need for bioresources handling and dewatering facilities resulting from WINEP ‘amber’ schemes not going ahead. As all the phosphorus schemes at the satellite sites are still within PR19 there was no funding clawback required. Upon finalising the PR19 WINEP reconciliation models for publication at draft determination, we identified that Yorkshire Water's Weighted Average Cost of Capital (WACC) has not been updated to reflect the Competition Market Authority's (CMA) PR19 redetermination decision on WACC. This was identified after allowances were finalised for the draft determination, so is not accounted for. We will correct it within the Final Determination.
C21: Change Log (prior to PR19 FD model issue): | D21: Sheet(s) in current model | F21: Description of change(s) made | G21: Model link(s)
D22: Track | F22: Linked to correct cells in model. Previously this was incorrectly linked to blank cells. Added some additional tracking lines. | G22: =Track!A1 -> Track
D23: User Guide | F23: Expanded the description of how to load the WINEP input data. | G23: ='User Guide'!D13 -> INITIAL SET UP
D24: WINEP_Schemes | F24: Relabelled "Quantity" as "Quantity in PR19 FD" | G24: =WINEP_Schemes!J9 -> Quantity in PR19 FD
D25: WINEP_Schemes | F25: Added new column "Quantity Delivered" and changed the input "Proportion confirmed" to be a calculation of "Quantity Delivered" divided by "Quantity in PR19 FD". | G25: =WINEP_Schemes!K9 -> Quantity Delivered
D26: WINEP_Schemes | F26: Changed all Inputs to be brought forward from the WINEP_Inputs sheet. This affects "Unit", "Unit Conversion", "Quantity" and "Price Control" | G26: =WINEP_Schemes!F9 -> Unit
D27: WINEP_Inputs | F27: Columns CR to CX now contain the WINEP inputs that need to be manually entered. The columns have been re-labelled for clarity. | G27: =WINEP_Inputs!CR3 -> WINEP model inputs
D28: Annual_Outputs | F28: Relabelled the WINEP reconciliation outputs and added additional text for clarity. | G28: =Annual_Outputs!E26 -> WINEP Reconciliation, water resources - without adjustment for time value of money
C30: Instructions: | D30: A model 'User guide' is present in the model to help the user in operating the model.
D31: Follow link >> | E31: Goto User Guide
C33: Error check status: | D33: =Check!$F$2 -> 0 | E33: =IF(D33 = 0, "No error checks", "Error checks active") -> No error checks
D34: =Check!$F$3 -> 5 | E34: =IF(D34 = 0, "No output changes", "Output changes") -> Output changes
A38: End of sheet

Sheet Documentation >>

Sheet User Guide
A1: =RIGHT(CELL("filename", $A$1), LEN(CELL("filename", $A$1)) - SEARCH("]", CELL("filename", $A$1))) -> User Guide
B3: INTRODUCTION
E5: This model will calculate the WINEP reconciliation adjustment in £m.
D7: NAVIGATION
E8: In order to navigate through the model the following key strokes will prove useful:
E9: - To go to a sheet or row select a blue font cell and then either press CTRL+ [ or double click
E10: - To return to the last position press F5 + Enter
E11: - In accordance with best practice, the model is saved with a "Manual Calculation" setting. To ensure a full recalculation press: Ctrl + Alt + F9
D13: INITIAL SET UP
E14: On first use of the model the WINEP_inputs sheet needs to be updated from the 2019 WINEP spreadsheet. You must use the list of WINEP sites as at Final Determination.
D16: 1) | E16: The WINEP_Inputs sheet needs to be setup so that the correct information is loaded onto the WINEP_Schemes sheet. Since all companies have used different units the procedure for doing this will vary. Most companies will be able to follow the steps below:
D17: Step 1 - | E17: In the WINEP workbook identify all schemes that were Amber in the PR19 Final Determination WINEP workbook.
D18: Step 2 - | E18: Copy the schemes to cell C5 of WINEP_Inputs maintaining the column layout of the PR19 Final Determination WINEP spreadsheet.
D19: Step 3 - | E19: Complete column CR for all rows, 'Allowed totex unit rate'. This feeds through to the WINEP_Schemes sheet and should be copied directly from the tables in the Cost Efficiency appendix to the company summary document of our Final Determinations.
D20: Step 4 - | E20: Complete column CS for all rows, 'Quantity proposed in PR19 FD. This feeds through to the WINEP_Schemes sheet and is the amount to be delivered as stated in the Cost Efficiency appendix to the company summary document of our Final Determinations. This should be entered in the appropriate units e.g. £m per benefit point, £ per km LORI, £ per kgP/day removed, etc
D21: Step 5 - | E21: Complete column CT for all rows, 'Quantity Delivered'. This feeds through to the WINEP_Schemes sheet and is the actual amount delivered. The proportion confirmed is then calculated from the inputs in columns CS and CT.
D22: Step 6 - | E22: Complete column CU for all rows with a 1 if the scheme was costed in the FD or a 0 if the scheme was not costed
D23: Step 7 - | E23: In column CV select for all rows the price control that the WINEP adjustment will be applied to
D24: Step 8 - | E24: Enter the units into column CW and a conversion factor into column CX to convert into £m.
D26: 2) | E26: InpTime sheet : This is the sheet where all the Inputs related to dates and timelines are set up:
E27: =Time!A1 -> Time
D29: 3) | E29: InpAct sheet : This is the sheet where all the Inputs used in the model calculations are present, all the inputs flow from this sheet into the model calculations:
E30: =InpActive!A1 -> InpActive
E31: Update all Input cells as required.
E33: Recalculate the model once all the sheets are updated. Press Ctrl + Alt + F9
B37: HOW TO SAVE A PDF COPY OF ANY SHEET
D39: Step 1 - | E39: To save a sheet in PDF format, press button "Save as PDF"
D43: Step 2 - | E43: In the dialog box, "Enter sheet name", type the name of the sheet you want to save
D45: Step 3 - | E45: In the dialog box, "Save As" change the file name if required
D47: Step 4 - | E47: Press "Save" to save a Pdf copy of the sheet
B51: HOW TO STORE TRACK IN TRACK SHEET
D53: USING MACRO
E54: To store Track in the Track sheet using the macro, follow the steps below:
D56: Step 1 - | E56: Go to the Track sheet and press the "Store Track" button to save the track for a new case
E57: Store Track
D59: Step 2 - | E59: A dialog box "Enter the label for the new track column" will appear, type the new track label (for example: "version 17r"), the label will appear in row 6
D61: Step 3 - | E61: A dialog box "Enter the comment for the new track" will appear, write a brief description of the change. The description will be appear at the bottom of the track column
D63: Step 4 - | E63: Press enter, a new track column will appear before the last stored track
D65: Step 5 - | E65: Review the difference between stored cases and active case (col H) by selecting the stored case in cell H6.
D67: MANUAL METHOD
E69: To store Track in the Track sheet manually, follow the steps below:
D71: Step 1 - | E71: Select the column by pressing Ctrl + Spacebar and Copy (Ctrl + C). Then insert a new column after the last stored column by pressing Alt, I, E
D73: Step 2 - | E73: Select the newly inserted column (Ctrl + Spacebar) and delete the previously stored values from this column by pressing Delete button
D75: Step 3 - | E75: Go to active track column (H column). Select the range from H6 till 'do not delete row - range end' row and Copy (Ctrl + C)
D77: Step 4 - | E77: Paste the selected values (Alt E, S, V) in newly inserted column
D79: Step 5 - | E79: Update 'New track name' in row 6 of newly inserted column. Then select 'New track name' from the dropdown list present in H6.
D81: Step 6 - | E81: Review the difference between stored cases and active case (col H) by selecting the stored case in cell H6.
A85: End of sheet

Sheet ToC
A1: =RIGHT(CELL("filename", $A$1), LEN(CELL("filename", $A$1)) - SEARCH("]", CELL("filename", $A$1))) -> ToC
A3: GENERIC MODEL DESIGN
F5: Table of Contents
H8: DOCUMENTATION | L8: MODEL INPUTS | Q8: MODEL CALCULATIONS | V8: MODEL OUTPUTS | Z8: MODEL QA
H10: Cover | L10: WINEP_Inputs | Q10: WINEP_Schemes | V10: Annual_Outputs | Z10: Check
H11: Model cover sheet | L11: WINEP inputs from business plans | Q11: List of WINEP Amber schemes | V11: Annual profile of WINEP reconciliation | Z11: Checks
H13: User Guide | L13: Time | Q13: WINEP_Allowance | V13: F_Outputs | Z13: Track
H14: Explanation of setup and macros | L14: Dates and timelines | Q14: Calculation of allowed cost | V14: Outputs to be uploaded to Fountain | Z14: Model changes and track records
H16: ToC | L16: InpActive
H17: Table of contents | L17: All inputs to be flowed into model
H19: Style Guide
H20: Explanation of different formatting types
A25: End of sheet

Sheet Style Guide
A1: =RIGHT(CELL("filename", $A$1), LEN(CELL("filename", $A$1)) - SEARCH("]", CELL("filename", $A$1))) -> Style Guide
A3: SHEET TABS
H5: Light Yellow | J5: Input sheets
H7: No colour (default Excel tab colour) | J7: Calculation and documentation sheets
H9: Pale Blue | J9: Key output sheets
H11: Turquoise | J11: Quality control sheets
H13: Yellow | J13: To be completed, temporary, restructured, or deleted
A16: COLOUR
B18: Font colour only
H19: Blue font | J19: Imported from another sheet
H21: Red font | J21: Exported to another sheet (except from Input sheets)
H23: Black font | J23: Within sheet link or calculation
B25: Font + shade combinations
H26: Black font + Light Yellow shade | J26: Inputs
H28: Black font + Light Yellow shade with grey stripe | J28: Inputs that are not expected to be changed
H30: Black font + Light Grey shade on entire row | J30: Within-worksheet counter-flow
H32: Blue font + Light Grey shade on entire row | J32: Between-worksheet counter-flow
H34: Empty Cell with Light Grey shade | J34: Empty cells being deliberately referenced
B36: Other
H37: Black font + Pale Blue shade on entire row | J37: Section separator
H39: Light Turquoise shade | J39: Stored/dead/hard coded outputs
H41: Tan shade | J41: Pre-model time line actuals
H43: Yellow shade | J43: Work in progress / temporary
H45: Lime shade | J45: Values or logic to be reviewed
B47: Error checks
H48: Green shade | J48: OK
H50: Red shade | J50: Error
A52: End of sheet

Sheet Inputs >>

Sheet Time
A1: =RIGHT(CELL("filename", $A$1), LEN(CELL("filename", $A$1)) - SEARCH("]", CELL("filename", $A$1))) -> Time
E2: =Time!E$25 -> Model period ending | J2: =Time!J$25 -> 2019-03-31 | K2: =Time!K$25 -> 2020-03-31 | L2: =Time!L$25 -> 2021-03-31 | M2: =Time!M$25 -> 2022-03-31 | N2: =Time!N$25 -> 2023-03-31 | O2: =Time!O$25 -> 2024-03-31 | P2: =Time!P$25 -> 2025-03-31 | Q2: =Time!Q$25 -> 2026-03-31 | R2: =Time!R$25 -> 2027-03-31 | S2: =Time!S$25 -> 2028-03-31 | T2: =Time!T$25 -> 2029-03-31
E3: =Time!E$107 -> Timeline label | J3: =Time!J$107 -> Pre-Fcst | K3: =Time!K$107 -> Pre-Fcst | L3: =Time!L$107 -> Forecast | M3: =Time!M$107 -> Forecast | N3: =Time!N$107 -> Forecast | O3: =Time!O$107 -> Forecast | P3: =Time!P$107 -> Forecast | Q3: =Time!Q$107 -> Post-Fcst | R3: =Time!R$107 -> Post-Fcst | S3: =Time!S$107 -> Post-Fcst | T3: =Time!T$107 -> Post-Fcst
E4: =Time!E$130 -> Financial year ending | J4: =Time!J$130 -> 2019 | K4: =Time!K$130 -> 2020 | L4: =Time!L$130 -> 2021 | M4: =Time!M$130 -> 2022 | N4: =Time!N$130 -> 2023 | O4: =Time!O$130 -> 2024 | P4: =Time!P$130 -> 2025 | Q4: =Time!Q$130 -> 2026 | R4: =Time!R$130 -> 2027 | S4: =Time!S$130 -> 2028 | T4: =Time!T$130 -> 2029
E5: =Time!E$10 -> Model column counter | F5: Constant | G5: Unit | H5: Total | J5: =Time!J$10 -> 1 | K5: =Time!K$10 -> 2 | L5: =Time!L$10 -> 3 | M5: =Time!M$10 -> 4 | N5: =Time!N$10 -> 5 | O5: =Time!O$10 -> 6 | P5: =Time!P$10 -> 7 | Q5: =Time!Q$10 -> 8 | R5: =Time!R$10 -> 9 | S5: =Time!S$10 -> 10 | T5: =Time!T$10 -> 11
A7: MODEL PERIOD
B9: Model column counter
E10: Model column counter | G10: counter | J10: =I10 + 1 -> 1 | K10: =J10 + 1 -> 2 | L10: =K10 + 1 -> 3 | M10: =L10 + 1 -> 4 | N10: 5 | O10: 6 | P10: =O10 + 1 -> 7 | Q10: =P10 + 1 -> 8 | R10: =Q10 + 1 -> 9 | S10: =R10 + 1 -> 10 | T10: 11
E11: Model column total | F11: =MAX(J10:T10) -> 11 | G11: columns
E13: =E$10 -> Model column counter | F13: 0 | G13: counter | H13: =H$10 -> 0 | I13: 0 | J13: =J$10 -> 1 | K13: 2 | L13: 3 | M13: 4 | N13: 5 | O13: 6 | P13: 7 | Q13: 8 | R13: 9 | S13: 10 | T13: 11
E14: 1st model column flag | G14: flag | H14: =SUM(J14:T14) -> 1 | J14: =IF(J13 = 1, 1, 0) -> 1 | K14: =IF(K13 = 1, 1, 0) -> 0 | L14: 0 | M14: =IF(M13 = 1, 1, 0) -> 0 | N14: =IF(N13 = 1, 1, 0) -> 0 | O14: 0 | P14: =IF(P13 = 1, 1, 0) -> 0 | Q14: =IF(Q13 = 1, 1, 0) -> 0 | R14: =IF(R13 = 1, 1, 0) -> 0 | S14: =IF(S13 = 1, 1, 0) -> 0 | T14: 0
B16: Model period beginning
E17: =InpActive!E12 -> 1st model column start date | F17: =InpActive!F12 -> 2018-04-01 | G17: =InpActive!G12 -> date
E18: =InpActive!E$39 -> Months per model period | F18: =InpActive!F$39 -> 12 | G18: =InpActive!G$39 -> months
E19: =E$14 -> 1st model column flag | F19: 0 | G19: flag | H19: =H$14 -> 1 | I19: 0 | J19: =J$14 -> 1 | K19: 0 | L19: 0 | M19: 0 | N19: 0 | O19: 0 | P19: 0 | Q19: 0 | R19: 0 | S19: 0 | T19: 0
E20: Model period beginning | G20: date | J20: =IF(J19 = 1, $F17, DATE(YEAR(I20), MONTH(I20) + $F18, DAY(1))) -> 2018-04-01 | K20: =IF(K19 = 1, $F17, DATE(YEAR(J20), MONTH(J20) + $F18, DAY(1))) -> 2019-04-01 | L20: =IF(L19 = 1, $F17, DATE(YEAR(K20), MONTH(K20) + $F18, DAY(1))) -> 2020-04-01 | M20: =IF(M19 = 1, $F17, DATE(YEAR(L20), MONTH(L20) + $F18, DAY(1))) -> 2021-04-01 | N20: =IF(N19 = 1, $F17, DATE(YEAR(M20), MONTH(M20) + $F18, DAY(1))) -> 2022-04-01 | O20: 2023-04-01 | P20: =IF(P19 = 1, $F17, DATE(YEAR(O20), MONTH(O20) + $F18, DAY(1))) -> 2024-04-01 | Q20: =IF(Q19 = 1, $F17, DATE(YEAR(P20), MONTH(P20) + $F18, DAY(1))) -> 2025-04-01 | R20: =IF(R19 = 1, $F17, DATE(YEAR(Q20), MONTH(Q20) + $F18, DAY(1))) -> 2026-04-01 | S20: =IF(S19 = 1, $F17, DATE(YEAR(R20), MONTH(R20) + $F18, DAY(1))) -> 2027-04-01 | T20: 2028-04-01
B22: Model period ending
E23: =InpActive!E$39 -> Months per model period | F23: =InpActive!F$39 -> 12 | G23: =InpActive!G$39 -> months
E24: =E$20 -> Model period beginning | F24: 00:00:00 | G24: date | H24: 00:00:00 | I24: 00:00:00 | J24: 2018-04-01 | K24: 2019-04-01 | L24: 2020-04-01 | M24: 2021-04-01 | N24: 2022-04-01 | O24: 2023-04-01 | P24: 2024-04-01 | Q24: 2025-04-01 | R24: 2026-04-01 | S24: 2027-04-01 | T24: 2028-04-01
E25: Model period ending | G25: date | J25: =DATE(YEAR(J24), MONTH(J24) + $F23, DAY(J24) - 1) -> 2019-03-31 | K25: =DATE(YEAR(K24), MONTH(K24) + $F23, DAY(K24) - 1) -> 2020-03-31 | L25: 2021-03-31 | M25: 2022-03-31 | N25: 2023-03-31 | O25: 2024-03-31 | P25: =DATE(YEAR(P24), MONTH(P24) + $F23, DAY(P24) - 1) -> 2025-03-31 | Q25: =DATE(YEAR(Q24), MONTH(Q24) + $F23, DAY(Q24) - 1) -> 2026-03-31 | R25: =DATE(YEAR(R24), MONTH(R24) + $F23, DAY(R24) - 1) -> 2027-03-31 | S25: =DATE(YEAR(S24), MONTH(S24) + $F23, DAY(S24) - 1) -> 2028-03-31 | T25: 2029-03-31
E27: =E$25 -> Model period ending | F27: 00:00:00 | G27: date | H27: 00:00:00 | I27: 00:00:00 | J27: 2019-03-31 | K27: 2020-03-31 | L27: 2021-03-31 | M27: 2022-03-31 | N27: 2023-03-31 | O27: 2024-03-31 | P27: 2025-03-31 | Q27: 2026-03-31 | R27: 2027-03-31 | S27: 2028-03-31 | T27: 2029-03-31
E28: =E$20 -> Model period beginning | F28: 00:00:00 | G28: date | H28: 00:00:00 | I28: 00:00:00 | J28: 2018-04-01 | K28: 2019-04-01 | L28: 2020-04-01 | M28: 2021-04-01 | N28: 2022-04-01 | O28: 2023-04-01 | P28: 2024-04-01 | Q28: 2025-04-01 | R28: 2026-04-01 | S28: 2027-04-01 | T28: 2028-04-01
E29: Days in a year | G29: days | J29: =J27 - J28 + 1 -> 365 | K29: =K27 - K28 + 1 -> 366 | L29: 365 | M29: 365 | N29: 365 | O29: 366 | P29: 365 | Q29: 365 | R29: 365 | S29: =S27 - S28 + 1 -> 366 | T29: 365
A32: FORECAST PERIOD
B34: Forecast start period flag
E35: =InpActive!E$25 -> Forecast start date | F35: =InpActive!F$25 -> 2020-04-01 | G35: =InpActive!G$25 -> date
E36: =E$20 -> Model period beginning | F36: 00:00:00 | G36: date | H36: 00:00:00 | I36: 00:00:00 | J36: 2018-04-01 | K36: 2019-04-01 | L36: 2020-04-01 | M36: 2021-04-01 | N36: 2022-04-01 | O36: 2023-04-01 | P36: 2024-04-01 | Q36: 2025-04-01 | R36: 2026-04-01 | S36: 2027-04-01 | T36: 2028-04-01
E37: =E$25 -> Model period ending | F37: 00:00:00 | G37: date | H37: 00:00:00 | I37: 00:00:00 | J37: 2019-03-31 | K37: 2020-03-31 | L37: 2021-03-31 | M37: 2022-03-31 | N37: 2023-03-31 | O37: 2024-03-31 | P37: 2025-03-31 | Q37: 2026-03-31 | R37: 2027-03-31 | S37: 2028-03-31 | T37: 2029-03-31
E38: Forecast start period flag | G38: flag | H38: =SUM(J38:T38) -> 1 | J38: =IF(AND($F35 >= J36, $F35 <= J37), 1, 0) -> 0 | K38: =IF(AND($F35 >= K36, $F35 <= K37), 1, 0) -> 0 | L38: 1 | M38: 0 | N38: 0 | O38: 0 | P38: =IF(AND($F35 >= P36, $F35 <= P37), 1, 0) -> 0 | Q38: =IF(AND($F35 >= Q36, $F35 <= Q37), 1, 0) -> 0 | R38: =IF(AND($F35 >= R36, $F35 <= R37), 1, 0) -> 0 | S38: =IF(AND($F35 >= S36, $F35 <= S37), 1, 0) -> 0 | T38: 0
B40: Forecast end period flag
E41: =InpActive!E$25 -> Forecast start date | F41: =InpActive!F$25 -> 2020-04-01 | G41: =InpActive!G$25 -> date
E42: =InpActive!E26 -> Forecast duration | F42: =InpActive!F26 -> 5 | G42: =InpActive!G26 -> years
E43: Forecast end date | F43: =DATE(YEAR(F41) + F42, MONTH(F41), DAY(F41) - 1) -> 2025-03-31 | G43: date
E45: =E$43 -> Forecast end date | F45: =F$43 -> 2025-03-31 | G45: =G$43 -> date
E46: =E$20 -> Model period beginning | F46: 00:00:00 | G46: date | H46: 00:00:00 | I46: 00:00:00 | J46: 2018-04-01 | K46: 2019-04-01 | L46: 2020-04-01 | M46: 2021-04-01 | N46: 2022-04-01 | O46: 2023-04-01 | P46: 2024-04-01 | Q46: 2025-04-01 | R46: 2026-04-01 | S46: 2027-04-01 | T46: 2028-04-01
E47: =E$25 -> Model period ending | F47: 00:00:00 | G47: date | H47: 00:00:00 | I47: 00:00:00 | J47: 2019-03-31 | K47: 2020-03-31 | L47: 2021-03-31 | M47: 2022-03-31 | N47: 2023-03-31 | O47: 2024-03-31 | P47: 2025-03-31 | Q47: 2026-03-31 | R47: 2027-03-31 | S47: 2028-03-31 | T47: 2029-03-31
E48: Forecast end period flag | G48: flag | H48: =SUM(J48:T48) -> 1 | J48: =IF(AND($F45 >= J46, $F45 <= J47), 1, 0) -> 0 | K48: =IF(AND($F45 >= K46, $F45 <= K47), 1, 0) -> 0 | L48: =IF(AND($F45 >= L46, $F45 <= L47), 1, 0) -> 0 | M48: =IF(AND($F45 >= M46, $F45 <= M47), 1, 0) -> 0 | N48: 0 | O48: 0 | P48: 1 | Q48: 0 | R48: 0 | S48: =IF(AND($F45 >= S46, $F45 <= S47), 1, 0) -> 0 | T48: 0
B50: Forecast period flag
E51: =E$38 -> Forecast start period flag | F51: =F$38 -> 0 | G51: flag | H51: =H$38 -> 1 | I51: 0 | J51: 0 | K51: 0 | L51: 1 | M51: 0 | N51: 0 | O51: 0 | P51: 0 | Q51: 0 | R51: 0 | S51: 0 | T51: 0
E52: =E$48 -> Forecast end period flag | F52: =F$48 -> 0 | G52: flag | H52: =H$48 -> 1 | I52: 0 | J52: 0 | K52: 0 | L52: 0 | M52: 0 | N52: 0 | O52: 0 | P52: 1 | Q52: 0 | R52: 0 | S52: 0 | T52: 0
E53: Forecast period flag | G53: flag | H53: =SUM(J53:T53) -> 5 | J53: =J51 + I53 - I52 -> 0 | K53: =K51 + J53 - J52 -> 0 | L53: =L51 + K53 - K52 -> 1 | M53: =M51 + L53 - L52 -> 1 | N53: 1 | O53: 1 | P53: =P51 + O53 - O52 -> 1 | Q53: =Q51 + P53 - P52 -> 0 | R53: =R51 + Q53 - Q52 -> 0 | S53: =S51 + R53 - R52 -> 0 | T53: 0
E54: Total number of forecast periods | F54: =SUM(J53:R53) -> 5 | G54: periods
B56: Forecast period counter
E57: =E38 -> Forecast start period flag | F57: =F38 -> 0 | G57: flag | H57: 1 | I57: 0 | J57: 0 | K57: =K38 -> 0 | L57: 1 | M57: 0 | N57: 0 | O57: 0 | P57: 0 | Q57: 0 | R57: 0 | S57: 0 | T57: 0
E58: =E53 -> Forecast period flag | F58: =F53 -> 0 | G58: flag | H58: 5 | I58: 0 | J58: 0 | K58: =K53 -> 0 | L58: 1 | M58: 1 | N58: 1 | O58: 1 | P58: 1 | Q58: 0 | R58: 0 | S58: 0 | T58: 0
E59: =E48 -> Forecast end period flag | F59: =F48 -> 0 | G59: flag | H59: 1 | I59: 0 | J59: =J48 -> 0 | K59: =K48 -> 0 | L59: =L48 -> 0 | M59: 0 | N59: 0 | O59: 0 | P59: 1 | Q59: 0 | R59: 0 | S59: 0 | T59: 0
E60: Forecast period counter | G60: counter | J60: =IF(J57 = 1, 1, I60 + J58 - I59) * J58 -> 0 | K60: =IF(K57 = 1, 1, J60 + K58 - J59) * K58 -> 0 | L60: =IF(L57 = 1, 1, K60 + L58 - K59) * L58 -> 1 | M60: =IF(M57 = 1, 1, L60 + M58 - L59) * M58 -> 2 | N60: =IF(N57 = 1, 1, M60 + N58 - M59) * N58 -> 3 | O60: 4 | P60: 5 | Q60: 0 | R60: 0 | S60: 0 | T60: 0
B62: Pre-forecast period flag
E63: =E$14 -> 1st model column flag | F63: =F$14 -> 0 | G63: flag | H63: 1 | I63: 0 | J63: 1 | K63: 0 | L63: 0 | M63: 0 | N63: 0 | O63: 0 | P63: 0 | Q63: 0 | R63: 0 | S63: 0 | T63: 0
E64: =E$38 -> Forecast start period flag | F64: =F$38 -> 0 | G64: flag | H64: 1 | I64: 0 | J64: 0 | K64: 0 | L64: 1 | M64: 0 | N64: 0 | O64: 0 | P64: 0 | Q64: 0 | R64: 0 | S64: 0 | T64: 0
E65: Pre-forecast period flag | G65: flag | H65: =SUM(J65:T65) -> 2 | J65: =J63 + I65 - J64 -> 1 | K65: =K63 + J65 - K64 -> 1 | L65: =L63 + K65 - L64 -> 0 | M65: =M63 + L65 - M64 -> 0 | N65: 0 | O65: 0 | P65: =P63 + O65 - P64 -> 0 | Q65: =Q63 + P65 - Q64 -> 0 | R65: =R63 + Q65 - R64 -> 0 | S65: =S63 + R65 - S64 -> 0 | T65: 0
E66: Pre-forecast period flag - total | F66: =SUM(J65:T65) -> 2 | G66: periods
E68: =E$38 -> Forecast start period flag | F68: =F$38 -> 0 | G68: flag | H68: 1 | I68: 0 | J68: =J$38 -> 0 | K68: 0 | L68: 1 | M68: 0 | N68: 0 | O68: 0 | P68: 0 | Q68: 0 | R68: 0 | S68: 0 | T68: 0
E69: Last pre-forecast period flag | G69: flag | H69: =SUM(J69:T69) ->  | J69: =K68 -> 0 | K69: =L68 -> 1 | L69: =M68 -> 0 | M69: =N68 -> 0 | N69: 0 | O69: 0 | P69: =Q68 -> 0 | Q69: =R68 -> 0 | R69: =S68 -> 0 | S69: =T68 -> 0 | T69: =#REF! -> 
B71: First post-forecast period flag
E72: =E$48 -> Forecast end period flag | F72: =F$48 -> 0 | G72: flag | H72: 1 | I72: 0 | J72: =J$48 -> 0 | K72: 0 | L72: 0 | M72: 0 | N72: 0 | O72: 0 | P72: 1 | Q72: 0 | R72: 0 | S72: 0 | T72: 0
E73: First post-forecast period flag | G73: flag | H73: =SUM(J73:T73) -> 1 | J73: =I72 -> 0 | K73: =J72 -> 0 | L73: =K72 -> 0 | M73: =L72 -> 0 | N73: 0 | O73: 0 | P73: =O72 -> 0 | Q73: =P72 -> 1 | R73: =Q72 -> 0 | S73: =R72 -> 0 | T73: 0
B75: Post-forecast period flag
E76: =E$73 -> First post-forecast period flag | F76: 0 | G76: flag | H76: 1 | I76: 0 | J76: 0 | K76: 0 | L76: 0 | M76: 0 | N76: 0 | O76: 0 | P76: 0 | Q76: 1 | R76: 0 | S76: 0 | T76: 0
E77: Post-forecast period flag | G77: flag | H77: =SUM(J77:T77) -> 4 | J77: =J76 + I77 -> 0 | K77: =K76 + J77 -> 0 | L77: =L76 + K77 -> 0 | M77: =M76 + L77 -> 0 | N77: 0 | O77: 0 | P77: =P76 + O77 -> 0 | Q77: =Q76 + P77 -> 1 | R77: =R76 + Q77 -> 1 | S77: =S76 + R77 -> 1 | T77: 1
E78: Post-forecast period - total | F78: =SUM(J77:T77) -> 4 | G78: periods
B80: Model period flag
E81: =E$53 -> Forecast period flag | F81: =F$53 -> 0 | G81: flag | H81: 5 | I81: 0 | J81: 0 | K81: 0 | L81: 1 | M81: 1 | N81: 1 | O81: 1 | P81: 1 | Q81: 0 | R81: 0 | S81: 0 | T81: 0
E82: =E$65 -> Pre-forecast period flag | F82: =F$65 -> 0 | G82: flag | H82: 2 | I82: 0 | J82: 1 | K82: 1 | L82: 0 | M82: 0 | N82: 0 | O82: 0 | P82: 0 | Q82: 0 | R82: 0 | S82: 0 | T82: 0
E83: Model period flag | G83: flag | H83: =SUM(J83:T83) -> 7 | J83: =MAX(J81:J82) -> 1 | K83: =MAX(K81:K82) -> 1 | L83: 1 | M83: 1 | N83: 1 | O83: 1 | P83: 1 | Q83: 0 | R83: 0 | S83: =MAX(S81:S82) -> 0 | T83: 0
B85: Forecast year
E86: =E$130 -> Financial year ending | F86: =F$130 -> 0 | G86: year # | H86: 0 | I86: 0 | J86: 2019 | K86: 2020 | L86: 2021 | M86: 2022 | N86: 2023 | O86: 2024 | P86: 2025 | Q86: 2026 | R86: 2027 | S86: 2028 | T86: 2029
E87: =E$38 -> Forecast start period flag | F87: =F$38 -> 0 | G87: flag | H87: 1 | I87: 0 | J87: 0 | K87: 0 | L87: 1 | M87: 0 | N87: 0 | O87: 0 | P87: 0 | Q87: 0 | R87: 0 | S87: 0 | T87: 0
E88: Forecast year 1 | F88: =SUMPRODUCT(J87:T87, J86:T86) -> 2021 | G88: year #
B90: Forecast year
E91: =InpActive!E$29 -> Forecast period reconcilation is profiled from | F91: =InpActive!F$29 -> 3 | G91: =InpActive!G$29 -> year
E92: =E60 -> Forecast period counter | F92: 0 | G92: counter | H92: 0 | I92: 0 | J92: 0 | K92: 0 | L92: 1 | M92: 2 | N92: 3 | O92: 4 | P92: 5 | Q92: 0 | R92: 0 | S92: 0 | T92: 0
E93: Start of adjustment profiling flag | G93: counter | H93: =SUM(J93:T93) -> 3 | J93: =IF(J92 >= $F91, 1, 0) -> 0 | K93: =IF(K92 >= $F91, 1, 0) -> 0 | L93: 0 | M93: 0 | N93: 1 | O93: 1 | P93: 1 | Q93: 0 | R93: 0 | S93: 0 | T93: 0
A95: MODEL TIMELINE
B97: Timeline label
E98: =E$14 -> 1st model column flag | F98: 0 | G98: flag | H98: 1 | I98: 0 | J98: 1 | K98: 0 | L98: 0 | M98: 0 | N98: 0 | O98: 0 | P98: 0 | Q98: 0 | R98: 0 | S98: 0 | T98: 0
E99: =E$38 -> Forecast start period flag | F99: =F$38 -> 0 | G99: flag | H99: 1 | I99: 0 | J99: 0 | K99: 0 | L99: 1 | M99: 0 | N99: 0 | O99: 0 | P99: 0 | Q99: 0 | R99: 0 | S99: 0 | T99: 0
E100: =E$73 -> First post-forecast period flag | F100: 0 | G100: flag | H100: 1 | I100: 0 | J100: 0 | K100: 0 | L100: 0 | M100: 0 | N100: 0 | O100: 0 | P100: 0 | Q100: 1 | R100: 0 | S100: 0 | T100: 0
E101: Timeline label counter | G101: counter | J101: =I101 + SUM(J98:J100) -> 1 | K101: =J101 + SUM(K98:K100) -> 1 | L101: =K101 + SUM(L98:L100) -> 2 | M101: =L101 + SUM(M98:M100) -> 2 | N101: 2 | O101: 2 | P101: =O101 + SUM(P98:P100) -> 2 | Q101: =P101 + SUM(Q98:Q100) -> 3 | R101: =Q101 + SUM(R98:R100) -> 3 | S101: =R101 + SUM(S98:S100) -> 3 | T101: 3
E103: =InpActive!E19 -> Pre - forecast period | F103: =InpActive!F19 -> Pre-Fcst | G103: =InpActive!G19 -> label
E104: =InpActive!E20 -> Forecast period | F104: =InpActive!F20 -> Forecast | G104: =InpActive!G20 -> label
E105: =InpActive!E21 -> Post - forecast period | F105: =InpActive!F21 -> Post-Fcst | G105: =InpActive!G21 -> label
E106: =E$101 -> Timeline label counter | F106: 0 | G106: counter | H106: 0 | I106: 0 | J106: 1 | K106: 1 | L106: 2 | M106: 2 | N106: 2 | O106: 2 | P106: 2 | Q106: 3 | R106: 3 | S106: 3 | T106: 3
E107: Timeline label | G107: label | J107: =INDEX($F103:$F105, J106) -> Pre-Fcst | K107: =INDEX($F103:$F105, K106) -> Pre-Fcst | L107: =INDEX($F103:$F105, L106) -> Forecast | M107: =INDEX($F103:$F105, M106) -> Forecast | N107: =INDEX($F103:$F105, N106) -> Forecast | O107: =INDEX($F103:$F105, O106) -> Forecast | P107: =INDEX($F103:$F105, P106) -> Forecast | Q107: =INDEX($F103:$F105, Q106) -> Post-Fcst | R107: =INDEX($F103:$F105, R106) -> Post-Fcst | S107: =INDEX($F103:$F105, S106) -> Post-Fcst | T107: Post-Fcst
B109: Modelling period check
E110: =E$65 -> Pre-forecast period flag | F110: =F$65 -> 0 | G110: flag | H110: 2 | I110: 0 | J110: 1 | K110: 1 | L110: 0 | M110: 0 | N110: 0 | O110: 0 | P110: 0 | Q110: 0 | R110: 0 | S110: 0 | T110: 0
E111: =E$53 -> Forecast period flag | F111: =F$53 -> 0 | G111: flag | H111: 5 | I111: 0 | J111: 0 | K111: 0 | L111: 1 | M111: 1 | N111: 1 | O111: 1 | P111: 1 | Q111: 0 | R111: 0 | S111: 0 | T111: 0
E112: =E$77 -> Post-forecast period flag | F112: 0 | G112: flag | H112: 4 | I112: 0 | J112: 0 | K112: 0 | L112: 0 | M112: 0 | N112: 0 | O112: 0 | P112: 0 | Q112: 1 | R112: 1 | S112: 1 | T112: 1
E113: No. of overlapping in flags | G113: # | H113: =SUM(J113:T113) -> 0 | J113: =MAX(0, SUM(J110:J112) - 1) -> 0 | K113: =MAX(0, SUM(K110:K112) - 1) -> 0 | L113: =MAX(0, SUM(L110:L112) - 1) -> 0 | M113: =MAX(0, SUM(M110:M112) - 1) -> 0 | N113: =MAX(0, SUM(N110:N112) - 1) -> 0 | O113: 0 | P113: =MAX(0, SUM(P110:P112) - 1) -> 0 | Q113: =MAX(0, SUM(Q110:Q112) - 1) -> 0 | R113: =MAX(0, SUM(R110:R112) - 1) -> 0 | S113: =MAX(0, SUM(S110:S112) - 1) -> 0 | T113: 0
E114: Overlapping in periods - total | F114: =SUM(J113:T113) -> 0 | G114: periods
E116: =E$11 -> Model column total | F116: =F$11 -> 11 | G116: =G$11 -> columns
E117: =E$114 -> Overlapping in periods - total | F117: =F$114 -> 0 | G117: =G$114 -> periods
E118: =E$66 -> Pre-forecast period flag - total | F118: =F$66 -> 2 | G118: =G$66 -> periods
E119: =E$54 -> Total number of forecast periods | F119: =F$54 -> 5 | G119: =G$54 -> periods
E120: =E$78 -> Post-forecast period - total | F120: =F$78 -> 4 | G120: =G$78 -> periods
E121: Modelling period check | F121: =IF(SUM(F116:F117) - SUM(F118:F120) <> 0, 1, 0) -> 0 | G121: check
A124: FINANCIAL YEAR
E126: =InpActive!E15 -> First modelling column financial year # | F126: =InpActive!F15 -> 2019 | G126: =InpActive!G15 -> year #
E127: =InpActive!E16 -> Financial year end month number # | F127: =InpActive!F16 -> 3 | G127: =InpActive!G16 -> month #
E128: =E$25 -> Model period ending | F128: 00:00:00 | G128: date | H128: 00:00:00 | I128: 00:00:00 | J128: 2019-03-31 | K128: 2020-03-31 | L128: 2021-03-31 | M128: 2022-03-31 | N128: 2023-03-31 | O128: 2024-03-31 | P128: 2025-03-31 | Q128: 2026-03-31 | R128: 2027-03-31 | S128: 2028-03-31 | T128: 2029-03-31
E129: =E$14 -> 1st model column flag | F129: 0 | G129: flag | H129: 1 | I129: 0 | J129: 1 | K129: 0 | L129: 0 | M129: 0 | N129: 0 | O129: 0 | P129: 0 | Q129: 0 | R129: 0 | S129: 0 | T129: 0
E130: Financial year ending | G130: year # | J130: =IF(J129 = 1, $F126, IF(J128 > (DATE(I130, $F127 + 1, 1) - 1), I130 + 1, I130)) -> 2019 | K130: =IF(K129 = 1, $F126, IF(K128 > (DATE(J130, $F127 + 1, 1) - 1), J130 + 1, J130)) -> 2020 | L130: =IF(L129 = 1, $F126, IF(L128 > (DATE(K130, $F127 + 1, 1) - 1), K130 + 1, K130)) -> 2021 | M130: =IF(M129 = 1, $F126, IF(M128 > (DATE(L130, $F127 + 1, 1) - 1), L130 + 1, L130)) -> 2022 | N130: 2023 | O130: 2024 | P130: =IF(P129 = 1, $F126, IF(P128 > (DATE(O130, $F127 + 1, 1) - 1), O130 + 1, O130)) -> 2025 | Q130: =IF(Q129 = 1, $F126, IF(Q128 > (DATE(P130, $F127 + 1, 1) - 1), P130 + 1, P130)) -> 2026 | R130: =IF(R129 = 1, $F126, IF(R128 > (DATE(Q130, $F127 + 1, 1) - 1), Q130 + 1, Q130)) -> 2027 | S130: =IF(S129 = 1, $F126, IF(S128 > (DATE(R130, $F127 + 1, 1) - 1), R130 + 1, R130)) -> 2028 | T130: 2029
A133: End of sheet

Sheet WINEP_Inputs
A1: WINEP3 Update March 2019 | H1: National Full data set
AI2: FBG Detail
A3: Draft determination published version | AI3: SSSI/N2K/Ramsar | AN3: Eels | AP3: NERC Driver | AX3: INNS | AZ3: MCZ | BA3: Water Quality Detail | BX3: Water Resource Detail | CH3: Environmental Outcome | CR3: WINEP model inputs | CY3: Published model review and amendments
A4: WINEPID | B4: Change Log Winep 2 to 3 | C4: NEW Column. Has an alteration to this measure been made? If Y then please refer to alterations log. | D4: Application in determination by NPS? | E4: Has a permit been issued? | F4: Function | G4: RBD | H4: Area | I4: Water Company | J4: Unique ID * (completed on company collation) | K4: Scheme Name/Name of Investigation/Site Name/Licence name | L4: Name of Waterbody | M4: Waterbody ID | N4: Water Body Type(s) | O4: WFD Operational Catchment | P4: Blank Column | Q4: Blank Column | R4: Blank Column | S4: Driver Code (Primary) | T4: Further Driver Code Information (related to the primary driver if applicable) | U4: Driver Code (Secondary) | V4: Further Driver Code Information (related to the secondary driver if applicable) | W4: Driver Code (Tertiary) | X4: Further Driver Code Information (related to the tertiary driver if applicable) | Y4: Measure Type | Z4: Completion Date (DD/MM/YY) | AA4: Level of Certainty? (P= Purple, R=Red, A=Amber, G=Green | AB4: Abstraction Licence/ Permit, Obstruction ID or No Obstruction ID | AC4: Eastings | AD4: Northings | AE4: Investigation Type | AF4: Investigation Scope | AG4: Implementation Scope | AH4: Groundwater Measures Information | AI4: Name of SSSI (if applicable) | AJ4: Name of N2K/Ramsar site (if applicable) | AK4: SSSI/N2K/Ramsar Unit ID | AL4: SSSI/N2K/Ramsar Area of Unit (Hectares) | AM4: Justification for Action/Investigation | AN4: Eel Priority Status | AO4: Eel Improvement Type | AP4: Primary Type of Priority Habitat Created or Restored/Improved | AQ4: Secondary Type of Priority Habitat Created or Restored/Improved | AR4: Other Priority Habitat Created or Restored/Improved | AS4: Type of Action Taken | AT4: Units Recorded (Hectare or km) | AU4: Number of Hectares or Kms | AV4: Name of Priority Species | AW4: Name of High Risk of Extinction Species | AX4: INNS Control Measure | AY4: INNS Species (if applicable) | AZ4: Name of MCZ | BA4: Name of Bathing Water (where applicable) | BB4: Name of Shellfish Water (where applicable) | BC4: Chemical of Interest (for chemicals measures only) | BD4: Groundwater Chemicals | BE4: Drinking Water Inspectorate - Undertaking or Notice Y/N | BF4: DrWPA Substances at Risk (if applicable) | BG4: Safeguard Zone Name (if applicable) | BH4: Safeguard Zone ID (if applicable) | BI4: Population Equivalent for STWs | BJ4: Current Permit Limit (mg/l) | BK4: Proposed Permit Limit (mg/l) | BL4: Proposed Iron or Aluminium Limits (for Phosphorus measures only) | BM4: Current DWF (m3/d) | BN4: Proposed DWF (m3/d) (if applicable) | BO4: Proposed Permit Limit Other | BP4: Catchment Measure Actions | BQ4: Unsustainable Abstraction System Code | BR4: Linked Groundwater Body Name | BS4: Linked Groundwater Body ID | BT4: Licence Category | BU4: Water Resource Zone (WRZ) | BV4: WR HMWB Flag (X) | BW4: Scheme Relates to Following Missing Mitigation Measures (HMWB only) | BX4: Annual Licence Volume (Ml/a) | BY4: Daily Licence Volume (Ml/d) | BZ4: Aggregate Licence (x) | CA4: Sustainability Change (to Annual Licence Volume) Ml/a | CB4: Sustainability Change (to Daily Licence Volume) Ml/d | CC4: Sustainability Change (to HoF Condition) Ml/d | CD4: *NEW* Water returned to the environment (Reduction in actual abstraction) ML/d | CE4: New Annual Licence Volume (Ml/a) | CF4: New Daily Licence Volume (Ml/d) | CG4: New HoF Condition (Ml/d) | CH4: Quantitative Km River Length Improved or Protected | CI4: Quantitative Area (km2) Improved or Protected | CJ4: Volume (Ml/yr) Drinking Water Protected | CK4: Hectares of Designated Site (HD/RAMSAR/ SSSI) Restored or Improved | CL4: *NEW* INNS ,No Det outcome - Km2 of land with reduced risk of INNS | CM4: Delivers Additional FCERM Benefits (Y/N) | CN4: Delivers on Salmon 5-Point Action Plan | CO4: Additional Comments | CP4: CPS Reference | CQ4: Flow Categorisation 1= PR19 Synergy 2= WFD failure 3= Neither | CR4: Allowed totex unit rate | CS4: Quantity proposed in PR19 FD | CT4: Quantity Delivered | CU4: 1 = In PR19, funded 0 = In PR19, not funded | CV4: Price Control | CW4: Unit | CX4: Unit Conversion to £m | CY4: Water company comment with POST DD Company UpDate Comment in RED | CZ4: April 2024- Ofwat review and/or amend comment (individual cell amends in purple) | DA4: Post DD Funding clawback
A5: YOR00025 | B5: Changed | F5: WR | G5: Humber | H5: Yorkshire | I5: Yorkshire Water Service Ltd | J5: 7YW100089 | K5: Little Don Catchment Scheme | L5: Langsett Reservoir | M5: GB30432034 | N5: Lake | O5: Don Upper | S5: WFD_IMP_WRHMWB | Y5: Sustainability Change | Z5: 2024-12-22 | AA5: Amber | AB5: 2/27/05/032 | AC5: 421253 | AD5: 400361 | AG5: This scheme relates to implementation of Mitigation Measure (MM)5 at Langsett Reservoir which lies in waterbody GB104027057460. The MM assessment determined that MM5 was not in place. The scheme will include: ecological monitoring, civils work to introduce a new compensation release from Langsett Reservoir, post scheme monitoring and licence variation. The wider 'Little Don Catchment Scheme will look at rebalancing flows between Langsett, Midhope and Underbank Reservoirs. | BT5: Sustainable | BU5: Grid SWZ | BV5: X | BW5: 5 | BX5: 17155 | BZ5: X | CB5: 1.5 | CH5: 3.05 | CO5: This scheme is to introduce a new compensation release and is not a change to the existing abstraction volume. | CR5: 80760 | CS5: 3.05 | CT5: 3.05 | CU5: 1 | CV5: WR | CW5: £ per km LORI | CX5: 1e-06
A6: YOR00029 | B6: Changed | F6: WR | G6: Humber | H6: Yorkshire | I6: Yorkshire Water Service Ltd | J6: 7YW100091 | K6: Winscar Catchment Scheme | L6: Winscar Reservoir | M6: GB30431876 | N6: Lake | O6: Don Upper | S6: WFD_IMP_WRHMWB | Y6: Sustainability Change | Z6: 2024-12-22 | AA6: Amber | AB6: 2/27/05/026 | AC6: 415431 | AD6: 402472 | AG6: Winscar Reservoir lies in GB104027057500. The Winscar Catchment Scheme will address MM5. This is likely to be addressed by introducing a compensation release from Winscar Reservoir. The compensation flows from Winscar and Windleden Lower Reservoirs will be assessed together as well as the change to the maintained flow at Dunford Bridge. | BT6: Sustainable | BU6: Grid SWZ | BV6: X | BW6: 5 | BX6: 10140 | BZ6: X | CB6: 0 | CH6: 11.25 | CO6: This is a change to the existing compensation release and not a change to the abstraction volume. The sustainability change has been modelled in combination with a change to the maintained flow at Dunford Bridge and the new compensation arrangements at Langsett, Dale Dike and the R. Burn/Leighton. As a result the individual yield loss is zero. | CR6: 80760 | CS6: 11.25 | CT6: 11.25 | CU6: 1 | CV6: WR | CW6: £ per km LORI | CX6: 1e-06
A7: YOR00033 | B7: Changed | F7: WR | G7: Humber | H7: Yorkshire | I7: Yorkshire Water Service Ltd | J7: 7YW100093 | K7: Agden River Restoration Scheme | L7: Agden Reservoir | M7: GB30432352 | N7: Lake | O7: Don Upper | S7: WFD_IMP_WRHMWB | Y7: Land Management/ Habitat Restoration/ Physical Improvement | Z7: 2024-12-22 | AA7: Amber | AB7: 2/27/05/030 | AC7: 425875 | AD7: 392216 | AG7: The Agden River Restoration Scheme will address MM6 downstream of Agden reservoir (which lies in waterbody GB104027057390). The scheme will include ecological monitoring and geomorphological suverys, the input of technical expertise and partnership working to enable the implementation of targeted river restoration measures. | BU7: Grid SWZ | BV7: X | BW7: 6 | BX7: 12410 | BZ7: X | CH7: 0.44 | CR7: 80760 | CS7: 0.44 | CT7: 0.44 | CU7: 1 | CV7: WR | CW7: £ per km LORI | CX7: 1e-06
A8: YOR00042 | B8: Changed | F8: WR | G8: Humber | H8: Yorkshire | I8: Yorkshire Water Service Ltd | J8: 7YW100098 | K8: River Burn Catchment Scheme | L8: Burn from Source to Leighton Beck | M8: GB104027069300 | N8: River | O8: Ure Middle and Lower | S8: WFD_IMP_WRHMWB | Y8: Sustainability Change | Z8: 2024-12-22 | AA8: Amber | AB8: 2/27/22/209 | AC8: 413395 | AD8: 481150 | AG8: The River Burn Catchment Scheme covers two water bodies. The scheme is likely to include the implementation of a HOF on the River Burn intake to address the water body deficit, a fish pass to address MM4 and to introduce a seasonal compensation release out of Leighton Reservoir to address MM5. It will include ecological monitoring, flow gauging and water qaulity sampling. Licences will varied with new the compensation release and HOF condition,. | BT8: 1 | BU8: Grid SWZ | BV8: X | BW8: 5 | BX8: 6400 | CC8: 0 | CG8: 5 | CH8: 4.84 | CO8: Current HOF needs changing to protect ecology and remove flow deficit. The sustainability change has been modelled in combination with a change to the maintained flow at Dunford Bridge, and the new compensation arrangements at Langsett,Winscar and Dale Dike. As a result the individual yield loss is zero. Updated flow classification data has changed this water body from Actual Serious Damage to Risk of Serious Damage. | CR8: 80760 | CS8: 6.49 | CT8: 6.49 | CU8: 1 | CV8: WR | CW8: £ per km LORI | CX8: 1e-06 | CY8: RESTORE#YOR00042 is still live in WINEP and will not be removed ( error casued by shared ID 7YW100098) | CZ8: EA confirm (March 2024) deleted from PR19 WINEP therefore column CT amended from 6.49 to 0. | DA8: Restore to In Amp Delivery
A9: YOR00044 | B9: Changed | F9: WR | G9: Humber | H9: Yorkshire | I9: Yorkshire Water Service Ltd | J9: 7YW100098 | K9: River Burn Catchment Scheme | L9: Leighton Reservoir | M9: GB30429612 | N9: Lake | O9: Ure Middle and Lower | S9: WFD_IMP_WRHMWB | Y9: Sustainability Change | Z9: 2024-12-22 | AA9: Amber | AB9: 2/27/22/210 | AC9: 416256 | AD9: 479051 | AG9: The River Burn Catchment Scheme covers two water bodies. Leighton Reservoir lies in waterbody GB104027069270. The scheme is likely to include the implementation of a HOF on the River Burn intake to address the water body deficit, a fish pass to address MM4 and to introduce a seasonal compensation release out of Leighton Reservoir to address MM5. It will include ecological monitoring, flow gauging and water quality sampling. Licences will varied with new the compensation release and HOF condition,. | BU9: Grid SWZ | BV9: X | BW9: 5 | CH9: 1.65 | CO9: Change to current compensation release from flat line to seasonal profile. Profiled using existing compensation release 'pot' so no additional resource required. | CR9: 80760 | CS9: 6.49 | CT9: 6.49 | CU9: 1 | CV9: WR | CW9: £ per km LORI | CX9: 1e-06 | CY9: RESTORE:YOR00044 is still live in WINEP and will not be removed ( error casued by shared ID 7YW100098) | CZ9: EA confirm (March 2024) deleted from PR19 WINEP therefore column CT amended from 6.49 to 0. | DA9: Restore to In Amp Delivery
A10: YOR00045 | B10: Changed | C10: Yes – alteration made | F10: WR | G10: Humber | H10: Yorkshire | I10: Yorkshire Water Service Ltd | J10: 7YW100098 | K10: River Burn Catchment Scheme | L10: Burn from Source to Leighton Beck | M10: GB104027069300 | N10: River | O10: Ure Middle and Lower | S10: WFD_IMP_WRHMWB | Y10: Fish Passage | Z10: 2024-12-22 | AA10: Amber | AB10: 2/27/22/209 | AC10: 413395 | AD10: 481150 | AG10: The River Burn Catchment Scheme covers two water bodies. The scheme is likely to include the implementation of a HOF on the River Burn intake to address the water body deficit, a fish pass to address MM4 and to introduce a seasonal compensation release out of Leighton Reservoir to address MM5. It will include ecological monitoring, flow gauging and water quality sampling. Licences will varied with new the compensation release and HOF condition,. | BU10: Grid SWZ | BV10: X | BW10: 4 | CH10: 13.56 | CO10: The fish pass scheme will be considered along side the flow scheme for the River Burn. | CR10: 80760 | CS10: 6.49 | CT10: 0 | CU10: 1 | CV10: WR | CW10: £ per km LORI | CX10: 1e-06 | CY10: REMOVAL: YW Confirm Removal | CZ10: EA confirm (March 2024) deleted from PR19 WINEP therefore column CT amended from 6.49 to 0. | DA10: Removal
A11: YOR00055 | B11: Changed | F11: WQ | G11: Humber | H11: Yorkshire | I11: Yorkshire Water Service Ltd | J11: 7YW100121 | K11: HARROGATE SOUTH/STW | L11: Crimple Beck from Park Beck to River Nidd | M11: GB104027063742 | N11: River | O11: Nidd Middle and Lower | S11: WFD_IMPm | T11: Phosphorus | Y11: Continuous Discharge | Z11: 2024-12-22 | AA11: Amber | AB11: QR.27/21/0048 | AC11: 437870 | AD11: 451620 | BI11: 36729.8 | BK11: 0.4mg/l average | BL11: 4000ug/l Fe 95%ile | BM11: 9800m³/d | BO11: 8000ug/l Fe Upper Tier | CG11: N/A | CH11: 4.5 | CO11: Works identified for both WFD and SAe drivers. WFD limit is concluded to be cost beneficial. 2 kilometres improved from Bad to Moderate and 2.5 kilometres improved from Poor to Moderate status. Total 4.5km in river length improvement. | CP11: * | CR11: 778365 | CS11: 4.453 | CT11: 4.453 | CU11: 1 | CV11: WWN | CW11: £ per km LORI | CX11: 1e-06 | CY11: Dual P Driver Site -LORI assigned to WFd_IMP Driver
A12: YOR00059 | B12: Changed | F12: WQ | G12: Humber | H12: Yorkshire | I12: Yorkshire Water Service Ltd | J12: 7YW100125 | K12: OWLWOOD (GARFORTH) STW | L12: Lin Dike from Source to River Aire | M12: GB104027062810 | N12: River | O12: Aire Lower | S12: WFD_IMPm | T12: Phosphorus | Y12: Continuous Discharge | Z12: 2024-12-22 | AA12: Amber | AB12: 2225 | AC12: 441750 | AD12: 428790 | BI12: 39030.8 | BK12: 0.25mg/l average | BL12: 4000ug/l Fe 95%ile | BM12: 8801m³/d | BO12: 8000ug/l Fe Upper Tier | CG12: N/A | CH12: 3.3 | CO12: Works identified for both WFD and SAe drivers. WFD limit is concluded to be cost beneficial. 3.3 kilometres improved from Bad to Moderate. | CP12: * | CR12: 778365 | CS12: 10.028 | CT12: 10.028 | CU12: 1 | CV12: WWN | CW12: £ per km LORI | CX12: 1e-06 | CY12: Dual P Driver Site -LORI assigned to WFd_IMP Driver
A13: YOR00060 | B13: Changed | F13: WQ | G13: Humber | H13: Yorkshire | I13: Yorkshire Water Service Ltd | J13: 7YW100126 | K13: DRONFIELD/STW | L13: Drone/Whitting from Source to River Rother | M13: GB104027057710 | N13: River | O13: Rother and Doe Lea | S13: WFD_IMPm | T13: Phosphorus | Y13: Continuous Discharge | Z13: 2024-12-22 | AA13: Amber | AB13: 1863 | AC13: 436750 | AD13: 377810 | BI13: 21779 | BK13: 0.3mg/l average | BL13: 4000ug/l Fe 95%ile | BM13: 5500m³/d | BO13: 8000ug/l Fe Upper Tier | CG13: N/A | CH13: 6.8 | CO13: Works identified for both WFD and SAe drivers. WFD limit is concluded to be cost beneficial. 2.7 kilometres improved from Bad to Mod and 4.1 kilometres improved from Poor to Moderate status. Total 6.8km in river length improvement. | CP13: * | CR13: 778365 | CS13: 7.854 | CT13: 7.854 | CU13: 1 | CV13: WWN | CW13: £ per km LORI | CX13: 1e-06 | CY13: Dual P Driver Site -LORI assigned to WFd_IMP Driver
A14: YOR00062 | B14: Changed | F14: WQ | G14: Humber | H14: Yorkshire | I14: Yorkshire Water Service Ltd | J14: 7YW100128 | K14: DANESMOOR/STW | L14: Rother from Source to Redleadmill Brook | M14: GB104027052280 | N14: River | O14: Rother and Doe Lea | S14: WFD_IMPm | T14: Phosphorus | Y14: Continuous Discharge | Z14: 2024-12-22 | AA14: Amber | AB14: 2138 | AC14: 44074 | AD14: 36300 | BI14: 6669.6 | BK14: 0.4mg/l average | BL14: 4000ug/l Fe 95%ile | BM14: 1392m³/d | BO14: 8000ug/l Fe Upper Tier | CG14: N/A | CH14: 7.9 | CO14: Cost beneficial scheme. 3 kilometres improved from Poor to Good status and 4.2 kilometres improved from Poor to Moderate status and 0.7 kilometres improved from Bad to Moderate. Total 4.9km in river length improvement. | CP14: * | CR14: 276351 | CS14: 4.864 | CT14: 4.864 | CU14: 1 | CV14: WWN | CW14: £ per km LORI | CX14: 1e-06 | CY14: Single WFD_IMP Driver For P
A15: YOR00063 | B15: Changed | C15: Yes – alteration made | F15: WQ | G15: Humber | H15: Yorkshire | I15: Yorkshire Water Service Ltd | J15: 7YW100129 | K15: TUPTON/STW | L15: Redleadmill Brook | M15: GB104027057620 | N15: River | O15: Rother and Doe Lea | S15: WFD_IMPm | T15: Phosphorus | Y15: Continuous Discharge | Z15: 2024-12-22 | AA15: Amber | AB15: 3139(SS) | AC15: 439820 | AD15: 366810 | BI15: 11012 | BK15: 0.25mg/l average | BL15: 4000ug/l Fe 95%ile | BM15: 2641m³/d | BO15: 8000ug/l Fe Upper Tier | CG15: N/A | CH15: 7.9 | CO15: Works identified for both WFD and SAe drivers. WFD limit is concluded to be cost beneficial. 3 kilometres improved from Poor to Good status and 4.2 kilometres improved from Poor to Moderate status and 0.7 kilometres improved from Bad to Mod. Total 7.9km in river length improvement. | CP15: * | CR15: 778365 | CS15: 10.223 | CT15: 0 | CU15: 1 | CV15: WWN | CW15: £ per km LORI | CX15: 1e-06 | CY15: DEFERRAL NEW -YW have submitted deferral to 30 June 2025 due to the new need to relocate a badger sett at the site.Quantity Delivered set to ZERO | DA15: Carry over
A16: YOR00065 | B16: Changed | F16: WQ | G16: Humber | H16: Yorkshire | I16: Yorkshire Water Service Ltd | J16: 7YW100131 | K16: ACKWORTH/STW | L16: Went from Hoyle Mill Stream to Blowell Drain | M16: GB104027063360 | N16: River | O16: Don Lower | S16: WFD_IMPg | T16: Phosphorus | Y16: Continuous Discharge | Z16: 2024-12-22 | AA16: Amber | AB16: 430 | AC16: 446630 | AD16: 416680 | BI16: 9301 | BK16: 0.5mg/l average | BL16: 4000ug/l Fe 95%ile | BM16: 2331m³/d | BO16: 8000ug/l Fe Upper Tier | CG16: N/A | CH16: 10.1 | CO16: Cost beneficial scheme. 8.1 kilometres improved from Poor to Good status and 2 kilometres improved from Poor to Moderate status. Total 10.1km in river length improvement. | CP16: * | CR16: 276351 | CS16: 1.583 | CT16: 1.583 | CU16: 1 | CV16: WWN | CW16: £ per km LORI | CX16: 1e-06 | CY16: Single WFD_IMP Driver For P
A17: YOR00066 | B17: Changed | F17: WQ | G17: Humber | H17: Yorkshire | I17: Yorkshire Water Service Ltd | J17: 7YW100132 | K17: CARLETON/NO 2 STW | L17: Went from Hoyle Mill Stream to Blowell Drain | M17: GB104027063360 | N17: River | O17: Don Lower | S17: WFD_IMPm | T17: Phosphorus | Y17: Continuous Discharge | Z17: 2024-12-22 | AA17: Amber | AB17: 381 | AC17: 446370 | AD17: 419260 | BI17: 6519 | BK17: 0.25mg/l average | BL17: 2819ug/l Fe 95%ile | BM17: 1418m³/d | BO17: 8000ug/l Fe Upper Tier | CG17: N/A | CH17: 3.2 | CO17: Cost beneficial scheme. 3.2 kilometres improved from Bad to Moderate | CP17: * | CR17: 276351 | CS17: 10.103 | CT17: 10.103 | CU17: 1 | CV17: WWN | CW17: £ per km LORI | CX17: 1e-06 | CY17: Single WFD_IMP Driver For P
A18: YOR00067 | B18: Changed | F18: WQ | G18: Humber | H18: Yorkshire | I18: Yorkshire Water Service Ltd | J18: 7YW100133 | K18: NORTON (ASKERN) WwTW | L18: Went from Hoyle Mill Stream to Blowell Drain | M18: GB104027063360 | N18: River | O18: Don Lower | S18: WFD_IMPg | T18: Phosphorus | Y18: Continuous Discharge | Z18: 2024-12-22 | AA18: Amber | AB18: 3816(SS) | AC18: 454900 | AD18: 416200 | BI18: 9866.2 | BK18: 0.25mg/l average | BL18: 4000ug/l Fe 95%ile | BM18: 4004m³/d | BO18: 8000ug/l Fe Upper Tier | CH18: 10.1 | CO18: Works identified for both WFD and SAe drivers. WFD limit is concluded to be cost beneficial. 8.1 kilometres improved from Poor to Good status and 2 kilometres improved from Poor to Moderate status. | CP18: * | CR18: 778365 | CS18: 13.8 | CT18: 13.8 | CU18: 1 | CV18: WWN | CW18: £ per km LORI | CX18: 1e-06 | CY18: Dual P Driver Site -LORI assigned to WFd_IMP Driver
A19: EMD00773 | B19: Changed | F19: WQ | G19: Humber | H19: East Midlands | I19: Yorkshire Water Service Ltd | J19: 7YW200005 | K19: BALBY (STW) | L19: Mother Drain from Source to Torne | M19: GB104028058440 | N19: River | O19: Isle of Axholme | S19: WFD_IMPg | T19: Phosphorus | Y19: Continuous Discharge | Z19: 2024-12-22 | AA19: Amber | AB19: T/83/45405/R | AC19: 458063 | AD19: 401770 | BI19: 17202 | BK19: 0.25 | BM19: 6200 | CH19: 6.9 | CR19: 276351 | CS19: 0 | CT19: 0 | CU19: 1 | CV19: WWN | CW19: £ per km LORI | CX19: 1e-06 | CY19: Single WFD_IMP Driver For P. No claimed LORI - outside YW model area
A20: EMD00812 | B20: Changed | F20: WQ | G20: Humber | H20: East Midlands | I20: Yorkshire Water Service Ltd | J20: 7YW200006 | K20: HATFIELD WOODHOUSE (STW) | L20: Hatfield Waste Drain Catchment (trib of Torne/Three Rivers) | M20: GB104028064330 | N20: River | O20: Isle of Axholme | S20: WFD_IMPg | T20: Phosphorus | Y20: Continuous Discharge | Z20: 2024-12-22 | AA20: Amber | AB20: T/83/45453/R | AC20: 468570 | AD20: 408164 | BI20: 516 | BK20: 0.3 | BL20: 4000 (8000) | BM20: 103 | CH20: 12 | CR20: 276351 | CS20: 0 | CT20: 0 | CU20: 1 | CV20: WWN | CW20: £ per km LORI | CX20: 1e-06 | CY20: Single WFD_IMP Driver For P with ammonia. No claimed LORI as outside YW model area.Also design change post FD from on site scheme to closure and transfer scheme
A21: EMD00813 | B21: Changed | F21: WQ | G21: Humber | H21: East Midlands | I21: Yorkshire Water Service Ltd | J21: 7YW200007 | K21: HATFIELD WOODHOUSE (STW) | L21: Hatfield Waste Drain Catchment (trib of Torne/Three Rivers) | M21: GB104028064330 | N21: River | O21: Isle of Axholme | S21: WFD_IMPg | T21: Ammonia | Y21: Continuous Discharge | Z21: 2024-12-22 | AA21: Amber | AB21: T/83/45453/R | AC21: 468570 | AD21: 408164 | BI21: 516 | BJ21: 10 | BK21: 2 (12) | BM21: 103 | CH21: 14.9 | CO21: May relax to 3mg/l if demonstrated that Final Effluent shows a Non Parametric Distribution | CR21: 276351 | CS21: 0 | CT21: 0 | CU21: 1 | CV21: WWN | CW21: £ per km LORI | CX21: 1e-06 | CY21: Single WFD_IMP Driver For P with ammonia. No claimed LORI - outside YW model area
A22: YOR00112 | B22: Changed | F22: WR | G22: Humber | H22: Yorkshire | I22: Yorkshire Water Service Ltd | J22: 7YW200060 | K22: Grimwith Sediment Scheme | L22: Barben Beck/River Dibb Catchment (trib of Wharfe) | M22: GB104027064120 | N22: River | O22: Wharfe Upper | S22: WFD_IMP_WRHMWB | T22: Land Management / Physical Improvement | Y22: Land Management/ Habitat Restoration/ Physical Improvement | Z22: 2024-12-22 | AA22: Amber | AC22: 405740 | AD22: 463906 | AG22: The scheme will address sediment mitigation measures on a stretch of watercourse downstream of Grimwith reservoir where the banks of the river have been straightened and lined with large boulders, preventing natural erosional processes. | BU22: Grid SWZ | BV22: x | BW22: 7, 8 | CH22: 5.11 | CO22: Scheme is subject to the outcome of the Grimwith Reservoir flow trial. | CR22: 80760 | CS22: 5.11 | CT22: 5.11 | CU22: 1 | CV22: WR | CW22: £ per km LORI | CX22: 1e-06
A23: YOR00115 | B23: Changed | C23: Yes – alteration made | F23: FBG | G23: Humber | H23: Yorkshire | I23: Yorkshire Water Service Ltd | J23: 7YW200063 | K23: Airebank Mills Fish Passage | L23: Aire from Otterburn Beck to Eshton Beck | M23: GB104027063050 | N23: River | O23: Aire Upper | S23: WFD_IMP_FISH | Y23: Fish Passage | Z23: 2024-12-22 | AA23: Amber | AC23: 394138 | AD23: 453944 | AG23: This scheme has been included to improve fish passage for salmonids up to Gargrave. Gargrave is target for initial salmon recovery on the River Aire. | BU23: Grid SWZ | CH23: 4.5 | CN23: Recovering Salmon River | CO23: This scheme is cost beneficial within the bundle of measures. The bundle of measures includes Systergenix weir (not a YWS asset). Once fish passage at Systergenix has been achieved the actual LORI will be 4.5km | CR23: 37745 | CS23: 4.5 | CT23: 4.5 | CU23: 1 | CV23: WR | CW23: £ per km LORI | CX23: 1e-06
A24: YOR00116 | B24: Changed | F24: FBG | G24: Humber | H24: Yorkshire | I24: Yorkshire Water Service Ltd | J24: 7YW200064 | K24: Cheesebottom Weir Fish Passage | L24: Don from Scout Dyke to the Little Don | M24: GB104027057490 | N24: River | O24: Don Upper | S24: WFD_IMP_FISH | Y24: Fish Passage | Z24: 2024-12-22 | AA24: Amber | AC24: 427908 | AD24: 400642 | AG24: This weir is within the second phase for salmon restoration on the River Don (the first phase is almost complete). The fish passage scheme will improve fish passage for Atlantic Salmon and brown trout. | BU24: Grid SWZ | CH24: 9.5 | CN24: Recovering Salmon River | CO24: There is a hydropower site located on the opposite bank which may limit the options for fish passage. | CR24: 37745 | CS24: 9.5 | CT24: 9.5 | CU24: 1 | CV24: WR | CW24: £ per km LORI | CX24: 1e-06
A25: YOR00122 | B25: Changed | F25: FBG | G25: Humber | H25: Yorkshire | I25: Yorkshire Water Service Ltd | J25: 7YW200070 | K25: Cononley Weir Fish Passage | L25: Aire (Eshton Beck to R Worth) | M25: GB104027063033 | N25: River | O25: Aire Upper | S25: WFD_IMP_FISH | Y25: Fish Passage | Z25: 2024-12-22 | AA25: Amber | AC25: 399495 | AD25: 446773 | AG25: The waterbody is currently failing for mulitiple species and lower densities of brown trout. Addressing fish passage at the site will help to improve the fish status of the waterbody. The site comprises of five small weirs. The scheme will include options appraisal and implementation of a fish passage solution. | BU25: Grid SWZ | CH25: 45.54 | CR25: 37745 | CS25: 45.54 | CT25: 0 | CU25: 1 | CV25: WR | CW25: £ per km LORI | CX25: 1e-06 | CY25: REMOVAL: YW Confirm Removal | CZ25: EA confirm (March 2024) deleted from PR19 WINEP therefore column CT amended from 45.54 to 0. | DA25: Removal
A26: YOR00123 | B26: Changed | C26: Yes – alteration made | F26: FBG | G26: Humber | H26: Yorkshire | I26: Yorkshire Water Service Ltd | J26: 7YW200071 | K26: Farnley Beck Fish Passage | L26: Low/Wortley/Pudsey Bks | M26: GB104027062830 | N26: River | O26: Aire Lower | S26: WFD_IMP_FISH | Y26: Fish Passage | Z26: 2024-12-22 | AA26: Amber | AC26: 425339 | AD26: 433023 | AG26: Scheme to address fish passage. The waterbody is currently failing for mulitiple species and lower densities of brown trout. | CH26: 3.29 | CR26: 37745 | CS26: 3.29 | CT26: 0 | CU26: 1 | CV26: WR | CW26: £ per km LORI | CX26: 1e-06 | CY26: REMOVAL: YW Confirm Removal | CZ26: EA confirm (March 2024) deleted from PR19 WINEP therefore column CT amended from 3.29 to 0. | DA26: Removal
A27: YOR00124 | B27: Changed | C27: Yes – alteration made | F27: WR | G27: Humber | H27: Yorkshire | I27: Yorkshire Water Service Ltd | J27: 7YW200072 | K27: Schole Hill Fish Passage | L27: Don from Source to Scout Dyke | M27: GB104027057500 | N27: River | O27: Don Upper | S27: WFD_IMP_WRHMWB | Y27: Fish Passage | Z27: 2024-12-22 | AA27: Amber | AC27: 422580 | AD27: 403143 | AG27: Scheme to improve fish passage. Site lies downstream of Harden, Windleden and Winscar Reservoirs.WB failing for minor species and to an extent grayling. It is anticipated that a low cost solution will be suitable at this location. | BU27: Grid SWZ | BV27: x | BW27: 1 | CH27: 0.78 | CR27: 80760 | CS27: 0.78 | CT27: 0.78 | CU27: 1 | CV27: WR | CW27: £ per km LORI | CX27: 1e-06
A28: YOR00125 | B28: Changed | C28: Yes – alteration made | F28: FBG | G28: Humber | H28: Yorkshire | I28: Yorkshire Water Service Ltd | J28: 7YW200073 | K28: Watson Mill Fish Passage | L28: Ryburn from Booth Dean Clough to R Calder | M28: GB104027062580 | N28: River | O28: Calder Middle | S28: WFD_IMP_FISH | Y28: Fish Passage | Z28: 2024-12-22 | AA28: Amber | AC28: 405809 | AD28: 423222 | AG28: Scheme to improve fish passage. WB failing for minor species. It is anticipated that a low cost solution will be suitable at this location. | CH28: 0.94 | CR28: 37745 | CS28: 0.94 | CT28: 0.94 | CU28: 1 | CV28: WR | CW28: £ per km LORI | CX28: 1e-06
A29: YOR01523 | B29: Changed | F29: WQ | G29: Humber | H29: Yorkshire | I29: Yorkshire Water Service Ltd | J29: 7YW200635 | K29: SOUTH ELMSALL/STW 6X | L29: Ea Beck from Frickley Beck to the Skell | M29: GB104027063200 | N29: River | O29: Don Lower | S29: WFD_IMPg | T29: Biochemical Oxygen Demand / Dissolved Oxygen | Y29: Intermittent Discharge | Z29: 2024-12-22 | AA29: Amber | AB29: WRA7507 schedule 4 | AC29: 448250 | AD29: 410650 | BI29: 35231.1 | BJ29: 15mg/l | BM29: 9800m³/d | BO29: 10,000m³ | CH29: 2.25 | CO29: FIS, 10,000m³ storage on storm discharge | CP29: * | CR29: 590 | CS29: 10000 | CT29: 10000 | CU29: 1 | CV29: WWN | CW29: £ per m3 | CX29: 1e-06 | CY29: Propose to change delivery date to 31/03/25
A30: YOR00693 | B30: Changed | C30: Yes – alteration made | F30: WQ | G30: Humber | H30: Yorkshire | I30: Yorkshire Water Service Ltd | J30: 7YW200637 | K30: BENTLEY/STW FE transfer to NGR 458119 405197 | L30: Bentley Mill Stream | M30: GB104027057541 | N30: River | O30: Don Lower | S30: WFD_IMPg | T30: Ammonia | U30: WFD_IMPg | V30: Biochemical Oxygen Demand / Dissolved Oxygen | Y30: Continuous Discharge | Z30: 2024-12-22 | AA30: Amber | AB30: 1978 schedule 1 | AC30: 457130 | AD30: 405720 | BI30: 20936 | BK30: 1mg/l | BM30: 5046m³/d | CH30: 1.3 | CO30: Relocate Bentley STW FE to the R.Don . Proposed 1mg/l would be required if transfer scheme was not able to be completed.This will require feasibility as part of solution delivery which may change the exact discharge location. No changes to to flow or quality conditions. Needed to meet FIS standards. If FE transfer proposal passes CBA then 1mg/l on permit not required. | CP30: * | CR30: 2933301 | CS30: 0 | CT30: 0 | CU30: 1 | CV30: WWN | CW30: £ per km LORI | CX30: 1e-06 | CY30: Multiple drivers for Bentley Stream. No LORI to avoid double counting. LORI assigned to WFd_IMP Phosphorus Driver 7YW200867
A31: YOR00694 | B31: Changed | F31: WQ | G31: Humber | H31: Yorkshire | I31: Yorkshire Water Service Ltd | J31: 7YW200638 | K31: CLAYTON WEST/STW ( Storm Overflow - now wetland (FIS denotes storm oveflow ) | L31: Dearne from Bentley Brook to Cawthorne Dyke | M31: GB104027063260 | N31: River | O31: Dearne | S31: WFD_IMPg | T31: Ammonia | U31: WFD_IMPg | V31: Biochemical Oxygen Demand / Dissolved Oxygen | Y31: Intermittent Discharge | Z31: 2024-12-22 | AA31: Amber | AB31: 3809(SS) / schedule 2 | AC31: 426780 | AD31: 412070 | BI31: 16803.8 | BJ31: n/a | BO31: 8,120m³ | CH31: 2.05 | CO31: FIS & 99%ile. Current storage 1120m³, additional storage 7000m³ on the settled storm, total proposed storage 8,120m³. Settled storm discharge point will not change from current NGR under then the FE transfer scheme. | CP31: * | CR31: 2933301 | CS31: 2.05 | CT31: 2.05 | CU31: 1 | CV31: WWN | CW31: £ per km LORI | CX31: 1e-06 | CY31: Multiple drivers. Equivalent grey stoage volume = 7000m3. Redesigned as wetland to delvier same benefit. No LORI to avoid double counting. | CZ31: YKY model altered units and totex allowance due to action change. This action was originally part of a funded FD group with totex allowance of £2,933,301m. Therefore model inputs have been returned to reflect the FD and ensure appropriate reconciliation. Changes to cells in this line are: Cell CR31 amended from 590 to 2,933,301. Cell CS31 amended from 7,000m3 to 2.05 (£ per km LORI sourced from column CH). Cell CT31 amended from 7,000 to 2.05 (as per column CH). Cell CW31 amended from £ per m3 to £ per km LORI.
A32: YOR00696 | B32: Changed | F32: WQ | G32: Humber | H32: Yorkshire | I32: Yorkshire Water Service Ltd | J32: 7YW200640 | K32: Little Don intermittents - Huinself Rd | L32: Little Don from Source to River Don | M32: GB104027057460 | N32: River | O32: Don Upper | S32: WFD_IMPg | T32: Ammonia | Y32: Intermittent Discharge | Z32: 2024-12-22 | AA32: Amber | AB32: WRA8524 | AC32: 427290 | AD32: 398460 | BO32: 4,000m³ | CH32: 2.1 | CO32: FIS. Storage4000m^3. Provisionally attached to Huinself Road CSO but 4000m³ or equivalent network interention to provide the same water quality benefit to the Little Don. | CP32: * | CR32: 590 | CS32: 4000 | CT32: 4000 | CU32: 1 | CV32: WWN | CW32: £ per m3 | CX32: 1e-06
A33: YOR01536 | B33: Addition | F33: WQ | G33: Humber | H33: Yorkshire | I33: Yorkshire Water Service Ltd | J33: 7YW200641 | K33: Pudsey intermittents (Farnley Ring Road) | L33: Low/Wortley/Pudsey Bks | M33: GB104027062830 | N33: River | O33: Aire Lower | S33: WFD_IMPg | T33: Ammonia | Y33: Intermittent Discharge | Z33: 2024-12-22 | AA33: Amber | AB33: C4966 | AC33: 424670 | AD33: 433540 | BO33: 5,000m³ | CH33: 2.74 | CO33: Total proposed storage 5,000m³ total. Farnley Ring Road | CP33: * | CR33: 590 | CS33: 5000 | CT33: 0 | CU33: 1 | CV33: WWN | CW33: £ per m3 | CX33: 1e-06 | CY33: DEFERRAL Agree - Date Extension to 31 Mar 2027 | CZ33: YKY confirm in model (column CY) delivery in AMP8 year 2026/27. Therefore column CT amended from 5000 to 0. | DA33: Carry over
A34: YOR00775 | B34: Changed | F34: WQ | G34: Humber | H34: Yorkshire | I34: Yorkshire Water Service Ltd | J34: 7YW200719 | K34: SHERBURN IN ELMET/STW | L34: Upper Fox Drain Catchment ds of Sherburn STW | M34: GB104027063610 | N34: River | O34: Ouse Lower Yorkshire | S34: WFD_IMPg | T34: Ammonia | Y34: Continuous Discharge | Z34: 2024-12-22 | AA34: Amber | AB34: 27/24/0162 | AC34: 452920 | AD34: 433420 | BI34: 12214 | BJ34: 11mg/l | BK34: 1.3mg/l 95%ile | BM34: 3750m³/d | BO34: 12mg/l upper tier | CG34: N/A | CH34: 4.5 | CO34: New proposed limit is 1.3mg/l to improve 4.5km from Moderate to Good. | CP34: * | CR34: 778365 | CS34: 0 | CT34: 0 | CU34: 1 | CV34: WWN | CW34: £ per km LORI | CX34: 1e-06 | CY34: Dual P Driver Site plus Ammonia-LORI assigned to WFd_IMP Driver
A35: YOR00787 | B35: Changed | F35: WQ | G35: Humber | H35: Yorkshire | I35: Yorkshire Water Service Ltd | J35: 7YW200731 | K35: BOLSOVER/STW | L35: Doe Lea from Source to Hawke Brook | M35: GB104027057290 | N35: River | O35: Rother and Doe Lea | S35: WFD_IMPg | T35: Ammonia | Y35: Continuous Discharge | Z35: 2024-12-22 | AA35: Amber | AB35: 1866 | AC35: 445919 | AD35: 370148 | BI35: 11810.6 | BJ35: 10mg/l | BK35: 1mg/l 95%ile | BM35: 1900m³/d | BO35: 12mg/l upper tier | CG35: N/A | CH35: 4 | CO35: Cost beneficial due to No Det scheme.kilometres improved from Poor to Good status | CP35: * | CR35: 778365 | CS35: 0 | CT35: 0 | CU35: 1 | CV35: WWN | CW35: £ per km LORI | CX35: 1e-06 | CY35: Dual P Driver Site plus Ammonia-LORI assigned to WFd_IMP Driver
A36: YOR00793 | B36: Changed | C36: Yes – alteration made | F36: WQ | G36: Humber | H36: Yorkshire | I36: Yorkshire Water Service Ltd | J36: 7YW200737 | K36: CARTHORPE WPC WORKS | L36: Healam Beck from Burniston Bk to River Swale | M36: GB104027068850 | N36: River | O36: Swale Middle | S36: WFD_IMPg | T36: Phosphorus | Y36: Continuous Discharge | Z36: 2024-12-22 | AA36: Amber | AB36: 27/23/0207 | AC36: 432120 | AD36: 483610 | BI36: 549 | BK36: 0.5mg/l average | BL36: 4000ug/l Fe 95%ile | BM36: 124m³/d | BO36: 8000ug/l Fe Upper Tier | CG36: N/A | CH36: 4.8 | CO36: Cost beneficial scheme. 4.8kilometres improved from Moderate to Good status | CP36: * | CR36: 276351 | CS36: 4.83 | CT36: 4.83 | CU36: 1 | CV36: WWN | CW36: £ per km LORI | CX36: 1e-06 | CY36: RESTORE TO In AMP Delivery -Delivery Date of 31 /3/25 now requested as no longer catchment candidate. Quantity delivered in full as anticipated | CZ36: EA confirm (March 2024) delivery in AMP8 Year 27/28. Therefore column CT amended from 4.83 to 0. | DA36: Restore to In Amp Delivery
A37: YOR00799 | B37: Changed | F37: WQ | G37: Humber | H37: Yorkshire | I37: Yorkshire Water Service Ltd | J37: 7YW200743 | K37: THORNTON LE BEANS | L37: Otterington Beck catchment (trib of Wiske) | M37: GB104027069450 | N37: River | O37: Wiske | S37: WFD_IMPg | T37: Phosphorus | Y37: Continuous Discharge | Z37: 2024-12-22 | AA37: Amber | AB37: COPA/2783 | AC37: 439300 | AD37: 490500 | BI37: 190.4 | BK37: 1.5mg/l average | BL37: 4000ug/l Fe 95%ile | BM37: 37m³/d | BO37: 8000ug/l Fe Upper Tier | CG37: N/A | CH37: 6.4 | CO37: Cost beneficial scheme.6.4 kilometres improved from Moderate to Good status | CP37: * | CR37: 276351 | CS37: 6.438 | CT37: 6.44 | CU37: 1 | CV37: WWN | CW37: £ per km LORI | CX37: 1e-06 | CY37: RESTORE TO In AMP Delivery -Delivery Date of 31 /3/25 now requested as no longer catchment candidate. Quantity delivered in full as anticipated | CZ37: EA confirm (March 2024) delivery in AMP8 27/28. Therefore column CT amended from 6.44 to 0. | DA37: Restore to In Amp Delivery
A38: YOR00804 | B38: Changed | F38: WQ | G38: Humber | H38: Yorkshire | I38: Yorkshire Water Service Ltd | J38: 7YW200748 | K38: Rainton STW | L38: Cundall Beck/Soppa Gutter Catch (trib of Swale) | M38: GB104027068780 | N38: River | O38: Swale Lower | S38: WFD_IMPg | T38: Phosphorus | Y38: Continuous Discharge | Z38: 2024-12-22 | AA38: Amber | AB38: COPA/2253 | AC38: 437600 | AD38: 474900 | BI38: 345.6 | BK38: 3mg/l average | BL38: 4000ug/l Fe 95%ile | BM38: 109m³/d | BO38: 8000ug/l Fe Upper Tier | CG38: N/A | CH38: 7.8 | CO38: Cost beneficial scheme. 7.8 kilometres improved from Moderate to Good status | CP38: * | CR38: 276351 | CS38: 1.464 | CT38: 1.46 | CU38: 1 | CV38: WWN | CW38: £ per km LORI | CX38: 1e-06 | CY38: RESTORE TO In AMP Delivery -Delivery Date of 31 /3/25 now requested as no longer catchment candidate. Quantity delivered in full as anticipated | CZ38: EA confirm (March 2024) delivery in AMP8 27/28. Therefore column CT amended from 1.46 to 0. | DA38: Restore to In Amp Delivery
A39: YOR00805 | B39: Changed | F39: WQ | G39: Humber | H39: Yorkshire | I39: Yorkshire Water Service Ltd | J39: 7YW200749 | K39: DISHFORTH WPC WORKS | L39: Cundall Beck/Soppa Gutter Catch (trib of Swale) | M39: GB104027068780 | N39: River | O39: Swale Lower | S39: WFD_IMPg | T39: Phosphorus | Y39: Continuous Discharge | Z39: 2024-12-22 | AA39: Amber | AB39: 27/23/0150 | AC39: 438500 | AD39: 473355 | BI39: 594.4 | BK39: 0.5mg/l average | BL39: 4000ug/l Fe 95%ile | BM39: 113m³/d | BO39: 8000ug/l Fe Upper Tier | CG39: N/A | CH39: 1.6 | CO39: Cost beneficial scheme. 1.6 kilometres improved from Poor to Good status | CP39: * | CR39: 276351 | CS39: 7.765 | CT39: 7.765 | CU39: 1 | CV39: WWN | CW39: £ per km LORI | CX39: 1e-06 | CY39: Single WFD_IMP Driver For P
A40: YOR00806 | B40: Changed | F40: WQ | G40: Humber | H40: Yorkshire | I40: Yorkshire Water Service Ltd | J40: 7YW200750 | K40: KIRKBY MALZEARD/STW | L40: Kex Beck and the Laver | M40: GB104027069260 | N40: River | O40: Ure Middle and Lower | S40: WFD_IMPg | T40: Phosphorus | Y40: Continuous Discharge | Z40: 2024-12-22 | AA40: Amber | AB40: 27/22/0048 | AC40: 424700 | AD40: 474140 | BI40: 1476 | BK40: 1.5mg/l average | BL40: 4000ug/l Fe 95%ile | BM40: 442m³/d | BO40: 8000ug/l Fe Upper Tier | CG40: N/A | CH40: 9.8 | CO40: Cost beneficial scheme. 4.8 kilometres improved from Poor to Good status and 5 kilometres improved from Moderate to Good status. Total 9.8km in river length improvement. | CP40: * | CR40: 276351 | CS40: 12.118 | CT40: 12.118 | CU40: 1 | CV40: WWN | CW40: £ per km LORI | CX40: 1e-06 | CY40: Single WFD_IMP Driver For P
A41: YOR00812 | B41: Changed | C41: Yes – alteration made | F41: WQ | G41: Humber | H41: Yorkshire | I41: Yorkshire Water Service Ltd | J41: 7YW200756 | K41: KILLINGHALL STW | L41: Nidd from Burstwith to Oak Beck | M41: GB104027068296 | N41: River | O41: Nidd Middle and Lower | S41: WFD_IMPg | T41: Phosphorus | Y41: Continuous Discharge | Z41: 2024-12-22 | AA41: Amber | AB41: 27/21/0089 | AC41: 427100 | AD41: 459060 | BI41: 3470.6 | BK41: 0.5mg/l average | BL41: 4000ug/l Fe 95%ile | BM41: 1631m³/d | BO41: 8000ug/l Fe Upper Tier | CG41: N/A | CH41: 2.8 | CO41: Cost beneficial scheme.2.8 kilometres improved from Moderate to Good status | CP41: * | CR41: 276351 | CS41: 0 | CT41: 0 | CU41: 1 | CV41: WWN | CW41: £ per km LORI | CX41: 1e-06 | CY41: RESTORE TO In AMP Delivery -Delivery Date of 31 /3/25 now requested as no longer catchment candidate. Quantity delivered in full as anticipated | CZ41: EA confirm (March 2024) delivery in AMP8 27/28 however no amend to model as already 0 in column CT | DA41: Restore to In Amp Delivery
A42: YOR00813 | B42: Changed | F42: WQ | G42: Humber | H42: Yorkshire | I42: Yorkshire Water Service Ltd | J42: 7YW200757 | K42: SHAW MILLS/STW | L42: Thornton Beck Catch (Trib of Nidd) | M42: GB104027063850 | N42: River | O42: Nidd Middle and Lower | S42: WFD_IMPg | T42: Phosphorus | Y42: Continuous Discharge | Z42: 2024-12-22 | AA42: Amber | AB42: 27/21/0091 | AC42: 427605 | AD42: 461435 | BI42: 595.6 | BK42: 1mg/l average | BL42: 4000ug/l Fe 95%ile | BM42: 132m³/d | BO42: 8000ug/l Fe Upper Tier | CG42: N/A | CH42: 6.6 | CO42: Cost beneficial scheme.1.3 kilometres improved from Poor to Good status and 5.3 kilometres improved from Moderate to Good status. Total 6.6km in river length improvement. | CP42: * | CR42: 276351 | CS42: 29.858 | CT42: 29.858 | CU42: 1 | CV42: WWN | CW42: £ per km LORI | CX42: 1e-06 | CY42: Single WFD_IMP Driver For P
A43: YOR00833 | B43: Changed | C43: Yes – alteration made | F43: WQ | G43: Humber | H43: Yorkshire | I43: Yorkshire Water Service Ltd | J43: 7YW200777 | K43: DRAUGHTON WPC WORKS | L43: Hambleton Beck/Ings Bk Catch (trib of Wharfe) | M43: GB104027064030 | N43: River | O43: Wharfe Middle and Washburn | S43: WFD_IMPg | T43: Phosphorus | Y43: Continuous Discharge | Z43: 2024-12-22 | AA43: Amber | AB43: 27/19/0082 | AC43: 404610 | AD43: 453100 | BI43: 303.8 | BK43: 0.25mg/l average | BL43: 4000ug/l Fe 95%ile | BM43: 96m³/d | BO43: 8000ug/l Fe Upper Tier | CG43: N/A | CH43: 3.5 | CO43: Cost beneficial scheme. 3.5 kilometres improved from Moderate to Good status | CP43: * | CR43: 276351 | CS43: 3.519 | CT43: 3.519 | CU43: 1 | CV43: WWN | CW43: £ per km LORI | CX43: 1e-06 | CY43: Single WFD_IMP Driver For P with BOD @green
A44: YOR00838 | B44: Changed | F44: WQ | G44: Humber | H44: Yorkshire | I44: Yorkshire Water Service Ltd | J44: 7YW200782 | K44: SHERBURN IN ELMET/STW | L44: Upper Fox Drain Catchment ds of Sherburn STW | M44: GB104027063610 | N44: River | O44: Ouse Lower Yorkshire | S44: WFD_IMPm | T44: Phosphorus | Y44: Continuous Discharge | Z44: 2024-12-22 | AA44: Amber | AB44: 27/24/0162 | AC44: 452920 | AD44: 433420 | BI44: 12214 | BK44: 0.5mg/l average | BL44: 2663ug/l Fe 95%ile | BM44: 3750m³/d | BO44: 8000ug/l Fe Upper Tier | CG44: N/A | CH44: 4.5 | CO44: New proposed P limit pf 0.5mg/l to achieve Moderate. RLI improved is the same as ammonia so moves from Bad to Moderate. | CP44: * | CR44: 778365 | CS44: 10.13 | CT44: 10.13 | CU44: 1 | CV44: WWN | CW44: £ per km LORI | CX44: 1e-06 | CY44: Dual P Driver Site plus Ammonia-LORI assigned to WFd_IMP Driver
A45: YOR00840 | B45: Changed | F45: WQ | G45: Humber | H45: Yorkshire | I45: Yorkshire Water Service Ltd | J45: 7YW200784 | K45: HAROME/STW | L45: Walmouth Beck from Source to River Riccal | M45: GB104027068210 | N45: River | O45: Rye | S45: WFD_IMPg | T45: Phosphorus | Y45: Continuous Discharge | Z45: 2024-12-22 | AA45: Amber | AB45: 27/25/0079 | AC45: 465980 | AD45: 482149 | BI45: 1413.8 | BK45: 0.25mg/l average | BL45: 4000ug/l Fe 95%ile | BM45: 755m³/d | BO45: 8000ug/l Fe Upper Tier | CG45: N/A | CH45: 5.4 | CO45: Cost beneficial scheme. 5.4 kilometres improved from Poor to Good status | CP45: * | CR45: 276351 | CS45: 6.402 | CT45: 6.4 | CU45: 1 | CV45: WWN | CW45: £ per km LORI | CX45: 1e-06 | CY45: RESTORE TO In AMP Delivery -Delivery Date of 31 /3/25 now requested as no longer catchment candidate. Quantity delivered in full as anticipated | CZ45: EA confirm (March 2024) delivery in AMP8 27/28 therefore column CT amended from 6.40 to 0. | DA45: Restore to In Amp Delivery
A46: YOR00846 | B46: Changed | F46: WQ | G46: Humber | H46: Yorkshire | I46: Yorkshire Water Service Ltd | J46: 7YW200790 | K46: BISHOP WILTON WPC WO | L46: Bishop Wilton Beck Catch (trib of Blackfoss Beck) | M46: GB104027063470 | N46: River | O46: Derwent Lower Yorkshire | S46: WFD_IMPg | T46: Phosphorus | Y46: Continuous Discharge | Z46: 2024-12-22 | AA46: Amber | AB46: 27/28/0104 | AC46: 479290 | AD46: 454370 | BI46: 484 | BK46: 1mg/l average | BL46: 4000ug/l Fe 95%ile | BM46: 118m³/d | BO46: 8000ug/l Fe Upper Tier | CG46: N/A | CH46: 9.9 | CO46: 9.9 kilometres improved from Moderate to Good status | CP46: * | CR46: 1287218 | CS46: 1 | CT46: 1 | CU46: 1 | CV46: WWN | CW46: £ per kgP/day removed | CX46: 1e-06 | CY46: RESTORE TO In AMP Delivery -Delivery Date of 31 /3/25 now requested as no longer catchment candidate. Quantity delivered in full as anticipated | CZ46: EA confirm (March 2024) delivery in AMP8 27/28 therefore column CT amended from 1 to 0. | DA46: Restore to In Amp Delivery
A47: YOR00847 | B47: Changed | F47: WQ | G47: Humber | H47: Yorkshire | I47: Yorkshire Water Service Ltd | J47: 7YW200791 | K47: POCKLINGTON/STW | L47: Pocklington Beck from Source to Bielby beck | M47: GB104027063480 | N47: River | O47: Derwent Lower Yorkshire | S47: WFD_IMPg | T47: Phosphorus | Y47: Continuous Discharge | Z47: 2024-12-22 | AA47: Amber | AB47: 27/28/0195 | AC47: 480052 | AD47: 447318 | BI47: 10171 | BJ47: 1mg/l | BK47: 0.25mg/l average | BL47: 4000ug/l Fe 95%ile | BM47: 2797m³/d | BO47: 8000ug/l Fe Upper Tier | CG47: N/A | CH47: 9.6 | CO47: Cost beneficial scheme.9.6 kilometres improved from Moderate to Good status | CP47: * | CR47: 276351 | CS47: 2.17 | CT47: 2.17 | CU47: 1 | CV47: WWN | CW47: £ per km LORI | CX47: 1e-06 | CY47: Single WFD_IMP Driver For P
A48: YOR00849 | B48: Changed | C48: Yes – alteration made | F48: WQ | G48: Humber | H48: Yorkshire | I48: Yorkshire Water Service Ltd | J48: 7YW200793 | K48: CROFTON/STW | L48: Oakenshaw Beck from Source to River Calder | M48: GB104027062560 | N48: River | O48: Calder Lower | S48: WFD_IMPg | T48: Phosphorus | Y48: Continuous Discharge | Z48: 2024-12-22 | AA48: Amber | AB48: 2207 | AC48: 436290 | AD48: 418470 | BI48: 9343.2 | BK48: 0.25mg/l average | BL48: 3774ug/l Fe 95%ile | BM48: 4546m³/d | BO48: 8000ug/l Fe Upper Tier | CG48: N/A | CH48: 3.7 | CO48: Cost beneficial scheme. 2.8 kilometres improved from Bad to Good status and 0.8 kilometres improved from Poor to Good status. Total 3.7km in river length improvement. | CP48: * | CR48: 276351 | CS48: 8.989 | CT48: 8.989 | CU48: 1 | CV48: WWN | CW48: £ per km LORI | CX48: 1e-06 | CY48: Single WFD_IMP Driver For P
A49: YOR00850 | B49: Changed | F49: WQ | G49: Humber | H49: Yorkshire | I49: Yorkshire Water Service Ltd | J49: 7YW200794 | K49: MELTHAM/STW | L49: Mag Brook from Source to River Holme | M49: GB104027063590 | N49: River | O49: Colne and Holme | S49: WFD_IMPg | T49: Phosphorus | Y49: Continuous Discharge | Z49: 2024-12-22 | AA49: Amber | AB49: WRA6680 | AC49: 411092 | AD49: 411402 | BI49: 8484.2 | BK49: 0.4mg/l average | BL49: 4000ug/l Fe 95%ile | BM49: 2350m³/d | BO49: 8000ug/l Fe Upper Tier | CG49: N/A | CH49: 3.7 | CO49: Cost beneficial scheme. 3.7 kilometres improved from Poor to Good status | CP49: * | CR49: 276351 | CS49: 17.146 | CT49: 17.146 | CU49: 1 | CV49: WWN | CW49: £ per km LORI | CX49: 1e-06 | CY49: Single WFD_IMP Driver For P
A50: YOR00851 | B50: Changed | F50: WQ | G50: Humber | H50: Yorkshire | I50: Yorkshire Water Service Ltd | J50: 7YW200795 | K50: NEILEY NO 2 STW | L50: Holme from New Mill Dike to R Colne | M50: GB104027063301 | N50: River | O50: Colne and Holme | S50: WFD_IMPg | T50: Phosphorus | Y50: Continuous Discharge | Z50: 2024-12-22 | AA50: Amber | AB50: 2255 | AC50: 414628 | AD50: 411578 | BI50: 20346 | BK50: 0.4mg/l average | BL50: 4000ug/l Fe 95%ile | BM50: 7497m³/d | BO50: 8000ug/l Fe Upper Tier | CG50: N/A | CH50: 1.5 | CO50: Works identified for both WFD and SAe drivers. WFD limit is concluded to be cost beneficial.1.5 kilometres improved from Poor to Good status | CP50: * | CR50: 778365 | CS50: 1.531 | CT50: 1.531 | CU50: 1 | CV50: WWN | CW50: £ per km LORI | CX50: 1e-06 | CY50: Dual P Driver Site -LORI assigned to WFd_IMP Driver
A51: YOR00852 | B51: Changed | F51: WQ | G51: Humber | H51: Yorkshire | I51: Yorkshire Water Service Ltd | J51: 7YW200796 | K51: RIPPONDEN WOOD STW | L51: Ryburn from Booth Dean Clough to R Calder | M51: GB104027062580 | N51: River | O51: Calder Middle | S51: WFD_IMPg | T51: Phosphorus | Y51: Continuous Discharge | Z51: 2024-12-22 | AA51: Amber | AB51: E741(SS) | AC51: 404540 | AD51: 420640 | BI51: 5163.6 | BK51: 0.5mg/l average | BL51: 4000ug/l Fe 95%ile | BM51: 1639m³/d | BO51: 8000ug/l Fe Upper Tier | CG51: N/A | CH51: 3.9 | CO51: Cost beneficial scheme. 3.9 kilometres improved from Poor to Good status | CP51: * | CR51: 276351 | CS51: 7.958 | CT51: 7.958 | CU51: 1 | CV51: WWN | CW51: £ per km LORI | CX51: 1e-06 | CY51: Single WFD_IMP Driver For P
A52: YOR00853 | B52: Changed | F52: WQ | G52: Humber | H52: Yorkshire | I52: Yorkshire Water Service Ltd | J52: 7YW200797 | K52: EASTWOOD/STW | L52: Calder from Walsden Water to Colden Water | M52: GB104027062650 | N52: River | O52: Calder Upper | S52: WFD_IMPg | T52: Phosphorus | Y52: Continuous Discharge | Z52: 2024-12-22 | AA52: Amber | AB52: E61 | AC52: 397163 | AD52: 426382 | BI52: 14727.6 | BK52: 0.5mg/l average | BL52: 4000ug/l Fe 95%ile | BM52: 10255m³/d | BO52: 8000ug/l Fe Upper Tier | CG52: N/A | CH52: 6.4 | CO52: Works identified for both WFD and SAe drivers. WFD limit is concluded to be cost beneficial. 6.4kilometres improved from Poor to Good status | CP52: * | CR52: 778365 | CS52: 1.833 | CT52: 1.833 | CU52: 1 | CV52: WWN | CW52: £ per km LORI | CX52: 1e-06 | CY52: Dual P Driver Site -LORI assigned to WFd_IMP Driver
A53: YOR00854 | B53: Changed | F53: WQ | G53: Humber | H53: Yorkshire | I53: Yorkshire Water Service Ltd | J53: 7YW200798 | K53: REDACRE STW | L53: Calder from Colden Water to Ryburn Confluence | M53: GB104027062641 | N53: River | O53: Calder Middle | S53: WFD_IMPg | T53: Phosphorus | Y53: Continuous Discharge | Z53: 2024-12-22 | AA53: Amber | AB53: E740(SS) | AC53: 401025 | AD53: 426209 | BI53: 8547.4 | BK53: 0.5mg/l average | BL53: 4000ug/l Fe 95%ile | BM53: 4421m³/d | BO53: 8000ug/l Fe Upper Tier | CG53: N/A | CH53: 6.4 | CO53: Cost beneficial scheme. 6.4 kilometres improved from Poor to Good status | CP53: * | CR53: 276351 | CS53: 5.039 | CT53: 5.039 | CU53: 1 | CV53: WWN | CW53: £ per km LORI | CX53: 1e-06 | CY53: Single WFD_IMP Driver For P
A54: YOR00855 | B54: Changed | F54: WQ | G54: Humber | H54: Yorkshire | I54: Yorkshire Water Service Ltd | J54: 7YW200799 | K54: HIGH ROYD NO 2 STW | L54: Luddenden Brook from Source to River Calder | M54: GB104027062770 | N54: River | O54: Calder Middle | S54: WFD_IMPg | T54: Phosphorus | Y54: Continuous Discharge | Z54: 2024-12-22 | AA54: Amber | AB54: 967 | AC54: 405169 | AD54: 423937 | BI54: 11495.8 | BK54: 0.5mg/l average | BL54: 4000ug/l Fe 95%ile | BM54: 6696m³/d | BO54: 8000ug/l Fe Upper Tier | CG54: N/A | CH54: 6.4 | CO54: Works identified for both WFD and SAe drivers. WFD limit is concluded to be cost beneficial. 6.4 kilometres improved from Poor to Good status | CP54: * | CR54: 778365 | CS54: 1.54 | CT54: 1.54 | CU54: 1 | CV54: WWN | CW54: £ per km LORI | CX54: 1e-06 | CY54: Dual P Driver Site -LORI assigned to WFd_IMP Driver
A55: YOR00856 | B55: Changed | F55: WQ | G55: Humber | H55: Yorkshire | I55: Yorkshire Water Service Ltd | J55: 7YW200800 | K55: HALIFAX COPLEY STW | L55: Calder from Ryburn Confluence to River Colne | M55: GB104027062642 | N55: River | O55: Calder Middle | S55: WFD_IMPg | T55: Phosphorus | Y55: Continuous Discharge | Z55: 2024-12-22 | AA55: Amber | AB55: WRA7510 | AC55: 409224 | AD55: 422301 | BI55: 167246 | BK55: 0.3mg/l average | BL55: 4000ug/l Fe 95%ile | BM55: 57700m³/d | BO55: 8000ug/l Fe Upper Tier | CG55: N/A | CH55: 6.4 | CO55: Works identified for both WFD and SAe drivers. WFD limit is concluded to be cost beneficial. 6.4 kilometres improved from Poor to Good status | CP55: * | CR55: 778365 | CS55: 12.996 | CT55: 12.996 | CU55: 1 | CV55: WWN | CW55: £ per km LORI | CX55: 1e-06 | CY55: Dual P Driver Site -LORI assigned to WFd_IMP Driver
A56: YOR00857 | B56: Changed | C56: Pending – decision not yet taken | F56: WQ | G56: Humber | H56: Yorkshire | I56: Yorkshire Water Service Ltd | J56: 7YW200801 | K56: Huddersfield STW Colne Bridge | L56: Calder from Ryburn Confluence to River Colne | M56: GB104027062642 | N56: River | O56: Calder Lower | S56: WFD_IMPg | T56: Phosphorus | Y56: Continuous Discharge | Z56: 2024-12-22 | AA56: Amber | AB56: WRA7409 | AC56: 417820 | AD56: 420440 | BI56: 237696 | BK56: was 0.25 mg/l in FD | BL56: 4000ug/l Fe 95%ile | BM56: 84000m³/d | BO56: 8000ug/l Fe Upper Tier | CG56: N/A | CH56: 6.3 | CO56: Works identified for both WFD and SAe drivers. WFD limit is concluded to be cost beneficial. 6.3 kilometres improved from Poor to Good status | CP56: * | CR56: 502014 | CS56: 0 | CT56: 0 | CU56: 1 | CV56: WWN | CW56: £ per km LORI | CX56: 1e-06 | CY56: REMOVAL: YW Confirm Removal | CZ56: YKY confirm in model (column CY) removal and EA confirm (March 2024) deleted from PR19 WINEP. No amends required. | DA56: Removal
A57: YOR00858 | B57: Changed | F57: WQ | G57: Humber | H57: Yorkshire | I57: Yorkshire Water Service Ltd | J57: 7YW200802 | K57: HUDDERSFIELD STW Cooper Bridge | L57: Calder from River Colne to River Chald | M57: GB104027062631 | N57: River | O57: Calder Lower | S57: WFD_IMPg | T57: Phosphorus | Y57: Continuous Discharge | Z57: 2024-12-22 | AA57: Amber | AB57: WRA7409 | AC57: 418470 | AD57: 420810 | BI57: 56427 | BK57: 0.25mg/l average | BL57: 4000ug/l Fe 95%ile | BM57: 20000m³/d | BO57: 8000ug/l Fe Upper Tier | CG57: N/A | CH57: 6.3 | CO57: Works identified for both WFD and SAe drivers. WFD limit is concluded to be cost beneficial. 6.3 kilometres improved from Poor to Good status | CP57: * | CR57: 778365 | CS57: 12.022 | CT57: 12.022 | CU57: 1 | CV57: WWN | CW57: £ per km LORI | CX57: 1e-06 | CY57: Dual P Driver Site -LORI assigned to WFd_IMP Driver
A58: YOR00859 | B58: Changed | F58: WQ | G58: Humber | H58: Yorkshire | I58: Yorkshire Water Service Ltd | J58: 7YW200803 | K58: DEWSBURY/STW | L58: Calder from River Colne to River Chald | M58: GB104027062631 | N58: River | O58: Calder Lower | S58: WFD_IMPg | T58: Phosphorus | Y58: Continuous Discharge | Z58: 2024-12-22 | AA58: Amber | AB58: E15 | AC58: 426460 | AD58: 419490 | BI58: 251691.2 | BK58: 0.5mg/l average | BL58: 4000ug/l Fe 95%ile | BM58: 85694m³/d | BO58: 8000ug/l Fe Upper Tier | CG58: N/A | CH58: 6.3 | CO58: Works identified for both WFD and SAe drivers. WFD limit is concluded to be cost beneficial. 6.3 kilometres improved from Poor to Good status | CP58: * | CR58: 778365 | CS58: 5.819 | CT58: 5.819 | CU58: 1 | CV58: WWN | CW58: £ per km LORI | CX58: 1e-06 | CY58: Dual P Driver Site -LORI assigned to WFd_IMP Driver#Site known As Dewsbury and Mitchell Laithes
A59: YOR00860 | B59: Changed | F59: WQ | G59: Humber | H59: Yorkshire | I59: Yorkshire Water Service Ltd | J59: 7YW200804 | K59: HORBURY (DUDFLEET) STW | L59: Calder from River Colne to River Chald | M59: GB104027062631 | N59: River | O59: Calder Lower | S59: WFD_IMPg | T59: Phosphorus | Y59: Continuous Discharge | Z59: 2024-12-22 | AA59: Amber | AB59: C4107 | AC59: 430000 | AD59: 417070 | BI59: 42 | BK59: 0.5mg/l average | BL59: 4000ug/l Fe 95%ile | BM59: 10m3/d | BO59: 8000ug/l Fe Upper Tier | CG59: N/A | CH59: 6.3 | CO59: Works identified for both WFD and SAe drivers. WFD limit is concluded to be cost beneficial. 6.3 kilometres improved from Poor to Good status | CP59: * | CR59: 778365 | CS59: 3.309 | CT59: 3.309 | CU59: 1 | CV59: WWN | CW59: £ per km LORI | CX59: 1e-06 | CY59: Dual P Driver Site -LORI assigned to WFd_IMP Driver
A60: YOR00861 | B60: Changed | F60: WQ | G60: Humber | H60: Yorkshire | I60: Yorkshire Water Service Ltd | J60: 7YW200805 | K60: CALDER VALE/STW | L60: Calder from River Chald to River Aire | M60: GB104027062632 | N60: River | O60: Calder Lower | S60: WFD_IMPg | T60: Phosphorus | Y60: Continuous Discharge | Z60: 2024-12-22 | AA60: Amber | AB60: C4106 | AC60: 435070 | AD60: 420410 | BI60: 101008 | BK60: 0.6mg/l average | BL60: 4000ug/l Fe 95%ile | BM60: 32000m³/d | BO60: 8000ug/l Fe Upper Tier | CH60: 6.3 | CO60: Works identified for both WFD and SAe drivers. WFD limit is concluded to be cost beneficial. 6.3 kilometres improved from Poor to Good status | CP60: * | CR60: 778365 | CS60: 6.711 | CT60: 6.711 | CU60: 1 | CV60: WWN | CW60: £ per km LORI | CX60: 1e-06 | CY60: Dual P Driver Site -LORI assigned to WFd_IMP Driver
A61: YOR00862 | B61: Changed | F61: WQ | G61: Humber | H61: Yorkshire | I61: Yorkshire Water Service Ltd | J61: 7YW200806 | K61: Stanley (Smalley Bight) STW | L61: Calder from River Chald to River Aire | M61: GB104027062632 | N61: River | O61: Calder Lower | S61: WFD_IMPg | T61: Phosphorus | Y61: Continuous Discharge | Z61: 2024-12-22 | AA61: Amber | AB61: E743(SS) | AC61: 435280 | AD61: 423900 | BI61: 18957.2 | BK61: 1mg/l average | BL61: 4000ug/l Fe 95%ile | BM61: 5300m³/d | BO61: 8000ug/l Fe Upper Tier | CG61: N/A | CH61: 6.3 | CO61: Works identified for both WFD and SAe drivers. WFD limit is concluded to be cost beneficial. 6.3 kilometres improved from Poor to Good status | CP61: * | CR61: 778365 | CS61: 7.811 | CT61: 7.811 | CU61: 1 | CV61: WWN | CW61: £ per km LORI | CX61: 1e-06 | CY61: Dual P Driver Site -LORI assigned to WFd_IMP Driver#Same site as 7YW200942
A62: YOR00863 | B62: Changed | F62: WQ | G62: Humber | H62: Yorkshire | I62: Yorkshire Water Service Ltd | J62: 7YW200807 | K62: NORMANTON/STW (Mill Lane) | L62: Choke Churl Bk from Source to River Calder | M62: GB104027062590 | N62: River | O62: Calder Lower | S62: WFD_IMPg | T62: Phosphorus | Y62: Continuous Discharge | Z62: 2024-12-22 | AA62: Amber | AB62: WA6472 | AC62: 439670 | AD62: 424910 | BI62: 44569.8 | BK62: 0.8mg/l average | BL62: 4000ug/l Fe 95%ile | BM62: 12464m³/d | BO62: 8000ug/l Fe Upper Tier | CH62: 6.3 | CO62: Works identified for both WFD and SAe drivers. WFD limit is concluded to be cost beneficial. 6.3 kilometres improved from Poor to Good status | CP62: * | CR62: 778365 | CS62: 3.394 | CT62: 3.394 | CU62: 1 | CV62: WWN | CW62: £ per km LORI | CX62: 1e-06 | CY62: Dual P Driver Site -LORI assigned to WFd_IMP Driver
A63: YOR00866 | B63: Changed | F63: WQ | G63: Humber | H63: Yorkshire | I63: Yorkshire Water Service Ltd | J63: 7YW200810 | K63: EMBSAY/STW | L63: Haw Beck from Source to Eller beck | M63: GB104027063060 | N63: River | O63: Aire Upper | S63: WFD_IMPg | T63: Phosphorus | Y63: Continuous Discharge | Z63: 2024-12-22 | AA63: Amber | AB63: 2583 | AC63: 399880 | AD63: 453010 | BI63: 1777.4 | BK63: 0.25mg/l average | BL63: 4000ug/l Fe 95%ile | BM63: 727m³/d | BO63: 8000ug/l Fe Upper Tier | CG63: N/A | CH63: 4.2 | CO63: Cost beneficial scheme. 3.9 kilometres improved from Poor to Good status and 0.3 kilometres improved from Moderate to Good status. Total 4.2km in river length improvement. | CP63: * | CR63: 276351 | CS63: 2.715 | CT63: 2.72 | CU63: 1 | CV63: WWN | CW63: £ per km LORI | CX63: 1e-06 | CY63: RESTORE to In AMP Delivery -Delivery Date of 31 /3/25 now requested as no longer catchment candidate. Quantity delivered in full as anticipated | CZ63: EA confirm (March 2024) delivery in AMP8 27/28 therefore column CT amended from 2.72 to 0. | DA63: Restore to In Amp Delivery
A64: YOR00867 | B64: Changed | F64: WQ | G64: Humber | H64: Yorkshire | I64: Yorkshire Water Service Ltd | J64: 7YW200811 | K64: EAST MARTON | L64: Langber Beck from Source to Earby Beck | M64: GB104027063010 | N64: River | O64: Aire Upper | S64: WFD_IMPg | T64: Phosphorus | Y64: Continuous Discharge | Z64: 2024-12-22 | AA64: Amber | AB64: 1850 | AC64: 390970 | AD64: 450550 | BI64: 220.8 | BK64: 4mg/l average | BL64: 4000ug/l Fe 95%ile | BM64: 44m³/d | BO64: 8000ug/l Fe Upper Tier | CG64: N/A | CH64: 2 | CO64: Cost beneficial scheme. 2 kilometres improved from Moderate to Good status | CP64: * | CR64: 276351 | CS64: 0 | CT64: 0 | CU64: 1 | CV64: WWN | CW64: £ per km LORI | CX64: 1e-06 | CY64: RESTORE TO In AMP Delivery -Delivery Date of 31 /3/25 now requested as no longer catchment candidate. Quantity delivered in full as anticipated | CZ64: EA confirm (March 2024) delivery in AMP8 27/28 however no amend to model as already 0 in column CT | DA64: Restore to In Amp Delivery
A65: YOR00872 | B65: Changed | F65: WQ | G65: Humber | H65: Yorkshire | I65: Yorkshire Water Service Ltd | J65: 7YW200816 | K65: KEIGHLEY MARLEY/STW | L65: Aire (R Worth to Gill Beck) | M65: GB104027063034 | N65: River | O65: Aire Middle | S65: WFD_IMPg | T65: Phosphorus | Y65: Continuous Discharge | Z65: 2024-12-22 | AA65: Amber | AB65: WRA7172 | AC65: 409030 | AD65: 441150 | BI65: 90039 | BK65: 0.5mg/l average | BL65: 4000ug/l Fe 95%ile | BM65: 28129m³/d | BO65: 8000ug/l Fe Upper Tier | CG65: N/A | CH65: 5.1 | CO65: Works identified for both WFD and SAe drivers. WFD limit is concluded to be cost beneficial. 5.1 kilometres improved from Poor to Good status | CP65: * | CR65: 778365 | CS65: 6.459 | CT65: 6.459 | CU65: 1 | CV65: WWN | CW65: £ per km LORI | CX65: 1e-06 | CY65: Dual P Driver Site -LORI assigned to WFd_IMP Driver
A66: YOR00873 | B66: Changed | F66: WQ | G66: Humber | H66: Yorkshire | I66: Yorkshire Water Service Ltd | J66: 7YW200817 | K66: DOWLEY GAP (BINGLEY) | L66: Aire (R Worth to Gill Beck) | M66: GB104027063034 | N66: River | O66: Aire Middle | S66: WFD_IMPg | T66: Phosphorus | Y66: Continuous Discharge | Z66: 2024-12-22 | AA66: Amber | AB66: 2502 | AC66: 412310 | AD66: 438140 | BI66: 38795.4 | BK66: 0.25mg/l average | BL66: 4000ug/l Fe 95%ile | BM66: 11713m³/d | BO66: 8000ug/l Fe Upper Tier | CG66: N/A | CH66: 5.1 | CO66: Works identified for both WFD and SAe drivers. WFD limit is concluded to be cost beneficial. 5.1 kilometres improved from Poor to Good status | CP66: * | CR66: 778365 | CS66: 9.155 | CT66: 9.155 | CU66: 1 | CV66: WWN | CW66: £ per km LORI | CX66: 1e-06 | CY66: Dual P Driver Site -LORI assigned to WFd_IMP Driver
A67: YOR00874 | B67: Changed | C67: Yes – alteration made | F67: WQ | G67: Humber | H67: Yorkshire | I67: Yorkshire Water Service Ltd | J67: 7YW200818 | K67: BRADFORD ESHOLT/NO 2 STW | L67: Aire from Gill Beck (Baildon) to River Calder | M67: GB104027063032 | N67: River | O67: Aire Lower | S67: WFD_IMPg | T67: Phosphorus | Y67: Continuous Discharge | Z67: 2024-12-22 | AA67: Amber | AB67: WRA6925 | AC67: 418984 | AD67: 438746 | BI67: 367696.2 | BK67: 0.5mg/l average | BL67: 4000ug/l Fe 95%ile | BM67: 130000m³/d | BO67: 8000ug/l Fe Upper Tier | CG67: N/A | CH67: 13.1 | CO67: Works identified for both WFD and SAe drivers. WFD limit is concluded to be cost beneficial. 1.4 kilometres improved from Poor to Moderate status and 11.7 kilometres improved from Poor to Good status. Total 13.1km in river length improvement. | CP67: * | CR67: 778365 | CS67: 23.472 | CT67: 23.472 | CU67: 1 | CV67: WWN | CW67: £ per km LORI | CX67: 1e-06 | CY67: Dual P Driver Site -LORI assigned to WFd_IMP Driver
A68: YOR00875 | B68: Changed | F68: WQ | G68: Humber | H68: Yorkshire | I68: Yorkshire Water Service Ltd | J68: 7YW200819 | K68: KNOSTROP WWTW | L68: Wyke Beck from Source to River Aire | M68: GB104027062880 | N68: River | O68: Aire Lower | S68: WFD_IMPg | T68: Phosphorus | Y68: Continuous Discharge | Z68: 2024-12-22 | AA68: Amber | AB68: WRA6924 | AC68: 433276 | AD68: 432035 | BI68: 366809 | BK68: 0.4mg/l average | BL68: 4000ug/l Fe 95%ile | BM68: 213600m³/d | BO68: 8000ug/l Fe Upper Tier | CG68: N/A | CH68: 13.1 | CO68: Works identified for both WFD and SAe drivers. WFD limit is concluded to be cost beneficial. 1.4 kilometres improved from Poor to Moderate status and 11.7 kilometres improved from Poor to Good status. Total 13.1km in river length improvement. | CP68: * | CR68: 778365 | CS68: 5.593 | CT68: 5.593 | CU68: 1 | CV68: WWN | CW68: £ per km LORI | CX68: 1e-06 | CY68: Dual P Driver Site -LORI assigned to WFd_IMP Driver
A69: YOR00876 | B69: Changed | F69: WQ | G69: Humber | H69: Yorkshire | I69: Yorkshire Water Service Ltd | J69: 7YW200820 | K69: LEMONROYD STW | L69: Oulton Beck from Source to River Aire | M69: GB104027062680 | N69: River | O69: Aire Lower | S69: WFD_IMPg | T69: Phosphorus | Y69: Continuous Discharge | Z69: 2024-12-22 | AA69: Amber | AB69: WRA7220 | AC69: 438200 | AD69: 428000 | BI69: 35201.2 | BK69: 2mg/l average | BL69: 4000ug/l Fe 95%ile | BM69: 7500m³/d | BO69: 8000ug/l Fe Upper Tier | CG69: N/A | CH69: 13.1 | CO69: Works identified for both WFD and SAe drivers. WFD limit is concluded to be cost beneficial. 1.4 kilometres improved from Poor to Moderate status and 11.7 kilometres improved from Poor to Good status. Total 13.1km in river length improvement. | CP69: * | CR69: 778365 | CS69: 5.586 | CT69: 5.586 | CU69: 1 | CV69: WWN | CW69: £ per km LORI | CX69: 1e-06 | CY69: Dual P Driver Site -LORI assigned to WFd_IMP Driver
A70: YOR00878 | B70: Changed | F70: WQ | G70: Humber | H70: Yorkshire | I70: Yorkshire Water Service Ltd | J70: 7YW200822 | K70: CASTLEFORD/STW | L70: Aire from River Calder to River Ouse | M70: GB104027062760 | N70: River | O70: Aire Lower | S70: WFD_IMPg | T70: Phosphorus | Y70: Continuous Discharge | Z70: 2024-12-22 | AA70: Amber | AB70: WRA6659 | AC70: 444640 | AD70: 426680 | BI70: 34117 | BK70: 3mg/l average | BL70: 4000ug/l Fe 95%ile | BM70: 8400m³/d | BO70: 8000ug/l Fe Upper Tier | CG70: N/A | CH70: 9.9 | CO70: Works identified for both WFD and SAe drivers. WFD limit is concluded to be cost beneficial. 9.9 kilometres improved from Poor to Good status | CP70: * | CR70: 778365 | CS70: 0 | CT70: 0 | CU70: 1 | CV70: WWN | CW70: £ per km LORI | CX70: 1e-06 | CY70: Dual P Driver Site -LORI assigned to U_IMP2 Driver. U_IMP2 more stringent than WFD_IMP
A71: YOR00879 | B71: Changed | F71: WQ | G71: Humber | H71: Yorkshire | I71: Yorkshire Water Service Ltd | J71: 7YW200823 | K71: SUTTON WWTW | L71: Aire from River Calder to River Ouse | M71: GB104027062760 | N71: River | O71: Aire Lower | S71: WFD_IMPg | T71: Phosphorus | Y71: Continuous Discharge | Z71: 2024-12-22 | AA71: Amber | AB71: 1945 | AC71: 450400 | AD71: 424310 | BI71: 48826 | BK71: 1mg/l average | BL71: 4000ug/l Fe 95%ile | BM71: 11073m³/d | BO71: 8000ug/l Fe Upper Tier | CG71: N/A | CH71: 9.9 | CO71: Works identified for both WFD and SAe drivers. WFD limit is concluded to be cost beneficial. 9.9 kilometres improved from Poor to Good status | CP71: * | CR71: 778365 | CS71: 23.165 | CT71: 23.165 | CU71: 1 | CV71: WWN | CW71: £ per km LORI | CX71: 1e-06 | CY71: Dual P Driver Site -LORI assigned to WFd_IMP Driver
A72: YOR00881 | B72: Changed | C72: Yes – alteration made | F72: WQ | G72: Humber | H72: Yorkshire | I72: Yorkshire Water Service Ltd | J72: 7YW200825 | K72: SOUTH ELMSALL/STW | L72: Ea Beck from Frickley Beck to the Skell | M72: GB104027063200 | N72: River | O72: Don Lower | S72: WFD_IMPm | T72: Phosphorus | Y72: Continuous Discharge | Z72: 2024-12-22 | AA72: Amber | AB72: WRA7507 | AC72: 448390 | AD72: 410640 | BI72: 35231.4 | BK72: 0.3mg/l average | BL72: 4000ug/l Fe 95%ile | BM72: 9800m³/d | BO72: 8000ug/l Fe Upper Tier | CG72: N/A | CH72: 9 | CO72: Works identified for both WFD and SAe drivers. WFD limit is concluded to be cost beneficial. 3.9 kilometres improved from Bad to Moderate and 5.1 kilometres improved from Poor to Good status. Total 9km in river length improvement. | CP72: * | CR72: 778365 | CS72: 5.117 | CT72: 5.117 | CU72: 1 | CV72: WWN | CW72: £ per km LORI | CX72: 1e-06 | CY72: Dual P Driver Site -LORI assigned to WFd_IMP Driver
A73: YOR00882 | B73: Changed | F73: WQ | G73: Humber | H73: Yorkshire | I73: Yorkshire Water Service Ltd | J73: 7YW200826 | K73: WRANGBROOK STW | L73: The Skell from Source to Ea Beck | M73: GB104027063280 | N73: River | O73: Don Lower | S73: WFD_IMPg | T73: Phosphorus | Y73: Continuous Discharge | Z73: 2024-12-22 | AA73: Amber | AB73: E744 | AC73: 449590 | AD73: 412540 | BI73: 6534.8 | BK73: 0.5mg/l average | BL73: 4000ug/l Fe 95%ile | BM73: 1340m³/d | BO73: 8000ug/l Fe Upper Tier | CG73: N/A | CH73: 5.8 | CO73: Cost beneficial scheme. 5.8 kilometres improved from Poor to Good status | CP73: * | CR73: 276351 | CS73: 8.776 | CT73: 8.776 | CU73: 1 | CV73: WWN | CW73: £ per km LORI | CX73: 1e-06 | CY73: Single WFD_IMP Driver For P
A74: YOR00883 | B74: Changed | F74: WQ | G74: Humber | H74: Yorkshire | I74: Yorkshire Water Service Ltd | J74: 7YW200827 | K74: Adwick Le Street | L74: Ea Beck from the Skell to River Don | M74: GB104027057591 | N74: River | O74: Don Lower | S74: WFD_IMPm | T74: Phosphorus | Y74: Continuous Discharge | Z74: 2024-12-22 | AA74: Amber | AB74: WRA7541 | AC74: 454690 | AD74: 408050 | BI74: 20133 | BK74: 0.3mg/l average | BL74: 4000ug/l Fe 95%ile | BM74: 5400m³/d | BO74: 8000ug/l Fe Upper Tier | CH74: 3.9 | CO74: Works identified for both WFD and SAe drivers. WFD limit is concluded to be cost beneficial. 2.4 kilometres improved from Bad to Mod and 1.5 kilometres improved from Poor to Good status. Total 3.9km in river length improvement. | CP74: * | CR74: 778365 | CS74: 8.573 | CT74: 8.573 | CU74: 1 | CV74: WWN | CW74: £ per km LORI | CX74: 1e-06 | CY74: Dual P Driver Site -LORI assigned to WFd_IMP Driver
A75: YOR00886 | B75: Changed | F75: WQ | G75: Humber | H75: Yorkshire | I75: Yorkshire Water Service Ltd | J75: 7YW200830 | K75: GRIMETHORPE/STW | L75: Grimethorpe Dike from Source to River Dearne | M75: GB104027063180 | N75: River | O75: Dearne | S75: WFD_IMPm | T75: Phosphorus | Y75: Continuous Discharge | Z75: 2024-12-22 | AA75: Amber | AB75: 2246 | AC75: 440280 | AD75: 409430 | BI75: 12973.4 | BK75: 0.25mg/l average | BL75: 4000ug/l Fe 95%ile | BM75: 3157m³/d | BO75: 8000ug/l Fe Upper Tier | CG75: N/A | CH75: 3.7 | CO75: Works identified for both WFD and SAe drivers. WFD limit is concluded to be cost beneficial. 3.7 kilometres improved from Bad to Moderate. | CP75: * | CR75: 778365 | CS75: 10.161 | CT75: 10.161 | CU75: 1 | CV75: WWN | CW75: £ per km LORI | CX75: 1e-06 | CY75: Dual P Driver Site -LORI assigned to WFd_IMP Driver
A76: YOR00887 | B76: Changed | F76: WQ | G76: Humber | H76: Yorkshire | I76: Yorkshire Water Service Ltd | J76: 7YW200831 | K76: CLAYTON WEST/STW | L76: Dearne from Source to Bentley Brook | M76: GB104027063220 | N76: River | O76: Dearne | S76: WFD_IMPg | T76: Phosphorus | Y76: Continuous Discharge | Z76: 2024-12-22 | AA76: Amber | AB76: 3809(SS) | AC76: 426780 | AD76: 412070 | BI76: 16803.8 | BK76: 0.25mg/l average | BL76: 4000ug/l Fe 95%ile | BM76: 5748m³/d | BO76: 8000ug/l Fe Upper Tier | CG76: N/A | CH76: 8 | CO76: Works identified for both WFD and SAe drivers. WFD limit is concluded to be cost beneficial. 8 kilometres improved from Poor to Good status | CP76: * | CR76: 778365 | CS76: 3.707 | CT76: 3.707 | CU76: 1 | CV76: WWN | CW76: £ per km LORI | CX76: 1e-06 | CY76: Dual P Driver Site -LORI assigned to WFd_IMP Driver
A77: YOR00888 | B77: Changed | F77: WQ | G77: Humber | H77: Yorkshire | I77: Yorkshire Water Service Ltd | J77: 7YW200832 | K77: HOYLANDSWAINE/STW | L77: Silkstone Beck from Source to Cawthorne Dyke | M77: GB104027057560 | N77: River | O77: Dearne | S77: WFD_IMPg | T77: Phosphorus | Y77: Continuous Discharge | Z77: 2024-12-22 | AA77: Amber | AB77: 2344 | AC77: 426900 | AD77: 405700 | BI77: 967.2 | BK77: 0.4mg/l average | BL77: 4000ug/l Fe 95%ile | BM77: 236m³/d | BO77: 8000ug/l Fe Upper Tier | CG77: N/A | CH77: 3.7 | CO77: Cost beneficial scheme. 3.7 kilometres improved from Poor to Good status | CP77: * | CR77: 276351 | CS77: 9.805 | CT77: 9.805 | CU77: 1 | CV77: WWN | CW77: £ per km LORI | CX77: 1e-06 | CY77: Single WFD_IMP Driver For P
A78: YOR00902 | B78: Changed | F78: WQ | G78: Humber | H78: Yorkshire | I78: Yorkshire Water Service Ltd | J78: 7YW200846 | K78: INGBIRCHWORTH STW | L78: Scout Dyke from Source to River Don | M78: GB104027057530 | N78: River | O78: Don Upper | S78: WFD_IMPg | T78: Phosphorus | Y78: Continuous Discharge | Z78: 2024-12-22 | AA78: Amber | AB78: WRA7365 | AC78: 422717 | AD78: 405548 | BI78: 429.8 | BK78: 1mg/l average | BL78: 4000ug/l Fe 95%ile | BM78: 102m³/d | BO78: 8000ug/l Fe Upper Tier | CG78: N/A | CH78: 6 | CO78: Cost beneficial scheme. 6 kilometres improved from Moderate to Good status | CP78: * | CR78: 1287218 | CS78: 1 | CT78: 1 | CU78: 1 | CV78: WWN | CW78: £ per kgP/day removed | CX78: 1e-06 | CY78: Site Closure and Transfer Scheme with Single WFD_IMP for Phosphorus
A79: YOR00903 | B79: Changed | F79: WQ | G79: Humber | H79: Yorkshire | I79: Yorkshire Water Service Ltd | J79: 7YW200847 | K79: CHEESEBOTTOM STW | L79: Don from Scout Dyke to the Little Don | M79: GB104027057490 | N79: River | O79: Don Upper | S79: WFD_IMPm | T79: Phosphorus | Y79: Continuous Discharge | Z79: 2024-12-22 | AA79: Amber | AB79: 2556 | AC79: 427990 | AD79: 401280 | BI79: 13297.2 | BK79: 0.5mg/l average | BL79: 4000ug/l Fe 95%ile | BM79: 4478m³/d | BO79: 8000ug/l Fe Upper Tier | CH79: 15.5 | CO79: Works identified for both WFD and SAe drivers. WFD limit is concluded to be cost beneficial. 4.3 kilometres improved from Moderate to Good status and 1.4 kilometres improved from Poor to Good status and 9.8 kilometres improved from Poor to Moderate status. Total 15.5 km in river length improvement. | CP79: * | CR79: 778365 | CS79: 7.747 | CT79: 7.747 | CU79: 1 | CV79: WWN | CW79: £ per km LORI | CX79: 1e-06 | CY79: Dual P Driver Site -LORI assigned to WFd_IMP Driver
A80: YOR00904 | B80: Changed | F80: WQ | G80: Humber | H80: Yorkshire | I80: Yorkshire Water Service Ltd | J80: 7YW200848 | K80: STOCKSBRIDGE/STW | L80: Don from Little Don to River Loxley confluence | M80: GB104027057411 | N80: River | O80: Don Upper | S80: WFD_IMPm | T80: Phosphorus | Y80: Continuous Discharge | Z80: 2024-12-22 | AA80: Amber | AB80: E697(SS) | AC80: 429150 | AD80: 397500 | BI80: 14718.2 | BK80: 0.5mg/l average | BL80: 4000ug/l Fe 95%ile | BM80: 3482m³/d | BO80: 8000ug/l Fe Upper Tier | CG80: N/A | CH80: 15.5 | CO80: Works identified for both WFD and SAe drivers. WFD limit is concluded to be cost beneficial. 4.3 kilometres improved from Moderate to Good status and 1.4 kilometres improved from Poor to Good status and 9.8 kilometres improved from Poor to Moderate status. Total 15.5km in river length improvement. | CP80: * | CR80: 778365 | CS80: 23.137 | CT80: 23.137 | CU80: 1 | CV80: WWN | CW80: £ per km LORI | CX80: 1e-06 | CY80: Dual P Driver Site -LORI assigned to WFd_IMP Driver
A81: YOR00906 | B81: Changed | F81: WQ | G81: Humber | H81: Yorkshire | I81: Yorkshire Water Service Ltd | J81: 7YW200850 | K81: BLACKBURN MEADOWS/STW | L81: Don from River Don Works to River Rother | M81: GB104027057413 | N81: River | O81: Don Middle | S81: WFD_IMPg | T81: Phosphorus | Y81: Continuous Discharge | Z81: 2024-12-22 | AA81: Amber | AB81: E25 | AC81: 440520 | AD81: 391930 | BI81: 460744 | BK81: 0.3mg/l average | BL81: 4000ug/l Fe 95%ile | BM81: 158000m³/d | BO81: 8000ug/l Fe Upper Tier | CG81: N/A | CH81: 2.4 | CO81: Works identified for both WFD and SAe drivers. WFD limit is concluded to be cost beneficial. 2.4 kilometres improved from Poor to Good status | CP81: * | CR81: 778365 | CS81: 6.528 | CT81: 6.528 | CU81: 1 | CV81: WWN | CW81: £ per km LORI | CX81: 1e-06 | CY81: Propose to change delivery date to 31/03/25. Dual P Driver Site -LORI assigned to WFd_IMP Driver
A82: YOR00913 | B82: Changed | F82: WQ | G82: Humber | H82: Yorkshire | I82: Yorkshire Water Service Ltd | J82: 7YW200857 | K82: Old Whittington (Chesterfield) STW | L82: Rother, Spittal Brook to Doe Lea | M82: GB104027057771 | N82: River | O82: Rother and Doe Lea | S82: WFD_IMPg | T82: Phosphorus | Y82: Continuous Discharge | Z82: 2024-12-22 | AA82: Amber | AB82: WRA6756 | AC82: 439406 | AD82: 374553 | BI82: 97084.6 | BK82: 0.25mg/l average | BL82: 4000ug/l Fe 95%ile | BM82: 29600m³/d | BO82: 8000ug/l Fe Upper Tier | CH82: 8.3 | CO82: Works identified for both WFD and SAe drivers. WFD limit is concluded to be cost beneficial. 8.3 kilometres improved from Poor to Good status | CP82: * | CR82: 778365 | CS82: 9.268 | CT82: 9.268 | CU82: 1 | CV82: WWN | CW82: £ per km LORI | CX82: 1e-06 | CY82: Dual P Driver Site -LORI assigned to WFd_IMP Driver
A83: YOR00914 | B83: Changed | C83: Yes – alteration made | F83: WQ | G83: Humber | H83: Yorkshire | I83: Yorkshire Water Service Ltd | J83: 7YW200858 | K83: STOCKLEY/STW | L83: Doe Lea from Source to Hawke Brook | M83: GB104027057290 | N83: River | O83: Rother and Doe Lea | S83: WFD_IMPg | T83: Phosphorus | Y83: Continuous Discharge | Z83: 2024-12-22 | AA83: Amber | AB83: E280 | AC83: 445920 | AD83: 367970 | BI83: 2673.4 | BK83: 0.5mg/l average | BL83: 4000ug/l Fe 95%ile | BM83: 677m³/d | BO83: 8000ug/l Fe Upper Tier | CG83: N/A | CH83: 4 | CO83: Cost beneficial scheme. 4 kilometres improved from Poor to Good status | CP83: * | CR83: 276351 | CS83: 2.367 | CT83: 2.367 | CU83: 1 | CV83: WWN | CW83: £ per km LORI | CX83: 1e-06 | CY83: Single WFD_IMP Driver For P
A84: YOR00915 | B84: Changed | F84: WQ | G84: Humber | H84: Yorkshire | I84: Yorkshire Water Service Ltd | J84: 7YW200859 | K84: BOLSOVER/STW | L84: Doe Lea from Source to Hawke Brook | M84: GB104027057290 | N84: River | O84: Rother and Doe Lea | S84: WFD_IMPg | T84: Phosphorus | Y84: Continuous Discharge | Z84: 2024-12-22 | AA84: Amber | AB84: 1866 | AC84: 445919 | AD84: 370148 | BI84: 11810.6 | BK84: 0.3mg/l average | BL84: 4000ug/l Fe 95%ile | BM84: 1900m³/d | BO84: 8000ug/l Fe Upper Tier | CH84: 4 | CO84: Works identified for both WFD and SAe drivers. WFD limit is concluded to be cost beneficial. 4 kilometres improved from Poor to Good status | CP84: * | CR84: 778365 | CS84: 7.796 | CT84: 7.796 | CU84: 1 | CV84: WWN | CW84: £ per km LORI | CX84: 1e-06 | CY84: Dual P Driver Site plus Ammonia-LORI assigned to WFd_IMP Driver
A85: YOR00916 | B85: Changed | F85: WQ | G85: Humber | H85: Yorkshire | I85: Yorkshire Water Service Ltd | J85: 7YW200860 | K85: STAVELEY/STW | L85: Doe Lea from Hawke Brooke to River Rother | M85: GB104027057301 | N85: River | O85: Rother and Doe Lea | S85: WFD_IMPg | T85: Phosphorus | Y85: Continuous Discharge | Z85: 2024-12-22 | AA85: Amber | AB85: WRA 6647 | AC85: 444380 | AD85: 476610 | BI85: 28138 | BK85: 0.25mg/l average | BL85: 4000ug/l Fe 95%ile | BM85: 5730m³/d | BO85: 8000ug/l Fe Upper Tier | CG85: N/A | CH85: 2.9 | CO85: Works identified for both WFD and SAe drivers. WFD limit is concluded to be cost beneficial. 2.9 kilometres improved from Bad to Good status | CP85: * | CR85: 778365 | CS85: 12.934 | CT85: 12.934 | CU85: 1 | CV85: WWN | CW85: £ per km LORI | CX85: 1e-06 | CY85: Dual P Driver Site -LORI assigned to WFd_IMP Driver
A86: YOR00917 | B86: Changed | F86: WQ | G86: Humber | H86: Yorkshire | I86: Yorkshire Water Service Ltd | J86: 7YW200861 | K86: WOODHOUSE MILL WwTW | L86: Rother, Doe Lea to Don | M86: GB104027057772 | N86: River | O86: Rother and Doe Lea | S86: WFD_IMPg | T86: Phosphorus | Y86: Continuous Discharge | Z86: 2024-12-22 | AA86: Amber | AB86: 3334(SS) | AC86: 443290 | AD86: 386140 | BI86: 128370 | BK86: 0.9mg/l average | BL86: 4000ug/l Fe 95%ile | BM86: 28343m³/d | BO86: 8000ug/l Fe Upper Tier | CG86: N/A | CH86: 8.5 | CO86: Works identified for both WFD and SAe drivers. WFD limit is concluded to be cost beneficial. 8.5 kilometres improved from Poor to Good status | CP86: * | CR86: 778365 | CS86: 4.275 | CT86: 4.275 | CU86: 1 | CV86: WWN | CW86: £ per km LORI | CX86: 1e-06 | CY86: Dual P Driver Site -LORI assigned to WFd_IMP Driver
A87: YOR00918 | B87: Changed | F87: WQ | G87: Humber | H87: Yorkshire | I87: Yorkshire Water Service Ltd | J87: 7YW200862 | K87: LONG LANE/STW | L87: Ulley Brook from Source to River Rother | M87: GB104027057740 | N87: River | O87: Rother and Doe Lea | S87: WFD_IMPg | T87: Phosphorus | Y87: Continuous Discharge | Z87: 2024-12-22 | AA87: Amber | AB87: 2081 | AC87: 443678 | AD87: 389206 | BI87: 22968 | BK87: 0.5mg/l average | BL87: 4000ug/l Fe 95%ile | BM87: 4472m³/d | BO87: 8000ug/l Fe Upper Tier | CG87: N/A | CH87: 4.1 | CO87: Works identified for both WFD and SAe drivers. WFD limit is concluded to be cost beneficial. 4.1 kilometres improved from Poor to Good status | CP87: * | CR87: 778365 | CS87: 4.236 | CT87: 4.236 | CU87: 1 | CV87: WWN | CW87: £ per km LORI | CX87: 1e-06 | CY87: Dual P Driver Site -LORI assigned to WFd_IMP Driver
A88: YOR00919 | B88: Changed | F88: WQ | G88: Humber | H88: Yorkshire | I88: Yorkshire Water Service Ltd | J88: 7YW200863 | K88: ALDWARKE/STW | L88: Don from River Rother to River Dearne | M88: GB104027057452 | N88: River | O88: Don Middle | S88: WFD_IMPg | T88: Phosphorus | Y88: Continuous Discharge | Z88: 2024-12-22 | AA88: Amber | AB88: C4954 | AC88: 445060 | AD88: 394470 | BI88: 109591 | BK88: 0.7mg/l average | BL88: 4000ug/l Fe 95%ile | BM88: 31277m³/d | BO88: 8000ug/l Fe Upper Tier | CH88: 7.8 | CO88: Works identified for both WFD and SAe drivers. WFD limit is concluded to be cost beneficial. 7.8 kilometres improved from Poor to Good status kilometres improved from Poor to Good status | CP88: * | CR88: 778365 | CS88: 7.06 | CT88: 7.06 | CU88: 1 | CV88: WWN | CW88: £ per km LORI | CX88: 1e-06 | CY88: Dual P Driver Site -LORI assigned to WFd_IMP Driver
A89: YOR00920 | B89: Changed | F89: WQ | G89: Humber | H89: Yorkshire | I89: Yorkshire Water Service Ltd | J89: 7YW200864 | K89: MEXBORO SWINTON/STW | L89: Don from River Rother to River Dearne | M89: GB104027057452 | N89: River | O89: Don Middle | S89: WFD_IMPg | T89: Phosphorus | Y89: Continuous Discharge | Z89: 2024-12-22 | AA89: Amber | AB89: 2160 | AC89: 446986 | AD89: 399204 | BI89: 16175.2 | BK89: 1mg/l average | BL89: 4000ug/l Fe 95%ile | BM89: 4800m³/d | BO89: 8000ug/l Fe Upper Tier | CG89: N/A | CH89: 7.8 | CO89: Works identified for both WFD and SAe drivers. WFD limit is concluded to be cost beneficial. 7.8 kilometres improved from Poor to Good status kilometres improved from Poor to Good status | CP89: * | CR89: 778365 | CS89: 3.06 | CT89: 3.06 | CU89: 1 | CV89: WWN | CW89: £ per km LORI | CX89: 1e-06 | CY89: Dual P Driver Site -LORI assigned to WFd_IMP Driver
A90: YOR00921 | B90: Changed | F90: WQ | G90: Humber | H90: Yorkshire | I90: Yorkshire Water Service Ltd | J90: 7YW200865 | K90: DENABY WTW | L90: Don from River Rother to River Dearne | M90: GB104027057452 | N90: River | O90: Don Middle | S90: WFD_IMPg | T90: Phosphorus | Y90: Continuous Discharge | Z90: 2024-12-22 | AA90: Amber | AB90: E728(SS) | AC90: 449450 | AD90: 399940 | BI90: 32166 | BK90: 0.6mg/l average | BL90: 4000ug/l Fe 95%ile | BM90: 8199m³/d | BO90: 8000ug/l Fe Upper Tier | CG90: N/A | CH90: 7.8 | CO90: Works identified for both WFD and SAe drivers. WFD limit is concluded to be cost beneficial. 7.8 kilometres improved from Poor to Good status kilometres improved from Poor to Good status | CP90: * | CR90: 778365 | CS90: 13.416 | CT90: 13.416 | CU90: 1 | CV90: WWN | CW90: £ per km LORI | CX90: 1e-06 | CY90: Dual P Driver Site -LORI assigned to WFd_IMP Driver
A91: YOR00922 | B91: Changed | C91: Yes – alteration made | F91: wq | G91: Humber | H91: Yorkshire | I91: Yorkshire Water Service Ltd | J91: 7YW200866 | K91: Clifton STW | L91: Kearsley Bk | M91: GB104027064244 | N91: River | O91: Don Middle | S91: WFD_IMPg | T91: Phosphorus | Y91: Continuous Discharge | Z91: 2024-12-22 | AA91: Amber | AB91: E727(SS) | AC91: 451600 | AD91: 396800 | BI91: 189 | BK91: 4mg/l average | BL91: 4000ug/l Fe 95%ile | BM91: 40m³/d | BO91: 8000ug/l Fe Upper Tier | CG91: N/A | CH91: 3.5 | CO91: Cost beneficial scheme. 3.5 kilometres improved from Moderate to Good status | CP91: * | CR91: 276351 | CS91: 0 | CT91: 0 | CU91: 1 | CV91: WWN | CW91: £ per km LORI | CX91: 1e-06 | CY91: Single WFD_IMP Driver For P#Doesn't have a LORI associated. Small Phosphorus change.
A92: YOR00923 | B92: Changed | C92: Yes – alteration made | F92: WQ | G92: Humber | H92: Yorkshire | I92: Yorkshire Water Service Ltd | J92: 7YW200867 | K92: BENTLEY/STW P Removal | L92: Bentley Mill Stream | M92: GB104027057541 | N92: River | O92: Don Lower | S92: WFD_IMPg | T92: Phosphorus | Y92: Continuous Discharge | Z92: 2024-12-22 | AA92: Amber | AB92: 1978 sched 1 | AC92: 457130 | AD92: 405720 | BI92: 20936 | BK92: 0.25mg/l average | BL92: 4000ug/l Fe 95%ile | BM92: 5046m³/d | BO92: 8000ug/l Fe Upper Tier | CH92: 1.3 | CO92: Works identified for both WFD and SAe drivers. WFD limit is concluded to be cost beneficial. | CP92: * | CR92: 778365 | CS92: 3.43 | CT92: 3.43 | CU92: 1 | CV92: WWN | CW92: £ per km LORI | CX92: 1e-06 | CY92: Dual P Driver Site -LORI assigned to WFd_IMP Driver 7YW200867
A93: YOR00928 | B93: Changed | F93: WQ | G93: Humber | H93: Yorkshire | I93: Yorkshire Water Service Ltd | J93: 7YW200872 | K93: KIRK SMEATON/STW | L93: Went from Hoyle Mill Stream to Blowell Drain | M93: GB104027063360 | N93: River | O93: Don Lower | S93: WFD_IMPg | T93: Phosphorus | Y93: Continuous Discharge | Z93: 2024-12-22 | AA93: Amber | AB93: E730 | AC93: 453354 | AD93: 415995 | BI93: 800.6 | BK93: 0.5mg/l average | BL93: 4000ug/l Fe 95%ile | BM93: 171m³/d | BO93: 8000ug/l Fe Upper Tier | CG93: N/A | CH93: 10.1 | CO93: Cost beneficial scheme. Total 10.1km in river length improvement comprising 8.1 kilometres improved from Poor to Good status and 2 kilometres improved from Poor to Moderate status. | CP93: * | CR93: 1287218 | CS93: 2 | CT93: 2 | CU93: 1 | CV93: WWN | CW93: £ per kgP/day removed | CX93: 1e-06 | CY93: Site Closure and Transfer Scheme with Single WFD_IMP for Phosphorus
A94: YOR00966 | B94: Changed | F94: WQ | G94: Humber | H94: Yorkshire | I94: Yorkshire Water Service Ltd | J94: 7YW200910 | K94: Adwick Le Street | L94: Ea Beck from the Skell to River Don | M94: GB104027057591 | N94: River | O94: Don Lower | S94: U_IMP2 | T94: Phosphorus | Y94: Continuous Discharge | Z94: 2025-03-31 | AA94: Amber | AB94: WRA7541 | AC94: 454640 | AD94: 407980 | BI94: 20133 | BK94: 2mg/l average | BL94: 4000ug/l Fe 95%ile | BM94: 5400m³/d | BO94: 8000ug/l Fe Upper Tier | CH94: 2.4 | CO94: Defra to confirm sensitive areas | CP94: * | CR94: 778365 | CS94: 0 | CT94: 0 | CU94: 1 | CV94: WWN | CW94: £ per km LORI | CX94: 1e-06 | CY94: Dual P Driver Site -LORI assigned to WFd_IMP Driver
A95: YOR00967 | B95: Changed | F95: WQ | G95: Humber | H95: Yorkshire | I95: Yorkshire Water Service Ltd | J95: 7YW200911 | K95: ALDWARKE/STW | L95: Don from River Rother to River Dearne | M95: GB104027057452 | N95: River | O95: Don Middle | S95: U_IMP2 | T95: Phosphorus | Y95: Continuous Discharge | Z95: 2025-03-31 | AA95: Amber | AB95: C4954 | AC95: 445060 | AD95: 394470 | BI95: 109591 | BK95: 1mg/l average | BL95: 4000ug/l Fe 95%ile | BM95: 31277m³/d | BO95: 8000ug/l Fe Upper Tier | CH95: 7.8 | CO95: Defra to confirm sensitive areas | CP95: * | CR95: 778365 | CS95: 0 | CT95: 0 | CU95: 1 | CV95: WWN | CW95: £ per km LORI | CX95: 1e-06 | CY95: Dual P Driver Site -LORI assigned to WFd_IMP Driver
A96: YOR00968 | B96: Changed | C96: Yes – alteration made | F96: WQ | G96: Humber | H96: Yorkshire | I96: Yorkshire Water Service Ltd | J96: 7YW200912 | K96: BENTLEY/STW P Removal | L96: Bentley Mill Stream | M96: GB104027057541 | N96: River | O96: Don Lower | S96: U_IMP2 | T96: Phosphorus | Y96: Continuous Discharge | Z96: 2025-03-31 | AA96: Amber | AB96: 1978 | AC96: 457130 | AD96: 405720 | BI96: 20936 | BK96: 2mg/l average | BL96: 4000ug/l Fe 95%ile | BM96: 5046m³/d | BO96: 8000ug/l Fe Upper Tier | CH96: 1.3 | CO96: Defra to confirm sensitive areas. | CP96: * | CR96: 778365 | CS96: 0 | CT96: 0 | CU96: 1 | CV96: WWN | CW96: £ per km LORI | CX96: 1e-06 | CY96: Dual P Driver Site -LORI assigned to WFd_IMP Driver 7YW200867
A97: YOR00969 | B97: Changed | F97: WQ | G97: Humber | H97: Yorkshire | I97: Yorkshire Water Service Ltd | J97: 7YW200913 | K97: BLACKBURN MEADOWS/STW | L97: Don from River Don Works to River Rother | M97: GB104027057413 | N97: River | O97: Don Middle | S97: U_IMP2 | T97: Phosphorus | Y97: Continuous Discharge | Z97: 2025-03-31 | AA97: Amber | AB97: E25 | AC97: 440520 | AD97: 391930 | BI97: 460744 | BK97: 1mg/l average | BL97: 4000ug/l Fe 95%ile | BM97: 158000m³/d | BO97: 8000ug/l Fe Upper Tier | CO97: Defra to confirm sensitive areas | CP97: * | CR97: 778365 | CS97: 0 | CT97: 0 | CU97: 1 | CV97: WWN | CW97: £ per km LORI | CX97: 1e-06 | CY97: Dual P Driver Site -LORI assigned to WFd_IMP Driver
A98: YOR00970 | B98: Changed | F98: WQ | G98: Humber | H98: Yorkshire | I98: Yorkshire Water Service Ltd | J98: 7YW200914 | K98: BOLSOVER/STW | L98: Doe Lea from Source to Hawke Brook | M98: GB104027057290 | N98: River | O98: Rother and Doe Lea | S98: U_IMP2 | T98: Phosphorus | Y98: Continuous Discharge | Z98: 2025-03-31 | AA98: Amber | AB98: 1866 | AC98: 445960 | AD98: 370100 | BI98: 11810.6 | BK98: 2mg/l average | BL98: 4000ug/l Fe 95%ile | BM98: 1900m³/d | BO98: 8000ug/l Fe Upper Tier | CH98: 4 | CO98: Defra to confirm sensitive areas | CP98: * | CR98: 778365 | CS98: 0 | CT98: 0 | CU98: 1 | CV98: WWN | CW98: £ per km LORI | CX98: 1e-06 | CY98: Dual P Driver Site plus Ammonia-LORI assigned to WFd_IMP Driver
A99: YOR00971 | B99: Changed | F99: WQ | G99: Humber | H99: Yorkshire | I99: Yorkshire Water Service Ltd | J99: 7YW200915 | K99: BOLTON ON DEARNE/STW | L99: Dearne Darfield STW to River Don | M99: GB104027063173 | N99: River | O99: Dearne | S99: U_IMP2 | T99: Phosphorus | Y99: Continuous Discharge | Z99: 2025-03-31 | AA99: Amber | AB99: 3331 | AC99: 445930 | AD99: 402080 | BI99: 101008 | BK99: 2mg/l average | BL99: 4000ug/l Fe 95%ile | BM99: 5400m³/d | BO99: 8000ug/l Fe Upper Tier | CO99: Defra to confirm sensitive areas | CP99: * | CR99: 502014 | CS99: 5.862 | CT99: 5.862 | CU99: 1 | CV99: WWN | CW99: £ per km LORI | CX99: 1e-06 | CY99: Single U_IMP2 Phosphorus Driver at Site
A100: YOR00972 | B100: Changed | C100: Yes – alteration made | F100: WQ | G100: Humber | H100: Yorkshire | I100: Yorkshire Water Service Ltd | J100: 7YW200916 | K100: BRADFORD ESHOLT/NO 2 STW | L100: Aire from Gill Beck (Baildon) to River Calder | M100: GB104027063032 | N100: River | O100: Aire Lower | S100: U_IMP2 | T100: Phosphorus | Y100: Continuous Discharge | Z100: 2025-03-31 | AA100: Amber | AB100: WRA6925 | AC100: 418984 | AD100: 438746 | BI100: 367696.2 | BK100: 1mg/l average | BL100: 4000ug/l Fe 95%ile | BM100: 130000m³/d | BO100: 8000ug/l Fe Upper Tier | CO100: Defra to confirm sensitive areas | CP100: * | CR100: 778365 | CS100: 0 | CT100: 0 | CU100: 1 | CV100: WWN | CW100: £ per km LORI | CX100: 1e-06 | CY100: Dual P Driver Site -LORI assigned to WFd_IMP Driver
A101: YOR00973 | B101: Changed | F101: WQ | G101: Humber | H101: Yorkshire | I101: Yorkshire Water Service Ltd | J101: 7YW200917 | K101: CALDER VALE/STW | L101: Calder from River Chald to River Aire | M101: GB104027062632 | N101: River | O101: Calder Lower | S101: U_IMP2 | T101: Phosphorus | Y101: Continuous Discharge | Z101: 2025-03-31 | AA101: Amber | AB101: C4106 | AC101: 435070 | AD101: 420410 | BI101: 101008 | BK101: 1mg/l average | BL101: 4000ug/l Fe 95%ile | BM101: 32000m³/d | BO101: 8000ug/l Fe Upper Tier | CH101: 6.3 | CO101: Defra to confirm sensitive areas | CP101: * | CR101: 778365 | CS101: 0 | CT101: 0 | CU101: 1 | CV101: WWN | CW101: £ per km LORI | CX101: 1e-06 | CY101: Dual P Driver Site -LORI assigned to WFd_IMP Driver
A102: YOR00974 | B102: Changed | F102: WQ | G102: Humber | H102: Yorkshire | I102: Yorkshire Water Service Ltd | J102: 7YW200918 | K102: CASTLEFORD/STW | L102: Aire from River Calder to River Ouse | M102: GB104027062760 | N102: River | O102: Aire Lower | S102: U_IMP2 | T102: Phosphorus | Y102: Continuous Discharge | Z102: 2025-03-31 | AA102: Amber | AB102: WRA6659 | AC102: 444640 | AD102: 426680 | BI102: 40721 | BK102: 2mg/l average | BL102: 4000ug/l Fe 95%ile | BM102: 8400m³/d | BO102: 8000ug/l Fe Upper Tier | CO102: Defra to confirm sensitive areas | CP102: * | CR102: 778365 | CS102: 5.297 | CT102: 5.297 | CU102: 1 | CV102: WWN | CW102: £ per km LORI | CX102: 1e-06 | CY102: Dual P Driver Site -LORI assigned to U_IMP2 Driver. U_IMP2 more stringent than WFD_IMP
A103: YOR00975 | B103: Changed | F103: WQ | G103: Humber | H103: Yorkshire | I103: Yorkshire Water Service Ltd | J103: 7YW200919 | K103: CHEESEBOTTOM STW | L103: Don from Scout Dyke to the Little Don | M103: GB104027057490 | N103: River | O103: Don Upper | S103: U_IMP2 | T103: Phosphorus | Y103: Continuous Discharge | Z103: 2025-03-31 | AA103: Amber | AB103: 2556 | AC103: 427990 | AD103: 401280 | BI103: 13297.2 | BK103: 2mg/l average | BL103: 4000ug/l Fe 95%ile | BM103: 4478m³/d | BO103: 8000ug/l Fe Upper Tier | CH103: 4.3 | CO103: Defra to confirm sensitive areas | CP103: * | CR103: 778365 | CS103: 0 | CT103: 0 | CU103: 1 | CV103: WWN | CW103: £ per km LORI | CX103: 1e-06 | CY103: Dual P Driver Site -LORI assigned to WFd_IMP Driver
A104: YOR00976 | B104: Changed | F104: WQ | G104: Humber | H104: Yorkshire | I104: Yorkshire Water Service Ltd | J104: 7YW200920 | K104: CLAYTON WEST/STW | L104: Dearne from Source to Bentley Brook | M104: GB104027063220 | N104: River | O104: Dearne | S104: U_IMP2 | T104: Phosphorus | Y104: Continuous Discharge | Z104: 2025-03-31 | AA104: Amber | AB104: 3809(SS) | AC104: 426780 | AD104: 412070 | BI104: 16803.8 | BK104: 2mg/l average | BL104: 4000ug/l Fe 95%ile | BM104: 5748m³/d | BO104: 8000ug/l Fe Upper Tier | CO104: Defra to confirm sensitive areas | CP104: * | CR104: 778365 | CS104: 0 | CT104: 0 | CU104: 1 | CV104: WWN | CW104: £ per km LORI | CX104: 1e-06 | CY104: Dual P Driver Site -LORI assigned to WFd_IMP Driver
A105: YOR00977 | B105: Changed | F105: WQ | G105: Humber | H105: Yorkshire | I105: Yorkshire Water Service Ltd | J105: 7YW200921 | K105: DARTON/STW | L105: Dearne from Cawthorne Dyke to Lundwood STW | M105: GB104027063171 | N105: River | O105: Dearne | S105: U_IMP2 | T105: Phosphorus | Y105: Continuous Discharge | Z105: 2025-03-31 | AA105: Amber | AB105: 2026 | AC105: 432637 | AD105: 408976 | BI105: 22301 | BK105: 2mg/l average | BL105: 4000ug/l Fe 95%ile | BM105: 4200m³/d | BO105: 8000ug/l Fe Upper Tier | CO105: Defra to confirm sensitive areas | CP105: * | CR105: 502014 | CS105: 7.718 | CT105: 7.718 | CU105: 1 | CV105: WWN | CW105: £ per km LORI | CX105: 1e-06 | CY105: Single U_IMP2 Phosphorus Driver at Site
A106: YOR00978 | B106: Changed | F106: WQ | G106: Humber | H106: Yorkshire | I106: Yorkshire Water Service Ltd | J106: 7YW200922 | K106: DENABY WTW | L106: Don from River Rother to River Dearne | M106: GB104027057452 | N106: River | O106: Don Middle | S106: U_IMP2 | T106: Phosphorus | Y106: Continuous Discharge | Z106: 2025-03-31 | AA106: Amber | AB106: E728(SS) | AC106: 449450 | AD106: 399940 | BI106: 32166 | BK106: 2mg/l average | BL106: 4000ug/l Fe 95%ile | BM106: 8199m³/d | BO106: 8000ug/l Fe Upper Tier | CO106: Defra to confirm sensitive areas | CP106: * | CR106: 778365 | CS106: 0 | CT106: 0 | CU106: 1 | CV106: WWN | CW106: £ per km LORI | CX106: 1e-06 | CY106: Dual P Driver Site -LORI assigned to WFd_IMP Driver
A107: YOR00979 | B107: Changed | F107: WQ | G107: Humber | H107: Yorkshire | I107: Yorkshire Water Service Ltd | J107: 7YW200923 | K107: DEWSBURY/STW | L107: Calder from River Colne to River Chald | M107: GB104027062631 | N107: River | O107: Calder Lower | S107: U_IMP2 | T107: Phosphorus | Y107: Continuous Discharge | Z107: 2025-03-31 | AA107: Amber | AB107: E15 | AC107: 426130 | AD107: 419640 | BI107: 250450 | BK107: 1mg/l average | BL107: 4000ug/l Fe 95%ile | BM107: 85694m³/d | BO107: 8000ug/l Fe Upper Tier | CO107: Defra to confirm sensitive areas | CP107: * | CR107: 778365 | CS107: 0 | CT107: 0 | CU107: 1 | CV107: WWN | CW107: £ per km LORI | CX107: 1e-06 | CY107: Dual P Driver Site -LORI assigned to WFd_IMP Driver#Site known As Dewsbury and Mitchell Laithes
A108: YOR00980 | B108: Changed | F108: WQ | G108: Humber | H108: Yorkshire | I108: Yorkshire Water Service Ltd | J108: 7YW200924 | K108: DOWLEY GAP (BINGLEY) | L108: Aire (R Worth to Gill Beck) | M108: GB104027063034 | N108: River | O108: Aire Middle | S108: U_IMP2 | T108: Phosphorus | Y108: Continuous Discharge | Z108: 2025-03-31 | AA108: Amber | AB108: 2502 | AC108: 412310 | AD108: 438140 | BI108: 38795.4 | BK108: 2mg/l average | BL108: 4000ug/l Fe 95%ile | BM108: 11713m³/d | BO108: 8000ug/l Fe Upper Tier | CO108: Defra to confirm sensitive areas | CP108: * | CR108: 778365 | CS108: 0 | CT108: 0 | CU108: 1 | CV108: WWN | CW108: £ per km LORI | CX108: 1e-06 | CY108: Dual P Driver Site -LORI assigned to WFd_IMP Driver
A109: YOR00981 | B109: Changed | F109: WQ | G109: Humber | H109: Yorkshire | I109: Yorkshire Water Service Ltd | J109: 7YW200925 | K109: DRONFIELD/STW | L109: Drone/Whitting from Source to River Rother | M109: GB104027057710 | N109: River | O109: Rother and Doe Lea | S109: U_IMP2 | T109: Phosphorus | Y109: Continuous Discharge | Z109: 2025-03-31 | AA109: Amber | AB109: 1863 | AC109: 436750 | AD109: 377810 | BI109: 21779 | BK109: 2mg/l average | BL109: 4000ug/l Fe 95%ile | BM109: 5500m³/d | BO109: 8000ug/l Fe Upper Tier | CO109: Defra to confirm sensitive areas | CP109: * | CR109: 778365 | CS109: 0 | CT109: 0 | CU109: 1 | CV109: WWN | CW109: £ per km LORI | CX109: 1e-06 | CY109: Dual P Driver Site -LORI assigned to WFd_IMP Driver
A110: YOR00982 | B110: Changed | F110: WQ | G110: Humber | H110: Yorkshire | I110: Yorkshire Water Service Ltd | J110: 7YW200926 | K110: OWLWOOD (GARFORTH) STW | L110: Lin Dike from Source to River Aire | M110: GB104027062810 | N110: River | O110: Aire Lower | S110: U_IMP2 | T110: Phosphorus | Y110: Continuous Discharge | Z110: 2025-03-31 | AA110: Amber | AB110: 2225 | AC110: 441750 | AD110: 428790 | BI110: 39030.8 | BK110: 2mg/l average | BL110: 3481ug/l Fe 95%ile | BM110: 8801m³/d | BO110: 8000ug/l Fe Upper Tier | CO110: Defra to confirm sensitive areas | CP110: * | CR110: 778365 | CS110: 0 | CT110: 0 | CU110: 1 | CV110: WWN | CW110: £ per km LORI | CX110: 1e-06 | CY110: Dual P Driver Site -LORI assigned to WFd_IMP Driver
A111: YOR00983 | B111: Changed | F111: WQ | G111: Humber | H111: Yorkshire | I111: Yorkshire Water Service Ltd | J111: 7YW200927 | K111: GRIMETHORPE/STW | L111: Grimethorpe Dike from Source to River Dearne | M111: GB104027063180 | N111: River | O111: Dearne | S111: U_IMP2 | T111: Phosphorus | Y111: Continuous Discharge | Z111: 2025-03-31 | AA111: Amber | AB111: 2246 | AC111: 440280 | AD111: 409430 | BI111: 12973.4 | BK111: 2mg/l average | BL111: 2655ug/l Fe 95%ile | BM111: 3157m³/d | BO111: 8000ug/l Fe Upper Tier | CO111: Defra to confirm sensitive areas | CP111: * | CR111: 778365 | CS111: 0 | CT111: 0 | CU111: 1 | CV111: WWN | CW111: £ per km LORI | CX111: 1e-06 | CY111: Dual P Driver Site -LORI assigned to WFd_IMP Driver
A112: YOR00984 | B112: Changed | F112: WQ | G112: Humber | H112: Yorkshire | I112: Yorkshire Water Service Ltd | J112: 7YW200928 | K112: HARROGATE SOUTH/STW | L112: Crimple Beck from Park Beck to River Nidd | M112: GB104027063742 | N112: River | O112: Nidd Middle and Lower | S112: U_IMP2 | T112: Phosphorus | Y112: Continuous Discharge | Z112: 2025-03-31 | AA112: Amber | AB112: QR.27/21/0048 | AC112: 437870 | AD112: 451620 | BI112: 36729.8 | BK112: 2mg/l average | BL112: 4000ug/l Fe 95%ile | BM112: 9800m³/d | BO112: 8000ug/l Fe Upper Tier | CO112: Defra to confirm sensitive areas | CP112: * | CR112: 778365 | CS112: 0 | CT112: 0 | CU112: 1 | CV112: WWN | CW112: £ per km LORI | CX112: 1e-06 | CY112: Dual P Driver Site -LORI assigned to WFd_IMP Driver
A113: YOR00985 | B113: Changed | F113: WQ | G113: Humber | H113: Yorkshire | I113: Yorkshire Water Service Ltd | J113: 7YW200929 | K113: HORBURY (DUDFLEET) STW | L113: Calder from River Colne to River Chald | M113: GB104027062631 | N113: River | O113: Calder Lower | S113: U_IMP2 | T113: Phosphorus | Y113: Continuous Discharge | Z113: 2025-03-31 | AA113: Amber | AB113: C4107 | AC113: 430000 | AD113: 417070 | BI113: 42 | BK113: 2mg/l average | BL113: 4000ug/l Fe 95%ile | BM113: 10m3/d | BO113: 8000ug/l Fe Upper Tier | CO113: Defra to confirm sensitive areas | CP113: * | CR113: 778365 | CS113: 0 | CT113: 0 | CU113: 1 | CV113: WWN | CW113: £ per km LORI | CX113: 1e-06 | CY113: Dual P Driver Site -LORI assigned to WFd_IMP Driver
A114: YOR00986 | B114: Changed | F114: WQ | G114: Humber | H114: Yorkshire | I114: Yorkshire Water Service Ltd | J114: 7YW200930 | K114: HUDDERSFIELD STW Cooper Bridge | L114: Calder from River Colne to River Chald | M114: GB104027062631 | N114: River | O114: Calder Lower | S114: U_IMP2 | T114: Phosphorus | Y114: Continuous Discharge | Z114: 2025-03-31 | AA114: Amber | AB114: WRA7409 | AC114: 418470 | AD114: 420810 | BI114: 56427 | BK114: 1mg/l average | BL114: 4000ug/l Fe 95%ile | BM114: 20000m³/d | BO114: 8000ug/l Fe Upper Tier | CO114: Defra to confirm sensitive areas | CP114: * | CR114: 778365 | CS114: 0 | CT114: 0 | CU114: 1 | CV114: WWN | CW114: £ per km LORI | CX114: 1e-06 | CY114: Dual P Driver Site -LORI assigned to WFd_IMP Driver
A115: YOR00987 | B115: Changed | F115: WQ | G115: Humber | H115: Yorkshire | I115: Yorkshire Water Service Ltd | J115: 7YW200931 | K115: KNOSTROP WWTW | L115: Wyke Beck from Source to River Aire | M115: GB104027062880 | N115: River | O115: Aire Lower | S115: U_IMP2 | T115: Phosphorus | Y115: Continuous Discharge | Z115: 2025-03-31 | AA115: Amber | AB115: WRA6924 / 11 | AC115: 433276 | AD115: 432035 | BI115: 366809 | BK115: 1mg/l average | BL115: 4000ug/l Fe 95%ile | BM115: 213600m³/d | BO115: 8000ug/l Fe Upper Tier | CO115: Defra to confirm sensitive areas | CP115: * | CR115: 778365 | CS115: 0 | CT115: 0 | CU115: 1 | CV115: WWN | CW115: £ per km LORI | CX115: 1e-06 | CY115: Dual P Driver Site -LORI assigned to WFd_IMP Driver
A116: YOR00988 | B116: Changed | F116: WQ | G116: Humber | H116: Yorkshire | I116: Yorkshire Water Service Ltd | J116: 7YW200932 | K116: LEMONROYD STW | L116: Oulton Beck from Source to River Aire | M116: GB104027062680 | N116: River | O116: Aire Lower | S116: U_IMP2 | T116: Phosphorus | Y116: Continuous Discharge | Z116: 2025-03-31 | AA116: Amber | AB116: WRA7220 | AC116: 438200 | AD116: 428000 | BI116: 35201.2 | BK116: 2mg/l average | BL116: 4000ug/l Fe 95%ile | BM116: 7500m³/d | BO116: 8000ug/l Fe Upper Tier | CO116: Defra to confirm sensitive areas | CP116: * | CR116: 778365 | CS116: 0 | CT116: 0 | CU116: 1 | CV116: WWN | CW116: £ per km LORI | CX116: 1e-06 | CY116: Dual P Driver Site -LORI assigned to WFd_IMP Driver
A117: YOR00989 | B117: Changed | F117: WQ | G117: Humber | H117: Yorkshire | I117: Yorkshire Water Service Ltd | J117: 7YW200933 | K117: LONG LANE/STW | L117: Ulley Brook from Source to River Rother | M117: GB104027057740 | N117: River | O117: Rother and Doe Lea | S117: U_IMP2 | T117: Phosphorus | Y117: Continuous Discharge | Z117: 2025-03-31 | AA117: Amber | AB117: 2081 | AC117: 443678 | AD117: 389206 | BI117: 22968 | BK117: 2mg/l average | BL117: 4000ug/l Fe 95%ile | BM117: 4472m³/d | BO117: 8000ug/l Fe Upper Tier | CO117: Defra to confirm sensitive areas | CP117: * | CR117: 778365 | CS117: 0 | CT117: 0 | CU117: 1 | CV117: WWN | CW117: £ per km LORI | CX117: 1e-06 | CY117: Dual P Driver Site -LORI assigned to WFd_IMP Driver
A118: YOR00990 | B118: Changed | F118: WQ | G118: Humber | H118: Yorkshire | I118: Yorkshire Water Service Ltd | J118: 7YW200934 | K118: LUNDWOOD STW | L118: Dearne from Lundwood to River Dove | M118: GB104027063172 | N118: River | O118: Dearne | S118: U_IMP2 | T118: Phosphorus | Y118: Continuous Discharge | Z118: 2025-03-31 | AA118: Amber | AB118: E10 | AC118: 437940 | AD118: 406610 | BI118: 85600 | BK118: 2mg/l average | BL118: 4000ug/l Fe 95%ile | BM118: 18237m³/d | BO118: 8000ug/l Fe Upper Tier | CO118: Defra to confirm sensitive areas | CP118: * | CR118: 502014 | CS118: 2.015 | CT118: 2.015 | CU118: 1 | CV118: WWN | CW118: £ per km LORI | CX118: 1e-06 | CY118: Single U_IMP2 Phosphorus Driver at Site
A119: YOR00991 | B119: Changed | F119: WQ | G119: Humber | H119: Yorkshire | I119: Yorkshire Water Service Ltd | J119: 7YW200935 | K119: NORMANTON/STW (Mill Lane) | L119: Choke Churl Bk from Source to River Calder | M119: GB104027062590 | N119: River | O119: Calder Lower | S119: U_IMP2 | T119: Phosphorus | Y119: Continuous Discharge | Z119: 2025-03-31 | AA119: Amber | AB119: WA6472 | AC119: 439370 | AD119: 424190 | BI119: 44569.8 | BK119: 2mg/l average | BL119: 4000ug/l Fe 95%ile | BM119: 12464m³/d | BO119: 8000ug/l Fe Upper Tier | CH119: 6.3 | CO119: Defra to confirm sensitive areas | CP119: * | CR119: 778365 | CS119: 0 | CT119: 0 | CU119: 1 | CV119: WWN | CW119: £ per km LORI | CX119: 1e-06 | CY119: Dual P Driver Site -LORI assigned to WFd_IMP Driver
A120: YOR00992 | B120: Changed | F120: WQ | G120: Humber | H120: Yorkshire | I120: Yorkshire Water Service Ltd | J120: 7YW200936 | K120: Norton (Askern) WwTW | L120: Went from Hoyle Mill Stream to Blowell Drain | M120: GB104027063360 | N120: River | O120: Don Lower | S120: U_IMP2 | T120: Phosphorus | Y120: Continuous Discharge | Z120: 2025-03-31 | AA120: Amber | AB120: 3816(SS) | AC120: 455120 | AD120: 416000 | BI120: 9866.2 | BK120: 2mg/l average | BL120: 4000ug/l Fe 95%ile | BM120: 4004m³/d | BO120: 8000ug/l Fe Upper Tier | CH120: 8.1 | CO120: Defra to confirm sensitive areas | CP120: * | CR120: 778365 | CS120: 0 | CT120: 0 | CU120: 1 | CV120: WWN | CW120: £ per km LORI | CX120: 1e-06 | CY120: Dual P Driver Site -LORI assigned to WFd_IMP Driver
A121: YOR00993 | B121: Changed | F121: WQ | G121: Humber | H121: Yorkshire | I121: Yorkshire Water Service Ltd | J121: 7YW200937 | K121: Old Whittington (Chesterfield) STW | L121: Rother, Spittal Brook to Doe Lea | M121: GB104027057771 | N121: River | O121: Rother and Doe Lea | S121: U_IMP2 | T121: Phosphorus | Y121: Continuous Discharge | Z121: 2025-03-31 | AA121: Amber | AB121: WRA6756 | AC121: 439200 | AD121: 374630 | BI121: 97084.6 | BK121: 1mg/l average | BL121: 4000ug/l Fe 95%ile | BM121: 29600m³/d | BO121: 8000ug/l Fe Upper Tier | CH121: 8.3 | CO121: Defra to confirm sensitive areas | CP121: * | CR121: 778365 | CS121: 0 | CT121: 0 | CU121: 1 | CV121: WWN | CW121: £ per km LORI | CX121: 1e-06 | CY121: Dual P Driver Site -LORI assigned to WFd_IMP Driver
A122: YOR00994 | B122: Changed | C122: Yes – alteration made | F122: WQ | G122: Humber | H122: Yorkshire | I122: Yorkshire Water Service Ltd | J122: 7YW200938 | K122: SANDALL/STW | L122: Don from Mill Dyke to River Ouse | M122: GB104027064243 | N122: River | O122: Don Lower | S122: U_IMP2 | T122: Phosphorus | Y122: Continuous Discharge | Z122: 2025-03-31 | AA122: Amber | AB122: 2829(T) | AC122: 459760 | AD122: 406360 | BI122: 91114 | BK122: 2mg/l average | BL122: 4000ug/l Fe 95%ile | BM122: 25800m³/d | BO122: 8000ug/l Fe Upper Tier | CO122: Defra to confirm sensitive areas | CP122: * | CR122: 502014 | CS122: 14.064 | CT122: 14.064 | CU122: 1 | CV122: WWN | CW122: £ per km LORI | CX122: 1e-06 | CY122: Single U_IMP2 Phosphorus Driver at Site
A123: YOR00995 | B123: Changed | F123: WQ | G123: Humber | H123: Yorkshire | I123: Yorkshire Water Service Ltd | J123: 7YW200939 | K123: SHERBURN IN ELMET/STW | L123: Upper Fox Drain Catchment ds of Sherburn STW | M123: GB104027063610 | N123: River | O123: Ouse Lower Yorkshire | S123: U_IMP2 | T123: Phosphorus | Y123: Continuous Discharge | Z123: 2025-03-31 | AA123: Amber | AB123: 27/24/0162 | AC123: 452920 | AD123: 433420 | BI123: 12214 | BK123: 2mg/l average | BL123: 2663ug/l Fe 95%ile | BM123: 3750m³/d | BO123: 8000ug/l Fe Upper Tier | CO123: Defra to confirm sensitive areas | CP123: * | CR123: 778365 | CS123: 0 | CT123: 0 | CU123: 1 | CV123: WWN | CW123: £ per km LORI | CX123: 1e-06 | CY123: Dual P Driver Site plus Ammonia-LORI assigned to WFd_IMP Driver
A124: YOR00996 | B124: Changed | F124: WQ | G124: Humber | H124: Yorkshire | I124: Yorkshire Water Service Ltd | J124: 7YW200940 | K124: SNAITH/STW | L124: Aire from River Calder to River Ouse | M124: GB104027062760 | N124: River | O124: Aire Lower | S124: U_IMP2 | T124: Phosphorus | Y124: Continuous Discharge | Z124: 2025-03-31 | AA124: Amber | AB124: 1943 | AC124: 463530 | AD124: 422350 | BI124: 10800 | BK124: 2mg/l average | BL124: 4000ug/l Fe 95%ile | BM124: 1367m³/d | BO124: 8000ug/l Fe Upper Tier | CO124: Defra to confirm sensitive areas | CP124: * | CR124: 502014 | CS124: 15.475 | CT124: 15.475 | CU124: 1 | CV124: WWN | CW124: £ per km LORI | CX124: 1e-06 | CY124: Single U_IMP2 Phosphorus Driver at Site
A125: YOR00997 | B125: Changed | C125: Yes – alteration made | F125: WQ | G125: Humber | H125: Yorkshire | I125: Yorkshire Water Service Ltd | J125: 7YW200941 | K125: SOUTH ELMSALL/STW | L125: Ea Beck from Frickley Beck to the Skell | M125: GB104027063200 | N125: River | O125: Don Lower | S125: U_IMP2 | T125: Phosphorus | Y125: Continuous Discharge | Z125: 2025-03-31 | AA125: Amber | AB125: WRA7507 | AC125: 448390 | AD125: 410640 | BI125: 35231.1 | BK125: 2mg/l average | BL125: 4000ug/l Fe 95%ile | BM125: 9800m³/d | BO125: 8000ug/l Fe Upper Tier | CO125: Defra to confirm sensitive areas | CP125: * | CR125: 778365 | CS125: 0 | CT125: 0 | CU125: 1 | CV125: WWN | CW125: £ per km LORI | CX125: 1e-06 | CY125: Dual P Driver Site -LORI assigned to WFd_IMP Driver
A126: YOR00998 | B126: Changed | F126: WQ | G126: Humber | H126: Yorkshire | I126: Yorkshire Water Service Ltd | J126: 7YW200942 | K126: Stanley (Smalley Bight) STW | L126: Calder from River Chald to River Aire | M126: GB104027062632 | N126: River | O126: Calder Lower | S126: U_IMP2 | T126: Phosphorus | Y126: Continuous Discharge | Z126: 2025-03-31 | AA126: Amber | AB126: E743(SS) | AC126: 435280 | AD126: 423900 | BI126: 18957.2 | BK126: 2mg/l average | BL126: 4000ug/l Fe 95%ile | BM126: 5300m³/d | BO126: 8000ug/l Fe Upper Tier | CO126: Defra to confirm sensitive areas | CP126: * | CR126: 778365 | CS126: 0 | CT126: 0 | CU126: 1 | CV126: WWN | CW126: £ per km LORI | CX126: 1e-06 | CY126: Dual P Driver Site -LORI assigned to WFd_IMP Driver (7YW200806)
A127: YOR00999 | B127: Changed | C127: Yes – alteration made | F127: WQ | G127: Humber | H127: Yorkshire | I127: Yorkshire Water Service Ltd | J127: 7YW200943 | K127: STAVELEY/STW | L127: Doe Lea from Hawke Brooke to River Rother | M127: GB104027057301 | N127: River | O127: Rother and Doe Lea | S127: U_IMP2 | T127: Phosphorus | Y127: Continuous Discharge | Z127: 2025-03-31 | AA127: Amber | AB127: WRA 6647 | AC127: 444380 | AD127: 376610 | BI127: 28138 | BK127: 2mg/l average | BL127: 4000ug/l Fe 95%ile | BM127: 5730m³/d | BO127: 8000ug/l Fe Upper Tier | CO127: Defra to confirm sensitive areas | CP127: * | CR127: 778365 | CS127: 0 | CT127: 0 | CU127: 1 | CV127: WWN | CW127: £ per km LORI | CX127: 1e-06 | CY127: Dual P Driver Site -LORI assigned to WFd_IMP Driver
A128: YOR01000 | B128: Changed | F128: WQ | G128: Humber | H128: Yorkshire | I128: Yorkshire Water Service Ltd | J128: 7YW200944 | K128: STOCKSBRIDGE/STW | L128: Don from Little Don to River Loxley confluence | M128: GB104027057411 | N128: River | O128: Don Upper | S128: U_IMP2 | T128: Phosphorus | Y128: Continuous Discharge | Z128: 2025-03-31 | AA128: Amber | AB128: E697(SS) | AC128: 429150 | AD128: 397500 | BI128: 14718.2 | BK128: 2mg/l average | BL128: 4000ug/l Fe 95%ile | BM128: 3482m³/d | BO128: 8000ug/l Fe Upper Tier | CO128: Defra to confirm sensitive areas | CP128: * | CR128: 778365 | CS128: 0 | CT128: 0 | CU128: 1 | CV128: WWN | CW128: £ per km LORI | CX128: 1e-06 | CY128: Dual P Driver Site -LORI assigned to WFd_IMP Driver
A129: YOR01001 | B129: Changed | F129: WQ | G129: Humber | H129: Yorkshire | I129: Yorkshire Water Service Ltd | J129: 7YW200945 | K129: SUTTON WWTW | L129: Aire from River Calder to River Ouse | M129: GB104027062760 | N129: River | O129: Aire Lower | S129: U_IMP2 | T129: Phosphorus | Y129: Continuous Discharge | Z129: 2025-03-31 | AA129: Amber | AB129: 1945 | AC129: 450400 | AD129: 424310 | BI129: 48826 | BK129: 2mg/l average | BL129: 4000ug/l Fe 95%ile | BM129: 11073m³/d | BO129: 8000ug/l Fe Upper Tier | CO129: Defra to confirm sensitive areas | CP129: * | CR129: 778365 | CS129: 0 | CT129: 0 | CU129: 1 | CV129: WWN | CW129: £ per km LORI | CX129: 1e-06 | CY129: Dual P Driver Site -LORI assigned to WFd_IMP Driver
A130: YOR01002 | B130: Changed | F130: WQ | G130: Humber | H130: Yorkshire | I130: Yorkshire Water Service Ltd | J130: 7YW200946 | K130: TUPTON/STW | L130: Redleadmill Brook | M130: GB104027057620 | N130: River | O130: Rother and Doe Lea | S130: U_IMP2 | T130: Phosphorus | Y130: Continuous Discharge | Z130: 2025-03-31 | AA130: Amber | AB130: 3139(SS) | AC130: 439820 | AD130: 366810 | BI130: 11012 | BK130: 2mg/l average | BL130: 4000ug/l Fe 95%ile | BM130: 2641m³/d | BO130: 8000ug/l Fe Upper Tier | CO130: Defra to confirm sensitive areas | CP130: * | CR130: 778365 | CS130: 0 | CT130: 0 | CU130: 1 | CV130: WWN | CW130: £ per km LORI | CX130: 1e-06 | CY130: DEFERRAL NEW -YW have submitted deferral to 30 June 2025 due to the new need to relocate a badger sett at the site.LORI assigned to other driver for scheme | DA130: Carry over
A131: YOR01003 | B131: Changed | C131: Yes – alteration made | F131: WQ | G131: Humber | H131: Yorkshire | I131: Yorkshire Water Service Ltd | J131: 7YW200947 | K131: WOMBWELL/STW | L131: Dearne Darfield STW to River Don | M131: GB104027063173 | N131: River | O131: Dearne | S131: U_IMP2 | T131: Phosphorus | Y131: Continuous Discharge | Z131: 2025-03-31 | AA131: Amber | AB131: WA6273 | AC131: 440881 | AD131: 403364 | BI131: 41515.8 | BK131: 2mg/l average | BL131: 4000ug/l Fe 95%ile | BM131: 9900m³/d | BO131: 8000ug/l Fe Upper Tier | CO131: Defra to confirm sensitive areas | CP131: * | CR131: 502014 | CS131: 5.197 | CT131: 5.197 | CU131: 1 | CV131: WWN | CW131: £ per km LORI | CX131: 1e-06 | CY131: Single U_IMP2 Phosphorus Driver at Site
A132: YOR01004 | B132: Changed | F132: WQ | G132: Humber | H132: Yorkshire | I132: Yorkshire Water Service Ltd | J132: 7YW200948 | K132: Woodhouse Mill WwTW | L132: Rother, Doe Lea to Don | M132: GB104027057772 | N132: River | O132: Rother and Doe Lea | S132: U_IMP2 | T132: Phosphorus | Y132: Continuous Discharge | Z132: 2025-03-31 | AA132: Amber | AB132: 3334(SS) | AC132: 443290 | AD132: 386140 | BI132: 146562 | BK132: 1mg/l average | BL132: 4000ug/l Fe 95%ile | BM132: 23993m³/d | BO132: 8000ug/l Fe Upper Tier | CO132: Defra to confirm sensitive areas | CP132: * | CR132: 778365 | CS132: 0 | CT132: 0 | CU132: 1 | CV132: WWN | CW132: £ per km LORI | CX132: 1e-06 | CY132: Dual P Driver Site -LORI assigned to WFd_IMP Driver
A133: YOR01005 | B133: Changed | F133: WQ | G133: Humber | H133: Yorkshire | I133: Yorkshire Water Service Ltd | J133: 7YW200949 | K133: WORSBROUGH WwTW | L133: Dove from Source to River Dearne | M133: GB104027057510 | N133: River | O133: Dearne | S133: U_IMP2 | T133: Phosphorus | Y133: Continuous Discharge | Z133: 2025-03-31 | AA133: Amber | AB133: WRA7404 | AC133: 436280 | AD133: 403430 | BI133: 19580 | BK133: 2mg/l average | BL133: 4000ug/l Fe 95%ile | BM133: 5400m³/d | BO133: 8000ug/l Fe Upper Tier | CO133: Defra to confirm sensitive areas | CP133: * | CR133: 502014 | CS133: 5.763 | CT133: 5.763 | CU133: 1 | CV133: WWN | CW133: £ per km LORI | CX133: 1e-06 | CY133: Single U_IMP2 Phosphorus Driver at Site
A134: YOR01006 | B134: Changed | F134: WQ | G134: Humber | H134: Yorkshire | I134: Yorkshire Water Service Ltd | J134: 7YW200950 | K134: HIGH ROYD NO 2 STW | L134: Luddenden Brook from Source to River Calder | M134: GB104027062770 | N134: River | O134: Calder Middle | S134: U_IMP2 | T134: Phosphorus | Y134: Continuous Discharge | Z134: 2025-03-31 | AA134: Amber | AB134: 967 | AC134: 405169 | AD134: 423937 | BI134: 11495.8 | BK134: 2mg/l average | BL134: 4000ug/l Fe 95%ile | BM134: 6696m³/d | BO134: 8000ug/l Fe Upper Tier | CO134: Defra to confirm sensitive areas | CP134: * | CR134: 778365 | CS134: 0 | CT134: 0 | CU134: 1 | CV134: WWN | CW134: £ per km LORI | CX134: 1e-06 | CY134: Dual P Driver Site -LORI assigned to WFd_IMP Driver
A135: YOR01007 | B135: Changed | F135: WQ | G135: Humber | H135: Yorkshire | I135: Yorkshire Water Service Ltd | J135: 7YW200951 | K135: EASTWOOD/STW | L135: Calder from Walsden Water to Colden Water | M135: GB104027062650 | N135: River | O135: Calder Upper | S135: U_IMP2 | T135: Phosphorus | Y135: Continuous Discharge | Z135: 2025-03-31 | AA135: Amber | AB135: E61 | AC135: 397163 | AD135: 426382 | BI135: 14727.6 | BK135: 2mg/l average | BL135: 4000ug/l Fe 95%ile | BM135: 10255m³/d | BO135: 8000ug/l Fe Upper Tier | CO135: Defra to confirm sensitive areas | CP135: * | CR135: 778365 | CS135: 0 | CT135: 0 | CU135: 1 | CV135: WWN | CW135: £ per km LORI | CX135: 1e-06 | CY135: Dual P Driver Site -LORI assigned to WFd_IMP Driver
A136: YOR01008 | B136: Changed | F136: WQ | G136: Humber | H136: Yorkshire | I136: Yorkshire Water Service Ltd | J136: 7YW200952 | K136: HALIFAX COPLEY STW | L136: Calder from Ryburn Confluence to River Colne | M136: GB104027062642 | N136: River | O136: Calder Middle | S136: U_IMP2 | T136: Phosphorus | Y136: Continuous Discharge | Z136: 2025-03-31 | AA136: Amber | AB136: WRA7510 | AC136: 409224 | AD136: 422301 | BI136: 167246 | BK136: 1mg/l average | BL136: 4000ug/l Fe 95%ile | BM136: 57700m³/d | BO136: 8000ug/l Fe Upper Tier | CO136: Defra to confirm sensitive areas | CP136: * | CR136: 778365 | CS136: 0 | CT136: 0 | CU136: 1 | CV136: WWN | CW136: £ per km LORI | CX136: 1e-06 | CY136: Dual P Driver Site -LORI assigned to WFd_IMP Driver
A137: YOR01009 | B137: Changed | F137: WQ | G137: Humber | H137: Yorkshire | I137: Yorkshire Water Service Ltd | J137: 7YW200953 | K137: NEILEY NO 2 STW | L137: Holme from New Mill Dike to R Colne | M137: GB104027063301 | N137: River | O137: Colne and Holme | S137: U_IMP2 | T137: Phosphorus | Y137: Continuous Discharge | Z137: 2025-03-31 | AA137: Amber | AB137: 2255 | AC137: 414628 | AD137: 411578 | BI137: 20346 | BK137: 2mg/l average | BL137: 4000ug/l Fe 95%ile | BM137: 7497m³/d | BO137: 8000ug/l Fe Upper Tier | CO137: Defra to confirm sensitive areas | CP137: * | CR137: 778365 | CS137: 0 | CT137: 0 | CU137: 1 | CV137: WWN | CW137: £ per km LORI | CX137: 1e-06 | CY137: Dual P Driver Site -LORI assigned to WFd_IMP Driver
A138: YOR01010 | B138: Changed | F138: WQ | G138: Humber | H138: Yorkshire | I138: Yorkshire Water Service Ltd | J138: 7YW200954 | K138: Huddersfield STW Colne Bridge | L138: Calder from River Colne to River Chald | M138: GB104027062631 | N138: River | O138: Calder Lower | S138: U_IMP2 | T138: Phosphorus | Y138: Continuous Discharge | Z138: 2025-03-31 | AA138: Amber | AB138: WRA7409 | AC138: 417820 | AD138: 420440 | BI138: 237696 | BK138: 2mg/l average | BL138: 4000ug/l Fe 95%ile | BM138: 84000m³/d | BO138: 8000ug/l Fe Upper Tier | CO138: Defra to confirm sensitive areas | CP138: * | CR138: 502014 | CS138: 0 | CT138: 0 | CU138: 1 | CV138: WWN | CW138: £ per km LORI | CX138: 1e-06 | CY138: was Dual P Driver Site now U_IMP2 only -Quantity proposed set to zero as LORI assigned to Cooper Bridge Driver 7YW200802.LORI integrated with Cooper Bridge 7YW200802
A139: YOR01011 | B139: Changed | F139: WQ | G139: Humber | H139: Yorkshire | I139: Yorkshire Water Service Ltd | J139: 7YW200955 | K139: KEIGHLEY MARLEY/STW | L139: Aire (R Worth to Gill Beck) | M139: GB104027063034 | N139: River | O139: Aire Middle | S139: U_IMP2 | T139: Phosphorus | Y139: Continuous Discharge | Z139: 2025-03-31 | AA139: Amber | AB139: WRA7172 | AC139: 409030 | AD139: 441150 | BI139: 90039 | BK139: 2mg/l average | BL139: 4000ug/l Fe 95%ile | BM139: 28129m³/d | BO139: 8000ug/l Fe Upper Tier | CO139: Defra to confirm sensitive areas | CP139: * | CR139: 778365 | CS139: 0 | CT139: 0 | CU139: 1 | CV139: WWN | CW139: £ per km LORI | CX139: 1e-06 | CY139: Dual P Driver Site -LORI assigned to WFd_IMP Driver
A140: YOR01012 | B140: Changed | F140: WQ | G140: Humber | H140: Yorkshire | I140: Yorkshire Water Service Ltd | J140: 7YW200956 | K140: Wath-Upon-Dearne STW | L140: Dearne Darfield STW to River Don | M140: GB104027063173 | N140: River | O140: Dearne | S140: U_IMP2 | T140: Phosphorus | Y140: Continuous Discharge | Z140: 2025-03-31 | AA140: Amber | AB140: 2172 | AC140: 444490 | AD140: 401120 | BI140: 18067.2 | BK140: 2mg/l average | BL140: 4000ug/l Fe 95%ile | BM140: 6850m³/d | BO140: 8000ug/l Fe Upper Tier | CO140: Defra to confirm sensitive areas | CP140: * | CR140: 502014 | CS140: 1.305 | CT140: 1.305 | CU140: 1 | CV140: WWN | CW140: £ per km LORI | CX140: 1e-06 | CY140: Single U_IMP2 Phosphorus Driver at Site
A141: YOR01013 | B141: Changed | F141: WQ | G141: Humber | H141: Yorkshire | I141: Yorkshire Water Service Ltd | J141: 7YW200957 | K141: MEXBORO SWINTON/STW | L141: Don from River Rother to River Dearne | M141: GB104027057452 | N141: River | O141: Don Middle | S141: U_IMP2 | T141: Phosphorus | Y141: Continuous Discharge | Z141: 2025-03-31 | AA141: Amber | AB141: 2160 | AC141: 446986 | AD141: 399204 | BI141: 16175.2 | BK141: 2mg/l average | BL141: 4000ug/l Fe 95%ile | BM141: 4800m³/d | BO141: 8000ug/l Fe Upper Tier | CO141: Defra to confirm sensitive areas | CP141: * | CR141: 778365 | CS141: 0 | CT141: 0 | CU141: 1 | CV141: WWN | CW141: £ per km LORI | CX141: 1e-06 | CY141: Dual P Driver Site -LORI assigned to WFd_IMP Driver
A142: YOR01014 | B142: Changed | F142: WQ | G142: Humber | H142: Yorkshire | I142: Yorkshire Water Service Ltd | J142: 7YW200958 | K142: THORNE/STW | L142: Don from Mill Dyke to River Ouse | M142: GB104027064243 | N142: River | O142: Don Lower | S142: U_IMP2 | T142: Phosphorus | Y142: Continuous Discharge | Z142: 2025-03-31 | AA142: Amber | AB142: 3332 | AC142: 467780 | AD142: 414470 | BI142: 39527 | BK142: 2mg/l average | BL142: 4000ug/l Fe 95%ile | BM142: 7874m³/d | BO142: 8000ug/l Fe Upper Tier | CO142: Defra to confirm sensitive areas. | CP142: * | CR142: 502014 | CS142: 10.301 | CT142: 10.301 | CU142: 1 | CV142: WWN | CW142: £ per km LORI | CX142: 1e-06 | CY142: Single U_IMP2 Phosphorus Driver at Site
A143: YOR01518 | B143: Changed | F143: WQ | G143: Humber | H143: Yorkshire | I143: Yorkshire Water Service Ltd | J143: 7YW201465 | K143: SKIPTON/STW | L143: Aire (Eshton Beck to R Worth) | M143: GB104027063033 | N143: River | O143: Aire Upper | S143: U_IMP2 | T143: Phosphorus | Y143: Continuous Discharge | Z143: 2025-03-31 | AA143: Amber | AB143: 2838 | AC143: 398720 | AD143: 449400 | BI143: 19750 | BJ143: 0.5mg/l | BK143: 2mg/l average | BL143: 4000ug/l Fe 95%ile | BM143: 5002m³/d | BO143: 8000ug/l Fe Upper Tier | CO143: Defra to confirm sensitive areas. This site already has a tighter P limit. | CP143: * | CR143: 502014 | CS143: 0 | CT143: 0 | CU143: 0 | CV143: WWN | CW143: £ per km LORI | CX143: 1e-06 | CY143: Was Single U_IMP2 Phosphorus Driver at Site but already had a WFD improvement in AMP6 so no activity in AMP7. Permitting matter only. No river length and no funding. | CZ143: YKY advises in model 'not valid driver' and 'should not be in model'. Amend to unit from 'no RM cost' to '£ per km LORI'
A144: YOR00691 | B144: Changed | F144: WQ | G144: Humber | H144: Yorkshire | I144: Yorkshire Water Service Ltd | J144: 7YW300057 | K144: SOUTH ELMSALL/STW 3X | L144: Ea Beck from Frickley Beck to the Skell | M144: GB104027063200 | N144: River | O144: Don Lower | S144: WFD_IMPg | T144: Biochemical Oxygen Demand / Dissolved Oxygen | Y144: Intermittent Discharge | Z144: 2024-12-22 | AA144: Amber | AB144: WRA7507 schedule 2 | AC144: 448250 | AD144: 410650 | BI144: 35231.1 | BJ144: 15mg/l | BM144: 9800m³/d | BO144: 5,340m³ | CH144: 2.25 | CO144: FIS, current storage 1340m³, additional storage 4,000m³ storage on settled storm discharge, total proposed storage 5340m³ | CP144: * | CR144: 590 | CS144: 5340 | CT144: 5340 | CU144: 1 | CV144: WWN | CW144: £ per m3 | CX144: 1e-06 | CY144: Propose to change delivery date to 31/03/25. 7YW300057 links with 7YW200635.
A145: YOR00697 | B145: Changed | F145: WQ | G145: Humber | H145: Yorkshire | I145: Yorkshire Water Service Ltd | J145: 7YW300058 | K145: Pudsey intermittents - Smalewell Reach 1 | L145: Low/Wortley/Pudsey Bks | M145: GB104027062830 | N145: River | O145: Aire Lower | S145: WFD_IMPg | T145: Ammonia | Y145: Intermittent Discharge | Z145: 2024-12-22 | AA145: Amber | AB145: WRA7473 1 | AC145: 420740 | AD145: 432870 | BO145: 3,950m³ | CH145: 2.74 | CO145: Current storage 950m³, additional storage 3000m³, total storage 3950m³. Smalewell | CP145: * | CR145: 590 | CS145: 0 | CT145: 0 | CU145: 0 | CV145: WWN | CW145: £ per km LORI | CX145: 1e-06 | CY145: REMOVAL: YW Confirm Removal | CZ145: YKY confirm in model (column CY) removal and EA confirm (March 2024) deleted from PR19 WINEP. Amend to unit from 'no RM cost' to '£ per km LORI' | DA145: Removal
A146: YOR01524 | B146: Changed | F146: WQ | G146: Humber | H146: Yorkshire | I146: Yorkshire Water Service Ltd | J146: 7YW300059 | K146: Bentley Mill Stream intermittents - BentleyMill Rise SPS | L146: Bentley Mill Stream | M146: GB104027057541 | N146: River | O146: Don Lower | S146: WFD_IMPg | T146: Ammonia and | U146: WFD_IMPg | V146: Biochemical Oxygen Demand / Dissolved Oxygen | Y146: Intermittent Discharge | Z146: 2024-12-22 | AA146: Amber | AB146: WRA7543/1 | AC146: 456650 | AD146: 404360 | BO146: 100m³ | CH146: 0.39 | CO146: No current storage, additional storage 100m³, total proposed stoage 100m³ at Bentley Mill Rise SPS. To meet FIS standards. | CP146: * | CR146: 2933301 | CS146: 0.39 | CT146: - | CU146: 1 | CV146: WWN | CW146: £ per km LORI | CX146: 1e-06 | CY146: REMOVAL:Agree BUT -Claw back metrics adjsuted as OFWAt comment sin DD Model and LORI =0.39 | CZ146: YKY model confirms removal as action no longer required (column CY) therefore YKY populate cell CT146 with zero. YKY model altered units and totex allowance due to action change. This action was originally part of a funded FD group with totex allowance of £2,933,301m therefore model inputs have been returned to reflect the FD and ensure appropriate reconciliation. Amends to cells in this line are: Cell CR31 amended from 590 to 2,933,301. Cell CS31 amended from 100m3 to 2.05 (£ per km LORI sourced from column CH). Cell CW31 amended from £ per m3 to £ per km LORI. | DA146: Removal
A147: YOR01525 | B147: Changed | F147: WQ | G147: Humber | H147: Yorkshire | I147: Yorkshire Water Service Ltd | J147: 7YW300060 | K147: West Bretton storm tank discharge Transfer to NGR 429884,412035 | L147: Dearne from Bentley Brook to Cawthorne Dyke | M147: GB104027063260 | N147: River | O147: Dearne | S147: WFD_IMPg | T147: Ammonia | U147: WFD_IMPg | V147: Biochemical Oxygen Demand / Dissolved Oxygen | Y147: correct to Intermittent from Continuous Discharge | Z147: 2024-12-22 | AA147: Amber | AB147: C5412 / 2 | AC147: 429160 | AD147: 413280 | BI147: 318 | BJ147: 20mg/l | BM147: 219m³/d | CH147: 0.75 | CO147: This will require feasibility as part of solution delivery which may change the exact discharge location. No changes to to flow or quality conditions. To meet FIS standards. | CP147: * | CR147: 2933301 | CS147: 0 | CT147: 0 | CU147: 1 | CV147: WWN | CW147: £ per km LORI | CX147: 1e-06 | CY147: REMOVAL : POST DD- YW confirm scheme removed but claw back cost on other driver for West Bretton | DA147: Removal
A148: YOR01526 | B148: Changed | F148: WQ | G148: Humber | H148: Yorkshire | I148: Yorkshire Water Service Ltd | J148: 7YW300061 | K148: CLAYTON WEST/STW Final Effluent Transfer to NGR 429884,412035 | L148: Dearne from Bentley Brook to Cawthorne Dyke | M148: GB104027063260 | N148: River | O148: Dearne | S148: WFD_IMPg | T148: Ammonia | U148: WFD_IMPg | V148: Biochemical Oxygen Demand / Dissolved Oxygen | Y148: Continuous Discharge | Z148: 2024-12-22 | AA148: Amber | AB148: 3809(SS) / schedule 1 | AC148: 426780 | AD148: 412070 | BI148: 16803.8 | BJ148: 5mg/l | BM148: 8400m³/d | BN148: n/a | BO148: n/a | CH148: 2.05 | CO148: This will require feasibility as part of solution delivery which may change the exact discharge location. No changes to to flow or quality conditions. To meet FIS standards. | CP148: * | CR148: 2933301 | CS148: 5.76 | CT148: 5.76 | CU148: 1 | CV148: WWN | CW148: £ per km LORI | CX148: 1e-06 | CY148: Dual Drivers LORI For FE
A149: YOR01527 | B149: Changed | F149: WQ | G149: Humber | H149: Yorkshire | I149: Yorkshire Water Service Ltd | J149: 7YW300062 | K149: West Bretton Final Effluent Transfer to NGR 429884,412035 | L149: Dearne from Bentley Brook to Cawthorne Dyke | M149: GB104027063260 | N149: River | O149: Dearne | S149: WFD_IMPg | T149: Ammonia | U149: WFD_IMPg | V149: Biochemical Oxygen Demand / Dissolved Oxygen | Y149: Continuous Discharge | Z149: 2024-12-22 | AA149: Amber | AB149: C5412 / 1 | AC149: 429160 | AD149: 413280 | BI149: 318 | BJ149: 20mg/l | BM149: 219m³/d | CH149: 0.75 | CO149: This will require feasibility as part of solution delivery which may change the exact discharge location. No changes to to flow or quality conditions. To meet FIS standards. | CP149: * | CR149: 2933301 | CS149: 0.75 | CT149: 0 | CU149: 1 | CV149: WWN | CW149: £ per km LORI | CX149: 1e-06 | CY149: REMOVAL: POST DD- YW confirm scheem removed BUT corret LORI to 0.75 km Dual Drivers LORI For FE and Storm | DA149: Removal
A150: YOR01531 | B150: Addition | F150: WQ | G150: Humber | H150: Yorkshire | I150: Yorkshire Water Service Ltd | J150: 7YW300066 | K150: Pudsey intermittents - Dick Lane | L150: Low/Wortley/Pudsey Bks | M150: GB104027062830 | N150: River | O150: Aire Lower | S150: WFD_IMPg | T150: Ammonia | Y150: Intermittent Discharge | Z150: 2024-12-22 | AA150: Amber | AB150: WRA7450 1 | AC150: 419710 | AD150: 433260 | BO150: 4,225m³ | CH150: 2.74 | CO150: Current storage 1,225m³, additional storage 3000m³ total proposed storage 4,225m³. Dick Lane(New Lane) | CP150: * | CR150: 590 | CS150: 3000 | CT150: 3000 | CU150: 1 | CV150: WWN | CW150: £ per m3 | CX150: 1e-06 | CY150: RESTORE-Post DD :YW have requested delivery date to be 31/3/2025 In AMP-YW have restore quantity delivered | CZ150: YKY confirm in model (column CY) delivery in AMP8 year 2026/27 therefore column CT amended from 3000 to 0. | DA150: Restore to In Amp Delivery
A151: YOR01532 | B151: Addition | F151: WQ | G151: Humber | H151: Yorkshire | I151: Yorkshire Water Service Ltd | J151: 7YW300067 | K151: Pudsey intermittents - Dale Farm | L151: Low/Wortley/Pudsey Bks | M151: GB104027062830 | N151: River | O151: Aire Lower | S151: WFD_IMPg | T151: Ammonia | Y151: Intermittent Discharge | Z151: 2024-12-22 | AA151: Amber | AB151: WRA7971 1 | AC151: 422990 | AD151: 430110 | BO151: 250m³ | CH151: 2.74 | CO151: Total proposed storage 250m³ total. Dale Farm CSO | CP151: * | CR151: 590 | CS151: 250 | CT151: 250 | CU151: 1 | CV151: WWN | CW151: £ per m3 | CX151: 1e-06 | CY151: RESTORE-Post DD :YW have requested delivery date to be 31/3/2025 In AMP-YW have restore quantity delivered | CZ151: YKY confirm in model (column CY) delivery in AMP8 year 2026/27 therefore column CT amended from 250 to 0. | DA151: Restore to In Amp Delivery
A152: YOR01533 | B152: Addition | F152: WQ | G152: Humber | H152: Yorkshire | I152: Yorkshire Water Service Ltd | J152: 7YW300068 | K152: Pudsey intermittents - Hough Side Works | L152: Low/Wortley/Pudsey Bks | M152: GB104027062830 | N152: River | O152: Aire Lower | S152: WFD_IMPg | T152: Ammonia | Y152: Intermittent Discharge | Z152: 2024-12-22 | AA152: Amber | AB152: C4917 1 | AC152: 423660 | AD152: 433150 | BO152: 25,400m³ | CH152: 2.74 | CO152: Current storage, 400m³, additional storage 25,000m³ total, total proposed storage 25,400m³. Houghside Works | CP152: * | CR152: 590 | CS152: 25000 | CT152: 0 | CU152: 1 | CV152: WWN | CW152: £ per m3 | CX152: 1e-06 | CY152: DEFERRAL : Agree - Date Extension to 31 Mar 2027 | CZ152: YKY confirm in model (column CY) delivery in AMP8 year 2026/27 therefore column CT amended from 25000 to 0. | DA152: Carry over
A153: YOR01534 | B153: Addition | F153: WQ | G153: Humber | H153: Yorkshire | I153: Yorkshire Water Service Ltd | J153: 7YW300069 | K153: Pudsey intermittents - Gaint Road (Kent Road) | L153: Low/Wortley/Pudsey Bks | M153: GB104027062830 | N153: River | O153: Aire Lower | S153: WFD_IMPg | T153: Ammonia | Y153: Intermittent Discharge | Z153: 2024-12-22 | AA153: Amber | AB153: C3961 1 | AC153: 423020 | AD153: 432610 | BO153: 2,500m³ | CH153: 2.74 | CO153: Total proposed storage 2,500m³, total. Kent Road | CP153: * | CR153: 590 | CS153: 2500 | CT153: 0 | CU153: 1 | CV153: WWN | CW153: £ per m3 | CX153: 1e-06 | CY153: DEFEERAL This storage action is to be removed by EA in favour of diverted and increased investment at 7YW200641 Farnely Ring Road CSO (delivery date= 31 Mar 2027). Set CT to blank to generate carry over investment | CZ153: YKY confirm in model (column CY) delivery in AMP8 year 2026/27 therefore column CT amended from 2500 to 0. | DA153: Carry over
A154: YOR01535 | B154: Addition | F154: WQ | G154: Humber | H154: Yorkshire | I154: Yorkshire Water Service Ltd | J154: 7YW300070 | K154: Pudsey intermittents - Smalewell Reach 1 | L154: Low/Wortley/Pudsey Bks | M154: GB104027062830 | N154: River | O154: Aire Lower | S154: WFD_IMPg | T154: Ammonia | Y154: Intermittent Discharge | Z154: 2024-12-22 | AA154: Amber | AB154: WRA7473 1 | AC154: 420740 | AD154: 432870 | BO154: 8,450m³ | CH154: 2.74 | CO154: Current storage 950m³, additional storage 7,500m³, total proposed storage8450m³. Smalewell in reach 1. RLI has bee counted in previous line for Pudsey Smalewell CSO.YW write "No investment identified for Dick lane under this Reach 3 solution, but 7500m³ at Pudsey Smalewell alone will not allowReach 1 to pass WQ". | CP154: * | CR154: 590 | CS154: 7500 | CT154: 0 | CU154: 1 | CV154: WWN | CW154: £ per m3 | CX154: 1e-06 | CY154: DEFERRAL to delivery date 31 Dec 2025 In AMP-This storage action is to be reduced by EA in favour of diverted and increased investment at 7YW200641 Farnely Ring Road CSO (delivery date= 31 Mar 2027). Set CT to blank to generate carry over investment | CZ154: YKY confirm in model (column CY) delivery in AMP8 year 2026/27 therefore column CT amended from 7500 to 0. | DA154: Carry over
A155: YOR01549 | B155: Addition | F155: WQ | G155: Humber | H155: Yorkshire | I155: Yorkshire Water Service Ltd | J155: 7YW300636 | K155: BENTLEY/STW storm discharge transfer to NGR 458119 405197 | L155: Bentley Mill Stream | M155: GB104027057541 | N155: River | O155: Don Lower | S155: WFD_IMPg | T155: Ammonia | U155: WFD_IMPg | V155: Biochemical Oxygen Demand / Dissolved Oxygen | Y155: Intermittent Discharge | Z155: 2024-12-22 | AA155: Amber | AB155: 1978 schedule 2 | AC155: 457160 | AD155: 405724 | BI155: 20936 | BM155: 5046m³/d | CH155: 1.3 | CO155: Relocate Bentley STW continuous and intermittents to the R.Don . Proposed 1mg/l would be required if transferscheme was not able to be completed.This will require feasibility as part of solution delivery which may change the exact discharge location. Needed to meet FIS standards | CR155: 2933301 | CS155: 0 | CT155: 0 | CU155: 1 | CV155: WWN | CW155: £ per km LORI | CX155: 1e-06 | CY155: Multiple drivers for Bentley Stream. No LORI to avoid double counting. LORI assigned to WFd_IMP Phosphorus Driver 7YW200867

Sheet InpActive
A1: =RIGHT(CELL("filename", $A$1), LEN(CELL("filename", $A$1)) - SEARCH("]", CELL("filename", $A$1))) -> InpActive
E2: =Time!E25 -> Model period ending | F2: =Check!F2 -> 0 | G2: Checks | J2: =Time!J$25 -> 2019-03-31 | K2: =Time!K$25 -> 2020-03-31 | L2: =Time!L$25 -> 2021-03-31 | M2: =Time!M$25 -> 2022-03-31 | N2: =Time!N$25 -> 2023-03-31 | O2: =Time!O$25 -> 2024-03-31 | P2: =Time!P$25 -> 2025-03-31 | Q2: =Time!Q$25 -> 2026-03-31 | R2: =Time!R$25 -> 2027-03-31 | S2: =Time!S$25 -> 2028-03-31
E3: =Time!E107 -> Timeline label | F3: =Check!F3 -> 5 | G3: Track chgs | J3: =Time!J$107 -> Pre-Fcst | K3: =Time!K$107 -> Pre-Fcst | L3: =Time!L$107 -> Forecast | M3: =Time!M$107 -> Forecast | N3: =Time!N$107 -> Forecast | O3: =Time!O$107 -> Forecast | P3: =Time!P$107 -> Forecast | Q3: =Time!Q$107 -> Post-Fcst | R3: =Time!R$107 -> Post-Fcst | S3: =Time!S$107 -> Post-Fcst
E4: =Time!E130 -> Financial year ending | J4: =Time!J$130 -> 2019 | K4: =Time!K$130 -> 2020 | L4: =Time!L$130 -> 2021 | M4: =Time!M$130 -> 2022 | N4: =Time!N$130 -> 2023 | O4: =Time!O$130 -> 2024 | P4: =Time!P$130 -> 2025 | Q4: =Time!Q$130 -> 2026 | R4: =Time!R$130 -> 2027 | S4: =Time!S$130 -> 2028
E5: =Time!E10 -> Model column counter | F5: Constant | G5: Unit | H5: Total | J5: =Time!J$10 -> 1 | K5: =Time!K$10 -> 2 | L5: =Time!L$10 -> 3 | M5: =Time!M$10 -> 4 | N5: =Time!N$10 -> 5 | O5: =Time!O$10 -> 6 | P5: =Time!P$10 -> 7 | Q5: =Time!Q$10 -> 8 | R5: =Time!R$10 -> 9 | S5: =Time!S$10 -> 10
A7: A: TIME
B9: Timeline setup
C11: Timeline start dates
E12: 1st model column start date | F12: 2018-04-01 | G12: date | H12: Date should be the first date of the financial year
C14: Financial year inputs
E15: First modelling column financial year # | F15: 2019 | G15: year # | H15: Financial model start year
E16: Financial year end month number # | F16: 3 | G16: month # | H16: Month of financial year end for financial model
C18: Timeline labels
E19: Pre - forecast period | F19: Pre-Fcst | G19: label
E20: Forecast period | F20: Forecast | G20: label
E21: Post - forecast period | F21: Post-Fcst | G21: label
B23: Project dates
E25: Forecast start date | F25: 2020-04-01 | G25: date
E26: Forecast duration | F26: 5 | G26: years
E27: Forecast duration (text) | F27: 2020-25 | G27: years # | H27: For Info only
E29: Forecast period reconcilation is profiled from | F29: 3 | G29: year
A31: B: FINANCING INPUTS
E33: Financing cost index | G33: Index | L33: 4 | M33: 3 | N33: 2 | O33: 1 | P33: 0
E35: Financing Cost | F35: 0.0292 | G35: %
A37: C: NON CHANGEABLE MODEL TECHNICAL INPUTS
E39: Months per model period | F39: 12 | G39: months
E41: Track Tolerance Level | F41: 0.001 | G41: tolerance
E42: Check Tolerance Level | F42: 1e-07 | G42: tolerance
E44: Thousands in a million | F44: 1000 | G44: thousands
E45: Units in a million | F45: 1000000 | G45: unit
E46: Unit conversion to percentage | F46: 100 | G46: unit
A48: End of sheet

Sheet Calcs >>

Sheet WINEP_Schemes
A1: =RIGHT(CELL("filename", $A$1), LEN(CELL("filename", $A$1)) - SEARCH("]", CELL("filename", $A$1))) -> WINEP_Schemes
F2: =Check!F2 -> 0 | G2: Checks
F3: =Check!F3 -> 5 | G3: Track chgs
A5: AMBER WINEP SCHEMES
C7: List of WINEP schemes that were unconfirmed at FD
C9: WINEPID | D9: Unique ID | E9: Scheme category / name | F9: Unit | G9: Unit Conversion to £m | I9: Allowed totex unit rate | J9: Quantity in PR19 FD | K9: Quantity Delivered | L9: 1 = In FD, funded 0 = In FD, not funded | M9: Price Control | N9: Proportion Confirmed
C10: =WINEP_Inputs!A5 -> YOR00025 | D10: =WINEP_Inputs!J5 -> 7YW100089 | E10: =WINEP_Inputs!K5 -> Little Don Catchment Scheme | F10: =WINEP_Inputs!CW5 -> £ per km LORI | G10: =WINEP_Inputs!CX5 -> 1e-06 | I10: =WINEP_Inputs!CR5 -> 80760 | J10: =WINEP_Inputs!CS5 -> 3.05 | K10: =WINEP_Inputs!CT5 -> 3.05 | L10: =WINEP_Inputs!CU5 -> 1 | M10: =WINEP_Inputs!CV5 -> WR | N10: =IF(K10 = 0, 0, K10 / J10) -> 1
C11: =WINEP_Inputs!A6 -> YOR00029 | D11: =WINEP_Inputs!J6 -> 7YW100091 | E11: =WINEP_Inputs!K6 -> Winscar Catchment Scheme | F11: =WINEP_Inputs!CW6 -> £ per km LORI | G11: =WINEP_Inputs!CX6 -> 1e-06 | I11: =WINEP_Inputs!CR6 -> 80760 | J11: =WINEP_Inputs!CS6 -> 11.25 | K11: =WINEP_Inputs!CT6 -> 11.25 | L11: =WINEP_Inputs!CU6 -> 1 | M11: =WINEP_Inputs!CV6 -> WR | N11: 1
C12: =WINEP_Inputs!A7 -> YOR00033 | D12: =WINEP_Inputs!J7 -> 7YW100093 | E12: =WINEP_Inputs!K7 -> Agden River Restoration Scheme | F12: =WINEP_Inputs!CW7 -> £ per km LORI | G12: =WINEP_Inputs!CX7 -> 1e-06 | I12: =WINEP_Inputs!CR7 -> 80760 | J12: =WINEP_Inputs!CS7 -> 0.44 | K12: =WINEP_Inputs!CT7 -> 0.44 | L12: =WINEP_Inputs!CU7 -> 1 | M12: =WINEP_Inputs!CV7 -> WR | N12: 1
C13: =WINEP_Inputs!A8 -> YOR00042 | D13: =WINEP_Inputs!J8 -> 7YW100098 | E13: =WINEP_Inputs!K8 -> River Burn Catchment Scheme | F13: =WINEP_Inputs!CW8 -> £ per km LORI | G13: =WINEP_Inputs!CX8 -> 1e-06 | I13: =WINEP_Inputs!CR8 -> 80760 | J13: =WINEP_Inputs!CS8 -> 6.49 | K13: =WINEP_Inputs!CT8 -> 6.49 | L13: =WINEP_Inputs!CU8 -> 1 | M13: =WINEP_Inputs!CV8 -> WR | N13: 1
C14: =WINEP_Inputs!A9 -> YOR00044 | D14: =WINEP_Inputs!J9 -> 7YW100098 | E14: =WINEP_Inputs!K9 -> River Burn Catchment Scheme | F14: =WINEP_Inputs!CW9 -> £ per km LORI | G14: =WINEP_Inputs!CX9 -> 1e-06 | I14: =WINEP_Inputs!CR9 -> 80760 | J14: =WINEP_Inputs!CS9 -> 6.49 | K14: =WINEP_Inputs!CT9 -> 6.49 | L14: =WINEP_Inputs!CU9 -> 1 | M14: =WINEP_Inputs!CV9 -> WR | N14: 1
C15: =WINEP_Inputs!A10 -> YOR00045 | D15: =WINEP_Inputs!J10 -> 7YW100098 | E15: =WINEP_Inputs!K10 -> River Burn Catchment Scheme | F15: =WINEP_Inputs!CW10 -> £ per km LORI | G15: =WINEP_Inputs!CX10 -> 1e-06 | I15: =WINEP_Inputs!CR10 -> 80760 | J15: =WINEP_Inputs!CS10 -> 6.49 | K15: =WINEP_Inputs!CT10 -> 0 | L15: =WINEP_Inputs!CU10 -> 1 | M15: =WINEP_Inputs!CV10 -> WR | N15: 0
C16: =WINEP_Inputs!A11 -> YOR00055 | D16: =WINEP_Inputs!J11 -> 7YW100121 | E16: =WINEP_Inputs!K11 -> HARROGATE SOUTH/STW | F16: =WINEP_Inputs!CW11 -> £ per km LORI | G16: =WINEP_Inputs!CX11 -> 1e-06 | I16: =WINEP_Inputs!CR11 -> 778365 | J16: =WINEP_Inputs!CS11 -> 4.453 | K16: =WINEP_Inputs!CT11 -> 4.453 | L16: =WINEP_Inputs!CU11 -> 1 | M16: =WINEP_Inputs!CV11 -> WWN | N16: =IF(K16 = 0, 0, K16 / J16) -> 1
C17: =WINEP_Inputs!A12 -> YOR00059 | D17: =WINEP_Inputs!J12 -> 7YW100125 | E17: =WINEP_Inputs!K12 -> OWLWOOD (GARFORTH) STW | F17: =WINEP_Inputs!CW12 -> £ per km LORI | G17: =WINEP_Inputs!CX12 -> 1e-06 | I17: =WINEP_Inputs!CR12 -> 778365 | J17: =WINEP_Inputs!CS12 -> 10.028 | K17: =WINEP_Inputs!CT12 -> 10.028 | L17: =WINEP_Inputs!CU12 -> 1 | M17: =WINEP_Inputs!CV12 -> WWN | N17: 1
C18: =WINEP_Inputs!A13 -> YOR00060 | D18: =WINEP_Inputs!J13 -> 7YW100126 | E18: =WINEP_Inputs!K13 -> DRONFIELD/STW | F18: =WINEP_Inputs!CW13 -> £ per km LORI | G18: =WINEP_Inputs!CX13 -> 1e-06 | I18: =WINEP_Inputs!CR13 -> 778365 | J18: =WINEP_Inputs!CS13 -> 7.854 | K18: =WINEP_Inputs!CT13 -> 7.854 | L18: =WINEP_Inputs!CU13 -> 1 | M18: =WINEP_Inputs!CV13 -> WWN | N18: 1
C19: =WINEP_Inputs!A14 -> YOR00062 | D19: =WINEP_Inputs!J14 -> 7YW100128 | E19: =WINEP_Inputs!K14 -> DANESMOOR/STW | F19: =WINEP_Inputs!CW14 -> £ per km LORI | G19: =WINEP_Inputs!CX14 -> 1e-06 | I19: =WINEP_Inputs!CR14 -> 276351 | J19: =WINEP_Inputs!CS14 -> 4.864 | K19: =WINEP_Inputs!CT14 -> 4.864 | L19: =WINEP_Inputs!CU14 -> 1 | M19: =WINEP_Inputs!CV14 -> WWN | N19: 1
C20: =WINEP_Inputs!A15 -> YOR00063 | D20: =WINEP_Inputs!J15 -> 7YW100129 | E20: =WINEP_Inputs!K15 -> TUPTON/STW | F20: =WINEP_Inputs!CW15 -> £ per km LORI | G20: =WINEP_Inputs!CX15 -> 1e-06 | I20: =WINEP_Inputs!CR15 -> 778365 | J20: =WINEP_Inputs!CS15 -> 10.223 | K20: =WINEP_Inputs!CT15 -> 0 | L20: =WINEP_Inputs!CU15 -> 1 | M20: =WINEP_Inputs!CV15 -> WWN | N20: 0
C21: =WINEP_Inputs!A16 -> YOR00065 | D21: =WINEP_Inputs!J16 -> 7YW100131 | E21: =WINEP_Inputs!K16 -> ACKWORTH/STW | F21: =WINEP_Inputs!CW16 -> £ per km LORI | G21: =WINEP_Inputs!CX16 -> 1e-06 | I21: =WINEP_Inputs!CR16 -> 276351 | J21: =WINEP_Inputs!CS16 -> 1.583 | K21: =WINEP_Inputs!CT16 -> 1.583 | L21: =WINEP_Inputs!CU16 -> 1 | M21: =WINEP_Inputs!CV16 -> WWN | N21: 1
C22: =WINEP_Inputs!A17 -> YOR00066 | D22: =WINEP_Inputs!J17 -> 7YW100132 | E22: =WINEP_Inputs!K17 -> CARLETON/NO 2 STW | F22: =WINEP_Inputs!CW17 -> £ per km LORI | G22: =WINEP_Inputs!CX17 -> 1e-06 | I22: =WINEP_Inputs!CR17 -> 276351 | J22: =WINEP_Inputs!CS17 -> 10.103 | K22: =WINEP_Inputs!CT17 -> 10.103 | L22: =WINEP_Inputs!CU17 -> 1 | M22: =WINEP_Inputs!CV17 -> WWN | N22: 1
C23: =WINEP_Inputs!A18 -> YOR00067 | D23: =WINEP_Inputs!J18 -> 7YW100133 | E23: =WINEP_Inputs!K18 -> NORTON (ASKERN) WwTW | F23: =WINEP_Inputs!CW18 -> £ per km LORI | G23: =WINEP_Inputs!CX18 -> 1e-06 | I23: =WINEP_Inputs!CR18 -> 778365 | J23: =WINEP_Inputs!CS18 -> 13.8 | K23: =WINEP_Inputs!CT18 -> 13.8 | L23: =WINEP_Inputs!CU18 -> 1 | M23: =WINEP_Inputs!CV18 -> WWN | N23: 1
C24: =WINEP_Inputs!A19 -> EMD00773 | D24: =WINEP_Inputs!J19 -> 7YW200005 | E24: =WINEP_Inputs!K19 -> BALBY (STW) | F24: =WINEP_Inputs!CW19 -> £ per km LORI | G24: =WINEP_Inputs!CX19 -> 1e-06 | I24: =WINEP_Inputs!CR19 -> 276351 | J24: =WINEP_Inputs!CS19 -> 0 | K24: =WINEP_Inputs!CT19 -> 0 | L24: =WINEP_Inputs!CU19 -> 1 | M24: =WINEP_Inputs!CV19 -> WWN | N24: 0
C25: =WINEP_Inputs!A20 -> EMD00812 | D25: =WINEP_Inputs!J20 -> 7YW200006 | E25: =WINEP_Inputs!K20 -> HATFIELD WOODHOUSE (STW) | F25: =WINEP_Inputs!CW20 -> £ per km LORI | G25: =WINEP_Inputs!CX20 -> 1e-06 | I25: =WINEP_Inputs!CR20 -> 276351 | J25: =WINEP_Inputs!CS20 -> 0 | K25: =WINEP_Inputs!CT20 -> 0 | L25: =WINEP_Inputs!CU20 -> 1 | M25: =WINEP_Inputs!CV20 -> WWN | N25: 0
C26: =WINEP_Inputs!A21 -> EMD00813 | D26: =WINEP_Inputs!J21 -> 7YW200007 | E26: =WINEP_Inputs!K21 -> HATFIELD WOODHOUSE (STW) | F26: =WINEP_Inputs!CW21 -> £ per km LORI | G26: =WINEP_Inputs!CX21 -> 1e-06 | I26: =WINEP_Inputs!CR21 -> 276351 | J26: =WINEP_Inputs!CS21 -> 0 | K26: =WINEP_Inputs!CT21 -> 0 | L26: =WINEP_Inputs!CU21 -> 1 | M26: =WINEP_Inputs!CV21 -> WWN | N26: 0
C27: =WINEP_Inputs!A22 -> YOR00112 | D27: =WINEP_Inputs!J22 -> 7YW200060 | E27: =WINEP_Inputs!K22 -> Grimwith Sediment Scheme | F27: =WINEP_Inputs!CW22 -> £ per km LORI | G27: =WINEP_Inputs!CX22 -> 1e-06 | I27: =WINEP_Inputs!CR22 -> 80760 | J27: =WINEP_Inputs!CS22 -> 5.11 | K27: =WINEP_Inputs!CT22 -> 5.11 | L27: =WINEP_Inputs!CU22 -> 1 | M27: =WINEP_Inputs!CV22 -> WR | N27: 1
C28: =WINEP_Inputs!A23 -> YOR00115 | D28: =WINEP_Inputs!J23 -> 7YW200063 | E28: =WINEP_Inputs!K23 -> Airebank Mills Fish Passage | F28: =WINEP_Inputs!CW23 -> £ per km LORI | G28: =WINEP_Inputs!CX23 -> 1e-06 | I28: =WINEP_Inputs!CR23 -> 37745 | J28: =WINEP_Inputs!CS23 -> 4.5 | K28: =WINEP_Inputs!CT23 -> 4.5 | L28: =WINEP_Inputs!CU23 -> 1 | M28: =WINEP_Inputs!CV23 -> WR | N28: 1
C29: =WINEP_Inputs!A24 -> YOR00116 | D29: =WINEP_Inputs!J24 -> 7YW200064 | E29: =WINEP_Inputs!K24 -> Cheesebottom Weir Fish Passage | F29: =WINEP_Inputs!CW24 -> £ per km LORI | G29: =WINEP_Inputs!CX24 -> 1e-06 | I29: =WINEP_Inputs!CR24 -> 37745 | J29: =WINEP_Inputs!CS24 -> 9.5 | K29: =WINEP_Inputs!CT24 -> 9.5 | L29: =WINEP_Inputs!CU24 -> 1 | M29: =WINEP_Inputs!CV24 -> WR | N29: 1
C30: =WINEP_Inputs!A25 -> YOR00122 | D30: =WINEP_Inputs!J25 -> 7YW200070 | E30: =WINEP_Inputs!K25 -> Cononley Weir Fish Passage | F30: =WINEP_Inputs!CW25 -> £ per km LORI | G30: =WINEP_Inputs!CX25 -> 1e-06 | I30: =WINEP_Inputs!CR25 -> 37745 | J30: =WINEP_Inputs!CS25 -> 45.54 | K30: =WINEP_Inputs!CT25 -> 0 | L30: =WINEP_Inputs!CU25 -> 1 | M30: =WINEP_Inputs!CV25 -> WR | N30: 0
C31: =WINEP_Inputs!A26 -> YOR00123 | D31: =WINEP_Inputs!J26 -> 7YW200071 | E31: =WINEP_Inputs!K26 -> Farnley Beck Fish Passage | F31: =WINEP_Inputs!CW26 -> £ per km LORI | G31: =WINEP_Inputs!CX26 -> 1e-06 | I31: =WINEP_Inputs!CR26 -> 37745 | J31: =WINEP_Inputs!CS26 -> 3.29 | K31: =WINEP_Inputs!CT26 -> 0 | L31: =WINEP_Inputs!CU26 -> 1 | M31: =WINEP_Inputs!CV26 -> WR | N31: 0
C32: =WINEP_Inputs!A27 -> YOR00124 | D32: =WINEP_Inputs!J27 -> 7YW200072 | E32: =WINEP_Inputs!K27 -> Schole Hill Fish Passage | F32: =WINEP_Inputs!CW27 -> £ per km LORI | G32: =WINEP_Inputs!CX27 -> 1e-06 | I32: =WINEP_Inputs!CR27 -> 80760 | J32: =WINEP_Inputs!CS27 -> 0.78 | K32: =WINEP_Inputs!CT27 -> 0.78 | L32: =WINEP_Inputs!CU27 -> 1 | M32: =WINEP_Inputs!CV27 -> WR | N32: 1
C33: =WINEP_Inputs!A28 -> YOR00125 | D33: =WINEP_Inputs!J28 -> 7YW200073 | E33: =WINEP_Inputs!K28 -> Watson Mill Fish Passage | F33: =WINEP_Inputs!CW28 -> £ per km LORI | G33: =WINEP_Inputs!CX28 -> 1e-06 | I33: =WINEP_Inputs!CR28 -> 37745 | J33: =WINEP_Inputs!CS28 -> 0.94 | K33: =WINEP_Inputs!CT28 -> 0.94 | L33: =WINEP_Inputs!CU28 -> 1 | M33: =WINEP_Inputs!CV28 -> WR | N33: 1
C34: =WINEP_Inputs!A29 -> YOR01523 | D34: =WINEP_Inputs!J29 -> 7YW200635 | E34: =WINEP_Inputs!K29 -> SOUTH ELMSALL/STW 6X | F34: =WINEP_Inputs!CW29 -> £ per m3 | G34: =WINEP_Inputs!CX29 -> 1e-06 | I34: =WINEP_Inputs!CR29 -> 590 | J34: =WINEP_Inputs!CS29 -> 10000 | K34: =WINEP_Inputs!CT29 -> 10000 | L34: =WINEP_Inputs!CU29 -> 1 | M34: =WINEP_Inputs!CV29 -> WWN | N34: 1
C35: =WINEP_Inputs!A30 -> YOR00693 | D35: =WINEP_Inputs!J30 -> 7YW200637 | E35: =WINEP_Inputs!K30 -> BENTLEY/STW FE transfer to NGR 458119 405197 | F35: =WINEP_Inputs!CW30 -> £ per km LORI | G35: =WINEP_Inputs!CX30 -> 1e-06 | I35: =WINEP_Inputs!CR30 -> 2933301 | J35: =WINEP_Inputs!CS30 -> 0 | K35: =WINEP_Inputs!CT30 -> 0 | L35: =WINEP_Inputs!CU30 -> 1 | M35: =WINEP_Inputs!CV30 -> WWN | N35: 0
C36: =WINEP_Inputs!A31 -> YOR00694 | D36: =WINEP_Inputs!J31 -> 7YW200638 | E36: =WINEP_Inputs!K31 -> CLAYTON WEST/STW ( Storm Overflow - now wetland (FIS denotes storm oveflow ) | F36: =WINEP_Inputs!CW31 -> £ per km LORI | G36: =WINEP_Inputs!CX31 -> 1e-06 | I36: =WINEP_Inputs!CR31 -> 2933301 | J36: =WINEP_Inputs!CS31 -> 2.05 | K36: =WINEP_Inputs!CT31 -> 2.05 | L36: =WINEP_Inputs!CU31 -> 1 | M36: =WINEP_Inputs!CV31 -> WWN | N36: 1
C37: =WINEP_Inputs!A32 -> YOR00696 | D37: =WINEP_Inputs!J32 -> 7YW200640 | E37: =WINEP_Inputs!K32 -> Little Don intermittents - Huinself Rd | F37: =WINEP_Inputs!CW32 -> £ per m3 | G37: =WINEP_Inputs!CX32 -> 1e-06 | I37: =WINEP_Inputs!CR32 -> 590 | J37: =WINEP_Inputs!CS32 -> 4000 | K37: =WINEP_Inputs!CT32 -> 4000 | L37: =WINEP_Inputs!CU32 -> 1 | M37: =WINEP_Inputs!CV32 -> WWN | N37: 1
C38: =WINEP_Inputs!A33 -> YOR01536 | D38: =WINEP_Inputs!J33 -> 7YW200641 | E38: =WINEP_Inputs!K33 -> Pudsey intermittents (Farnley Ring Road) | F38: =WINEP_Inputs!CW33 -> £ per m3 | G38: =WINEP_Inputs!CX33 -> 1e-06 | I38: =WINEP_Inputs!CR33 -> 590 | J38: =WINEP_Inputs!CS33 -> 5000 | K38: =WINEP_Inputs!CT33 -> 0 | L38: =WINEP_Inputs!CU33 -> 1 | M38: =WINEP_Inputs!CV33 -> WWN | N38: 0
C39: =WINEP_Inputs!A34 -> YOR00775 | D39: =WINEP_Inputs!J34 -> 7YW200719 | E39: =WINEP_Inputs!K34 -> SHERBURN IN ELMET/STW | F39: =WINEP_Inputs!CW34 -> £ per km LORI | G39: =WINEP_Inputs!CX34 -> 1e-06 | I39: =WINEP_Inputs!CR34 -> 778365 | J39: =WINEP_Inputs!CS34 -> 0 | K39: =WINEP_Inputs!CT34 -> 0 | L39: =WINEP_Inputs!CU34 -> 1 | M39: =WINEP_Inputs!CV34 -> WWN | N39: 0
C40: =WINEP_Inputs!A35 -> YOR00787 | D40: =WINEP_Inputs!J35 -> 7YW200731 | E40: =WINEP_Inputs!K35 -> BOLSOVER/STW | F40: =WINEP_Inputs!CW35 -> £ per km LORI | G40: =WINEP_Inputs!CX35 -> 1e-06 | I40: =WINEP_Inputs!CR35 -> 778365 | J40: =WINEP_Inputs!CS35 -> 0 | K40: =WINEP_Inputs!CT35 -> 0 | L40: =WINEP_Inputs!CU35 -> 1 | M40: =WINEP_Inputs!CV35 -> WWN | N40: 0
C41: =WINEP_Inputs!A36 -> YOR00793 | D41: =WINEP_Inputs!J36 -> 7YW200737 | E41: =WINEP_Inputs!K36 -> CARTHORPE WPC WORKS | F41: =WINEP_Inputs!CW36 -> £ per km LORI | G41: =WINEP_Inputs!CX36 -> 1e-06 | I41: =WINEP_Inputs!CR36 -> 276351 | J41: =WINEP_Inputs!CS36 -> 4.83 | K41: =WINEP_Inputs!CT36 -> 4.83 | L41: =WINEP_Inputs!CU36 -> 1 | M41: =WINEP_Inputs!CV36 -> WWN | N41: 1
C42: =WINEP_Inputs!A37 -> YOR00799 | D42: =WINEP_Inputs!J37 -> 7YW200743 | E42: =WINEP_Inputs!K37 -> THORNTON LE BEANS | F42: =WINEP_Inputs!CW37 -> £ per km LORI | G42: =WINEP_Inputs!CX37 -> 1e-06 | I42: =WINEP_Inputs!CR37 -> 276351 | J42: =WINEP_Inputs!CS37 -> 6.438 | K42: =WINEP_Inputs!CT37 -> 6.44 | L42: =WINEP_Inputs!CU37 -> 1 | M42: =WINEP_Inputs!CV37 -> WWN | N42: 1.000310655
C43: =WINEP_Inputs!A38 -> YOR00804 | D43: =WINEP_Inputs!J38 -> 7YW200748 | E43: =WINEP_Inputs!K38 -> Rainton STW | F43: =WINEP_Inputs!CW38 -> £ per km LORI | G43: =WINEP_Inputs!CX38 -> 1e-06 | I43: =WINEP_Inputs!CR38 -> 276351 | J43: =WINEP_Inputs!CS38 -> 1.464 | K43: =WINEP_Inputs!CT38 -> 1.46 | L43: =WINEP_Inputs!CU38 -> 1 | M43: =WINEP_Inputs!CV38 -> WWN | N43: 0.9972677596
C44: =WINEP_Inputs!A39 -> YOR00805 | D44: =WINEP_Inputs!J39 -> 7YW200749 | E44: =WINEP_Inputs!K39 -> DISHFORTH WPC WORKS | F44: =WINEP_Inputs!CW39 -> £ per km LORI | G44: =WINEP_Inputs!CX39 -> 1e-06 | I44: =WINEP_Inputs!CR39 -> 276351 | J44: =WINEP_Inputs!CS39 -> 7.765 | K44: =WINEP_Inputs!CT39 -> 7.765 | L44: =WINEP_Inputs!CU39 -> 1 | M44: =WINEP_Inputs!CV39 -> WWN | N44: 1
C45: =WINEP_Inputs!A40 -> YOR00806 | D45: =WINEP_Inputs!J40 -> 7YW200750 | E45: =WINEP_Inputs!K40 -> KIRKBY MALZEARD/STW | F45: =WINEP_Inputs!CW40 -> £ per km LORI | G45: =WINEP_Inputs!CX40 -> 1e-06 | I45: =WINEP_Inputs!CR40 -> 276351 | J45: =WINEP_Inputs!CS40 -> 12.118 | K45: =WINEP_Inputs!CT40 -> 12.118 | L45: =WINEP_Inputs!CU40 -> 1 | M45: =WINEP_Inputs!CV40 -> WWN | N45: 1
C46: =WINEP_Inputs!A41 -> YOR00812 | D46: =WINEP_Inputs!J41 -> 7YW200756 | E46: =WINEP_Inputs!K41 -> KILLINGHALL STW | F46: =WINEP_Inputs!CW41 -> £ per km LORI | G46: =WINEP_Inputs!CX41 -> 1e-06 | I46: =WINEP_Inputs!CR41 -> 276351 | J46: =WINEP_Inputs!CS41 -> 0 | K46: =WINEP_Inputs!CT41 -> 0 | L46: =WINEP_Inputs!CU41 -> 1 | M46: =WINEP_Inputs!CV41 -> WWN | N46: 0
C47: =WINEP_Inputs!A42 -> YOR00813 | D47: =WINEP_Inputs!J42 -> 7YW200757 | E47: =WINEP_Inputs!K42 -> SHAW MILLS/STW | F47: =WINEP_Inputs!CW42 -> £ per km LORI | G47: =WINEP_Inputs!CX42 -> 1e-06 | I47: =WINEP_Inputs!CR42 -> 276351 | J47: =WINEP_Inputs!CS42 -> 29.858 | K47: =WINEP_Inputs!CT42 -> 29.858 | L47: =WINEP_Inputs!CU42 -> 1 | M47: =WINEP_Inputs!CV42 -> WWN | N47: 1
C48: =WINEP_Inputs!A43 -> YOR00833 | D48: =WINEP_Inputs!J43 -> 7YW200777 | E48: =WINEP_Inputs!K43 -> DRAUGHTON WPC WORKS | F48: =WINEP_Inputs!CW43 -> £ per km LORI | G48: =WINEP_Inputs!CX43 -> 1e-06 | I48: =WINEP_Inputs!CR43 -> 276351 | J48: =WINEP_Inputs!CS43 -> 3.519 | K48: =WINEP_Inputs!CT43 -> 3.519 | L48: =WINEP_Inputs!CU43 -> 1 | M48: =WINEP_Inputs!CV43 -> WWN | N48: 1
C49: =WINEP_Inputs!A44 -> YOR00838 | D49: =WINEP_Inputs!J44 -> 7YW200782 | E49: =WINEP_Inputs!K44 -> SHERBURN IN ELMET/STW | F49: =WINEP_Inputs!CW44 -> £ per km LORI | G49: =WINEP_Inputs!CX44 -> 1e-06 | I49: =WINEP_Inputs!CR44 -> 778365 | J49: =WINEP_Inputs!CS44 -> 10.13 | K49: =WINEP_Inputs!CT44 -> 10.13 | L49: =WINEP_Inputs!CU44 -> 1 | M49: =WINEP_Inputs!CV44 -> WWN | N49: 1
C50: =WINEP_Inputs!A45 -> YOR00840 | D50: =WINEP_Inputs!J45 -> 7YW200784 | E50: =WINEP_Inputs!K45 -> HAROME/STW | F50: =WINEP_Inputs!CW45 -> £ per km LORI | G50: =WINEP_Inputs!CX45 -> 1e-06 | I50: =WINEP_Inputs!CR45 -> 276351 | J50: =WINEP_Inputs!CS45 -> 6.402 | K50: =WINEP_Inputs!CT45 -> 6.4 | L50: =WINEP_Inputs!CU45 -> 1 | M50: =WINEP_Inputs!CV45 -> WWN | N50: 0.9996875976
C51: =WINEP_Inputs!A46 -> YOR00846 | D51: =WINEP_Inputs!J46 -> 7YW200790 | E51: =WINEP_Inputs!K46 -> BISHOP WILTON WPC WO | F51: =WINEP_Inputs!CW46 -> £ per kgP/day removed | G51: =WINEP_Inputs!CX46 -> 1e-06 | I51: =WINEP_Inputs!CR46 -> 1287218 | J51: =WINEP_Inputs!CS46 -> 1 | K51: =WINEP_Inputs!CT46 -> 1 | L51: =WINEP_Inputs!CU46 -> 1 | M51: =WINEP_Inputs!CV46 -> WWN | N51: 1
C52: =WINEP_Inputs!A47 -> YOR00847 | D52: =WINEP_Inputs!J47 -> 7YW200791 | E52: =WINEP_Inputs!K47 -> POCKLINGTON/STW | F52: =WINEP_Inputs!CW47 -> £ per km LORI | G52: =WINEP_Inputs!CX47 -> 1e-06 | I52: =WINEP_Inputs!CR47 -> 276351 | J52: =WINEP_Inputs!CS47 -> 2.17 | K52: =WINEP_Inputs!CT47 -> 2.17 | L52: =WINEP_Inputs!CU47 -> 1 | M52: =WINEP_Inputs!CV47 -> WWN | N52: 1
C53: =WINEP_Inputs!A48 -> YOR00849 | D53: =WINEP_Inputs!J48 -> 7YW200793 | E53: =WINEP_Inputs!K48 -> CROFTON/STW | F53: =WINEP_Inputs!CW48 -> £ per km LORI | G53: =WINEP_Inputs!CX48 -> 1e-06 | I53: =WINEP_Inputs!CR48 -> 276351 | J53: =WINEP_Inputs!CS48 -> 8.989 | K53: =WINEP_Inputs!CT48 -> 8.989 | L53: =WINEP_Inputs!CU48 -> 1 | M53: =WINEP_Inputs!CV48 -> WWN | N53: 1
C54: =WINEP_Inputs!A49 -> YOR00850 | D54: =WINEP_Inputs!J49 -> 7YW200794 | E54: =WINEP_Inputs!K49 -> MELTHAM/STW | F54: =WINEP_Inputs!CW49 -> £ per km LORI | G54: =WINEP_Inputs!CX49 -> 1e-06 | I54: =WINEP_Inputs!CR49 -> 276351 | J54: =WINEP_Inputs!CS49 -> 17.146 | K54: =WINEP_Inputs!CT49 -> 17.146 | L54: =WINEP_Inputs!CU49 -> 1 | M54: =WINEP_Inputs!CV49 -> WWN | N54: 1
C55: =WINEP_Inputs!A50 -> YOR00851 | D55: =WINEP_Inputs!J50 -> 7YW200795 | E55: =WINEP_Inputs!K50 -> NEILEY NO 2 STW | F55: =WINEP_Inputs!CW50 -> £ per km LORI | G55: =WINEP_Inputs!CX50 -> 1e-06 | I55: =WINEP_Inputs!CR50 -> 778365 | J55: =WINEP_Inputs!CS50 -> 1.531 | K55: =WINEP_Inputs!CT50 -> 1.531 | L55: =WINEP_Inputs!CU50 -> 1 | M55: =WINEP_Inputs!CV50 -> WWN | N55: 1
C56: =WINEP_Inputs!A51 -> YOR00852 | D56: =WINEP_Inputs!J51 -> 7YW200796 | E56: =WINEP_Inputs!K51 -> RIPPONDEN WOOD STW | F56: =WINEP_Inputs!CW51 -> £ per km LORI | G56: =WINEP_Inputs!CX51 -> 1e-06 | I56: =WINEP_Inputs!CR51 -> 276351 | J56: =WINEP_Inputs!CS51 -> 7.958 | K56: =WINEP_Inputs!CT51 -> 7.958 | L56: =WINEP_Inputs!CU51 -> 1 | M56: =WINEP_Inputs!CV51 -> WWN | N56: 1
C57: =WINEP_Inputs!A52 -> YOR00853 | D57: =WINEP_Inputs!J52 -> 7YW200797 | E57: =WINEP_Inputs!K52 -> EASTWOOD/STW | F57: =WINEP_Inputs!CW52 -> £ per km LORI | G57: =WINEP_Inputs!CX52 -> 1e-06 | I57: =WINEP_Inputs!CR52 -> 778365 | J57: =WINEP_Inputs!CS52 -> 1.833 | K57: =WINEP_Inputs!CT52 -> 1.833 | L57: =WINEP_Inputs!CU52 -> 1 | M57: =WINEP_Inputs!CV52 -> WWN | N57: 1
C58: =WINEP_Inputs!A53 -> YOR00854 | D58: =WINEP_Inputs!J53 -> 7YW200798 | E58: =WINEP_Inputs!K53 -> REDACRE STW | F58: =WINEP_Inputs!CW53 -> £ per km LORI | G58: =WINEP_Inputs!CX53 -> 1e-06 | I58: =WINEP_Inputs!CR53 -> 276351 | J58: =WINEP_Inputs!CS53 -> 5.039 | K58: =WINEP_Inputs!CT53 -> 5.039 | L58: =WINEP_Inputs!CU53 -> 1 | M58: =WINEP_Inputs!CV53 -> WWN | N58: 1
C59: =WINEP_Inputs!A54 -> YOR00855 | D59: =WINEP_Inputs!J54 -> 7YW200799 | E59: =WINEP_Inputs!K54 -> HIGH ROYD NO 2 STW | F59: =WINEP_Inputs!CW54 -> £ per km LORI | G59: =WINEP_Inputs!CX54 -> 1e-06 | I59: =WINEP_Inputs!CR54 -> 778365 | J59: =WINEP_Inputs!CS54 -> 1.54 | K59: =WINEP_Inputs!CT54 -> 1.54 | L59: =WINEP_Inputs!CU54 -> 1 | M59: =WINEP_Inputs!CV54 -> WWN | N59: 1
C60: =WINEP_Inputs!A55 -> YOR00856 | D60: =WINEP_Inputs!J55 -> 7YW200800 | E60: =WINEP_Inputs!K55 -> HALIFAX COPLEY STW | F60: =WINEP_Inputs!CW55 -> £ per km LORI | G60: =WINEP_Inputs!CX55 -> 1e-06 | I60: =WINEP_Inputs!CR55 -> 778365 | J60: =WINEP_Inputs!CS55 -> 12.996 | K60: =WINEP_Inputs!CT55 -> 12.996 | L60: =WINEP_Inputs!CU55 -> 1 | M60: =WINEP_Inputs!CV55 -> WWN | N60: 1
C61: =WINEP_Inputs!A56 -> YOR00857 | D61: =WINEP_Inputs!J56 -> 7YW200801 | E61: =WINEP_Inputs!K56 -> Huddersfield STW Colne Bridge | F61: =WINEP_Inputs!CW56 -> £ per km LORI | G61: =WINEP_Inputs!CX56 -> 1e-06 | I61: =WINEP_Inputs!CR56 -> 502014 | J61: =WINEP_Inputs!CS56 -> 0 | K61: =WINEP_Inputs!CT56 -> 0 | L61: =WINEP_Inputs!CU56 -> 1 | M61: =WINEP_Inputs!CV56 -> WWN | N61: 0
C62: =WINEP_Inputs!A57 -> YOR00858 | D62: =WINEP_Inputs!J57 -> 7YW200802 | E62: =WINEP_Inputs!K57 -> HUDDERSFIELD STW Cooper Bridge | F62: =WINEP_Inputs!CW57 -> £ per km LORI | G62: =WINEP_Inputs!CX57 -> 1e-06 | I62: =WINEP_Inputs!CR57 -> 778365 | J62: =WINEP_Inputs!CS57 -> 12.022 | K62: =WINEP_Inputs!CT57 -> 12.022 | L62: =WINEP_Inputs!CU57 -> 1 | M62: =WINEP_Inputs!CV57 -> WWN | N62: 1
C63: =WINEP_Inputs!A58 -> YOR00859 | D63: =WINEP_Inputs!J58 -> 7YW200803 | E63: =WINEP_Inputs!K58 -> DEWSBURY/STW | F63: =WINEP_Inputs!CW58 -> £ per km LORI | G63: =WINEP_Inputs!CX58 -> 1e-06 | I63: =WINEP_Inputs!CR58 -> 778365 | J63: =WINEP_Inputs!CS58 -> 5.819 | K63: =WINEP_Inputs!CT58 -> 5.819 | L63: =WINEP_Inputs!CU58 -> 1 | M63: =WINEP_Inputs!CV58 -> WWN | N63: 1
C64: =WINEP_Inputs!A59 -> YOR00860 | D64: =WINEP_Inputs!J59 -> 7YW200804 | E64: =WINEP_Inputs!K59 -> HORBURY (DUDFLEET) STW | F64: =WINEP_Inputs!CW59 -> £ per km LORI | G64: =WINEP_Inputs!CX59 -> 1e-06 | I64: =WINEP_Inputs!CR59 -> 778365 | J64: =WINEP_Inputs!CS59 -> 3.309 | K64: =WINEP_Inputs!CT59 -> 3.309 | L64: =WINEP_Inputs!CU59 -> 1 | M64: =WINEP_Inputs!CV59 -> WWN | N64: 1
C65: =WINEP_Inputs!A60 -> YOR00861 | D65: =WINEP_Inputs!J60 -> 7YW200805 | E65: =WINEP_Inputs!K60 -> CALDER VALE/STW | F65: =WINEP_Inputs!CW60 -> £ per km LORI | G65: =WINEP_Inputs!CX60 -> 1e-06 | I65: =WINEP_Inputs!CR60 -> 778365 | J65: =WINEP_Inputs!CS60 -> 6.711 | K65: =WINEP_Inputs!CT60 -> 6.711 | L65: =WINEP_Inputs!CU60 -> 1 | M65: =WINEP_Inputs!CV60 -> WWN | N65: 1
C66: =WINEP_Inputs!A61 -> YOR00862 | D66: =WINEP_Inputs!J61 -> 7YW200806 | E66: =WINEP_Inputs!K61 -> Stanley (Smalley Bight) STW | F66: =WINEP_Inputs!CW61 -> £ per km LORI | G66: =WINEP_Inputs!CX61 -> 1e-06 | I66: =WINEP_Inputs!CR61 -> 778365 | J66: =WINEP_Inputs!CS61 -> 7.811 | K66: =WINEP_Inputs!CT61 -> 7.811 | L66: =WINEP_Inputs!CU61 -> 1 | M66: =WINEP_Inputs!CV61 -> WWN | N66: 1
C67: =WINEP_Inputs!A62 -> YOR00863 | D67: =WINEP_Inputs!J62 -> 7YW200807 | E67: =WINEP_Inputs!K62 -> NORMANTON/STW (Mill Lane) | F67: =WINEP_Inputs!CW62 -> £ per km LORI | G67: =WINEP_Inputs!CX62 -> 1e-06 | I67: =WINEP_Inputs!CR62 -> 778365 | J67: =WINEP_Inputs!CS62 -> 3.394 | K67: =WINEP_Inputs!CT62 -> 3.394 | L67: =WINEP_Inputs!CU62 -> 1 | M67: =WINEP_Inputs!CV62 -> WWN | N67: 1
C68: =WINEP_Inputs!A63 -> YOR00866 | D68: =WINEP_Inputs!J63 -> 7YW200810 | E68: =WINEP_Inputs!K63 -> EMBSAY/STW | F68: =WINEP_Inputs!CW63 -> £ per km LORI | G68: =WINEP_Inputs!CX63 -> 1e-06 | I68: =WINEP_Inputs!CR63 -> 276351 | J68: =WINEP_Inputs!CS63 -> 2.715 | K68: =WINEP_Inputs!CT63 -> 2.72 | L68: =WINEP_Inputs!CU63 -> 1 | M68: =WINEP_Inputs!CV63 -> WWN | N68: 1.001841621
C69: =WINEP_Inputs!A64 -> YOR00867 | D69: =WINEP_Inputs!J64 -> 7YW200811 | E69: =WINEP_Inputs!K64 -> EAST MARTON | F69: =WINEP_Inputs!CW64 -> £ per km LORI | G69: =WINEP_Inputs!CX64 -> 1e-06 | I69: =WINEP_Inputs!CR64 -> 276351 | J69: =WINEP_Inputs!CS64 -> 0 | K69: =WINEP_Inputs!CT64 -> 0 | L69: =WINEP_Inputs!CU64 -> 1 | M69: =WINEP_Inputs!CV64 -> WWN | N69: 0
C70: =WINEP_Inputs!A65 -> YOR00872 | D70: =WINEP_Inputs!J65 -> 7YW200816 | E70: =WINEP_Inputs!K65 -> KEIGHLEY MARLEY/STW | F70: =WINEP_Inputs!CW65 -> £ per km LORI | G70: =WINEP_Inputs!CX65 -> 1e-06 | I70: =WINEP_Inputs!CR65 -> 778365 | J70: =WINEP_Inputs!CS65 -> 6.459 | K70: =WINEP_Inputs!CT65 -> 6.459 | L70: =WINEP_Inputs!CU65 -> 1 | M70: =WINEP_Inputs!CV65 -> WWN | N70: 1
C71: =WINEP_Inputs!A66 -> YOR00873 | D71: =WINEP_Inputs!J66 -> 7YW200817 | E71: =WINEP_Inputs!K66 -> DOWLEY GAP (BINGLEY) | F71: =WINEP_Inputs!CW66 -> £ per km LORI | G71: =WINEP_Inputs!CX66 -> 1e-06 | I71: =WINEP_Inputs!CR66 -> 778365 | J71: =WINEP_Inputs!CS66 -> 9.155 | K71: =WINEP_Inputs!CT66 -> 9.155 | L71: =WINEP_Inputs!CU66 -> 1 | M71: =WINEP_Inputs!CV66 -> WWN | N71: 1
C72: =WINEP_Inputs!A67 -> YOR00874 | D72: =WINEP_Inputs!J67 -> 7YW200818 | E72: =WINEP_Inputs!K67 -> BRADFORD ESHOLT/NO 2 STW | F72: =WINEP_Inputs!CW67 -> £ per km LORI | G72: =WINEP_Inputs!CX67 -> 1e-06 | I72: =WINEP_Inputs!CR67 -> 778365 | J72: =WINEP_Inputs!CS67 -> 23.472 | K72: =WINEP_Inputs!CT67 -> 23.472 | L72: =WINEP_Inputs!CU67 -> 1 | M72: =WINEP_Inputs!CV67 -> WWN | N72: 1
C73: =WINEP_Inputs!A68 -> YOR00875 | D73: =WINEP_Inputs!J68 -> 7YW200819 | E73: =WINEP_Inputs!K68 -> KNOSTROP WWTW | F73: =WINEP_Inputs!CW68 -> £ per km LORI | G73: =WINEP_Inputs!CX68 -> 1e-06 | I73: =WINEP_Inputs!CR68 -> 778365 | J73: =WINEP_Inputs!CS68 -> 5.593 | K73: =WINEP_Inputs!CT68 -> 5.593 | L73: =WINEP_Inputs!CU68 -> 1 | M73: =WINEP_Inputs!CV68 -> WWN | N73: 1
C74: =WINEP_Inputs!A69 -> YOR00876 | D74: =WINEP_Inputs!J69 -> 7YW200820 | E74: =WINEP_Inputs!K69 -> LEMONROYD STW | F74: =WINEP_Inputs!CW69 -> £ per km LORI | G74: =WINEP_Inputs!CX69 -> 1e-06 | I74: =WINEP_Inputs!CR69 -> 778365 | J74: =WINEP_Inputs!CS69 -> 5.586 | K74: =WINEP_Inputs!CT69 -> 5.586 | L74: =WINEP_Inputs!CU69 -> 1 | M74: =WINEP_Inputs!CV69 -> WWN | N74: 1
C75: =WINEP_Inputs!A70 -> YOR00878 | D75: =WINEP_Inputs!J70 -> 7YW200822 | E75: =WINEP_Inputs!K70 -> CASTLEFORD/STW | F75: =WINEP_Inputs!CW70 -> £ per km LORI | G75: =WINEP_Inputs!CX70 -> 1e-06 | I75: =WINEP_Inputs!CR70 -> 778365 | J75: =WINEP_Inputs!CS70 -> 0 | K75: =WINEP_Inputs!CT70 -> 0 | L75: =WINEP_Inputs!CU70 -> 1 | M75: =WINEP_Inputs!CV70 -> WWN | N75: 0
C76: =WINEP_Inputs!A71 -> YOR00879 | D76: =WINEP_Inputs!J71 -> 7YW200823 | E76: =WINEP_Inputs!K71 -> SUTTON WWTW | F76: =WINEP_Inputs!CW71 -> £ per km LORI | G76: =WINEP_Inputs!CX71 -> 1e-06 | I76: =WINEP_Inputs!CR71 -> 778365 | J76: =WINEP_Inputs!CS71 -> 23.165 | K76: =WINEP_Inputs!CT71 -> 23.165 | L76: =WINEP_Inputs!CU71 -> 1 | M76: =WINEP_Inputs!CV71 -> WWN | N76: 1
C77: =WINEP_Inputs!A72 -> YOR00881 | D77: =WINEP_Inputs!J72 -> 7YW200825 | E77: =WINEP_Inputs!K72 -> SOUTH ELMSALL/STW | F77: =WINEP_Inputs!CW72 -> £ per km LORI | G77: =WINEP_Inputs!CX72 -> 1e-06 | I77: =WINEP_Inputs!CR72 -> 778365 | J77: =WINEP_Inputs!CS72 -> 5.117 | K77: =WINEP_Inputs!CT72 -> 5.117 | L77: =WINEP_Inputs!CU72 -> 1 | M77: =WINEP_Inputs!CV72 -> WWN | N77: 1
C78: =WINEP_Inputs!A73 -> YOR00882 | D78: =WINEP_Inputs!J73 -> 7YW200826 | E78: =WINEP_Inputs!K73 -> WRANGBROOK STW | F78: =WINEP_Inputs!CW73 -> £ per km LORI | G78: =WINEP_Inputs!CX73 -> 1e-06 | I78: =WINEP_Inputs!CR73 -> 276351 | J78: =WINEP_Inputs!CS73 -> 8.776 | K78: =WINEP_Inputs!CT73 -> 8.776 | L78: =WINEP_Inputs!CU73 -> 1 | M78: =WINEP_Inputs!CV73 -> WWN | N78: 1
C79: =WINEP_Inputs!A74 -> YOR00883 | D79: =WINEP_Inputs!J74 -> 7YW200827 | E79: =WINEP_Inputs!K74 -> Adwick Le Street | F79: =WINEP_Inputs!CW74 -> £ per km LORI | G79: =WINEP_Inputs!CX74 -> 1e-06 | I79: =WINEP_Inputs!CR74 -> 778365 | J79: =WINEP_Inputs!CS74 -> 8.573 | K79: =WINEP_Inputs!CT74 -> 8.573 | L79: =WINEP_Inputs!CU74 -> 1 | M79: =WINEP_Inputs!CV74 -> WWN | N79: 1
C80: =WINEP_Inputs!A75 -> YOR00886 | D80: =WINEP_Inputs!J75 -> 7YW200830 | E80: =WINEP_Inputs!K75 -> GRIMETHORPE/STW | F80: =WINEP_Inputs!CW75 -> £ per km LORI | G80: =WINEP_Inputs!CX75 -> 1e-06 | I80: =WINEP_Inputs!CR75 -> 778365 | J80: =WINEP_Inputs!CS75 -> 10.161 | K80: =WINEP_Inputs!CT75 -> 10.161 | L80: =WINEP_Inputs!CU75 -> 1 | M80: =WINEP_Inputs!CV75 -> WWN | N80: =IF(K80 = 0, 0, K80 / J80) -> 1
C81: =WINEP_Inputs!A76 -> YOR00887 | D81: =WINEP_Inputs!J76 -> 7YW200831 | E81: =WINEP_Inputs!K76 -> CLAYTON WEST/STW | F81: =WINEP_Inputs!CW76 -> £ per km LORI | G81: =WINEP_Inputs!CX76 -> 1e-06 | I81: =WINEP_Inputs!CR76 -> 778365 | J81: =WINEP_Inputs!CS76 -> 3.707 | K81: =WINEP_Inputs!CT76 -> 3.707 | L81: =WINEP_Inputs!CU76 -> 1 | M81: =WINEP_Inputs!CV76 -> WWN | N81: 1
C82: =WINEP_Inputs!A77 -> YOR00888 | D82: =WINEP_Inputs!J77 -> 7YW200832 | E82: =WINEP_Inputs!K77 -> HOYLANDSWAINE/STW | F82: =WINEP_Inputs!CW77 -> £ per km LORI | G82: =WINEP_Inputs!CX77 -> 1e-06 | I82: =WINEP_Inputs!CR77 -> 276351 | J82: =WINEP_Inputs!CS77 -> 9.805 | K82: =WINEP_Inputs!CT77 -> 9.805 | L82: =WINEP_Inputs!CU77 -> 1 | M82: =WINEP_Inputs!CV77 -> WWN | N82: 1
C83: =WINEP_Inputs!A78 -> YOR00902 | D83: =WINEP_Inputs!J78 -> 7YW200846 | E83: =WINEP_Inputs!K78 -> INGBIRCHWORTH STW | F83: =WINEP_Inputs!CW78 -> £ per kgP/day removed | G83: =WINEP_Inputs!CX78 -> 1e-06 | I83: =WINEP_Inputs!CR78 -> 1287218 | J83: =WINEP_Inputs!CS78 -> 1 | K83: =WINEP_Inputs!CT78 -> 1 | L83: =WINEP_Inputs!CU78 -> 1 | M83: =WINEP_Inputs!CV78 -> WWN | N83: 1
C84: =WINEP_Inputs!A79 -> YOR00903 | D84: =WINEP_Inputs!J79 -> 7YW200847 | E84: =WINEP_Inputs!K79 -> CHEESEBOTTOM STW | F84: =WINEP_Inputs!CW79 -> £ per km LORI | G84: =WINEP_Inputs!CX79 -> 1e-06 | I84: =WINEP_Inputs!CR79 -> 778365 | J84: =WINEP_Inputs!CS79 -> 7.747 | K84: =WINEP_Inputs!CT79 -> 7.747 | L84: =WINEP_Inputs!CU79 -> 1 | M84: =WINEP_Inputs!CV79 -> WWN | N84: 1
C85: =WINEP_Inputs!A80 -> YOR00904 | D85: =WINEP_Inputs!J80 -> 7YW200848 | E85: =WINEP_Inputs!K80 -> STOCKSBRIDGE/STW | F85: =WINEP_Inputs!CW80 -> £ per km LORI | G85: =WINEP_Inputs!CX80 -> 1e-06 | I85: =WINEP_Inputs!CR80 -> 778365 | J85: =WINEP_Inputs!CS80 -> 23.137 | K85: =WINEP_Inputs!CT80 -> 23.137 | L85: =WINEP_Inputs!CU80 -> 1 | M85: =WINEP_Inputs!CV80 -> WWN | N85: 1
C86: =WINEP_Inputs!A81 -> YOR00906 | D86: =WINEP_Inputs!J81 -> 7YW200850 | E86: =WINEP_Inputs!K81 -> BLACKBURN MEADOWS/STW | F86: =WINEP_Inputs!CW81 -> £ per km LORI | G86: =WINEP_Inputs!CX81 -> 1e-06 | I86: =WINEP_Inputs!CR81 -> 778365 | J86: =WINEP_Inputs!CS81 -> 6.528 | K86: =WINEP_Inputs!CT81 -> 6.528 | L86: =WINEP_Inputs!CU81 -> 1 | M86: =WINEP_Inputs!CV81 -> WWN | N86: 1
C87: =WINEP_Inputs!A82 -> YOR00913 | D87: =WINEP_Inputs!J82 -> 7YW200857 | E87: =WINEP_Inputs!K82 -> Old Whittington (Chesterfield) STW | F87: =WINEP_Inputs!CW82 -> £ per km LORI | G87: =WINEP_Inputs!CX82 -> 1e-06 | I87: =WINEP_Inputs!CR82 -> 778365 | J87: =WINEP_Inputs!CS82 -> 9.268 | K87: =WINEP_Inputs!CT82 -> 9.268 | L87: =WINEP_Inputs!CU82 -> 1 | M87: =WINEP_Inputs!CV82 -> WWN | N87: 1
C88: =WINEP_Inputs!A83 -> YOR00914 | D88: =WINEP_Inputs!J83 -> 7YW200858 | E88: =WINEP_Inputs!K83 -> STOCKLEY/STW | F88: =WINEP_Inputs!CW83 -> £ per km LORI | G88: =WINEP_Inputs!CX83 -> 1e-06 | I88: =WINEP_Inputs!CR83 -> 276351 | J88: =WINEP_Inputs!CS83 -> 2.367 | K88: =WINEP_Inputs!CT83 -> 2.367 | L88: =WINEP_Inputs!CU83 -> 1 | M88: =WINEP_Inputs!CV83 -> WWN | N88: 1
C89: =WINEP_Inputs!A84 -> YOR00915 | D89: =WINEP_Inputs!J84 -> 7YW200859 | E89: =WINEP_Inputs!K84 -> BOLSOVER/STW | F89: =WINEP_Inputs!CW84 -> £ per km LORI | G89: =WINEP_Inputs!CX84 -> 1e-06 | I89: =WINEP_Inputs!CR84 -> 778365 | J89: =WINEP_Inputs!CS84 -> 7.796 | K89: =WINEP_Inputs!CT84 -> 7.796 | L89: =WINEP_Inputs!CU84 -> 1 | M89: =WINEP_Inputs!CV84 -> WWN | N89: 1
C90: =WINEP_Inputs!A85 -> YOR00916 | D90: =WINEP_Inputs!J85 -> 7YW200860 | E90: =WINEP_Inputs!K85 -> STAVELEY/STW | F90: =WINEP_Inputs!CW85 -> £ per km LORI | G90: =WINEP_Inputs!CX85 -> 1e-06 | I90: =WINEP_Inputs!CR85 -> 778365 | J90: =WINEP_Inputs!CS85 -> 12.934 | K90: =WINEP_Inputs!CT85 -> 12.934 | L90: =WINEP_Inputs!CU85 -> 1 | M90: =WINEP_Inputs!CV85 -> WWN | N90: 1
C91: =WINEP_Inputs!A86 -> YOR00917 | D91: =WINEP_Inputs!J86 -> 7YW200861 | E91: =WINEP_Inputs!K86 -> WOODHOUSE MILL WwTW | F91: =WINEP_Inputs!CW86 -> £ per km LORI | G91: =WINEP_Inputs!CX86 -> 1e-06 | I91: =WINEP_Inputs!CR86 -> 778365 | J91: =WINEP_Inputs!CS86 -> 4.275 | K91: =WINEP_Inputs!CT86 -> 4.275 | L91: =WINEP_Inputs!CU86 -> 1 | M91: =WINEP_Inputs!CV86 -> WWN | N91: 1
C92: =WINEP_Inputs!A87 -> YOR00918 | D92: =WINEP_Inputs!J87 -> 7YW200862 | E92: =WINEP_Inputs!K87 -> LONG LANE/STW | F92: =WINEP_Inputs!CW87 -> £ per km LORI | G92: =WINEP_Inputs!CX87 -> 1e-06 | I92: =WINEP_Inputs!CR87 -> 778365 | J92: =WINEP_Inputs!CS87 -> 4.236 | K92: =WINEP_Inputs!CT87 -> 4.236 | L92: =WINEP_Inputs!CU87 -> 1 | M92: =WINEP_Inputs!CV87 -> WWN | N92: 1
C93: =WINEP_Inputs!A88 -> YOR00919 | D93: =WINEP_Inputs!J88 -> 7YW200863 | E93: =WINEP_Inputs!K88 -> ALDWARKE/STW | F93: =WINEP_Inputs!CW88 -> £ per km LORI | G93: =WINEP_Inputs!CX88 -> 1e-06 | I93: =WINEP_Inputs!CR88 -> 778365 | J93: =WINEP_Inputs!CS88 -> 7.06 | K93: =WINEP_Inputs!CT88 -> 7.06 | L93: =WINEP_Inputs!CU88 -> 1 | M93: =WINEP_Inputs!CV88 -> WWN | N93: 1
C94: =WINEP_Inputs!A89 -> YOR00920 | D94: =WINEP_Inputs!J89 -> 7YW200864 | E94: =WINEP_Inputs!K89 -> MEXBORO SWINTON/STW | F94: =WINEP_Inputs!CW89 -> £ per km LORI | G94: =WINEP_Inputs!CX89 -> 1e-06 | I94: =WINEP_Inputs!CR89 -> 778365 | J94: =WINEP_Inputs!CS89 -> 3.06 | K94: =WINEP_Inputs!CT89 -> 3.06 | L94: =WINEP_Inputs!CU89 -> 1 | M94: =WINEP_Inputs!CV89 -> WWN | N94: 1
C95: =WINEP_Inputs!A90 -> YOR00921 | D95: =WINEP_Inputs!J90 -> 7YW200865 | E95: =WINEP_Inputs!K90 -> DENABY WTW | F95: =WINEP_Inputs!CW90 -> £ per km LORI | G95: =WINEP_Inputs!CX90 -> 1e-06 | I95: =WINEP_Inputs!CR90 -> 778365 | J95: =WINEP_Inputs!CS90 -> 13.416 | K95: =WINEP_Inputs!CT90 -> 13.416 | L95: =WINEP_Inputs!CU90 -> 1 | M95: =WINEP_Inputs!CV90 -> WWN | N95: 1
C96: =WINEP_Inputs!A91 -> YOR00922 | D96: =WINEP_Inputs!J91 -> 7YW200866 | E96: =WINEP_Inputs!K91 -> Clifton STW | F96: =WINEP_Inputs!CW91 -> £ per km LORI | G96: =WINEP_Inputs!CX91 -> 1e-06 | I96: =WINEP_Inputs!CR91 -> 276351 | J96: =WINEP_Inputs!CS91 -> 0 | K96: =WINEP_Inputs!CT91 -> 0 | L96: =WINEP_Inputs!CU91 -> 1 | M96: =WINEP_Inputs!CV91 -> WWN | N96: 0
C97: =WINEP_Inputs!A92 -> YOR00923 | D97: =WINEP_Inputs!J92 -> 7YW200867 | E97: =WINEP_Inputs!K92 -> BENTLEY/STW P Removal | F97: =WINEP_Inputs!CW92 -> £ per km LORI | G97: =WINEP_Inputs!CX92 -> 1e-06 | I97: =WINEP_Inputs!CR92 -> 778365 | J97: =WINEP_Inputs!CS92 -> 3.43 | K97: =WINEP_Inputs!CT92 -> 3.43 | L97: =WINEP_Inputs!CU92 -> 1 | M97: =WINEP_Inputs!CV92 -> WWN | N97: 1
C98: =WINEP_Inputs!A93 -> YOR00928 | D98: =WINEP_Inputs!J93 -> 7YW200872 | E98: =WINEP_Inputs!K93 -> KIRK SMEATON/STW | F98: =WINEP_Inputs!CW93 -> £ per kgP/day removed | G98: =WINEP_Inputs!CX93 -> 1e-06 | I98: =WINEP_Inputs!CR93 -> 1287218 | J98: =WINEP_Inputs!CS93 -> 2 | K98: =WINEP_Inputs!CT93 -> 2 | L98: =WINEP_Inputs!CU93 -> 1 | M98: =WINEP_Inputs!CV93 -> WWN | N98: 1
C99: =WINEP_Inputs!A94 -> YOR00966 | D99: =WINEP_Inputs!J94 -> 7YW200910 | E99: =WINEP_Inputs!K94 -> Adwick Le Street | F99: =WINEP_Inputs!CW94 -> £ per km LORI | G99: =WINEP_Inputs!CX94 -> 1e-06 | I99: =WINEP_Inputs!CR94 -> 778365 | J99: =WINEP_Inputs!CS94 -> 0 | K99: =WINEP_Inputs!CT94 -> 0 | L99: =WINEP_Inputs!CU94 -> 1 | M99: =WINEP_Inputs!CV94 -> WWN | N99: 0
C100: =WINEP_Inputs!A95 -> YOR00967 | D100: =WINEP_Inputs!J95 -> 7YW200911 | E100: =WINEP_Inputs!K95 -> ALDWARKE/STW | F100: =WINEP_Inputs!CW95 -> £ per km LORI | G100: =WINEP_Inputs!CX95 -> 1e-06 | I100: =WINEP_Inputs!CR95 -> 778365 | J100: =WINEP_Inputs!CS95 -> 0 | K100: =WINEP_Inputs!CT95 -> 0 | L100: =WINEP_Inputs!CU95 -> 1 | M100: =WINEP_Inputs!CV95 -> WWN | N100: 0
C101: =WINEP_Inputs!A96 -> YOR00968 | D101: =WINEP_Inputs!J96 -> 7YW200912 | E101: =WINEP_Inputs!K96 -> BENTLEY/STW P Removal | F101: =WINEP_Inputs!CW96 -> £ per km LORI | G101: =WINEP_Inputs!CX96 -> 1e-06 | I101: =WINEP_Inputs!CR96 -> 778365 | J101: =WINEP_Inputs!CS96 -> 0 | K101: =WINEP_Inputs!CT96 -> 0 | L101: =WINEP_Inputs!CU96 -> 1 | M101: =WINEP_Inputs!CV96 -> WWN | N101: 0
C102: =WINEP_Inputs!A97 -> YOR00969 | D102: =WINEP_Inputs!J97 -> 7YW200913 | E102: =WINEP_Inputs!K97 -> BLACKBURN MEADOWS/STW | F102: =WINEP_Inputs!CW97 -> £ per km LORI | G102: =WINEP_Inputs!CX97 -> 1e-06 | I102: =WINEP_Inputs!CR97 -> 778365 | J102: =WINEP_Inputs!CS97 -> 0 | K102: =WINEP_Inputs!CT97 -> 0 | L102: =WINEP_Inputs!CU97 -> 1 | M102: =WINEP_Inputs!CV97 -> WWN | N102: 0
C103: =WINEP_Inputs!A98 -> YOR00970 | D103: =WINEP_Inputs!J98 -> 7YW200914 | E103: =WINEP_Inputs!K98 -> BOLSOVER/STW | F103: =WINEP_Inputs!CW98 -> £ per km LORI | G103: =WINEP_Inputs!CX98 -> 1e-06 | I103: =WINEP_Inputs!CR98 -> 778365 | J103: =WINEP_Inputs!CS98 -> 0 | K103: =WINEP_Inputs!CT98 -> 0 | L103: =WINEP_Inputs!CU98 -> 1 | M103: =WINEP_Inputs!CV98 -> WWN | N103: 0
C104: =WINEP_Inputs!A99 -> YOR00971 | D104: =WINEP_Inputs!J99 -> 7YW200915 | E104: =WINEP_Inputs!K99 -> BOLTON ON DEARNE/STW | F104: =WINEP_Inputs!CW99 -> £ per km LORI | G104: =WINEP_Inputs!CX99 -> 1e-06 | I104: =WINEP_Inputs!CR99 -> 502014 | J104: =WINEP_Inputs!CS99 -> 5.862 | K104: =WINEP_Inputs!CT99 -> 5.862 | L104: =WINEP_Inputs!CU99 -> 1 | M104: =WINEP_Inputs!CV99 -> WWN | N104: 1
C105: =WINEP_Inputs!A100 -> YOR00972 | D105: =WINEP_Inputs!J100 -> 7YW200916 | E105: =WINEP_Inputs!K100 -> BRADFORD ESHOLT/NO 2 STW | F105: =WINEP_Inputs!CW100 -> £ per km LORI | G105: =WINEP_Inputs!CX100 -> 1e-06 | I105: =WINEP_Inputs!CR100 -> 778365 | J105: =WINEP_Inputs!CS100 -> 0 | K105: =WINEP_Inputs!CT100 -> 0 | L105: =WINEP_Inputs!CU100 -> 1 | M105: =WINEP_Inputs!CV100 -> WWN | N105: 0
C106: =WINEP_Inputs!A101 -> YOR00973 | D106: =WINEP_Inputs!J101 -> 7YW200917 | E106: =WINEP_Inputs!K101 -> CALDER VALE/STW | F106: =WINEP_Inputs!CW101 -> £ per km LORI | G106: =WINEP_Inputs!CX101 -> 1e-06 | I106: =WINEP_Inputs!CR101 -> 778365 | J106: =WINEP_Inputs!CS101 -> 0 | K106: =WINEP_Inputs!CT101 -> 0 | L106: =WINEP_Inputs!CU101 -> 1 | M106: =WINEP_Inputs!CV101 -> WWN | N106: 0
C107: =WINEP_Inputs!A102 -> YOR00974 | D107: =WINEP_Inputs!J102 -> 7YW200918 | E107: =WINEP_Inputs!K102 -> CASTLEFORD/STW | F107: =WINEP_Inputs!CW102 -> £ per km LORI | G107: =WINEP_Inputs!CX102 -> 1e-06 | I107: =WINEP_Inputs!CR102 -> 778365 | J107: =WINEP_Inputs!CS102 -> 5.297 | K107: =WINEP_Inputs!CT102 -> 5.297 | L107: =WINEP_Inputs!CU102 -> 1 | M107: =WINEP_Inputs!CV102 -> WWN | N107: 1
C108: =WINEP_Inputs!A103 -> YOR00975 | D108: =WINEP_Inputs!J103 -> 7YW200919 | E108: =WINEP_Inputs!K103 -> CHEESEBOTTOM STW | F108: =WINEP_Inputs!CW103 -> £ per km LORI | G108: =WINEP_Inputs!CX103 -> 1e-06 | I108: =WINEP_Inputs!CR103 -> 778365 | J108: =WINEP_Inputs!CS103 -> 0 | K108: =WINEP_Inputs!CT103 -> 0 | L108: =WINEP_Inputs!CU103 -> 1 | M108: =WINEP_Inputs!CV103 -> WWN | N108: 0
C109: =WINEP_Inputs!A104 -> YOR00976 | D109: =WINEP_Inputs!J104 -> 7YW200920 | E109: =WINEP_Inputs!K104 -> CLAYTON WEST/STW | F109: =WINEP_Inputs!CW104 -> £ per km LORI | G109: =WINEP_Inputs!CX104 -> 1e-06 | I109: =WINEP_Inputs!CR104 -> 778365 | J109: =WINEP_Inputs!CS104 -> 0 | K109: =WINEP_Inputs!CT104 -> 0 | L109: =WINEP_Inputs!CU104 -> 1 | M109: =WINEP_Inputs!CV104 -> WWN | N109: 0
C110: =WINEP_Inputs!A105 -> YOR00977 | D110: =WINEP_Inputs!J105 -> 7YW200921 | E110: =WINEP_Inputs!K105 -> DARTON/STW | F110: =WINEP_Inputs!CW105 -> £ per km LORI | G110: =WINEP_Inputs!CX105 -> 1e-06 | I110: =WINEP_Inputs!CR105 -> 502014 | J110: =WINEP_Inputs!CS105 -> 7.718 | K110: =WINEP_Inputs!CT105 -> 7.718 | L110: =WINEP_Inputs!CU105 -> 1 | M110: =WINEP_Inputs!CV105 -> WWN | N110: 1
C111: =WINEP_Inputs!A106 -> YOR00978 | D111: =WINEP_Inputs!J106 -> 7YW200922 | E111: =WINEP_Inputs!K106 -> DENABY WTW | F111: =WINEP_Inputs!CW106 -> £ per km LORI | G111: =WINEP_Inputs!CX106 -> 1e-06 | I111: =WINEP_Inputs!CR106 -> 778365 | J111: =WINEP_Inputs!CS106 -> 0 | K111: =WINEP_Inputs!CT106 -> 0 | L111: =WINEP_Inputs!CU106 -> 1 | M111: =WINEP_Inputs!CV106 -> WWN | N111: 0
C112: =WINEP_Inputs!A107 -> YOR00979 | D112: =WINEP_Inputs!J107 -> 7YW200923 | E112: =WINEP_Inputs!K107 -> DEWSBURY/STW | F112: =WINEP_Inputs!CW107 -> £ per km LORI | G112: =WINEP_Inputs!CX107 -> 1e-06 | I112: =WINEP_Inputs!CR107 -> 778365 | J112: =WINEP_Inputs!CS107 -> 0 | K112: =WINEP_Inputs!CT107 -> 0 | L112: =WINEP_Inputs!CU107 -> 1 | M112: =WINEP_Inputs!CV107 -> WWN | N112: 0
C113: =WINEP_Inputs!A108 -> YOR00980 | D113: =WINEP_Inputs!J108 -> 7YW200924 | E113: =WINEP_Inputs!K108 -> DOWLEY GAP (BINGLEY) | F113: =WINEP_Inputs!CW108 -> £ per km LORI | G113: =WINEP_Inputs!CX108 -> 1e-06 | I113: =WINEP_Inputs!CR108 -> 778365 | J113: =WINEP_Inputs!CS108 -> 0 | K113: =WINEP_Inputs!CT108 -> 0 | L113: =WINEP_Inputs!CU108 -> 1 | M113: =WINEP_Inputs!CV108 -> WWN | N113: 0
C114: =WINEP_Inputs!A109 -> YOR00981 | D114: =WINEP_Inputs!J109 -> 7YW200925 | E114: =WINEP_Inputs!K109 -> DRONFIELD/STW | F114: =WINEP_Inputs!CW109 -> £ per km LORI | G114: =WINEP_Inputs!CX109 -> 1e-06 | I114: =WINEP_Inputs!CR109 -> 778365 | J114: =WINEP_Inputs!CS109 -> 0 | K114: =WINEP_Inputs!CT109 -> 0 | L114: =WINEP_Inputs!CU109 -> 1 | M114: =WINEP_Inputs!CV109 -> WWN | N114: 0
C115: =WINEP_Inputs!A110 -> YOR00982 | D115: =WINEP_Inputs!J110 -> 7YW200926 | E115: =WINEP_Inputs!K110 -> OWLWOOD (GARFORTH) STW | F115: =WINEP_Inputs!CW110 -> £ per km LORI | G115: =WINEP_Inputs!CX110 -> 1e-06 | I115: =WINEP_Inputs!CR110 -> 778365 | J115: =WINEP_Inputs!CS110 -> 0 | K115: =WINEP_Inputs!CT110 -> 0 | L115: =WINEP_Inputs!CU110 -> 1 | M115: =WINEP_Inputs!CV110 -> WWN | N115: 0
C116: =WINEP_Inputs!A111 -> YOR00983 | D116: =WINEP_Inputs!J111 -> 7YW200927 | E116: =WINEP_Inputs!K111 -> GRIMETHORPE/STW | F116: =WINEP_Inputs!CW111 -> £ per km LORI | G116: =WINEP_Inputs!CX111 -> 1e-06 | I116: =WINEP_Inputs!CR111 -> 778365 | J116: =WINEP_Inputs!CS111 -> 0 | K116: =WINEP_Inputs!CT111 -> 0 | L116: =WINEP_Inputs!CU111 -> 1 | M116: =WINEP_Inputs!CV111 -> WWN | N116: 0
C117: =WINEP_Inputs!A112 -> YOR00984 | D117: =WINEP_Inputs!J112 -> 7YW200928 | E117: =WINEP_Inputs!K112 -> HARROGATE SOUTH/STW | F117: =WINEP_Inputs!CW112 -> £ per km LORI | G117: =WINEP_Inputs!CX112 -> 1e-06 | I117: =WINEP_Inputs!CR112 -> 778365 | J117: =WINEP_Inputs!CS112 -> 0 | K117: =WINEP_Inputs!CT112 -> 0 | L117: =WINEP_Inputs!CU112 -> 1 | M117: =WINEP_Inputs!CV112 -> WWN | N117: 0
C118: =WINEP_Inputs!A113 -> YOR00985 | D118: =WINEP_Inputs!J113 -> 7YW200929 | E118: =WINEP_Inputs!K113 -> HORBURY (DUDFLEET) STW | F118: =WINEP_Inputs!CW113 -> £ per km LORI | G118: =WINEP_Inputs!CX113 -> 1e-06 | I118: =WINEP_Inputs!CR113 -> 778365 | J118: =WINEP_Inputs!CS113 -> 0 | K118: =WINEP_Inputs!CT113 -> 0 | L118: =WINEP_Inputs!CU113 -> 1 | M118: =WINEP_Inputs!CV113 -> WWN | N118: 0
C119: =WINEP_Inputs!A114 -> YOR00986 | D119: =WINEP_Inputs!J114 -> 7YW200930 | E119: =WINEP_Inputs!K114 -> HUDDERSFIELD STW Cooper Bridge | F119: =WINEP_Inputs!CW114 -> £ per km LORI | G119: =WINEP_Inputs!CX114 -> 1e-06 | I119: =WINEP_Inputs!CR114 -> 778365 | J119: =WINEP_Inputs!CS114 -> 0 | K119: =WINEP_Inputs!CT114 -> 0 | L119: =WINEP_Inputs!CU114 -> 1 | M119: =WINEP_Inputs!CV114 -> WWN | N119: 0
C120: =WINEP_Inputs!A115 -> YOR00987 | D120: =WINEP_Inputs!J115 -> 7YW200931 | E120: =WINEP_Inputs!K115 -> KNOSTROP WWTW | F120: =WINEP_Inputs!CW115 -> £ per km LORI | G120: =WINEP_Inputs!CX115 -> 1e-06 | I120: =WINEP_Inputs!CR115 -> 778365 | J120: =WINEP_Inputs!CS115 -> 0 | K120: =WINEP_Inputs!CT115 -> 0 | L120: =WINEP_Inputs!CU115 -> 1 | M120: =WINEP_Inputs!CV115 -> WWN | N120: 0
C121: =WINEP_Inputs!A116 -> YOR00988 | D121: =WINEP_Inputs!J116 -> 7YW200932 | E121: =WINEP_Inputs!K116 -> LEMONROYD STW | F121: =WINEP_Inputs!CW116 -> £ per km LORI | G121: =WINEP_Inputs!CX116 -> 1e-06 | I121: =WINEP_Inputs!CR116 -> 778365 | J121: =WINEP_Inputs!CS116 -> 0 | K121: =WINEP_Inputs!CT116 -> 0 | L121: =WINEP_Inputs!CU116 -> 1 | M121: =WINEP_Inputs!CV116 -> WWN | N121: 0
C122: =WINEP_Inputs!A117 -> YOR00989 | D122: =WINEP_Inputs!J117 -> 7YW200933 | E122: =WINEP_Inputs!K117 -> LONG LANE/STW | F122: =WINEP_Inputs!CW117 -> £ per km LORI | G122: =WINEP_Inputs!CX117 -> 1e-06 | I122: =WINEP_Inputs!CR117 -> 778365 | J122: =WINEP_Inputs!CS117 -> 0 | K122: =WINEP_Inputs!CT117 -> 0 | L122: =WINEP_Inputs!CU117 -> 1 | M122: =WINEP_Inputs!CV117 -> WWN | N122: 0
C123: =WINEP_Inputs!A118 -> YOR00990 | D123: =WINEP_Inputs!J118 -> 7YW200934 | E123: =WINEP_Inputs!K118 -> LUNDWOOD STW | F123: =WINEP_Inputs!CW118 -> £ per km LORI | G123: =WINEP_Inputs!CX118 -> 1e-06 | I123: =WINEP_Inputs!CR118 -> 502014 | J123: =WINEP_Inputs!CS118 -> 2.015 | K123: =WINEP_Inputs!CT118 -> 2.015 | L123: =WINEP_Inputs!CU118 -> 1 | M123: =WINEP_Inputs!CV118 -> WWN | N123: 1
C124: =WINEP_Inputs!A119 -> YOR00991 | D124: =WINEP_Inputs!J119 -> 7YW200935 | E124: =WINEP_Inputs!K119 -> NORMANTON/STW (Mill Lane) | F124: =WINEP_Inputs!CW119 -> £ per km LORI | G124: =WINEP_Inputs!CX119 -> 1e-06 | I124: =WINEP_Inputs!CR119 -> 778365 | J124: =WINEP_Inputs!CS119 -> 0 | K124: =WINEP_Inputs!CT119 -> 0 | L124: =WINEP_Inputs!CU119 -> 1 | M124: =WINEP_Inputs!CV119 -> WWN | N124: 0
C125: =WINEP_Inputs!A120 -> YOR00992 | D125: =WINEP_Inputs!J120 -> 7YW200936 | E125: =WINEP_Inputs!K120 -> Norton (Askern) WwTW | F125: =WINEP_Inputs!CW120 -> £ per km LORI | G125: =WINEP_Inputs!CX120 -> 1e-06 | I125: =WINEP_Inputs!CR120 -> 778365 | J125: =WINEP_Inputs!CS120 -> 0 | K125: =WINEP_Inputs!CT120 -> 0 | L125: =WINEP_Inputs!CU120 -> 1 | M125: =WINEP_Inputs!CV120 -> WWN | N125: 0
C126: =WINEP_Inputs!A121 -> YOR00993 | D126: =WINEP_Inputs!J121 -> 7YW200937 | E126: =WINEP_Inputs!K121 -> Old Whittington (Chesterfield) STW | F126: =WINEP_Inputs!CW121 -> £ per km LORI | G126: =WINEP_Inputs!CX121 -> 1e-06 | I126: =WINEP_Inputs!CR121 -> 778365 | J126: =WINEP_Inputs!CS121 -> 0 | K126: =WINEP_Inputs!CT121 -> 0 | L126: =WINEP_Inputs!CU121 -> 1 | M126: =WINEP_Inputs!CV121 -> WWN | N126: 0
C127: =WINEP_Inputs!A122 -> YOR00994 | D127: =WINEP_Inputs!J122 -> 7YW200938 | E127: =WINEP_Inputs!K122 -> SANDALL/STW | F127: =WINEP_Inputs!CW122 -> £ per km LORI | G127: =WINEP_Inputs!CX122 -> 1e-06 | I127: =WINEP_Inputs!CR122 -> 502014 | J127: =WINEP_Inputs!CS122 -> 14.064 | K127: =WINEP_Inputs!CT122 -> 14.064 | L127: =WINEP_Inputs!CU122 -> 1 | M127: =WINEP_Inputs!CV122 -> WWN | N127: 1
C128: =WINEP_Inputs!A123 -> YOR00995 | D128: =WINEP_Inputs!J123 -> 7YW200939 | E128: =WINEP_Inputs!K123 -> SHERBURN IN ELMET/STW | F128: =WINEP_Inputs!CW123 -> £ per km LORI | G128: =WINEP_Inputs!CX123 -> 1e-06 | I128: =WINEP_Inputs!CR123 -> 778365 | J128: =WINEP_Inputs!CS123 -> 0 | K128: =WINEP_Inputs!CT123 -> 0 | L128: =WINEP_Inputs!CU123 -> 1 | M128: =WINEP_Inputs!CV123 -> WWN | N128: 0
C129: =WINEP_Inputs!A124 -> YOR00996 | D129: =WINEP_Inputs!J124 -> 7YW200940 | E129: =WINEP_Inputs!K124 -> SNAITH/STW | F129: =WINEP_Inputs!CW124 -> £ per km LORI | G129: =WINEP_Inputs!CX124 -> 1e-06 | I129: =WINEP_Inputs!CR124 -> 502014 | J129: =WINEP_Inputs!CS124 -> 15.475 | K129: =WINEP_Inputs!CT124 -> 15.475 | L129: =WINEP_Inputs!CU124 -> 1 | M129: =WINEP_Inputs!CV124 -> WWN | N129: 1
C130: =WINEP_Inputs!A125 -> YOR00997 | D130: =WINEP_Inputs!J125 -> 7YW200941 | E130: =WINEP_Inputs!K125 -> SOUTH ELMSALL/STW | F130: =WINEP_Inputs!CW125 -> £ per km LORI | G130: =WINEP_Inputs!CX125 -> 1e-06 | I130: =WINEP_Inputs!CR125 -> 778365 | J130: =WINEP_Inputs!CS125 -> 0 | K130: =WINEP_Inputs!CT125 -> 0 | L130: =WINEP_Inputs!CU125 -> 1 | M130: =WINEP_Inputs!CV125 -> WWN | N130: 0
C131: =WINEP_Inputs!A126 -> YOR00998 | D131: =WINEP_Inputs!J126 -> 7YW200942 | E131: =WINEP_Inputs!K126 -> Stanley (Smalley Bight) STW | F131: =WINEP_Inputs!CW126 -> £ per km LORI | G131: =WINEP_Inputs!CX126 -> 1e-06 | I131: =WINEP_Inputs!CR126 -> 778365 | J131: =WINEP_Inputs!CS126 -> 0 | K131: =WINEP_Inputs!CT126 -> 0 | L131: =WINEP_Inputs!CU126 -> 1 | M131: =WINEP_Inputs!CV126 -> WWN | N131: 0
C132: =WINEP_Inputs!A127 -> YOR00999 | D132: =WINEP_Inputs!J127 -> 7YW200943 | E132: =WINEP_Inputs!K127 -> STAVELEY/STW | F132: =WINEP_Inputs!CW127 -> £ per km LORI | G132: =WINEP_Inputs!CX127 -> 1e-06 | I132: =WINEP_Inputs!CR127 -> 778365 | J132: =WINEP_Inputs!CS127 -> 0 | K132: =WINEP_Inputs!CT127 -> 0 | L132: =WINEP_Inputs!CU127 -> 1 | M132: =WINEP_Inputs!CV127 -> WWN | N132: 0
C133: =WINEP_Inputs!A128 -> YOR01000 | D133: =WINEP_Inputs!J128 -> 7YW200944 | E133: =WINEP_Inputs!K128 -> STOCKSBRIDGE/STW | F133: =WINEP_Inputs!CW128 -> £ per km LORI | G133: =WINEP_Inputs!CX128 -> 1e-06 | I133: =WINEP_Inputs!CR128 -> 778365 | J133: =WINEP_Inputs!CS128 -> 0 | K133: =WINEP_Inputs!CT128 -> 0 | L133: =WINEP_Inputs!CU128 -> 1 | M133: =WINEP_Inputs!CV128 -> WWN | N133: 0
C134: =WINEP_Inputs!A129 -> YOR01001 | D134: =WINEP_Inputs!J129 -> 7YW200945 | E134: =WINEP_Inputs!K129 -> SUTTON WWTW | F134: =WINEP_Inputs!CW129 -> £ per km LORI | G134: =WINEP_Inputs!CX129 -> 1e-06 | I134: =WINEP_Inputs!CR129 -> 778365 | J134: =WINEP_Inputs!CS129 -> 0 | K134: =WINEP_Inputs!CT129 -> 0 | L134: =WINEP_Inputs!CU129 -> 1 | M134: =WINEP_Inputs!CV129 -> WWN | N134: 0
C135: =WINEP_Inputs!A130 -> YOR01002 | D135: =WINEP_Inputs!J130 -> 7YW200946 | E135: =WINEP_Inputs!K130 -> TUPTON/STW | F135: =WINEP_Inputs!CW130 -> £ per km LORI | G135: =WINEP_Inputs!CX130 -> 1e-06 | I135: =WINEP_Inputs!CR130 -> 778365 | J135: =WINEP_Inputs!CS130 -> 0 | K135: =WINEP_Inputs!CT130 -> 0 | L135: =WINEP_Inputs!CU130 -> 1 | M135: =WINEP_Inputs!CV130 -> WWN | N135: 0
C136: =WINEP_Inputs!A131 -> YOR01003 | D136: =WINEP_Inputs!J131 -> 7YW200947 | E136: =WINEP_Inputs!K131 -> WOMBWELL/STW | F136: =WINEP_Inputs!CW131 -> £ per km LORI | G136: =WINEP_Inputs!CX131 -> 1e-06 | I136: =WINEP_Inputs!CR131 -> 502014 | J136: =WINEP_Inputs!CS131 -> 5.197 | K136: =WINEP_Inputs!CT131 -> 5.197 | L136: =WINEP_Inputs!CU131 -> 1 | M136: =WINEP_Inputs!CV131 -> WWN | N136: 1
C137: =WINEP_Inputs!A132 -> YOR01004 | D137: =WINEP_Inputs!J132 -> 7YW200948 | E137: =WINEP_Inputs!K132 -> Woodhouse Mill WwTW | F137: =WINEP_Inputs!CW132 -> £ per km LORI | G137: =WINEP_Inputs!CX132 -> 1e-06 | I137: =WINEP_Inputs!CR132 -> 778365 | J137: =WINEP_Inputs!CS132 -> 0 | K137: =WINEP_Inputs!CT132 -> 0 | L137: =WINEP_Inputs!CU132 -> 1 | M137: =WINEP_Inputs!CV132 -> WWN | N137: 0
C138: =WINEP_Inputs!A133 -> YOR01005 | D138: =WINEP_Inputs!J133 -> 7YW200949 | E138: =WINEP_Inputs!K133 -> WORSBROUGH WwTW | F138: =WINEP_Inputs!CW133 -> £ per km LORI | G138: =WINEP_Inputs!CX133 -> 1e-06 | I138: =WINEP_Inputs!CR133 -> 502014 | J138: =WINEP_Inputs!CS133 -> 5.763 | K138: =WINEP_Inputs!CT133 -> 5.763 | L138: =WINEP_Inputs!CU133 -> 1 | M138: =WINEP_Inputs!CV133 -> WWN | N138: 1
C139: =WINEP_Inputs!A134 -> YOR01006 | D139: =WINEP_Inputs!J134 -> 7YW200950 | E139: =WINEP_Inputs!K134 -> HIGH ROYD NO 2 STW | F139: =WINEP_Inputs!CW134 -> £ per km LORI | G139: =WINEP_Inputs!CX134 -> 1e-06 | I139: =WINEP_Inputs!CR134 -> 778365 | J139: =WINEP_Inputs!CS134 -> 0 | K139: =WINEP_Inputs!CT134 -> 0 | L139: =WINEP_Inputs!CU134 -> 1 | M139: =WINEP_Inputs!CV134 -> WWN | N139: 0
C140: =WINEP_Inputs!A135 -> YOR01007 | D140: =WINEP_Inputs!J135 -> 7YW200951 | E140: =WINEP_Inputs!K135 -> EASTWOOD/STW | F140: =WINEP_Inputs!CW135 -> £ per km LORI | G140: =WINEP_Inputs!CX135 -> 1e-06 | I140: =WINEP_Inputs!CR135 -> 778365 | J140: =WINEP_Inputs!CS135 -> 0 | K140: =WINEP_Inputs!CT135 -> 0 | L140: =WINEP_Inputs!CU135 -> 1 | M140: =WINEP_Inputs!CV135 -> WWN | N140: 0
C141: =WINEP_Inputs!A136 -> YOR01008 | D141: =WINEP_Inputs!J136 -> 7YW200952 | E141: =WINEP_Inputs!K136 -> HALIFAX COPLEY STW | F141: =WINEP_Inputs!CW136 -> £ per km LORI | G141: =WINEP_Inputs!CX136 -> 1e-06 | I141: =WINEP_Inputs!CR136 -> 778365 | J141: =WINEP_Inputs!CS136 -> 0 | K141: =WINEP_Inputs!CT136 -> 0 | L141: =WINEP_Inputs!CU136 -> 1 | M141: =WINEP_Inputs!CV136 -> WWN | N141: 0
C142: =WINEP_Inputs!A137 -> YOR01009 | D142: =WINEP_Inputs!J137 -> 7YW200953 | E142: =WINEP_Inputs!K137 -> NEILEY NO 2 STW | F142: =WINEP_Inputs!CW137 -> £ per km LORI | G142: =WINEP_Inputs!CX137 -> 1e-06 | I142: =WINEP_Inputs!CR137 -> 778365 | J142: =WINEP_Inputs!CS137 -> 0 | K142: =WINEP_Inputs!CT137 -> 0 | L142: =WINEP_Inputs!CU137 -> 1 | M142: =WINEP_Inputs!CV137 -> WWN | N142: 0
C143: =WINEP_Inputs!A138 -> YOR01010 | D143: =WINEP_Inputs!J138 -> 7YW200954 | E143: =WINEP_Inputs!K138 -> Huddersfield STW Colne Bridge | F143: =WINEP_Inputs!CW138 -> £ per km LORI | G143: =WINEP_Inputs!CX138 -> 1e-06 | I143: =WINEP_Inputs!CR138 -> 502014 | J143: =WINEP_Inputs!CS138 -> 0 | K143: =WINEP_Inputs!CT138 -> 0 | L143: =WINEP_Inputs!CU138 -> 1 | M143: =WINEP_Inputs!CV138 -> WWN | N143: 0
C144: =WINEP_Inputs!A139 -> YOR01011 | D144: =WINEP_Inputs!J139 -> 7YW200955 | E144: =WINEP_Inputs!K139 -> KEIGHLEY MARLEY/STW | F144: =WINEP_Inputs!CW139 -> £ per km LORI | G144: =WINEP_Inputs!CX139 -> 1e-06 | I144: =WINEP_Inputs!CR139 -> 778365 | J144: =WINEP_Inputs!CS139 -> 0 | K144: =WINEP_Inputs!CT139 -> 0 | L144: =WINEP_Inputs!CU139 -> 1 | M144: =WINEP_Inputs!CV139 -> WWN | N144: =IF(K144 = 0, 0, K144 / J144) -> 0
C145: =WINEP_Inputs!A140 -> YOR01012 | D145: =WINEP_Inputs!J140 -> 7YW200956 | E145: =WINEP_Inputs!K140 -> Wath-Upon-Dearne STW | F145: =WINEP_Inputs!CW140 -> £ per km LORI | G145: =WINEP_Inputs!CX140 -> 1e-06 | I145: =WINEP_Inputs!CR140 -> 502014 | J145: =WINEP_Inputs!CS140 -> 1.305 | K145: =WINEP_Inputs!CT140 -> 1.305 | L145: =WINEP_Inputs!CU140 -> 1 | M145: =WINEP_Inputs!CV140 -> WWN | N145: 1
C146: =WINEP_Inputs!A141 -> YOR01013 | D146: =WINEP_Inputs!J141 -> 7YW200957 | E146: =WINEP_Inputs!K141 -> MEXBORO SWINTON/STW | F146: =WINEP_Inputs!CW141 -> £ per km LORI | G146: =WINEP_Inputs!CX141 -> 1e-06 | I146: =WINEP_Inputs!CR141 -> 778365 | J146: =WINEP_Inputs!CS141 -> 0 | K146: =WINEP_Inputs!CT141 -> 0 | L146: =WINEP_Inputs!CU141 -> 1 | M146: =WINEP_Inputs!CV141 -> WWN | N146: 0
C147: =WINEP_Inputs!A142 -> YOR01014 | D147: =WINEP_Inputs!J142 -> 7YW200958 | E147: =WINEP_Inputs!K142 -> THORNE/STW | F147: =WINEP_Inputs!CW142 -> £ per km LORI | G147: =WINEP_Inputs!CX142 -> 1e-06 | I147: =WINEP_Inputs!CR142 -> 502014 | J147: =WINEP_Inputs!CS142 -> 10.301 | K147: =WINEP_Inputs!CT142 -> 10.301 | L147: =WINEP_Inputs!CU142 -> 1 | M147: =WINEP_Inputs!CV142 -> WWN | N147: 1
C148: =WINEP_Inputs!A143 -> YOR01518 | D148: =WINEP_Inputs!J143 -> 7YW201465 | E148: =WINEP_Inputs!K143 -> SKIPTON/STW | F148: =WINEP_Inputs!CW143 -> £ per km LORI | G148: =WINEP_Inputs!CX143 -> 1e-06 | I148: =WINEP_Inputs!CR143 -> 502014 | J148: =WINEP_Inputs!CS143 -> 0 | K148: =WINEP_Inputs!CT143 -> 0 | L148: =WINEP_Inputs!CU143 -> 0 | M148: =WINEP_Inputs!CV143 -> WWN | N148: 0
C149: =WINEP_Inputs!A144 -> YOR00691 | D149: =WINEP_Inputs!J144 -> 7YW300057 | E149: =WINEP_Inputs!K144 -> SOUTH ELMSALL/STW 3X | F149: =WINEP_Inputs!CW144 -> £ per m3 | G149: =WINEP_Inputs!CX144 -> 1e-06 | I149: =WINEP_Inputs!CR144 -> 590 | J149: =WINEP_Inputs!CS144 -> 5340 | K149: =WINEP_Inputs!CT144 -> 5340 | L149: =WINEP_Inputs!CU144 -> 1 | M149: =WINEP_Inputs!CV144 -> WWN | N149: 1
C150: =WINEP_Inputs!A145 -> YOR00697 | D150: =WINEP_Inputs!J145 -> 7YW300058 | E150: =WINEP_Inputs!K145 -> Pudsey intermittents - Smalewell Reach 1 | F150: =WINEP_Inputs!CW145 -> £ per km LORI | G150: =WINEP_Inputs!CX145 -> 1e-06 | I150: =WINEP_Inputs!CR145 -> 590 | J150: =WINEP_Inputs!CS145 -> 0 | K150: =WINEP_Inputs!CT145 -> 0 | L150: =WINEP_Inputs!CU145 -> 0 | M150: =WINEP_Inputs!CV145 -> WWN | N150: 0
C151: =WINEP_Inputs!A146 -> YOR01524 | D151: =WINEP_Inputs!J146 -> 7YW300059 | E151: =WINEP_Inputs!K146 -> Bentley Mill Stream intermittents - BentleyMill Rise SPS | F151: =WINEP_Inputs!CW146 -> £ per km LORI | G151: =WINEP_Inputs!CX146 -> 1e-06 | I151: =WINEP_Inputs!CR146 -> 2933301 | J151: =WINEP_Inputs!CS146 -> 0.39 | K151: =WINEP_Inputs!CT146 -> - | L151: =WINEP_Inputs!CU146 -> 1 | M151: =WINEP_Inputs!CV146 -> WWN
C152: =WINEP_Inputs!A147 -> YOR01525 | D152: =WINEP_Inputs!J147 -> 7YW300060 | E152: =WINEP_Inputs!K147 -> West Bretton storm tank discharge Transfer to NGR 429884,412035 | F152: =WINEP_Inputs!CW147 -> £ per km LORI | G152: =WINEP_Inputs!CX147 -> 1e-06 | I152: =WINEP_Inputs!CR147 -> 2933301 | J152: =WINEP_Inputs!CS147 -> 0 | K152: =WINEP_Inputs!CT147 -> 0 | L152: =WINEP_Inputs!CU147 -> 1 | M152: =WINEP_Inputs!CV147 -> WWN | N152: 0
C153: =WINEP_Inputs!A148 -> YOR01526 | D153: =WINEP_Inputs!J148 -> 7YW300061 | E153: =WINEP_Inputs!K148 -> CLAYTON WEST/STW Final Effluent Transfer to NGR 429884,412035 | F153: =WINEP_Inputs!CW148 -> £ per km LORI | G153: =WINEP_Inputs!CX148 -> 1e-06 | I153: =WINEP_Inputs!CR148 -> 2933301 | J153: =WINEP_Inputs!CS148 -> 5.76 | K153: =WINEP_Inputs!CT148 -> 5.76 | L153: =WINEP_Inputs!CU148 -> 1 | M153: =WINEP_Inputs!CV148 -> WWN | N153: 1
C154: =WINEP_Inputs!A149 -> YOR01527 | D154: =WINEP_Inputs!J149 -> 7YW300062 | E154: =WINEP_Inputs!K149 -> West Bretton Final Effluent Transfer to NGR 429884,412035 | F154: =WINEP_Inputs!CW149 -> £ per km LORI | G154: =WINEP_Inputs!CX149 -> 1e-06 | I154: =WINEP_Inputs!CR149 -> 2933301 | J154: =WINEP_Inputs!CS149 -> 0.75 | K154: =WINEP_Inputs!CT149 -> 0 | L154: =WINEP_Inputs!CU149 -> 1 | M154: =WINEP_Inputs!CV149 -> WWN | N154: 0
C155: =WINEP_Inputs!A150 -> YOR01531 | D155: =WINEP_Inputs!J150 -> 7YW300066 | E155: =WINEP_Inputs!K150 -> Pudsey intermittents - Dick Lane | F155: =WINEP_Inputs!CW150 -> £ per m3 | G155: =WINEP_Inputs!CX150 -> 1e-06 | I155: =WINEP_Inputs!CR150 -> 590 | J155: =WINEP_Inputs!CS150 -> 3000 | K155: =WINEP_Inputs!CT150 -> 3000 | L155: =WINEP_Inputs!CU150 -> 1 | M155: =WINEP_Inputs!CV150 -> WWN | N155: 1
C156: =WINEP_Inputs!A151 -> YOR01532 | D156: =WINEP_Inputs!J151 -> 7YW300067 | E156: =WINEP_Inputs!K151 -> Pudsey intermittents - Dale Farm | F156: =WINEP_Inputs!CW151 -> £ per m3 | G156: =WINEP_Inputs!CX151 -> 1e-06 | I156: =WINEP_Inputs!CR151 -> 590 | J156: =WINEP_Inputs!CS151 -> 250 | K156: =WINEP_Inputs!CT151 -> 250 | L156: =WINEP_Inputs!CU151 -> 1 | M156: =WINEP_Inputs!CV151 -> WWN | N156: 1
C157: =WINEP_Inputs!A152 -> YOR01533 | D157: =WINEP_Inputs!J152 -> 7YW300068 | E157: =WINEP_Inputs!K152 -> Pudsey intermittents - Hough Side Works | F157: =WINEP_Inputs!CW152 -> £ per m3 | G157: =WINEP_Inputs!CX152 -> 1e-06 | I157: =WINEP_Inputs!CR152 -> 590 | J157: =WINEP_Inputs!CS152 -> 25000 | K157: =WINEP_Inputs!CT152 -> 0 | L157: =WINEP_Inputs!CU152 -> 1 | M157: =WINEP_Inputs!CV152 -> WWN | N157: 0
C158: =WINEP_Inputs!A153 -> YOR01534 | D158: =WINEP_Inputs!J153 -> 7YW300069 | E158: =WINEP_Inputs!K153 -> Pudsey intermittents - Gaint Road (Kent Road) | F158: =WINEP_Inputs!CW153 -> £ per m3 | G158: =WINEP_Inputs!CX153 -> 1e-06 | I158: =WINEP_Inputs!CR153 -> 590 | J158: =WINEP_Inputs!CS153 -> 2500 | K158: =WINEP_Inputs!CT153 -> 0 | L158: =WINEP_Inputs!CU153 -> 1 | M158: =WINEP_Inputs!CV153 -> WWN | N158: 0
C159: =WINEP_Inputs!A154 -> YOR01535 | D159: =WINEP_Inputs!J154 -> 7YW300070 | E159: =WINEP_Inputs!K154 -> Pudsey intermittents - Smalewell Reach 1 | F159: =WINEP_Inputs!CW154 -> £ per m3 | G159: =WINEP_Inputs!CX154 -> 1e-06 | I159: =WINEP_Inputs!CR154 -> 590 | J159: =WINEP_Inputs!CS154 -> 7500 | K159: =WINEP_Inputs!CT154 -> 0 | L159: =WINEP_Inputs!CU154 -> 1 | M159: =WINEP_Inputs!CV154 -> WWN | N159: 0
C160: =WINEP_Inputs!A155 -> YOR01549 | D160: =WINEP_Inputs!J155 -> 7YW300636 | E160: =WINEP_Inputs!K155 -> BENTLEY/STW storm discharge transfer to NGR 458119 405197 | F160: =WINEP_Inputs!CW155 -> £ per km LORI | G160: =WINEP_Inputs!CX155 -> 1e-06 | I160: =WINEP_Inputs!CR155 -> 2933301 | J160: =WINEP_Inputs!CS155 -> 0 | K160: =WINEP_Inputs!CT155 -> 0 | L160: =WINEP_Inputs!CU155 -> 1 | M160: =WINEP_Inputs!CV155 -> WWN | N160: 0
C161: =WINEP_Inputs!A156 -> 0 | D161: =WINEP_Inputs!J156 -> 0 | E161: =WINEP_Inputs!K156 -> 0 | F161: =WINEP_Inputs!CW156 -> 0 | G161: =WINEP_Inputs!CX156 -> 0 | I161: =WINEP_Inputs!CR156 -> 0 | J161: =WINEP_Inputs!CS156 -> 0 | K161: =WINEP_Inputs!CT156 -> 0 | L161: =WINEP_Inputs!CU156 ->  | M161: =WINEP_Inputs!CV156 -> 0 | N161: 0
C162: =WINEP_Inputs!A157 -> 0 | D162: =WINEP_Inputs!J157 -> 0 | E162: =WINEP_Inputs!K157 -> 0 | F162: =WINEP_Inputs!CW157 -> 0 | G162: =WINEP_Inputs!CX157 -> 0 | I162: =WINEP_Inputs!CR157 -> 0 | J162: =WINEP_Inputs!CS157 -> 0 | K162: =WINEP_Inputs!CT157 -> 0 | L162: =WINEP_Inputs!CU157 -> 0 | M162: =WINEP_Inputs!CV157 -> 0 | N162: 0
C163: =WINEP_Inputs!A158 -> 0 | D163: =WINEP_Inputs!J158 -> 0 | E163: =WINEP_Inputs!K158 -> 0 | F163: =WINEP_Inputs!CW158 -> 0 | G163: =WINEP_Inputs!CX158 -> 0 | I163: =WINEP_Inputs!CR158 -> 0 | J163: =WINEP_Inputs!CS158 -> 0 | K163: =WINEP_Inputs!CT158 -> 0 | L163: =WINEP_Inputs!CU158 -> 0 | M163: =WINEP_Inputs!CV158 -> 0 | N163: 0
C164: =WINEP_Inputs!A159 -> 0 | D164: =WINEP_Inputs!J159 -> 0 | E164: =WINEP_Inputs!K159 -> 0 | F164: =WINEP_Inputs!CW159 -> 0 | G164: =WINEP_Inputs!CX159 -> 0 | I164: =WINEP_Inputs!CR159 -> 0 | J164: =WINEP_Inputs!CS159 -> 0 | K164: =WINEP_Inputs!CT159 -> 0 | L164: =WINEP_Inputs!CU159 -> 0 | M164: =WINEP_Inputs!CV159 -> 0 | N164: 0
C165: =WINEP_Inputs!A160 -> 0 | D165: =WINEP_Inputs!J160 -> 0 | E165: =WINEP_Inputs!K160 -> 0 | F165: =WINEP_Inputs!CW160 -> 0 | G165: =WINEP_Inputs!CX160 -> 0 | I165: =WINEP_Inputs!CR160 -> 0 | J165: =WINEP_Inputs!CS160 -> 0 | K165: =WINEP_Inputs!CT160 -> 0 | L165: =WINEP_Inputs!CU160 -> 0 | M165: =WINEP_Inputs!CV160 -> 0 | N165: 0
A167: End of sheet

Sheet WINEP_Allowance
A1: =RIGHT(CELL("filename", $A$1), LEN(CELL("filename", $A$1)) - SEARCH("]", CELL("filename", $A$1))) -> WINEP_Allowance
F2: =Check!F2 -> 0 | G2: Checks
F3: =Check!F3 -> 5 | G3: Track chgs
A5: CALCULATION OF ADJUSTED ALLOWED COST FOR CONFIRMED SCHEMES
A7: List of Amber Schemes
B8: Calculate the adjusted allowed cost per scheme, £m and the WINEP reconciliation per control, £m
R9: WR | S9: WN | T9: WWN | U9: BR | V9: DMY
C10: =WINEP_Schemes!C9 -> WINEPID | D10: =WINEP_Schemes!D9 -> Unique ID | E10: =WINEP_Schemes!E9 -> Scheme category / name | F10: =WINEP_Schemes!F9 -> Unit | G10: =WINEP_Schemes!G9 -> Unit Conversion to £m | H10: =WINEP_Schemes!H9 -> 0 | I10: =WINEP_Schemes!J9 -> Quantity in PR19 FD | J10: =WINEP_Schemes!I9 -> Allowed totex unit rate | K10: =WINEP_Schemes!K9 -> Quantity Delivered | L10: =WINEP_Schemes!L9 -> 1 = In FD, funded 0 = In FD, not funded | M10: =WINEP_Schemes!M9 -> Price Control | N10: =WINEP_Schemes!N9 -> Proportion Confirmed | O10: FD Allowance, £m | P10: Adjusted Allowance (Delivered), £m | Q10: WINEP Reconciliation, £m | R10: Water Resources £m | S10: Water Network £m | T10: Wastewater Network £m | U10: Bioresources £m | V10: Dummy £m
C11: =WINEP_Schemes!C10 -> YOR00025 | D11: =WINEP_Schemes!D10 -> 7YW100089 | E11: =WINEP_Schemes!E10 -> Little Don Catchment Scheme | F11: =WINEP_Schemes!F10 -> £ per km LORI | G11: =WINEP_Schemes!G10 -> 1e-06 | H11: =WINEP_Schemes!H10 -> 0 | I11: =WINEP_Schemes!J10 -> 3.05 | J11: =WINEP_Schemes!I10 -> 80760 | K11: =WINEP_Schemes!K10 -> 3.05 | L11: =WINEP_Schemes!L10 -> 1 | M11: =WINEP_Schemes!M10 -> WR | N11: =WINEP_Schemes!N10 -> 1 | O11: =I11 * J11 * G11 -> 0.246318 | P11: =N11 * O11 -> 0.246318 | Q11: =IF(L11 = 0, P11, (N11 - 1) * O11) -> 0 | R11: =IF($M11 = R$9, $Q11, 0) -> 0 | S11: =IF($M11 = S$9, $Q11, 0) -> 0 | T11: =IF($M11 = T$9, $Q11, 0) -> 0 | U11: =IF($M11 = U$9, $Q11, 0) -> 0 | V11: =IF($M11 = V$9, $Q11, 0) -> 0
C12: =WINEP_Schemes!C11 -> YOR00029 | D12: =WINEP_Schemes!D11 -> 7YW100091 | E12: =WINEP_Schemes!E11 -> Winscar Catchment Scheme | F12: =WINEP_Schemes!F11 -> £ per km LORI | G12: =WINEP_Schemes!G11 -> 1e-06 | H12: =WINEP_Schemes!H11 -> 0 | I12: =WINEP_Schemes!J11 -> 11.25 | J12: =WINEP_Schemes!I11 -> 80760 | K12: =WINEP_Schemes!K11 -> 11.25 | L12: =WINEP_Schemes!L11 -> 1 | M12: =WINEP_Schemes!M11 -> WR | N12: =WINEP_Schemes!N11 -> 1 | O12: =I12 * J12 * G12 -> 0.90855 | P12: =N12 * O12 -> 0.90855 | Q12: =IF(L12 = 0, P12, (N12 - 1) * O12) -> 0 | R12: =IF($M12 = R$9, $Q12, 0) -> 0 | S12: 0 | T12: 0 | U12: 0 | V12: 0
C13: =WINEP_Schemes!C12 -> YOR00033 | D13: =WINEP_Schemes!D12 -> 7YW100093 | E13: =WINEP_Schemes!E12 -> Agden River Restoration Scheme | F13: =WINEP_Schemes!F12 -> £ per km LORI | G13: =WINEP_Schemes!G12 -> 1e-06 | H13: =WINEP_Schemes!H12 -> 0 | I13: =WINEP_Schemes!J12 -> 0.44 | J13: =WINEP_Schemes!I12 -> 80760 | K13: =WINEP_Schemes!K12 -> 0.44 | L13: =WINEP_Schemes!L12 -> 1 | M13: =WINEP_Schemes!M12 -> WR | N13: =WINEP_Schemes!N12 -> 1 | O13: =I13 * J13 * G13 -> 0.0355344 | P13: =N13 * O13 -> 0.0355344 | Q13: =IF(L13 = 0, P13, (N13 - 1) * O13) -> 0 | R13: 0 | S13: 0 | T13: 0 | U13: 0 | V13: 0
C14: =WINEP_Schemes!C13 -> YOR00042 | D14: =WINEP_Schemes!D13 -> 7YW100098 | E14: =WINEP_Schemes!E13 -> River Burn Catchment Scheme | F14: =WINEP_Schemes!F13 -> £ per km LORI | G14: =WINEP_Schemes!G13 -> 1e-06 | H14: =WINEP_Schemes!H13 -> 0 | I14: =WINEP_Schemes!J13 -> 6.49 | J14: =WINEP_Schemes!I13 -> 80760 | K14: =WINEP_Schemes!K13 -> 6.49 | L14: =WINEP_Schemes!L13 -> 1 | M14: =WINEP_Schemes!M13 -> WR | N14: =WINEP_Schemes!N13 -> 1 | O14: =I14 * J14 * G14 -> 0.5241324 | P14: =N14 * O14 -> 0.5241324 | Q14: =IF(L14 = 0, P14, (N14 - 1) * O14) -> 0 | R14: 0 | S14: 0 | T14: 0 | U14: 0 | V14: 0
C15: =WINEP_Schemes!C14 -> YOR00044 | D15: =WINEP_Schemes!D14 -> 7YW100098 | E15: =WINEP_Schemes!E14 -> River Burn Catchment Scheme | F15: =WINEP_Schemes!F14 -> £ per km LORI | G15: =WINEP_Schemes!G14 -> 1e-06 | H15: =WINEP_Schemes!H14 -> 0 | I15: =WINEP_Schemes!J14 -> 6.49 | J15: =WINEP_Schemes!I14 -> 80760 | K15: =WINEP_Schemes!K14 -> 6.49 | L15: =WINEP_Schemes!L14 -> 1 | M15: =WINEP_Schemes!M14 -> WR | N15: =WINEP_Schemes!N14 -> 1 | O15: 0.5241324 | P15: 0.5241324 | Q15: 0 | R15: 0 | S15: 0 | T15: 0 | U15: 0 | V15: 0
C16: =WINEP_Schemes!C15 -> YOR00045 | D16: =WINEP_Schemes!D15 -> 7YW100098 | E16: =WINEP_Schemes!E15 -> River Burn Catchment Scheme | F16: =WINEP_Schemes!F15 -> £ per km LORI | G16: =WINEP_Schemes!G15 -> 1e-06 | H16: =WINEP_Schemes!H15 -> 0 | I16: =WINEP_Schemes!J15 -> 6.49 | J16: =WINEP_Schemes!I15 -> 80760 | K16: =WINEP_Schemes!K15 -> 0 | L16: =WINEP_Schemes!L15 -> 1 | M16: =WINEP_Schemes!M15 -> WR | N16: =WINEP_Schemes!N15 -> 0 | O16: 0.5241324 | P16: 0 | Q16: -0.5241324 | R16: -0.5241324 | S16: 0 | T16: 0 | U16: 0 | V16: 0
C17: =WINEP_Schemes!C16 -> YOR00055 | D17: =WINEP_Schemes!D16 -> 7YW100121 | E17: =WINEP_Schemes!E16 -> HARROGATE SOUTH/STW | F17: =WINEP_Schemes!F16 -> £ per km LORI | G17: =WINEP_Schemes!G16 -> 1e-06 | H17: =WINEP_Schemes!H16 -> 0 | I17: =WINEP_Schemes!J16 -> 4.453 | J17: =WINEP_Schemes!I16 -> 778365 | K17: =WINEP_Schemes!K16 -> 4.453 | L17: =WINEP_Schemes!L16 -> 1 | M17: =WINEP_Schemes!M16 -> WWN | N17: =WINEP_Schemes!N16 -> 1 | O17: =I17 * J17 * G17 -> 3.466059345 | P17: =N17 * O17 -> 3.466059345 | Q17: =IF(L17 = 0, P17, (N17 - 1) * O17) -> 0 | R17: 0 | S17: 0 | T17: 0 | U17: 0 | V17: 0
C18: =WINEP_Schemes!C17 -> YOR00059 | D18: =WINEP_Schemes!D17 -> 7YW100125 | E18: =WINEP_Schemes!E17 -> OWLWOOD (GARFORTH) STW | F18: =WINEP_Schemes!F17 -> £ per km LORI | G18: =WINEP_Schemes!G17 -> 1e-06 | H18: =WINEP_Schemes!H17 -> 0 | I18: =WINEP_Schemes!J17 -> 10.028 | J18: =WINEP_Schemes!I17 -> 778365 | K18: =WINEP_Schemes!K17 -> 10.028 | L18: =WINEP_Schemes!L17 -> 1 | M18: =WINEP_Schemes!M17 -> WWN | N18: =WINEP_Schemes!N17 -> 1 | O18: 7.80544422 | P18: 7.80544422 | Q18: 0 | R18: 0 | S18: 0 | T18: 0 | U18: 0 | V18: 0
C19: =WINEP_Schemes!C18 -> YOR00060 | D19: =WINEP_Schemes!D18 -> 7YW100126 | E19: =WINEP_Schemes!E18 -> DRONFIELD/STW | F19: =WINEP_Schemes!F18 -> £ per km LORI | G19: =WINEP_Schemes!G18 -> 1e-06 | H19: =WINEP_Schemes!H18 -> 0 | I19: =WINEP_Schemes!J18 -> 7.854 | J19: =WINEP_Schemes!I18 -> 778365 | K19: =WINEP_Schemes!K18 -> 7.854 | L19: =WINEP_Schemes!L18 -> 1 | M19: =WINEP_Schemes!M18 -> WWN | N19: =WINEP_Schemes!N18 -> 1 | O19: 6.11327871 | P19: 6.11327871 | Q19: 0 | R19: 0 | S19: 0 | T19: 0 | U19: 0 | V19: 0
C20: =WINEP_Schemes!C19 -> YOR00062 | D20: =WINEP_Schemes!D19 -> 7YW100128 | E20: =WINEP_Schemes!E19 -> DANESMOOR/STW | F20: =WINEP_Schemes!F19 -> £ per km LORI | G20: =WINEP_Schemes!G19 -> 1e-06 | H20: =WINEP_Schemes!H19 -> 0 | I20: =WINEP_Schemes!J19 -> 4.864 | J20: =WINEP_Schemes!I19 -> 276351 | K20: =WINEP_Schemes!K19 -> 4.864 | L20: =WINEP_Schemes!L19 -> 1 | M20: =WINEP_Schemes!M19 -> WWN | N20: =WINEP_Schemes!N19 -> 1 | O20: 1.344171264 | P20: 1.344171264 | Q20: 0 | R20: 0 | S20: 0 | T20: 0 | U20: 0 | V20: 0
C21: =WINEP_Schemes!C20 -> YOR00063 | D21: =WINEP_Schemes!D20 -> 7YW100129 | E21: =WINEP_Schemes!E20 -> TUPTON/STW | F21: =WINEP_Schemes!F20 -> £ per km LORI | G21: =WINEP_Schemes!G20 -> 1e-06 | H21: =WINEP_Schemes!H20 -> 0 | I21: =WINEP_Schemes!J20 -> 10.223 | J21: =WINEP_Schemes!I20 -> 778365 | K21: =WINEP_Schemes!K20 -> 0 | L21: =WINEP_Schemes!L20 -> 1 | M21: =WINEP_Schemes!M20 -> WWN | N21: =WINEP_Schemes!N20 -> 0 | O21: 7.957225395 | P21: 0 | Q21: -7.957225395 | R21: 0 | S21: 0 | T21: -7.957225395 | U21: 0 | V21: 0
C22: =WINEP_Schemes!C21 -> YOR00065 | D22: =WINEP_Schemes!D21 -> 7YW100131 | E22: =WINEP_Schemes!E21 -> ACKWORTH/STW | F22: =WINEP_Schemes!F21 -> £ per km LORI | G22: =WINEP_Schemes!G21 -> 1e-06 | H22: =WINEP_Schemes!H21 -> 0 | I22: =WINEP_Schemes!J21 -> 1.583 | J22: =WINEP_Schemes!I21 -> 276351 | K22: =WINEP_Schemes!K21 -> 1.583 | L22: =WINEP_Schemes!L21 -> 1 | M22: =WINEP_Schemes!M21 -> WWN | N22: =WINEP_Schemes!N21 -> 1 | O22: 0.437463633 | P22: 0.437463633 | Q22: 0 | R22: 0 | S22: 0 | T22: 0 | U22: 0 | V22: 0
C23: =WINEP_Schemes!C22 -> YOR00066 | D23: =WINEP_Schemes!D22 -> 7YW100132 | E23: =WINEP_Schemes!E22 -> CARLETON/NO 2 STW | F23: =WINEP_Schemes!F22 -> £ per km LORI | G23: =WINEP_Schemes!G22 -> 1e-06 | H23: =WINEP_Schemes!H22 -> 0 | I23: =WINEP_Schemes!J22 -> 10.103 | J23: =WINEP_Schemes!I22 -> 276351 | K23: =WINEP_Schemes!K22 -> 10.103 | L23: =WINEP_Schemes!L22 -> 1 | M23: =WINEP_Schemes!M22 -> WWN | N23: =WINEP_Schemes!N22 -> 1 | O23: 2.791974153 | P23: 2.791974153 | Q23: 0 | R23: 0 | S23: 0 | T23: 0 | U23: 0 | V23: 0
C24: =WINEP_Schemes!C23 -> YOR00067 | D24: =WINEP_Schemes!D23 -> 7YW100133 | E24: =WINEP_Schemes!E23 -> NORTON (ASKERN) WwTW | F24: =WINEP_Schemes!F23 -> £ per km LORI | G24: =WINEP_Schemes!G23 -> 1e-06 | H24: =WINEP_Schemes!H23 -> 0 | I24: =WINEP_Schemes!J23 -> 13.8 | J24: =WINEP_Schemes!I23 -> 778365 | K24: =WINEP_Schemes!K23 -> 13.8 | L24: =WINEP_Schemes!L23 -> 1 | M24: =WINEP_Schemes!M23 -> WWN | N24: =WINEP_Schemes!N23 -> 1 | O24: 10.741437 | P24: 10.741437 | Q24: 0 | R24: 0 | S24: 0 | T24: 0 | U24: 0 | V24: 0
C25: =WINEP_Schemes!C24 -> EMD00773 | D25: =WINEP_Schemes!D24 -> 7YW200005 | E25: =WINEP_Schemes!E24 -> BALBY (STW) | F25: =WINEP_Schemes!F24 -> £ per km LORI | G25: =WINEP_Schemes!G24 -> 1e-06 | H25: =WINEP_Schemes!H24 -> 0 | I25: =WINEP_Schemes!J24 -> 0 | J25: =WINEP_Schemes!I24 -> 276351 | K25: =WINEP_Schemes!K24 -> 0 | L25: =WINEP_Schemes!L24 -> 1 | M25: =WINEP_Schemes!M24 -> WWN | N25: =WINEP_Schemes!N24 -> 0 | O25: 0 | P25: 0 | Q25: 0 | R25: 0 | S25: 0 | T25: 0 | U25: 0 | V25: 0
C26: =WINEP_Schemes!C25 -> EMD00812 | D26: =WINEP_Schemes!D25 -> 7YW200006 | E26: =WINEP_Schemes!E25 -> HATFIELD WOODHOUSE (STW) | F26: =WINEP_Schemes!F25 -> £ per km LORI | G26: =WINEP_Schemes!G25 -> 1e-06 | H26: =WINEP_Schemes!H25 -> 0 | I26: =WINEP_Schemes!J25 -> 0 | J26: =WINEP_Schemes!I25 -> 276351 | K26: =WINEP_Schemes!K25 -> 0 | L26: =WINEP_Schemes!L25 -> 1 | M26: =WINEP_Schemes!M25 -> WWN | N26: =WINEP_Schemes!N25 -> 0 | O26: 0 | P26: 0 | Q26: 0 | R26: 0 | S26: 0 | T26: 0 | U26: 0 | V26: 0
C27: =WINEP_Schemes!C26 -> EMD00813 | D27: =WINEP_Schemes!D26 -> 7YW200007 | E27: =WINEP_Schemes!E26 -> HATFIELD WOODHOUSE (STW) | F27: =WINEP_Schemes!F26 -> £ per km LORI | G27: =WINEP_Schemes!G26 -> 1e-06 | H27: =WINEP_Schemes!H26 -> 0 | I27: =WINEP_Schemes!J26 -> 0 | J27: =WINEP_Schemes!I26 -> 276351 | K27: =WINEP_Schemes!K26 -> 0 | L27: =WINEP_Schemes!L26 -> 1 | M27: =WINEP_Schemes!M26 -> WWN | N27: =WINEP_Schemes!N26 -> 0 | O27: 0 | P27: 0 | Q27: 0 | R27: 0 | S27: 0 | T27: 0 | U27: 0 | V27: 0
C28: =WINEP_Schemes!C27 -> YOR00112 | D28: =WINEP_Schemes!D27 -> 7YW200060 | E28: =WINEP_Schemes!E27 -> Grimwith Sediment Scheme | F28: =WINEP_Schemes!F27 -> £ per km LORI | G28: =WINEP_Schemes!G27 -> 1e-06 | H28: =WINEP_Schemes!H27 -> 0 | I28: =WINEP_Schemes!J27 -> 5.11 | J28: =WINEP_Schemes!I27 -> 80760 | K28: =WINEP_Schemes!K27 -> 5.11 | L28: =WINEP_Schemes!L27 -> 1 | M28: =WINEP_Schemes!M27 -> WR | N28: =WINEP_Schemes!N27 -> 1 | O28: 0.4126836 | P28: 0.4126836 | Q28: 0 | R28: =IF($M28 = R$9, $Q28, 0) -> 0 | S28: 0 | T28: 0 | U28: 0 | V28: 0
C29: =WINEP_Schemes!C28 -> YOR00115 | D29: =WINEP_Schemes!D28 -> 7YW200063 | E29: =WINEP_Schemes!E28 -> Airebank Mills Fish Passage | F29: =WINEP_Schemes!F28 -> £ per km LORI | G29: =WINEP_Schemes!G28 -> 1e-06 | H29: =WINEP_Schemes!H28 -> 0 | I29: =WINEP_Schemes!J28 -> 4.5 | J29: =WINEP_Schemes!I28 -> 37745 | K29: =WINEP_Schemes!K28 -> 4.5 | L29: =WINEP_Schemes!L28 -> 1 | M29: =WINEP_Schemes!M28 -> WR | N29: =WINEP_Schemes!N28 -> 1 | O29: 0.1698525 | P29: 0.1698525 | Q29: 0 | R29: 0 | S29: 0 | T29: 0 | U29: 0 | V29: 0
C30: =WINEP_Schemes!C29 -> YOR00116 | D30: =WINEP_Schemes!D29 -> 7YW200064 | E30: =WINEP_Schemes!E29 -> Cheesebottom Weir Fish Passage | F30: =WINEP_Schemes!F29 -> £ per km LORI | G30: =WINEP_Schemes!G29 -> 1e-06 | H30: =WINEP_Schemes!H29 -> 0 | I30: =WINEP_Schemes!J29 -> 9.5 | J30: =WINEP_Schemes!I29 -> 37745 | K30: =WINEP_Schemes!K29 -> 9.5 | L30: =WINEP_Schemes!L29 -> 1 | M30: =WINEP_Schemes!M29 -> WR | N30: =WINEP_Schemes!N29 -> 1 | O30: 0.3585775 | P30: 0.3585775 | Q30: 0 | R30: 0 | S30: 0 | T30: 0 | U30: 0 | V30: 0
C31: =WINEP_Schemes!C30 -> YOR00122 | D31: =WINEP_Schemes!D30 -> 7YW200070 | E31: =WINEP_Schemes!E30 -> Cononley Weir Fish Passage | F31: =WINEP_Schemes!F30 -> £ per km LORI | G31: =WINEP_Schemes!G30 -> 1e-06 | H31: =WINEP_Schemes!H30 -> 0 | I31: =WINEP_Schemes!J30 -> 45.54 | J31: =WINEP_Schemes!I30 -> 37745 | K31: =WINEP_Schemes!K30 -> 0 | L31: =WINEP_Schemes!L30 -> 1 | M31: =WINEP_Schemes!M30 -> WR | N31: =WINEP_Schemes!N30 -> 0 | O31: 1.7189073 | P31: 0 | Q31: -1.7189073 | R31: -1.7189073 | S31: 0 | T31: 0 | U31: 0 | V31: 0
C32: =WINEP_Schemes!C31 -> YOR00123 | D32: =WINEP_Schemes!D31 -> 7YW200071 | E32: =WINEP_Schemes!E31 -> Farnley Beck Fish Passage | F32: =WINEP_Schemes!F31 -> £ per km LORI | G32: =WINEP_Schemes!G31 -> 1e-06 | H32: =WINEP_Schemes!H31 -> 0 | I32: =WINEP_Schemes!J31 -> 3.29 | J32: =WINEP_Schemes!I31 -> 37745 | K32: =WINEP_Schemes!K31 -> 0 | L32: =WINEP_Schemes!L31 -> 1 | M32: =WINEP_Schemes!M31 -> WR | N32: =WINEP_Schemes!N31 -> 0 | O32: 0.12418105 | P32: 0 | Q32: -0.12418105 | R32: -0.12418105 | S32: 0 | T32: 0 | U32: 0 | V32: 0
C33: =WINEP_Schemes!C32 -> YOR00124 | D33: =WINEP_Schemes!D32 -> 7YW200072 | E33: =WINEP_Schemes!E32 -> Schole Hill Fish Passage | F33: =WINEP_Schemes!F32 -> £ per km LORI | G33: =WINEP_Schemes!G32 -> 1e-06 | H33: =WINEP_Schemes!H32 -> 0 | I33: =WINEP_Schemes!J32 -> 0.78 | J33: =WINEP_Schemes!I32 -> 80760 | K33: =WINEP_Schemes!K32 -> 0.78 | L33: =WINEP_Schemes!L32 -> 1 | M33: =WINEP_Schemes!M32 -> WR | N33: =WINEP_Schemes!N32 -> 1 | O33: 0.0629928 | P33: 0.0629928 | Q33: 0 | R33: 0 | S33: 0 | T33: 0 | U33: 0 | V33: 0
C34: =WINEP_Schemes!C33 -> YOR00125 | D34: =WINEP_Schemes!D33 -> 7YW200073 | E34: =WINEP_Schemes!E33 -> Watson Mill Fish Passage | F34: =WINEP_Schemes!F33 -> £ per km LORI | G34: =WINEP_Schemes!G33 -> 1e-06 | H34: =WINEP_Schemes!H33 -> 0 | I34: =WINEP_Schemes!J33 -> 0.94 | J34: =WINEP_Schemes!I33 -> 37745 | K34: =WINEP_Schemes!K33 -> 0.94 | L34: =WINEP_Schemes!L33 -> 1 | M34: =WINEP_Schemes!M33 -> WR | N34: =WINEP_Schemes!N33 -> 1 | O34: 0.0354803 | P34: 0.0354803 | Q34: 0 | R34: 0 | S34: 0 | T34: 0 | U34: 0 | V34: 0
C35: =WINEP_Schemes!C34 -> YOR01523 | D35: =WINEP_Schemes!D34 -> 7YW200635 | E35: =WINEP_Schemes!E34 -> SOUTH ELMSALL/STW 6X | F35: =WINEP_Schemes!F34 -> £ per m3 | G35: =WINEP_Schemes!G34 -> 1e-06 | H35: =WINEP_Schemes!H34 -> 0 | I35: =WINEP_Schemes!J34 -> 10000 | J35: =WINEP_Schemes!I34 -> 590 | K35: =WINEP_Schemes!K34 -> 10000 | L35: =WINEP_Schemes!L34 -> 1 | M35: =WINEP_Schemes!M34 -> WWN | N35: =WINEP_Schemes!N34 -> 1 | O35: 5.9 | P35: 5.9 | Q35: 0 | R35: 0 | S35: 0 | T35: 0 | U35: 0 | V35: 0
C36: =WINEP_Schemes!C35 -> YOR00693 | D36: =WINEP_Schemes!D35 -> 7YW200637 | E36: =WINEP_Schemes!E35 -> BENTLEY/STW FE transfer to NGR 458119 405197 | F36: =WINEP_Schemes!F35 -> £ per km LORI | G36: =WINEP_Schemes!G35 -> 1e-06 | H36: =WINEP_Schemes!H35 -> 0 | I36: =WINEP_Schemes!J35 -> 0 | J36: =WINEP_Schemes!I35 -> 2933301 | K36: =WINEP_Schemes!K35 -> 0 | L36: =WINEP_Schemes!L35 -> 1 | M36: =WINEP_Schemes!M35 -> WWN | N36: =WINEP_Schemes!N35 -> 0 | O36: 0 | P36: 0 | Q36: 0 | R36: 0 | S36: 0 | T36: 0 | U36: 0 | V36: 0
C37: =WINEP_Schemes!C36 -> YOR00694 | D37: =WINEP_Schemes!D36 -> 7YW200638 | E37: =WINEP_Schemes!E36 -> CLAYTON WEST/STW ( Storm Overflow - now wetland (FIS denotes storm oveflow ) | F37: =WINEP_Schemes!F36 -> £ per km LORI | G37: =WINEP_Schemes!G36 -> 1e-06 | H37: =WINEP_Schemes!H36 -> 0 | I37: =WINEP_Schemes!J36 -> 2.05 | J37: =WINEP_Schemes!I36 -> 2933301 | K37: =WINEP_Schemes!K36 -> 2.05 | L37: =WINEP_Schemes!L36 -> 1 | M37: =WINEP_Schemes!M36 -> WWN | N37: =WINEP_Schemes!N36 -> 1 | O37: 6.01326705 | P37: 6.01326705 | Q37: 0 | R37: 0 | S37: 0 | T37: 0 | U37: 0 | V37: 0
C38: =WINEP_Schemes!C37 -> YOR00696 | D38: =WINEP_Schemes!D37 -> 7YW200640 | E38: =WINEP_Schemes!E37 -> Little Don intermittents - Huinself Rd | F38: =WINEP_Schemes!F37 -> £ per m3 | G38: =WINEP_Schemes!G37 -> 1e-06 | H38: =WINEP_Schemes!H37 -> 0 | I38: =WINEP_Schemes!J37 -> 4000 | J38: =WINEP_Schemes!I37 -> 590 | K38: =WINEP_Schemes!K37 -> 4000 | L38: =WINEP_Schemes!L37 -> 1 | M38: =WINEP_Schemes!M37 -> WWN | N38: =WINEP_Schemes!N37 -> 1 | O38: 2.36 | P38: 2.36 | Q38: 0 | R38: 0 | S38: 0 | T38: 0 | U38: 0 | V38: 0
C39: =WINEP_Schemes!C38 -> YOR01536 | D39: =WINEP_Schemes!D38 -> 7YW200641 | E39: =WINEP_Schemes!E38 -> Pudsey intermittents (Farnley Ring Road) | F39: =WINEP_Schemes!F38 -> £ per m3 | G39: =WINEP_Schemes!G38 -> 1e-06 | H39: =WINEP_Schemes!H38 -> 0 | I39: =WINEP_Schemes!J38 -> 5000 | J39: =WINEP_Schemes!I38 -> 590 | K39: =WINEP_Schemes!K38 -> 0 | L39: =WINEP_Schemes!L38 -> 1 | M39: =WINEP_Schemes!M38 -> WWN | N39: =WINEP_Schemes!N38 -> 0 | O39: 2.95 | P39: 0 | Q39: -2.95 | R39: 0 | S39: 0 | T39: -2.95 | U39: 0 | V39: 0
C40: =WINEP_Schemes!C39 -> YOR00775 | D40: =WINEP_Schemes!D39 -> 7YW200719 | E40: =WINEP_Schemes!E39 -> SHERBURN IN ELMET/STW | F40: =WINEP_Schemes!F39 -> £ per km LORI | G40: =WINEP_Schemes!G39 -> 1e-06 | H40: =WINEP_Schemes!H39 -> 0 | I40: =WINEP_Schemes!J39 -> 0 | J40: =WINEP_Schemes!I39 -> 778365 | K40: =WINEP_Schemes!K39 -> 0 | L40: =WINEP_Schemes!L39 -> 1 | M40: =WINEP_Schemes!M39 -> WWN | N40: =WINEP_Schemes!N39 -> 0 | O40: 0 | P40: 0 | Q40: 0 | R40: 0 | S40: 0 | T40: 0 | U40: 0 | V40: 0
C41: =WINEP_Schemes!C40 -> YOR00787 | D41: =WINEP_Schemes!D40 -> 7YW200731 | E41: =WINEP_Schemes!E40 -> BOLSOVER/STW | F41: =WINEP_Schemes!F40 -> £ per km LORI | G41: =WINEP_Schemes!G40 -> 1e-06 | H41: =WINEP_Schemes!H40 -> 0 | I41: =WINEP_Schemes!J40 -> 0 | J41: =WINEP_Schemes!I40 -> 778365 | K41: =WINEP_Schemes!K40 -> 0 | L41: =WINEP_Schemes!L40 -> 1 | M41: =WINEP_Schemes!M40 -> WWN | N41: =WINEP_Schemes!N40 -> 0 | O41: 0 | P41: 0 | Q41: 0 | R41: 0 | S41: 0 | T41: 0 | U41: 0 | V41: 0
C42: =WINEP_Schemes!C41 -> YOR00793 | D42: =WINEP_Schemes!D41 -> 7YW200737 | E42: =WINEP_Schemes!E41 -> CARTHORPE WPC WORKS | F42: =WINEP_Schemes!F41 -> £ per km LORI | G42: =WINEP_Schemes!G41 -> 1e-06 | H42: =WINEP_Schemes!H41 -> 0 | I42: =WINEP_Schemes!J41 -> 4.83 | J42: =WINEP_Schemes!I41 -> 276351 | K42: =WINEP_Schemes!K41 -> 4.83 | L42: =WINEP_Schemes!L41 -> 1 | M42: =WINEP_Schemes!M41 -> WWN | N42: =WINEP_Schemes!N41 -> 1 | O42: 1.33477533 | P42: 1.33477533 | Q42: 0 | R42: 0 | S42: 0 | T42: 0 | U42: 0 | V42: 0
C43: =WINEP_Schemes!C42 -> YOR00799 | D43: =WINEP_Schemes!D42 -> 7YW200743 | E43: =WINEP_Schemes!E42 -> THORNTON LE BEANS | F43: =WINEP_Schemes!F42 -> £ per km LORI | G43: =WINEP_Schemes!G42 -> 1e-06 | H43: =WINEP_Schemes!H42 -> 0 | I43: =WINEP_Schemes!J42 -> 6.438 | J43: =WINEP_Schemes!I42 -> 276351 | K43: =WINEP_Schemes!K42 -> 6.44 | L43: =WINEP_Schemes!L42 -> 1 | M43: =WINEP_Schemes!M42 -> WWN | N43: =WINEP_Schemes!N42 -> 1.000310655 | O43: 1.779147738 | P43: 1.77970044 | Q43: 0.000552702 | R43: 0 | S43: 0 | T43: 0.000552702 | U43: 0 | V43: 0
C44: =WINEP_Schemes!C43 -> YOR00804 | D44: =WINEP_Schemes!D43 -> 7YW200748 | E44: =WINEP_Schemes!E43 -> Rainton STW | F44: =WINEP_Schemes!F43 -> £ per km LORI | G44: =WINEP_Schemes!G43 -> 1e-06 | H44: =WINEP_Schemes!H43 -> 0 | I44: =WINEP_Schemes!J43 -> 1.464 | J44: =WINEP_Schemes!I43 -> 276351 | K44: =WINEP_Schemes!K43 -> 1.46 | L44: =WINEP_Schemes!L43 -> 1 | M44: =WINEP_Schemes!M43 -> WWN | N44: =WINEP_Schemes!N43 -> 0.9972677596 | O44: 0.404577864 | P44: 0.40347246 | Q44: -0.001105404 | R44: 0 | S44: 0 | T44: -0.001105404 | U44: 0 | V44: 0
C45: =WINEP_Schemes!C44 -> YOR00805 | D45: =WINEP_Schemes!D44 -> 7YW200749 | E45: =WINEP_Schemes!E44 -> DISHFORTH WPC WORKS | F45: =WINEP_Schemes!F44 -> £ per km LORI | G45: =WINEP_Schemes!G44 -> 1e-06 | H45: =WINEP_Schemes!H44 -> 0 | I45: =WINEP_Schemes!J44 -> 7.765 | J45: =WINEP_Schemes!I44 -> 276351 | K45: =WINEP_Schemes!K44 -> 7.765 | L45: =WINEP_Schemes!L44 -> 1 | M45: =WINEP_Schemes!M44 -> WWN | N45: =WINEP_Schemes!N44 -> 1 | O45: 2.145865515 | P45: 2.145865515 | Q45: 0 | R45: 0 | S45: 0 | T45: 0 | U45: 0 | V45: 0
C46: =WINEP_Schemes!C45 -> YOR00806 | D46: =WINEP_Schemes!D45 -> 7YW200750 | E46: =WINEP_Schemes!E45 -> KIRKBY MALZEARD/STW | F46: =WINEP_Schemes!F45 -> £ per km LORI | G46: =WINEP_Schemes!G45 -> 1e-06 | H46: =WINEP_Schemes!H45 -> 0 | I46: =WINEP_Schemes!J45 -> 12.118 | J46: =WINEP_Schemes!I45 -> 276351 | K46: =WINEP_Schemes!K45 -> 12.118 | L46: =WINEP_Schemes!L45 -> 1 | M46: =WINEP_Schemes!M45 -> WWN | N46: =WINEP_Schemes!N45 -> 1 | O46: 3.348821418 | P46: 3.348821418 | Q46: 0 | R46: 0 | S46: 0 | T46: 0 | U46: 0 | V46: 0
C47: =WINEP_Schemes!C46 -> YOR00812 | D47: =WINEP_Schemes!D46 -> 7YW200756 | E47: =WINEP_Schemes!E46 -> KILLINGHALL STW | F47: =WINEP_Schemes!F46 -> £ per km LORI | G47: =WINEP_Schemes!G46 -> 1e-06 | H47: =WINEP_Schemes!H46 -> 0 | I47: =WINEP_Schemes!J46 -> 0 | J47: =WINEP_Schemes!I46 -> 276351 | K47: =WINEP_Schemes!K46 -> 0 | L47: =WINEP_Schemes!L46 -> 1 | M47: =WINEP_Schemes!M46 -> WWN | N47: =WINEP_Schemes!N46 -> 0 | O47: 0 | P47: 0 | Q47: 0 | R47: 0 | S47: 0 | T47: 0 | U47: 0 | V47: 0
C48: =WINEP_Schemes!C47 -> YOR00813 | D48: =WINEP_Schemes!D47 -> 7YW200757 | E48: =WINEP_Schemes!E47 -> SHAW MILLS/STW | F48: =WINEP_Schemes!F47 -> £ per km LORI | G48: =WINEP_Schemes!G47 -> 1e-06 | H48: =WINEP_Schemes!H47 -> 0 | I48: =WINEP_Schemes!J47 -> 29.858 | J48: =WINEP_Schemes!I47 -> 276351 | K48: =WINEP_Schemes!K47 -> 29.858 | L48: =WINEP_Schemes!L47 -> 1 | M48: =WINEP_Schemes!M47 -> WWN | N48: =WINEP_Schemes!N47 -> 1 | O48: 8.251288158 | P48: 8.251288158 | Q48: 0 | R48: 0 | S48: 0 | T48: 0 | U48: 0 | V48: 0
C49: =WINEP_Schemes!C48 -> YOR00833 | D49: =WINEP_Schemes!D48 -> 7YW200777 | E49: =WINEP_Schemes!E48 -> DRAUGHTON WPC WORKS | F49: =WINEP_Schemes!F48 -> £ per km LORI | G49: =WINEP_Schemes!G48 -> 1e-06 | H49: =WINEP_Schemes!H48 -> 0 | I49: =WINEP_Schemes!J48 -> 3.519 | J49: =WINEP_Schemes!I48 -> 276351 | K49: =WINEP_Schemes!K48 -> 3.519 | L49: =WINEP_Schemes!L48 -> 1 | M49: =WINEP_Schemes!M48 -> WWN | N49: =WINEP_Schemes!N48 -> 1 | O49: 0.972479169 | P49: 0.972479169 | Q49: 0 | R49: 0 | S49: 0 | T49: 0 | U49: 0 | V49: 0
C50: =WINEP_Schemes!C49 -> YOR00838 | D50: =WINEP_Schemes!D49 -> 7YW200782 | E50: =WINEP_Schemes!E49 -> SHERBURN IN ELMET/STW | F50: =WINEP_Schemes!F49 -> £ per km LORI | G50: =WINEP_Schemes!G49 -> 1e-06 | H50: =WINEP_Schemes!H49 -> 0 | I50: =WINEP_Schemes!J49 -> 10.13 | J50: =WINEP_Schemes!I49 -> 778365 | K50: =WINEP_Schemes!K49 -> 10.13 | L50: =WINEP_Schemes!L49 -> 1 | M50: =WINEP_Schemes!M49 -> WWN | N50: =WINEP_Schemes!N49 -> 1 | O50: 7.88483745 | P50: 7.88483745 | Q50: 0 | R50: 0 | S50: 0 | T50: 0 | U50: 0 | V50: 0
C51: =WINEP_Schemes!C50 -> YOR00840 | D51: =WINEP_Schemes!D50 -> 7YW200784 | E51: =WINEP_Schemes!E50 -> HAROME/STW | F51: =WINEP_Schemes!F50 -> £ per km LORI | G51: =WINEP_Schemes!G50 -> 1e-06 | H51: =WINEP_Schemes!H50 -> 0 | I51: =WINEP_Schemes!J50 -> 6.402 | J51: =WINEP_Schemes!I50 -> 276351 | K51: =WINEP_Schemes!K50 -> 6.4 | L51: =WINEP_Schemes!L50 -> 1 | M51: =WINEP_Schemes!M50 -> WWN | N51: =WINEP_Schemes!N50 -> 0.9996875976 | O51: 1.769199102 | P51: 1.7686464 | Q51: -0.000552702 | R51: 0 | S51: 0 | T51: -0.000552702 | U51: 0 | V51: 0
C52: =WINEP_Schemes!C51 -> YOR00846 | D52: =WINEP_Schemes!D51 -> 7YW200790 | E52: =WINEP_Schemes!E51 -> BISHOP WILTON WPC WO | F52: =WINEP_Schemes!F51 -> £ per kgP/day removed | G52: =WINEP_Schemes!G51 -> 1e-06 | H52: =WINEP_Schemes!H51 -> 0 | I52: =WINEP_Schemes!J51 -> 1 | J52: =WINEP_Schemes!I51 -> 1287218 | K52: =WINEP_Schemes!K51 -> 1 | L52: =WINEP_Schemes!L51 -> 1 | M52: =WINEP_Schemes!M51 -> WWN | N52: =WINEP_Schemes!N51 -> 1 | O52: 1.287218 | P52: 1.287218 | Q52: 0 | R52: 0 | S52: 0 | T52: 0 | U52: 0 | V52: 0
C53: =WINEP_Schemes!C52 -> YOR00847 | D53: =WINEP_Schemes!D52 -> 7YW200791 | E53: =WINEP_Schemes!E52 -> POCKLINGTON/STW | F53: =WINEP_Schemes!F52 -> £ per km LORI | G53: =WINEP_Schemes!G52 -> 1e-06 | H53: =WINEP_Schemes!H52 -> 0 | I53: =WINEP_Schemes!J52 -> 2.17 | J53: =WINEP_Schemes!I52 -> 276351 | K53: =WINEP_Schemes!K52 -> 2.17 | L53: =WINEP_Schemes!L52 -> 1 | M53: =WINEP_Schemes!M52 -> WWN | N53: =WINEP_Schemes!N52 -> 1 | O53: 0.59968167 | P53: 0.59968167 | Q53: 0 | R53: 0 | S53: 0 | T53: 0 | U53: 0 | V53: 0
C54: =WINEP_Schemes!C53 -> YOR00849 | D54: =WINEP_Schemes!D53 -> 7YW200793 | E54: =WINEP_Schemes!E53 -> CROFTON/STW | F54: =WINEP_Schemes!F53 -> £ per km LORI | G54: =WINEP_Schemes!G53 -> 1e-06 | H54: =WINEP_Schemes!H53 -> 0 | I54: =WINEP_Schemes!J53 -> 8.989 | J54: =WINEP_Schemes!I53 -> 276351 | K54: =WINEP_Schemes!K53 -> 8.989 | L54: =WINEP_Schemes!L53 -> 1 | M54: =WINEP_Schemes!M53 -> WWN | N54: =WINEP_Schemes!N53 -> 1 | O54: 2.484119139 | P54: 2.484119139 | Q54: 0 | R54: 0 | S54: 0 | T54: 0 | U54: 0 | V54: 0
C55: =WINEP_Schemes!C54 -> YOR00850 | D55: =WINEP_Schemes!D54 -> 7YW200794 | E55: =WINEP_Schemes!E54 -> MELTHAM/STW | F55: =WINEP_Schemes!F54 -> £ per km LORI | G55: =WINEP_Schemes!G54 -> 1e-06 | H55: =WINEP_Schemes!H54 -> 0 | I55: =WINEP_Schemes!J54 -> 17.146 | J55: =WINEP_Schemes!I54 -> 276351 | K55: =WINEP_Schemes!K54 -> 17.146 | L55: =WINEP_Schemes!L54 -> 1 | M55: =WINEP_Schemes!M54 -> WWN | N55: =WINEP_Schemes!N54 -> 1 | O55: 4.738314246 | P55: 4.738314246 | Q55: 0 | R55: 0 | S55: 0 | T55: 0 | U55: 0 | V55: 0
C56: =WINEP_Schemes!C55 -> YOR00851 | D56: =WINEP_Schemes!D55 -> 7YW200795 | E56: =WINEP_Schemes!E55 -> NEILEY NO 2 STW | F56: =WINEP_Schemes!F55 -> £ per km LORI | G56: =WINEP_Schemes!G55 -> 1e-06 | H56: =WINEP_Schemes!H55 -> 0 | I56: =WINEP_Schemes!J55 -> 1.531 | J56: =WINEP_Schemes!I55 -> 778365 | K56: =WINEP_Schemes!K55 -> 1.531 | L56: =WINEP_Schemes!L55 -> 1 | M56: =WINEP_Schemes!M55 -> WWN | N56: =WINEP_Schemes!N55 -> 1 | O56: 1.191676815 | P56: 1.191676815 | Q56: 0 | R56: 0 | S56: 0 | T56: 0 | U56: 0 | V56: 0
C57: =WINEP_Schemes!C56 -> YOR00852 | D57: =WINEP_Schemes!D56 -> 7YW200796 | E57: =WINEP_Schemes!E56 -> RIPPONDEN WOOD STW | F57: =WINEP_Schemes!F56 -> £ per km LORI | G57: =WINEP_Schemes!G56 -> 1e-06 | H57: =WINEP_Schemes!H56 -> 0 | I57: =WINEP_Schemes!J56 -> 7.958 | J57: =WINEP_Schemes!I56 -> 276351 | K57: =WINEP_Schemes!K56 -> 7.958 | L57: =WINEP_Schemes!L56 -> 1 | M57: =WINEP_Schemes!M56 -> WWN | N57: =WINEP_Schemes!N56 -> 1 | O57: 2.199201258 | P57: 2.199201258 | Q57: 0 | R57: 0 | S57: 0 | T57: 0 | U57: 0 | V57: 0
C58: =WINEP_Schemes!C57 -> YOR00853 | D58: =WINEP_Schemes!D57 -> 7YW200797 | E58: =WINEP_Schemes!E57 -> EASTWOOD/STW | F58: =WINEP_Schemes!F57 -> £ per km LORI | G58: =WINEP_Schemes!G57 -> 1e-06 | H58: =WINEP_Schemes!H57 -> 0 | I58: =WINEP_Schemes!J57 -> 1.833 | J58: =WINEP_Schemes!I57 -> 778365 | K58: =WINEP_Schemes!K57 -> 1.833 | L58: =WINEP_Schemes!L57 -> 1 | M58: =WINEP_Schemes!M57 -> WWN | N58: =WINEP_Schemes!N57 -> 1 | O58: 1.426743045 | P58: 1.426743045 | Q58: 0 | R58: 0 | S58: 0 | T58: 0 | U58: 0 | V58: 0
C59: =WINEP_Schemes!C58 -> YOR00854 | D59: =WINEP_Schemes!D58 -> 7YW200798 | E59: =WINEP_Schemes!E58 -> REDACRE STW | F59: =WINEP_Schemes!F58 -> £ per km LORI | G59: =WINEP_Schemes!G58 -> 1e-06 | H59: =WINEP_Schemes!H58 -> 0 | I59: =WINEP_Schemes!J58 -> 5.039 | J59: =WINEP_Schemes!I58 -> 276351 | K59: =WINEP_Schemes!K58 -> 5.039 | L59: =WINEP_Schemes!L58 -> 1 | M59: =WINEP_Schemes!M58 -> WWN | N59: =WINEP_Schemes!N58 -> 1 | O59: 1.392532689 | P59: 1.392532689 | Q59: 0 | R59: 0 | S59: 0 | T59: 0 | U59: 0 | V59: 0
C60: =WINEP_Schemes!C59 -> YOR00855 | D60: =WINEP_Schemes!D59 -> 7YW200799 | E60: =WINEP_Schemes!E59 -> HIGH ROYD NO 2 STW | F60: =WINEP_Schemes!F59 -> £ per km LORI | G60: =WINEP_Schemes!G59 -> 1e-06 | H60: =WINEP_Schemes!H59 -> 0 | I60: =WINEP_Schemes!J59 -> 1.54 | J60: =WINEP_Schemes!I59 -> 778365 | K60: =WINEP_Schemes!K59 -> 1.54 | L60: =WINEP_Schemes!L59 -> 1 | M60: =WINEP_Schemes!M59 -> WWN | N60: =WINEP_Schemes!N59 -> 1 | O60: 1.1986821 | P60: 1.1986821 | Q60: 0 | R60: 0 | S60: 0 | T60: 0 | U60: 0 | V60: 0
C61: =WINEP_Schemes!C60 -> YOR00856 | D61: =WINEP_Schemes!D60 -> 7YW200800 | E61: =WINEP_Schemes!E60 -> HALIFAX COPLEY STW | F61: =WINEP_Schemes!F60 -> £ per km LORI | G61: =WINEP_Schemes!G60 -> 1e-06 | H61: =WINEP_Schemes!H60 -> 0 | I61: =WINEP_Schemes!J60 -> 12.996 | J61: =WINEP_Schemes!I60 -> 778365 | K61: =WINEP_Schemes!K60 -> 12.996 | L61: =WINEP_Schemes!L60 -> 1 | M61: =WINEP_Schemes!M60 -> WWN | N61: =WINEP_Schemes!N60 -> 1 | O61: 10.11563154 | P61: 10.11563154 | Q61: 0 | R61: 0 | S61: 0 | T61: 0 | U61: 0 | V61: 0
C62: =WINEP_Schemes!C61 -> YOR00857 | D62: =WINEP_Schemes!D61 -> 7YW200801 | E62: =WINEP_Schemes!E61 -> Huddersfield STW Colne Bridge | F62: =WINEP_Schemes!F61 -> £ per km LORI | G62: =WINEP_Schemes!G61 -> 1e-06 | H62: =WINEP_Schemes!H61 -> 0 | I62: =WINEP_Schemes!J61 -> 0 | J62: =WINEP_Schemes!I61 -> 502014 | K62: =WINEP_Schemes!K61 -> 0 | L62: =WINEP_Schemes!L61 -> 1 | M62: =WINEP_Schemes!M61 -> WWN | N62: =WINEP_Schemes!N61 -> 0 | O62: 0 | P62: 0 | Q62: 0 | R62: 0 | S62: 0 | T62: 0 | U62: 0 | V62: 0
C63: =WINEP_Schemes!C62 -> YOR00858 | D63: =WINEP_Schemes!D62 -> 7YW200802 | E63: =WINEP_Schemes!E62 -> HUDDERSFIELD STW Cooper Bridge | F63: =WINEP_Schemes!F62 -> £ per km LORI | G63: =WINEP_Schemes!G62 -> 1e-06 | H63: =WINEP_Schemes!H62 -> 0 | I63: =WINEP_Schemes!J62 -> 12.022 | J63: =WINEP_Schemes!I62 -> 778365 | K63: =WINEP_Schemes!K62 -> 12.022 | L63: =WINEP_Schemes!L62 -> 1 | M63: =WINEP_Schemes!M62 -> WWN | N63: =WINEP_Schemes!N62 -> 1 | O63: 9.35750403 | P63: 9.35750403 | Q63: 0 | R63: 0 | S63: 0 | T63: 0 | U63: 0 | V63: 0
C64: =WINEP_Schemes!C63 -> YOR00859 | D64: =WINEP_Schemes!D63 -> 7YW200803 | E64: =WINEP_Schemes!E63 -> DEWSBURY/STW | F64: =WINEP_Schemes!F63 -> £ per km LORI | G64: =WINEP_Schemes!G63 -> 1e-06 | H64: =WINEP_Schemes!H63 -> 0 | I64: =WINEP_Schemes!J63 -> 5.819 | J64: =WINEP_Schemes!I63 -> 778365 | K64: =WINEP_Schemes!K63 -> 5.819 | L64: =WINEP_Schemes!L63 -> 1 | M64: =WINEP_Schemes!M63 -> WWN | N64: =WINEP_Schemes!N63 -> 1 | O64: 4.529305935 | P64: 4.529305935 | Q64: 0 | R64: 0 | S64: 0 | T64: 0 | U64: 0 | V64: 0
C65: =WINEP_Schemes!C64 -> YOR00860 | D65: =WINEP_Schemes!D64 -> 7YW200804 | E65: =WINEP_Schemes!E64 -> HORBURY (DUDFLEET) STW | F65: =WINEP_Schemes!F64 -> £ per km LORI | G65: =WINEP_Schemes!G64 -> 1e-06 | H65: =WINEP_Schemes!H64 -> 0 | I65: =WINEP_Schemes!J64 -> 3.309 | J65: =WINEP_Schemes!I64 -> 778365 | K65: =WINEP_Schemes!K64 -> 3.309 | L65: =WINEP_Schemes!L64 -> 1 | M65: =WINEP_Schemes!M64 -> WWN | N65: =WINEP_Schemes!N64 -> 1 | O65: 2.575609785 | P65: 2.575609785 | Q65: 0 | R65: 0 | S65: 0 | T65: 0 | U65: 0 | V65: 0
C66: =WINEP_Schemes!C65 -> YOR00861 | D66: =WINEP_Schemes!D65 -> 7YW200805 | E66: =WINEP_Schemes!E65 -> CALDER VALE/STW | F66: =WINEP_Schemes!F65 -> £ per km LORI | G66: =WINEP_Schemes!G65 -> 1e-06 | H66: =WINEP_Schemes!H65 -> 0 | I66: =WINEP_Schemes!J65 -> 6.711 | J66: =WINEP_Schemes!I65 -> 778365 | K66: =WINEP_Schemes!K65 -> 6.711 | L66: =WINEP_Schemes!L65 -> 1 | M66: =WINEP_Schemes!M65 -> WWN | N66: =WINEP_Schemes!N65 -> 1 | O66: 5.223607515 | P66: 5.223607515 | Q66: 0 | R66: 0 | S66: 0 | T66: 0 | U66: 0 | V66: 0
C67: =WINEP_Schemes!C66 -> YOR00862 | D67: =WINEP_Schemes!D66 -> 7YW200806 | E67: =WINEP_Schemes!E66 -> Stanley (Smalley Bight) STW | F67: =WINEP_Schemes!F66 -> £ per km LORI | G67: =WINEP_Schemes!G66 -> 1e-06 | H67: =WINEP_Schemes!H66 -> 0 | I67: =WINEP_Schemes!J66 -> 7.811 | J67: =WINEP_Schemes!I66 -> 778365 | K67: =WINEP_Schemes!K66 -> 7.811 | L67: =WINEP_Schemes!L66 -> 1 | M67: =WINEP_Schemes!M66 -> WWN | N67: =WINEP_Schemes!N66 -> 1 | O67: 6.079809015 | P67: 6.079809015 | Q67: 0 | R67: 0 | S67: 0 | T67: 0 | U67: 0 | V67: 0
C68: =WINEP_Schemes!C67 -> YOR00863 | D68: =WINEP_Schemes!D67 -> 7YW200807 | E68: =WINEP_Schemes!E67 -> NORMANTON/STW (Mill Lane) | F68: =WINEP_Schemes!F67 -> £ per km LORI | G68: =WINEP_Schemes!G67 -> 1e-06 | H68: =WINEP_Schemes!H67 -> 0 | I68: =WINEP_Schemes!J67 -> 3.394 | J68: =WINEP_Schemes!I67 -> 778365 | K68: =WINEP_Schemes!K67 -> 3.394 | L68: =WINEP_Schemes!L67 -> 1 | M68: =WINEP_Schemes!M67 -> WWN | N68: =WINEP_Schemes!N67 -> 1 | O68: 2.64177081 | P68: 2.64177081 | Q68: 0 | R68: 0 | S68: 0 | T68: 0 | U68: 0 | V68: 0
C69: =WINEP_Schemes!C68 -> YOR00866 | D69: =WINEP_Schemes!D68 -> 7YW200810 | E69: =WINEP_Schemes!E68 -> EMBSAY/STW | F69: =WINEP_Schemes!F68 -> £ per km LORI | G69: =WINEP_Schemes!G68 -> 1e-06 | H69: =WINEP_Schemes!H68 -> 0 | I69: =WINEP_Schemes!J68 -> 2.715 | J69: =WINEP_Schemes!I68 -> 276351 | K69: =WINEP_Schemes!K68 -> 2.72 | L69: =WINEP_Schemes!L68 -> 1 | M69: =WINEP_Schemes!M68 -> WWN | N69: =WINEP_Schemes!N68 -> 1.001841621 | O69: 0.750292965 | P69: 0.75167472 | Q69: 0.001381755 | R69: 0 | S69: 0 | T69: 0.001381755 | U69: 0 | V69: 0
C70: =WINEP_Schemes!C69 -> YOR00867 | D70: =WINEP_Schemes!D69 -> 7YW200811 | E70: =WINEP_Schemes!E69 -> EAST MARTON | F70: =WINEP_Schemes!F69 -> £ per km LORI | G70: =WINEP_Schemes!G69 -> 1e-06 | H70: =WINEP_Schemes!H69 -> 0 | I70: =WINEP_Schemes!J69 -> 0 | J70: =WINEP_Schemes!I69 -> 276351 | K70: =WINEP_Schemes!K69 -> 0 | L70: =WINEP_Schemes!L69 -> 1 | M70: =WINEP_Schemes!M69 -> WWN | N70: =WINEP_Schemes!N69 -> 0 | O70: 0 | P70: 0 | Q70: 0 | R70: 0 | S70: 0 | T70: 0 | U70: 0 | V70: 0
C71: =WINEP_Schemes!C70 -> YOR00872 | D71: =WINEP_Schemes!D70 -> 7YW200816 | E71: =WINEP_Schemes!E70 -> KEIGHLEY MARLEY/STW | F71: =WINEP_Schemes!F70 -> £ per km LORI | G71: =WINEP_Schemes!G70 -> 1e-06 | H71: =WINEP_Schemes!H70 -> 0 | I71: =WINEP_Schemes!J70 -> 6.459 | J71: =WINEP_Schemes!I70 -> 778365 | K71: =WINEP_Schemes!K70 -> 6.459 | L71: =WINEP_Schemes!L70 -> 1 | M71: =WINEP_Schemes!M70 -> WWN | N71: =WINEP_Schemes!N70 -> 1 | O71: 5.027459535 | P71: 5.027459535 | Q71: 0 | R71: 0 | S71: 0 | T71: 0 | U71: 0 | V71: 0
C72: =WINEP_Schemes!C71 -> YOR00873 | D72: =WINEP_Schemes!D71 -> 7YW200817 | E72: =WINEP_Schemes!E71 -> DOWLEY GAP (BINGLEY) | F72: =WINEP_Schemes!F71 -> £ per km LORI | G72: =WINEP_Schemes!G71 -> 1e-06 | H72: =WINEP_Schemes!H71 -> 0 | I72: =WINEP_Schemes!J71 -> 9.155 | J72: =WINEP_Schemes!I71 -> 778365 | K72: =WINEP_Schemes!K71 -> 9.155 | L72: =WINEP_Schemes!L71 -> 1 | M72: =WINEP_Schemes!M71 -> WWN | N72: =WINEP_Schemes!N71 -> 1 | O72: 7.125931575 | P72: 7.125931575 | Q72: 0 | R72: 0 | S72: 0 | T72: 0 | U72: 0 | V72: 0
C73: =WINEP_Schemes!C72 -> YOR00874 | D73: =WINEP_Schemes!D72 -> 7YW200818 | E73: =WINEP_Schemes!E72 -> BRADFORD ESHOLT/NO 2 STW | F73: =WINEP_Schemes!F72 -> £ per km LORI | G73: =WINEP_Schemes!G72 -> 1e-06 | H73: =WINEP_Schemes!H72 -> 0 | I73: =WINEP_Schemes!J72 -> 23.472 | J73: =WINEP_Schemes!I72 -> 778365 | K73: =WINEP_Schemes!K72 -> 23.472 | L73: =WINEP_Schemes!L72 -> 1 | M73: =WINEP_Schemes!M72 -> WWN | N73: =WINEP_Schemes!N72 -> 1 | O73: 18.26978328 | P73: 18.26978328 | Q73: 0 | R73: 0 | S73: 0 | T73: 0 | U73: 0 | V73: 0
C74: =WINEP_Schemes!C73 -> YOR00875 | D74: =WINEP_Schemes!D73 -> 7YW200819 | E74: =WINEP_Schemes!E73 -> KNOSTROP WWTW | F74: =WINEP_Schemes!F73 -> £ per km LORI | G74: =WINEP_Schemes!G73 -> 1e-06 | H74: =WINEP_Schemes!H73 -> 0 | I74: =WINEP_Schemes!J73 -> 5.593 | J74: =WINEP_Schemes!I73 -> 778365 | K74: =WINEP_Schemes!K73 -> 5.593 | L74: =WINEP_Schemes!L73 -> 1 | M74: =WINEP_Schemes!M73 -> WWN | N74: =WINEP_Schemes!N73 -> 1 | O74: 4.353395445 | P74: 4.353395445 | Q74: 0 | R74: 0 | S74: 0 | T74: 0 | U74: 0 | V74: 0
C75: =WINEP_Schemes!C74 -> YOR00876 | D75: =WINEP_Schemes!D74 -> 7YW200820 | E75: =WINEP_Schemes!E74 -> LEMONROYD STW | F75: =WINEP_Schemes!F74 -> £ per km LORI | G75: =WINEP_Schemes!G74 -> 1e-06 | H75: =WINEP_Schemes!H74 -> 0 | I75: =WINEP_Schemes!J74 -> 5.586 | J75: =WINEP_Schemes!I74 -> 778365 | K75: =WINEP_Schemes!K74 -> 5.586 | L75: =WINEP_Schemes!L74 -> 1 | M75: =WINEP_Schemes!M74 -> WWN | N75: =WINEP_Schemes!N74 -> 1 | O75: 4.34794689 | P75: 4.34794689 | Q75: 0 | R75: 0 | S75: 0 | T75: 0 | U75: 0 | V75: 0
C76: =WINEP_Schemes!C75 -> YOR00878 | D76: =WINEP_Schemes!D75 -> 7YW200822 | E76: =WINEP_Schemes!E75 -> CASTLEFORD/STW | F76: =WINEP_Schemes!F75 -> £ per km LORI | G76: =WINEP_Schemes!G75 -> 1e-06 | H76: =WINEP_Schemes!H75 -> 0 | I76: =WINEP_Schemes!J75 -> 0 | J76: =WINEP_Schemes!I75 -> 778365 | K76: =WINEP_Schemes!K75 -> 0 | L76: =WINEP_Schemes!L75 -> 1 | M76: =WINEP_Schemes!M75 -> WWN | N76: =WINEP_Schemes!N75 -> 0 | O76: 0 | P76: 0 | Q76: 0 | R76: 0 | S76: 0 | T76: 0 | U76: 0 | V76: 0
C77: =WINEP_Schemes!C76 -> YOR00879 | D77: =WINEP_Schemes!D76 -> 7YW200823 | E77: =WINEP_Schemes!E76 -> SUTTON WWTW | F77: =WINEP_Schemes!F76 -> £ per km LORI | G77: =WINEP_Schemes!G76 -> 1e-06 | H77: =WINEP_Schemes!H76 -> 0 | I77: =WINEP_Schemes!J76 -> 23.165 | J77: =WINEP_Schemes!I76 -> 778365 | K77: =WINEP_Schemes!K76 -> 23.165 | L77: =WINEP_Schemes!L76 -> 1 | M77: =WINEP_Schemes!M76 -> WWN | N77: =WINEP_Schemes!N76 -> 1 | O77: 18.03082523 | P77: 18.03082523 | Q77: 0 | R77: 0 | S77: 0 | T77: 0 | U77: 0 | V77: 0
C78: =WINEP_Schemes!C77 -> YOR00881 | D78: =WINEP_Schemes!D77 -> 7YW200825 | E78: =WINEP_Schemes!E77 -> SOUTH ELMSALL/STW | F78: =WINEP_Schemes!F77 -> £ per km LORI | G78: =WINEP_Schemes!G77 -> 1e-06 | H78: =WINEP_Schemes!H77 -> 0 | I78: =WINEP_Schemes!J77 -> 5.117 | J78: =WINEP_Schemes!I77 -> 778365 | K78: =WINEP_Schemes!K77 -> 5.117 | L78: =WINEP_Schemes!L77 -> 1 | M78: =WINEP_Schemes!M77 -> WWN | N78: =WINEP_Schemes!N77 -> 1 | O78: 3.982893705 | P78: 3.982893705 | Q78: 0 | R78: 0 | S78: 0 | T78: 0 | U78: 0 | V78: 0
C79: =WINEP_Schemes!C78 -> YOR00882 | D79: =WINEP_Schemes!D78 -> 7YW200826 | E79: =WINEP_Schemes!E78 -> WRANGBROOK STW | F79: =WINEP_Schemes!F78 -> £ per km LORI | G79: =WINEP_Schemes!G78 -> 1e-06 | H79: =WINEP_Schemes!H78 -> 0 | I79: =WINEP_Schemes!J78 -> 8.776 | J79: =WINEP_Schemes!I78 -> 276351 | K79: =WINEP_Schemes!K78 -> 8.776 | L79: =WINEP_Schemes!L78 -> 1 | M79: =WINEP_Schemes!M78 -> WWN | N79: =WINEP_Schemes!N78 -> 1 | O79: 2.425256376 | P79: 2.425256376 | Q79: 0 | R79: =IF($M79 = R$9, $Q79, 0) -> 0 | S79: 0 | T79: 0 | U79: 0 | V79: 0
C80: =WINEP_Schemes!C79 -> YOR00883 | D80: =WINEP_Schemes!D79 -> 7YW200827 | E80: =WINEP_Schemes!E79 -> Adwick Le Street | F80: =WINEP_Schemes!F79 -> £ per km LORI | G80: =WINEP_Schemes!G79 -> 1e-06 | H80: =WINEP_Schemes!H79 -> 0 | I80: =WINEP_Schemes!J79 -> 8.573 | J80: =WINEP_Schemes!I79 -> 778365 | K80: =WINEP_Schemes!K79 -> 8.573 | L80: =WINEP_Schemes!L79 -> 1 | M80: =WINEP_Schemes!M79 -> WWN | N80: =WINEP_Schemes!N79 -> 1 | O80: 6.672923145 | P80: 6.672923145 | Q80: 0 | R80: 0 | S80: 0 | T80: 0 | U80: 0 | V80: 0
C81: =WINEP_Schemes!C80 -> YOR00886 | D81: =WINEP_Schemes!D80 -> 7YW200830 | E81: =WINEP_Schemes!E80 -> GRIMETHORPE/STW | F81: =WINEP_Schemes!F80 -> £ per km LORI | G81: =WINEP_Schemes!G80 -> 1e-06 | H81: =WINEP_Schemes!H80 -> 0 | I81: =WINEP_Schemes!J80 -> 10.161 | J81: =WINEP_Schemes!I80 -> 778365 | K81: =WINEP_Schemes!K80 -> 10.161 | L81: =WINEP_Schemes!L80 -> 1 | M81: =WINEP_Schemes!M80 -> WWN | N81: =WINEP_Schemes!N80 -> 1 | O81: =I81 * J81 * G81 -> 7.908966765 | P81: =N81 * O81 -> 7.908966765 | Q81: =IF(L81 = 0, P81, (N81 - 1) * O81) -> 0 | R81: 0 | S81: 0 | T81: 0 | U81: 0 | V81: 0
C82: =WINEP_Schemes!C81 -> YOR00887 | D82: =WINEP_Schemes!D81 -> 7YW200831 | E82: =WINEP_Schemes!E81 -> CLAYTON WEST/STW | F82: =WINEP_Schemes!F81 -> £ per km LORI | G82: =WINEP_Schemes!G81 -> 1e-06 | H82: =WINEP_Schemes!H81 -> 0 | I82: =WINEP_Schemes!J81 -> 3.707 | J82: =WINEP_Schemes!I81 -> 778365 | K82: =WINEP_Schemes!K81 -> 3.707 | L82: =WINEP_Schemes!L81 -> 1 | M82: =WINEP_Schemes!M81 -> WWN | N82: =WINEP_Schemes!N81 -> 1 | O82: 2.885399055 | P82: 2.885399055 | Q82: 0 | R82: 0 | S82: 0 | T82: 0 | U82: 0 | V82: 0
C83: =WINEP_Schemes!C82 -> YOR00888 | D83: =WINEP_Schemes!D82 -> 7YW200832 | E83: =WINEP_Schemes!E82 -> HOYLANDSWAINE/STW | F83: =WINEP_Schemes!F82 -> £ per km LORI | G83: =WINEP_Schemes!G82 -> 1e-06 | H83: =WINEP_Schemes!H82 -> 0 | I83: =WINEP_Schemes!J82 -> 9.805 | J83: =WINEP_Schemes!I82 -> 276351 | K83: =WINEP_Schemes!K82 -> 9.805 | L83: =WINEP_Schemes!L82 -> 1 | M83: =WINEP_Schemes!M82 -> WWN | N83: =WINEP_Schemes!N82 -> 1 | O83: 2.709621555 | P83: 2.709621555 | Q83: 0 | R83: 0 | S83: 0 | T83: 0 | U83: 0 | V83: 0
C84: =WINEP_Schemes!C83 -> YOR00902 | D84: =WINEP_Schemes!D83 -> 7YW200846 | E84: =WINEP_Schemes!E83 -> INGBIRCHWORTH STW | F84: =WINEP_Schemes!F83 -> £ per kgP/day removed | G84: =WINEP_Schemes!G83 -> 1e-06 | H84: =WINEP_Schemes!H83 -> 0 | I84: =WINEP_Schemes!J83 -> 1 | J84: =WINEP_Schemes!I83 -> 1287218 | K84: =WINEP_Schemes!K83 -> 1 | L84: =WINEP_Schemes!L83 -> 1 | M84: =WINEP_Schemes!M83 -> WWN | N84: =WINEP_Schemes!N83 -> 1 | O84: 1.287218 | P84: 1.287218 | Q84: 0 | R84: 0 | S84: 0 | T84: 0 | U84: 0 | V84: 0
C85: =WINEP_Schemes!C84 -> YOR00903 | D85: =WINEP_Schemes!D84 -> 7YW200847 | E85: =WINEP_Schemes!E84 -> CHEESEBOTTOM STW | F85: =WINEP_Schemes!F84 -> £ per km LORI | G85: =WINEP_Schemes!G84 -> 1e-06 | H85: =WINEP_Schemes!H84 -> 0 | I85: =WINEP_Schemes!J84 -> 7.747 | J85: =WINEP_Schemes!I84 -> 778365 | K85: =WINEP_Schemes!K84 -> 7.747 | L85: =WINEP_Schemes!L84 -> 1 | M85: =WINEP_Schemes!M84 -> WWN | N85: =WINEP_Schemes!N84 -> 1 | O85: 6.029993655 | P85: 6.029993655 | Q85: 0 | R85: 0 | S85: 0 | T85: 0 | U85: 0 | V85: 0
C86: =WINEP_Schemes!C85 -> YOR00904 | D86: =WINEP_Schemes!D85 -> 7YW200848 | E86: =WINEP_Schemes!E85 -> STOCKSBRIDGE/STW | F86: =WINEP_Schemes!F85 -> £ per km LORI | G86: =WINEP_Schemes!G85 -> 1e-06 | H86: =WINEP_Schemes!H85 -> 0 | I86: =WINEP_Schemes!J85 -> 23.137 | J86: =WINEP_Schemes!I85 -> 778365 | K86: =WINEP_Schemes!K85 -> 23.137 | L86: =WINEP_Schemes!L85 -> 1 | M86: =WINEP_Schemes!M85 -> WWN | N86: =WINEP_Schemes!N85 -> 1 | O86: 18.009031 | P86: 18.009031 | Q86: 0 | R86: 0 | S86: 0 | T86: 0 | U86: 0 | V86: 0
C87: =WINEP_Schemes!C86 -> YOR00906 | D87: =WINEP_Schemes!D86 -> 7YW200850 | E87: =WINEP_Schemes!E86 -> BLACKBURN MEADOWS/STW | F87: =WINEP_Schemes!F86 -> £ per km LORI | G87: =WINEP_Schemes!G86 -> 1e-06 | H87: =WINEP_Schemes!H86 -> 0 | I87: =WINEP_Schemes!J86 -> 6.528 | J87: =WINEP_Schemes!I86 -> 778365 | K87: =WINEP_Schemes!K86 -> 6.528 | L87: =WINEP_Schemes!L86 -> 1 | M87: =WINEP_Schemes!M86 -> WWN | N87: =WINEP_Schemes!N86 -> 1 | O87: 5.08116672 | P87: 5.08116672 | Q87: 0 | R87: 0 | S87: 0 | T87: 0 | U87: 0 | V87: 0
C88: =WINEP_Schemes!C87 -> YOR00913 | D88: =WINEP_Schemes!D87 -> 7YW200857 | E88: =WINEP_Schemes!E87 -> Old Whittington (Chesterfield) STW | F88: =WINEP_Schemes!F87 -> £ per km LORI | G88: =WINEP_Schemes!G87 -> 1e-06 | H88: =WINEP_Schemes!H87 -> 0 | I88: =WINEP_Schemes!J87 -> 9.268 | J88: =WINEP_Schemes!I87 -> 778365 | K88: =WINEP_Schemes!K87 -> 9.268 | L88: =WINEP_Schemes!L87 -> 1 | M88: =WINEP_Schemes!M87 -> WWN | N88: =WINEP_Schemes!N87 -> 1 | O88: 7.21388682 | P88: 7.21388682 | Q88: 0 | R88: 0 | S88: 0 | T88: 0 | U88: 0 | V88: 0
C89: =WINEP_Schemes!C88 -> YOR00914 | D89: =WINEP_Schemes!D88 -> 7YW200858 | E89: =WINEP_Schemes!E88 -> STOCKLEY/STW | F89: =WINEP_Schemes!F88 -> £ per km LORI | G89: =WINEP_Schemes!G88 -> 1e-06 | H89: =WINEP_Schemes!H88 -> 0 | I89: =WINEP_Schemes!J88 -> 2.367 | J89: =WINEP_Schemes!I88 -> 276351 | K89: =WINEP_Schemes!K88 -> 2.367 | L89: =WINEP_Schemes!L88 -> 1 | M89: =WINEP_Schemes!M88 -> WWN | N89: =WINEP_Schemes!N88 -> 1 | O89: 0.654122817 | P89: 0.654122817 | Q89: 0 | R89: 0 | S89: 0 | T89: 0 | U89: 0 | V89: 0
C90: =WINEP_Schemes!C89 -> YOR00915 | D90: =WINEP_Schemes!D89 -> 7YW200859 | E90: =WINEP_Schemes!E89 -> BOLSOVER/STW | F90: =WINEP_Schemes!F89 -> £ per km LORI | G90: =WINEP_Schemes!G89 -> 1e-06 | H90: =WINEP_Schemes!H89 -> 0 | I90: =WINEP_Schemes!J89 -> 7.796 | J90: =WINEP_Schemes!I89 -> 778365 | K90: =WINEP_Schemes!K89 -> 7.796 | L90: =WINEP_Schemes!L89 -> 1 | M90: =WINEP_Schemes!M89 -> WWN | N90: =WINEP_Schemes!N89 -> 1 | O90: 6.06813354 | P90: 6.06813354 | Q90: 0 | R90: 0 | S90: 0 | T90: 0 | U90: 0 | V90: 0
C91: =WINEP_Schemes!C90 -> YOR00916 | D91: =WINEP_Schemes!D90 -> 7YW200860 | E91: =WINEP_Schemes!E90 -> STAVELEY/STW | F91: =WINEP_Schemes!F90 -> £ per km LORI | G91: =WINEP_Schemes!G90 -> 1e-06 | H91: =WINEP_Schemes!H90 -> 0 | I91: =WINEP_Schemes!J90 -> 12.934 | J91: =WINEP_Schemes!I90 -> 778365 | K91: =WINEP_Schemes!K90 -> 12.934 | L91: =WINEP_Schemes!L90 -> 1 | M91: =WINEP_Schemes!M90 -> WWN | N91: =WINEP_Schemes!N90 -> 1 | O91: 10.06737291 | P91: 10.06737291 | Q91: 0 | R91: 0 | S91: 0 | T91: 0 | U91: 0 | V91: 0
C92: =WINEP_Schemes!C91 -> YOR00917 | D92: =WINEP_Schemes!D91 -> 7YW200861 | E92: =WINEP_Schemes!E91 -> WOODHOUSE MILL WwTW | F92: =WINEP_Schemes!F91 -> £ per km LORI | G92: =WINEP_Schemes!G91 -> 1e-06 | H92: =WINEP_Schemes!H91 -> 0 | I92: =WINEP_Schemes!J91 -> 4.275 | J92: =WINEP_Schemes!I91 -> 778365 | K92: =WINEP_Schemes!K91 -> 4.275 | L92: =WINEP_Schemes!L91 -> 1 | M92: =WINEP_Schemes!M91 -> WWN | N92: =WINEP_Schemes!N91 -> 1 | O92: 3.327510375 | P92: 3.327510375 | Q92: 0 | R92: 0 | S92: 0 | T92: 0 | U92: 0 | V92: 0
C93: =WINEP_Schemes!C92 -> YOR00918 | D93: =WINEP_Schemes!D92 -> 7YW200862 | E93: =WINEP_Schemes!E92 -> LONG LANE/STW | F93: =WINEP_Schemes!F92 -> £ per km LORI | G93: =WINEP_Schemes!G92 -> 1e-06 | H93: =WINEP_Schemes!H92 -> 0 | I93: =WINEP_Schemes!J92 -> 4.236 | J93: =WINEP_Schemes!I92 -> 778365 | K93: =WINEP_Schemes!K92 -> 4.236 | L93: =WINEP_Schemes!L92 -> 1 | M93: =WINEP_Schemes!M92 -> WWN | N93: =WINEP_Schemes!N92 -> 1 | O93: 3.29715414 | P93: 3.29715414 | Q93: 0 | R93: 0 | S93: 0 | T93: 0 | U93: 0 | V93: 0
C94: =WINEP_Schemes!C93 -> YOR00919 | D94: =WINEP_Schemes!D93 -> 7YW200863 | E94: =WINEP_Schemes!E93 -> ALDWARKE/STW | F94: =WINEP_Schemes!F93 -> £ per km LORI | G94: =WINEP_Schemes!G93 -> 1e-06 | H94: =WINEP_Schemes!H93 -> 0 | I94: =WINEP_Schemes!J93 -> 7.06 | J94: =WINEP_Schemes!I93 -> 778365 | K94: =WINEP_Schemes!K93 -> 7.06 | L94: =WINEP_Schemes!L93 -> 1 | M94: =WINEP_Schemes!M93 -> WWN | N94: =WINEP_Schemes!N93 -> 1 | O94: 5.4952569 | P94: 5.4952569 | Q94: 0 | R94: 0 | S94: 0 | T94: 0 | U94: 0 | V94: 0
C95: =WINEP_Schemes!C94 -> YOR00920 | D95: =WINEP_Schemes!D94 -> 7YW200864 | E95: =WINEP_Schemes!E94 -> MEXBORO SWINTON/STW | F95: =WINEP_Schemes!F94 -> £ per km LORI | G95: =WINEP_Schemes!G94 -> 1e-06 | H95: =WINEP_Schemes!H94 -> 0 | I95: =WINEP_Schemes!J94 -> 3.06 | J95: =WINEP_Schemes!I94 -> 778365 | K95: =WINEP_Schemes!K94 -> 3.06 | L95: =WINEP_Schemes!L94 -> 1 | M95: =WINEP_Schemes!M94 -> WWN | N95: =WINEP_Schemes!N94 -> 1 | O95: 2.3817969 | P95: 2.3817969 | Q95: 0 | R95: 0 | S95: 0 | T95: 0 | U95: 0 | V95: 0
C96: =WINEP_Schemes!C95 -> YOR00921 | D96: =WINEP_Schemes!D95 -> 7YW200865 | E96: =WINEP_Schemes!E95 -> DENABY WTW | F96: =WINEP_Schemes!F95 -> £ per km LORI | G96: =WINEP_Schemes!G95 -> 1e-06 | H96: =WINEP_Schemes!H95 -> 0 | I96: =WINEP_Schemes!J95 -> 13.416 | J96: =WINEP_Schemes!I95 -> 778365 | K96: =WINEP_Schemes!K95 -> 13.416 | L96: =WINEP_Schemes!L95 -> 1 | M96: =WINEP_Schemes!M95 -> WWN | N96: =WINEP_Schemes!N95 -> 1 | O96: 10.44254484 | P96: 10.44254484 | Q96: 0 | R96: 0 | S96: 0 | T96: 0 | U96: 0 | V96: 0
C97: =WINEP_Schemes!C96 -> YOR00922 | D97: =WINEP_Schemes!D96 -> 7YW200866 | E97: =WINEP_Schemes!E96 -> Clifton STW | F97: =WINEP_Schemes!F96 -> £ per km LORI | G97: =WINEP_Schemes!G96 -> 1e-06 | H97: =WINEP_Schemes!H96 -> 0 | I97: =WINEP_Schemes!J96 -> 0 | J97: =WINEP_Schemes!I96 -> 276351 | K97: =WINEP_Schemes!K96 -> 0 | L97: =WINEP_Schemes!L96 -> 1 | M97: =WINEP_Schemes!M96 -> WWN | N97: =WINEP_Schemes!N96 -> 0 | O97: 0 | P97: 0 | Q97: 0 | R97: 0 | S97: 0 | T97: 0 | U97: 0 | V97: 0
C98: =WINEP_Schemes!C97 -> YOR00923 | D98: =WINEP_Schemes!D97 -> 7YW200867 | E98: =WINEP_Schemes!E97 -> BENTLEY/STW P Removal | F98: =WINEP_Schemes!F97 -> £ per km LORI | G98: =WINEP_Schemes!G97 -> 1e-06 | H98: =WINEP_Schemes!H97 -> 0 | I98: =WINEP_Schemes!J97 -> 3.43 | J98: =WINEP_Schemes!I97 -> 778365 | K98: =WINEP_Schemes!K97 -> 3.43 | L98: =WINEP_Schemes!L97 -> 1 | M98: =WINEP_Schemes!M97 -> WWN | N98: =WINEP_Schemes!N97 -> 1 | O98: 2.66979195 | P98: 2.66979195 | Q98: 0 | R98: 0 | S98: 0 | T98: 0 | U98: 0 | V98: 0
C99: =WINEP_Schemes!C98 -> YOR00928 | D99: =WINEP_Schemes!D98 -> 7YW200872 | E99: =WINEP_Schemes!E98 -> KIRK SMEATON/STW | F99: =WINEP_Schemes!F98 -> £ per kgP/day removed | G99: =WINEP_Schemes!G98 -> 1e-06 | H99: =WINEP_Schemes!H98 -> 0 | I99: =WINEP_Schemes!J98 -> 2 | J99: =WINEP_Schemes!I98 -> 1287218 | K99: =WINEP_Schemes!K98 -> 2 | L99: =WINEP_Schemes!L98 -> 1 | M99: =WINEP_Schemes!M98 -> WWN | N99: =WINEP_Schemes!N98 -> 1 | O99: 2.574436 | P99: 2.574436 | Q99: 0 | R99: 0 | S99: 0 | T99: 0 | U99: 0 | V99: 0
C100: =WINEP_Schemes!C99 -> YOR00966 | D100: =WINEP_Schemes!D99 -> 7YW200910 | E100: =WINEP_Schemes!E99 -> Adwick Le Street | F100: =WINEP_Schemes!F99 -> £ per km LORI | G100: =WINEP_Schemes!G99 -> 1e-06 | H100: =WINEP_Schemes!H99 -> 0 | I100: =WINEP_Schemes!J99 -> 0 | J100: =WINEP_Schemes!I99 -> 778365 | K100: =WINEP_Schemes!K99 -> 0 | L100: =WINEP_Schemes!L99 -> 1 | M100: =WINEP_Schemes!M99 -> WWN | N100: =WINEP_Schemes!N99 -> 0 | O100: 0 | P100: 0 | Q100: 0 | R100: 0 | S100: 0 | T100: 0 | U100: 0 | V100: 0
C101: =WINEP_Schemes!C100 -> YOR00967 | D101: =WINEP_Schemes!D100 -> 7YW200911 | E101: =WINEP_Schemes!E100 -> ALDWARKE/STW | F101: =WINEP_Schemes!F100 -> £ per km LORI | G101: =WINEP_Schemes!G100 -> 1e-06 | H101: =WINEP_Schemes!H100 -> 0 | I101: =WINEP_Schemes!J100 -> 0 | J101: =WINEP_Schemes!I100 -> 778365 | K101: =WINEP_Schemes!K100 -> 0 | L101: =WINEP_Schemes!L100 -> 1 | M101: =WINEP_Schemes!M100 -> WWN | N101: =WINEP_Schemes!N100 -> 0 | O101: 0 | P101: 0 | Q101: 0 | R101: 0 | S101: 0 | T101: 0 | U101: 0 | V101: 0
C102: =WINEP_Schemes!C101 -> YOR00968 | D102: =WINEP_Schemes!D101 -> 7YW200912 | E102: =WINEP_Schemes!E101 -> BENTLEY/STW P Removal | F102: =WINEP_Schemes!F101 -> £ per km LORI | G102: =WINEP_Schemes!G101 -> 1e-06 | H102: =WINEP_Schemes!H101 -> 0 | I102: =WINEP_Schemes!J101 -> 0 | J102: =WINEP_Schemes!I101 -> 778365 | K102: =WINEP_Schemes!K101 -> 0 | L102: =WINEP_Schemes!L101 -> 1 | M102: =WINEP_Schemes!M101 -> WWN | N102: =WINEP_Schemes!N101 -> 0 | O102: 0 | P102: 0 | Q102: 0 | R102: 0 | S102: 0 | T102: 0 | U102: 0 | V102: 0
C103: =WINEP_Schemes!C102 -> YOR00969 | D103: =WINEP_Schemes!D102 -> 7YW200913 | E103: =WINEP_Schemes!E102 -> BLACKBURN MEADOWS/STW | F103: =WINEP_Schemes!F102 -> £ per km LORI | G103: =WINEP_Schemes!G102 -> 1e-06 | H103: =WINEP_Schemes!H102 -> 0 | I103: =WINEP_Schemes!J102 -> 0 | J103: =WINEP_Schemes!I102 -> 778365 | K103: =WINEP_Schemes!K102 -> 0 | L103: =WINEP_Schemes!L102 -> 1 | M103: =WINEP_Schemes!M102 -> WWN | N103: =WINEP_Schemes!N102 -> 0 | O103: 0 | P103: 0 | Q103: 0 | R103: 0 | S103: 0 | T103: 0 | U103: 0 | V103: 0
C104: =WINEP_Schemes!C103 -> YOR00970 | D104: =WINEP_Schemes!D103 -> 7YW200914 | E104: =WINEP_Schemes!E103 -> BOLSOVER/STW | F104: =WINEP_Schemes!F103 -> £ per km LORI | G104: =WINEP_Schemes!G103 -> 1e-06 | H104: =WINEP_Schemes!H103 -> 0 | I104: =WINEP_Schemes!J103 -> 0 | J104: =WINEP_Schemes!I103 -> 778365 | K104: =WINEP_Schemes!K103 -> 0 | L104: =WINEP_Schemes!L103 -> 1 | M104: =WINEP_Schemes!M103 -> WWN | N104: =WINEP_Schemes!N103 -> 0 | O104: 0 | P104: 0 | Q104: 0 | R104: 0 | S104: 0 | T104: 0 | U104: 0 | V104: 0
C105: =WINEP_Schemes!C104 -> YOR00971 | D105: =WINEP_Schemes!D104 -> 7YW200915 | E105: =WINEP_Schemes!E104 -> BOLTON ON DEARNE/STW | F105: =WINEP_Schemes!F104 -> £ per km LORI | G105: =WINEP_Schemes!G104 -> 1e-06 | H105: =WINEP_Schemes!H104 -> 0 | I105: =WINEP_Schemes!J104 -> 5.862 | J105: =WINEP_Schemes!I104 -> 502014 | K105: =WINEP_Schemes!K104 -> 5.862 | L105: =WINEP_Schemes!L104 -> 1 | M105: =WINEP_Schemes!M104 -> WWN | N105: =WINEP_Schemes!N104 -> 1 | O105: 2.942806068 | P105: 2.942806068 | Q105: 0 | R105: 0 | S105: 0 | T105: 0 | U105: 0 | V105: 0
C106: =WINEP_Schemes!C105 -> YOR00972 | D106: =WINEP_Schemes!D105 -> 7YW200916 | E106: =WINEP_Schemes!E105 -> BRADFORD ESHOLT/NO 2 STW | F106: =WINEP_Schemes!F105 -> £ per km LORI | G106: =WINEP_Schemes!G105 -> 1e-06 | H106: =WINEP_Schemes!H105 -> 0 | I106: =WINEP_Schemes!J105 -> 0 | J106: =WINEP_Schemes!I105 -> 778365 | K106: =WINEP_Schemes!K105 -> 0 | L106: =WINEP_Schemes!L105 -> 1 | M106: =WINEP_Schemes!M105 -> WWN | N106: =WINEP_Schemes!N105 -> 0 | O106: 0 | P106: 0 | Q106: 0 | R106: 0 | S106: 0 | T106: 0 | U106: 0 | V106: 0
C107: =WINEP_Schemes!C106 -> YOR00973 | D107: =WINEP_Schemes!D106 -> 7YW200917 | E107: =WINEP_Schemes!E106 -> CALDER VALE/STW | F107: =WINEP_Schemes!F106 -> £ per km LORI | G107: =WINEP_Schemes!G106 -> 1e-06 | H107: =WINEP_Schemes!H106 -> 0 | I107: =WINEP_Schemes!J106 -> 0 | J107: =WINEP_Schemes!I106 -> 778365 | K107: =WINEP_Schemes!K106 -> 0 | L107: =WINEP_Schemes!L106 -> 1 | M107: =WINEP_Schemes!M106 -> WWN | N107: =WINEP_Schemes!N106 -> 0 | O107: 0 | P107: 0 | Q107: 0 | R107: 0 | S107: 0 | T107: 0 | U107: 0 | V107: 0
C108: =WINEP_Schemes!C107 -> YOR00974 | D108: =WINEP_Schemes!D107 -> 7YW200918 | E108: =WINEP_Schemes!E107 -> CASTLEFORD/STW | F108: =WINEP_Schemes!F107 -> £ per km LORI | G108: =WINEP_Schemes!G107 -> 1e-06 | H108: =WINEP_Schemes!H107 -> 0 | I108: =WINEP_Schemes!J107 -> 5.297 | J108: =WINEP_Schemes!I107 -> 778365 | K108: =WINEP_Schemes!K107 -> 5.297 | L108: =WINEP_Schemes!L107 -> 1 | M108: =WINEP_Schemes!M107 -> WWN | N108: =WINEP_Schemes!N107 -> 1 | O108: 4.122999405 | P108: 4.122999405 | Q108: 0 | R108: 0 | S108: 0 | T108: 0 | U108: 0 | V108: 0
C109: =WINEP_Schemes!C108 -> YOR00975 | D109: =WINEP_Schemes!D108 -> 7YW200919 | E109: =WINEP_Schemes!E108 -> CHEESEBOTTOM STW | F109: =WINEP_Schemes!F108 -> £ per km LORI | G109: =WINEP_Schemes!G108 -> 1e-06 | H109: =WINEP_Schemes!H108 -> 0 | I109: =WINEP_Schemes!J108 -> 0 | J109: =WINEP_Schemes!I108 -> 778365 | K109: =WINEP_Schemes!K108 -> 0 | L109: =WINEP_Schemes!L108 -> 1 | M109: =WINEP_Schemes!M108 -> WWN | N109: =WINEP_Schemes!N108 -> 0 | O109: 0 | P109: 0 | Q109: 0 | R109: 0 | S109: 0 | T109: 0 | U109: 0 | V109: 0
C110: =WINEP_Schemes!C109 -> YOR00976 | D110: =WINEP_Schemes!D109 -> 7YW200920 | E110: =WINEP_Schemes!E109 -> CLAYTON WEST/STW | F110: =WINEP_Schemes!F109 -> £ per km LORI | G110: =WINEP_Schemes!G109 -> 1e-06 | H110: =WINEP_Schemes!H109 -> 0 | I110: =WINEP_Schemes!J109 -> 0 | J110: =WINEP_Schemes!I109 -> 778365 | K110: =WINEP_Schemes!K109 -> 0 | L110: =WINEP_Schemes!L109 -> 1 | M110: =WINEP_Schemes!M109 -> WWN | N110: =WINEP_Schemes!N109 -> 0 | O110: 0 | P110: 0 | Q110: 0 | R110: 0 | S110: 0 | T110: 0 | U110: 0 | V110: 0
C111: =WINEP_Schemes!C110 -> YOR00977 | D111: =WINEP_Schemes!D110 -> 7YW200921 | E111: =WINEP_Schemes!E110 -> DARTON/STW | F111: =WINEP_Schemes!F110 -> £ per km LORI | G111: =WINEP_Schemes!G110 -> 1e-06 | H111: =WINEP_Schemes!H110 -> 0 | I111: =WINEP_Schemes!J110 -> 7.718 | J111: =WINEP_Schemes!I110 -> 502014 | K111: =WINEP_Schemes!K110 -> 7.718 | L111: =WINEP_Schemes!L110 -> 1 | M111: =WINEP_Schemes!M110 -> WWN | N111: =WINEP_Schemes!N110 -> 1 | O111: 3.874544052 | P111: 3.874544052 | Q111: 0 | R111: 0 | S111: 0 | T111: 0 | U111: 0 | V111: 0
C112: =WINEP_Schemes!C111 -> YOR00978 | D112: =WINEP_Schemes!D111 -> 7YW200922 | E112: =WINEP_Schemes!E111 -> DENABY WTW | F112: =WINEP_Schemes!F111 -> £ per km LORI | G112: =WINEP_Schemes!G111 -> 1e-06 | H112: =WINEP_Schemes!H111 -> 0 | I112: =WINEP_Schemes!J111 -> 0 | J112: =WINEP_Schemes!I111 -> 778365 | K112: =WINEP_Schemes!K111 -> 0 | L112: =WINEP_Schemes!L111 -> 1 | M112: =WINEP_Schemes!M111 -> WWN | N112: =WINEP_Schemes!N111 -> 0 | O112: 0 | P112: 0 | Q112: 0 | R112: 0 | S112: 0 | T112: 0 | U112: 0 | V112: 0
C113: =WINEP_Schemes!C112 -> YOR00979 | D113: =WINEP_Schemes!D112 -> 7YW200923 | E113: =WINEP_Schemes!E112 -> DEWSBURY/STW | F113: =WINEP_Schemes!F112 -> £ per km LORI | G113: =WINEP_Schemes!G112 -> 1e-06 | H113: =WINEP_Schemes!H112 -> 0 | I113: =WINEP_Schemes!J112 -> 0 | J113: =WINEP_Schemes!I112 -> 778365 | K113: =WINEP_Schemes!K112 -> 0 | L113: =WINEP_Schemes!L112 -> 1 | M113: =WINEP_Schemes!M112 -> WWN | N113: =WINEP_Schemes!N112 -> 0 | O113: 0 | P113: 0 | Q113: 0 | R113: 0 | S113: 0 | T113: 0 | U113: 0 | V113: 0
C114: =WINEP_Schemes!C113 -> YOR00980 | D114: =WINEP_Schemes!D113 -> 7YW200924 | E114: =WINEP_Schemes!E113 -> DOWLEY GAP (BINGLEY) | F114: =WINEP_Schemes!F113 -> £ per km LORI | G114: =WINEP_Schemes!G113 -> 1e-06 | H114: =WINEP_Schemes!H113 -> 0 | I114: =WINEP_Schemes!J113 -> 0 | J114: =WINEP_Schemes!I113 -> 778365 | K114: =WINEP_Schemes!K113 -> 0 | L114: =WINEP_Schemes!L113 -> 1 | M114: =WINEP_Schemes!M113 -> WWN | N114: =WINEP_Schemes!N113 -> 0 | O114: 0 | P114: 0 | Q114: 0 | R114: 0 | S114: 0 | T114: 0 | U114: 0 | V114: 0
C115: =WINEP_Schemes!C114 -> YOR00981 | D115: =WINEP_Schemes!D114 -> 7YW200925 | E115: =WINEP_Schemes!E114 -> DRONFIELD/STW | F115: =WINEP_Schemes!F114 -> £ per km LORI | G115: =WINEP_Schemes!G114 -> 1e-06 | H115: =WINEP_Schemes!H114 -> 0 | I115: =WINEP_Schemes!J114 -> 0 | J115: =WINEP_Schemes!I114 -> 778365 | K115: =WINEP_Schemes!K114 -> 0 | L115: =WINEP_Schemes!L114 -> 1 | M115: =WINEP_Schemes!M114 -> WWN | N115: =WINEP_Schemes!N114 -> 0 | O115: 0 | P115: 0 | Q115: 0 | R115: 0 | S115: 0 | T115: 0 | U115: 0 | V115: 0
C116: =WINEP_Schemes!C115 -> YOR00982 | D116: =WINEP_Schemes!D115 -> 7YW200926 | E116: =WINEP_Schemes!E115 -> OWLWOOD (GARFORTH) STW | F116: =WINEP_Schemes!F115 -> £ per km LORI | G116: =WINEP_Schemes!G115 -> 1e-06 | H116: =WINEP_Schemes!H115 -> 0 | I116: =WINEP_Schemes!J115 -> 0 | J116: =WINEP_Schemes!I115 -> 778365 | K116: =WINEP_Schemes!K115 -> 0 | L116: =WINEP_Schemes!L115 -> 1 | M116: =WINEP_Schemes!M115 -> WWN | N116: =WINEP_Schemes!N115 -> 0 | O116: 0 | P116: 0 | Q116: 0 | R116: 0 | S116: 0 | T116: 0 | U116: 0 | V116: 0
C117: =WINEP_Schemes!C116 -> YOR00983 | D117: =WINEP_Schemes!D116 -> 7YW200927 | E117: =WINEP_Schemes!E116 -> GRIMETHORPE/STW | F117: =WINEP_Schemes!F116 -> £ per km LORI | G117: =WINEP_Schemes!G116 -> 1e-06 | H117: =WINEP_Schemes!H116 -> 0 | I117: =WINEP_Schemes!J116 -> 0 | J117: =WINEP_Schemes!I116 -> 778365 | K117: =WINEP_Schemes!K116 -> 0 | L117: =WINEP_Schemes!L116 -> 1 | M117: =WINEP_Schemes!M116 -> WWN | N117: =WINEP_Schemes!N116 -> 0 | O117: 0 | P117: 0 | Q117: 0 | R117: 0 | S117: 0 | T117: 0 | U117: 0 | V117: 0
C118: =WINEP_Schemes!C117 -> YOR00984 | D118: =WINEP_Schemes!D117 -> 7YW200928 | E118: =WINEP_Schemes!E117 -> HARROGATE SOUTH/STW | F118: =WINEP_Schemes!F117 -> £ per km LORI | G118: =WINEP_Schemes!G117 -> 1e-06 | H118: =WINEP_Schemes!H117 -> 0 | I118: =WINEP_Schemes!J117 -> 0 | J118: =WINEP_Schemes!I117 -> 778365 | K118: =WINEP_Schemes!K117 -> 0 | L118: =WINEP_Schemes!L117 -> 1 | M118: =WINEP_Schemes!M117 -> WWN | N118: =WINEP_Schemes!N117 -> 0 | O118: 0 | P118: 0 | Q118: 0 | R118: 0 | S118: 0 | T118: 0 | U118: 0 | V118: 0
C119: =WINEP_Schemes!C118 -> YOR00985 | D119: =WINEP_Schemes!D118 -> 7YW200929 | E119: =WINEP_Schemes!E118 -> HORBURY (DUDFLEET) STW | F119: =WINEP_Schemes!F118 -> £ per km LORI | G119: =WINEP_Schemes!G118 -> 1e-06 | H119: =WINEP_Schemes!H118 -> 0 | I119: =WINEP_Schemes!J118 -> 0 | J119: =WINEP_Schemes!I118 -> 778365 | K119: =WINEP_Schemes!K118 -> 0 | L119: =WINEP_Schemes!L118 -> 1 | M119: =WINEP_Schemes!M118 -> WWN | N119: =WINEP_Schemes!N118 -> 0 | O119: 0 | P119: 0 | Q119: 0 | R119: 0 | S119: 0 | T119: 0 | U119: 0 | V119: 0
C120: =WINEP_Schemes!C119 -> YOR00986 | D120: =WINEP_Schemes!D119 -> 7YW200930 | E120: =WINEP_Schemes!E119 -> HUDDERSFIELD STW Cooper Bridge | F120: =WINEP_Schemes!F119 -> £ per km LORI | G120: =WINEP_Schemes!G119 -> 1e-06 | H120: =WINEP_Schemes!H119 -> 0 | I120: =WINEP_Schemes!J119 -> 0 | J120: =WINEP_Schemes!I119 -> 778365 | K120: =WINEP_Schemes!K119 -> 0 | L120: =WINEP_Schemes!L119 -> 1 | M120: =WINEP_Schemes!M119 -> WWN | N120: =WINEP_Schemes!N119 -> 0 | O120: 0 | P120: 0 | Q120: 0 | R120: 0 | S120: 0 | T120: 0 | U120: 0 | V120: 0
C121: =WINEP_Schemes!C120 -> YOR00987 | D121: =WINEP_Schemes!D120 -> 7YW200931 | E121: =WINEP_Schemes!E120 -> KNOSTROP WWTW | F121: =WINEP_Schemes!F120 -> £ per km LORI | G121: =WINEP_Schemes!G120 -> 1e-06 | H121: =WINEP_Schemes!H120 -> 0 | I121: =WINEP_Schemes!J120 -> 0 | J121: =WINEP_Schemes!I120 -> 778365 | K121: =WINEP_Schemes!K120 -> 0 | L121: =WINEP_Schemes!L120 -> 1 | M121: =WINEP_Schemes!M120 -> WWN | N121: =WINEP_Schemes!N120 -> 0 | O121: 0 | P121: 0 | Q121: 0 | R121: 0 | S121: 0 | T121: 0 | U121: 0 | V121: 0
C122: =WINEP_Schemes!C121 -> YOR00988 | D122: =WINEP_Schemes!D121 -> 7YW200932 | E122: =WINEP_Schemes!E121 -> LEMONROYD STW | F122: =WINEP_Schemes!F121 -> £ per km LORI | G122: =WINEP_Schemes!G121 -> 1e-06 | H122: =WINEP_Schemes!H121 -> 0 | I122: =WINEP_Schemes!J121 -> 0 | J122: =WINEP_Schemes!I121 -> 778365 | K122: =WINEP_Schemes!K121 -> 0 | L122: =WINEP_Schemes!L121 -> 1 | M122: =WINEP_Schemes!M121 -> WWN | N122: =WINEP_Schemes!N121 -> 0 | O122: 0 | P122: 0 | Q122: 0 | R122: 0 | S122: 0 | T122: 0 | U122: 0 | V122: 0
C123: =WINEP_Schemes!C122 -> YOR00989 | D123: =WINEP_Schemes!D122 -> 7YW200933 | E123: =WINEP_Schemes!E122 -> LONG LANE/STW | F123: =WINEP_Schemes!F122 -> £ per km LORI | G123: =WINEP_Schemes!G122 -> 1e-06 | H123: =WINEP_Schemes!H122 -> 0 | I123: =WINEP_Schemes!J122 -> 0 | J123: =WINEP_Schemes!I122 -> 778365 | K123: =WINEP_Schemes!K122 -> 0 | L123: =WINEP_Schemes!L122 -> 1 | M123: =WINEP_Schemes!M122 -> WWN | N123: =WINEP_Schemes!N122 -> 0 | O123: 0 | P123: 0 | Q123: 0 | R123: 0 | S123: 0 | T123: 0 | U123: 0 | V123: 0
C124: =WINEP_Schemes!C123 -> YOR00990 | D124: =WINEP_Schemes!D123 -> 7YW200934 | E124: =WINEP_Schemes!E123 -> LUNDWOOD STW | F124: =WINEP_Schemes!F123 -> £ per km LORI | G124: =WINEP_Schemes!G123 -> 1e-06 | H124: =WINEP_Schemes!H123 -> 0 | I124: =WINEP_Schemes!J123 -> 2.015 | J124: =WINEP_Schemes!I123 -> 502014 | K124: =WINEP_Schemes!K123 -> 2.015 | L124: =WINEP_Schemes!L123 -> 1 | M124: =WINEP_Schemes!M123 -> WWN | N124: =WINEP_Schemes!N123 -> 1 | O124: 1.01155821 | P124: 1.01155821 | Q124: 0 | R124: 0 | S124: 0 | T124: 0 | U124: 0 | V124: 0
C125: =WINEP_Schemes!C124 -> YOR00991 | D125: =WINEP_Schemes!D124 -> 7YW200935 | E125: =WINEP_Schemes!E124 -> NORMANTON/STW (Mill Lane) | F125: =WINEP_Schemes!F124 -> £ per km LORI | G125: =WINEP_Schemes!G124 -> 1e-06 | H125: =WINEP_Schemes!H124 -> 0 | I125: =WINEP_Schemes!J124 -> 0 | J125: =WINEP_Schemes!I124 -> 778365 | K125: =WINEP_Schemes!K124 -> 0 | L125: =WINEP_Schemes!L124 -> 1 | M125: =WINEP_Schemes!M124 -> WWN | N125: =WINEP_Schemes!N124 -> 0 | O125: 0 | P125: 0 | Q125: 0 | R125: 0 | S125: 0 | T125: 0 | U125: 0 | V125: 0
C126: =WINEP_Schemes!C125 -> YOR00992 | D126: =WINEP_Schemes!D125 -> 7YW200936 | E126: =WINEP_Schemes!E125 -> Norton (Askern) WwTW | F126: =WINEP_Schemes!F125 -> £ per km LORI | G126: =WINEP_Schemes!G125 -> 1e-06 | H126: =WINEP_Schemes!H125 -> 0 | I126: =WINEP_Schemes!J125 -> 0 | J126: =WINEP_Schemes!I125 -> 778365 | K126: =WINEP_Schemes!K125 -> 0 | L126: =WINEP_Schemes!L125 -> 1 | M126: =WINEP_Schemes!M125 -> WWN | N126: =WINEP_Schemes!N125 -> 0 | O126: 0 | P126: 0 | Q126: 0 | R126: 0 | S126: 0 | T126: 0 | U126: 0 | V126: 0
C127: =WINEP_Schemes!C126 -> YOR00993 | D127: =WINEP_Schemes!D126 -> 7YW200937 | E127: =WINEP_Schemes!E126 -> Old Whittington (Chesterfield) STW | F127: =WINEP_Schemes!F126 -> £ per km LORI | G127: =WINEP_Schemes!G126 -> 1e-06 | H127: =WINEP_Schemes!H126 -> 0 | I127: =WINEP_Schemes!J126 -> 0 | J127: =WINEP_Schemes!I126 -> 778365 | K127: =WINEP_Schemes!K126 -> 0 | L127: =WINEP_Schemes!L126 -> 1 | M127: =WINEP_Schemes!M126 -> WWN | N127: =WINEP_Schemes!N126 -> 0 | O127: 0 | P127: 0 | Q127: 0 | R127: 0 | S127: 0 | T127: 0 | U127: 0 | V127: 0
C128: =WINEP_Schemes!C127 -> YOR00994 | D128: =WINEP_Schemes!D127 -> 7YW200938 | E128: =WINEP_Schemes!E127 -> SANDALL/STW | F128: =WINEP_Schemes!F127 -> £ per km LORI | G128: =WINEP_Schemes!G127 -> 1e-06 | H128: =WINEP_Schemes!H127 -> 0 | I128: =WINEP_Schemes!J127 -> 14.064 | J128: =WINEP_Schemes!I127 -> 502014 | K128: =WINEP_Schemes!K127 -> 14.064 | L128: =WINEP_Schemes!L127 -> 1 | M128: =WINEP_Schemes!M127 -> WWN | N128: =WINEP_Schemes!N127 -> 1 | O128: 7.060324896 | P128: 7.060324896 | Q128: 0 | R128: 0 | S128: 0 | T128: 0 | U128: 0 | V128: 0
C129: =WINEP_Schemes!C128 -> YOR00995 | D129: =WINEP_Schemes!D128 -> 7YW200939 | E129: =WINEP_Schemes!E128 -> SHERBURN IN ELMET/STW | F129: =WINEP_Schemes!F128 -> £ per km LORI | G129: =WINEP_Schemes!G128 -> 1e-06 | H129: =WINEP_Schemes!H128 -> 0 | I129: =WINEP_Schemes!J128 -> 0 | J129: =WINEP_Schemes!I128 -> 778365 | K129: =WINEP_Schemes!K128 -> 0 | L129: =WINEP_Schemes!L128 -> 1 | M129: =WINEP_Schemes!M128 -> WWN | N129: =WINEP_Schemes!N128 -> 0 | O129: 0 | P129: 0 | Q129: 0 | R129: 0 | S129: 0 | T129: 0 | U129: 0 | V129: 0
C130: =WINEP_Schemes!C129 -> YOR00996 | D130: =WINEP_Schemes!D129 -> 7YW200940 | E130: =WINEP_Schemes!E129 -> SNAITH/STW | F130: =WINEP_Schemes!F129 -> £ per km LORI | G130: =WINEP_Schemes!G129 -> 1e-06 | H130: =WINEP_Schemes!H129 -> 0 | I130: =WINEP_Schemes!J129 -> 15.475 | J130: =WINEP_Schemes!I129 -> 502014 | K130: =WINEP_Schemes!K129 -> 15.475 | L130: =WINEP_Schemes!L129 -> 1 | M130: =WINEP_Schemes!M129 -> WWN | N130: =WINEP_Schemes!N129 -> 1 | O130: 7.76866665 | P130: 7.76866665 | Q130: 0 | R130: =IF($M130 = R$9, $Q130, 0) -> 0 | S130: 0 | T130: 0 | U130: 0 | V130: 0
C131: =WINEP_Schemes!C130 -> YOR00997 | D131: =WINEP_Schemes!D130 -> 7YW200941 | E131: =WINEP_Schemes!E130 -> SOUTH ELMSALL/STW | F131: =WINEP_Schemes!F130 -> £ per km LORI | G131: =WINEP_Schemes!G130 -> 1e-06 | H131: =WINEP_Schemes!H130 -> 0 | I131: =WINEP_Schemes!J130 -> 0 | J131: =WINEP_Schemes!I130 -> 778365 | K131: =WINEP_Schemes!K130 -> 0 | L131: =WINEP_Schemes!L130 -> 1 | M131: =WINEP_Schemes!M130 -> WWN | N131: =WINEP_Schemes!N130 -> 0 | O131: 0 | P131: 0 | Q131: 0 | R131: 0 | S131: 0 | T131: 0 | U131: 0 | V131: 0
C132: =WINEP_Schemes!C131 -> YOR00998 | D132: =WINEP_Schemes!D131 -> 7YW200942 | E132: =WINEP_Schemes!E131 -> Stanley (Smalley Bight) STW | F132: =WINEP_Schemes!F131 -> £ per km LORI | G132: =WINEP_Schemes!G131 -> 1e-06 | H132: =WINEP_Schemes!H131 -> 0 | I132: =WINEP_Schemes!J131 -> 0 | J132: =WINEP_Schemes!I131 -> 778365 | K132: =WINEP_Schemes!K131 -> 0 | L132: =WINEP_Schemes!L131 -> 1 | M132: =WINEP_Schemes!M131 -> WWN | N132: =WINEP_Schemes!N131 -> 0 | O132: 0 | P132: 0 | Q132: 0 | R132: 0 | S132: 0 | T132: 0 | U132: 0 | V132: 0
C133: =WINEP_Schemes!C132 -> YOR00999 | D133: =WINEP_Schemes!D132 -> 7YW200943 | E133: =WINEP_Schemes!E132 -> STAVELEY/STW | F133: =WINEP_Schemes!F132 -> £ per km LORI | G133: =WINEP_Schemes!G132 -> 1e-06 | H133: =WINEP_Schemes!H132 -> 0 | I133: =WINEP_Schemes!J132 -> 0 | J133: =WINEP_Schemes!I132 -> 778365 | K133: =WINEP_Schemes!K132 -> 0 | L133: =WINEP_Schemes!L132 -> 1 | M133: =WINEP_Schemes!M132 -> WWN | N133: =WINEP_Schemes!N132 -> 0 | O133: 0 | P133: 0 | Q133: 0 | R133: 0 | S133: 0 | T133: 0 | U133: 0 | V133: 0
C134: =WINEP_Schemes!C133 -> YOR01000 | D134: =WINEP_Schemes!D133 -> 7YW200944 | E134: =WINEP_Schemes!E133 -> STOCKSBRIDGE/STW | F134: =WINEP_Schemes!F133 -> £ per km LORI | G134: =WINEP_Schemes!G133 -> 1e-06 | H134: =WINEP_Schemes!H133 -> 0 | I134: =WINEP_Schemes!J133 -> 0 | J134: =WINEP_Schemes!I133 -> 778365 | K134: =WINEP_Schemes!K133 -> 0 | L134: =WINEP_Schemes!L133 -> 1 | M134: =WINEP_Schemes!M133 -> WWN | N134: =WINEP_Schemes!N133 -> 0 | O134: 0 | P134: 0 | Q134: 0 | R134: 0 | S134: 0 | T134: 0 | U134: 0 | V134: 0
C135: =WINEP_Schemes!C134 -> YOR01001 | D135: =WINEP_Schemes!D134 -> 7YW200945 | E135: =WINEP_Schemes!E134 -> SUTTON WWTW | F135: =WINEP_Schemes!F134 -> £ per km LORI | G135: =WINEP_Schemes!G134 -> 1e-06 | H135: =WINEP_Schemes!H134 -> 0 | I135: =WINEP_Schemes!J134 -> 0 | J135: =WINEP_Schemes!I134 -> 778365 | K135: =WINEP_Schemes!K134 -> 0 | L135: =WINEP_Schemes!L134 -> 1 | M135: =WINEP_Schemes!M134 -> WWN | N135: =WINEP_Schemes!N134 -> 0 | O135: 0 | P135: 0 | Q135: 0 | R135: 0 | S135: 0 | T135: 0 | U135: 0 | V135: 0
C136: =WINEP_Schemes!C135 -> YOR01002 | D136: =WINEP_Schemes!D135 -> 7YW200946 | E136: =WINEP_Schemes!E135 -> TUPTON/STW | F136: =WINEP_Schemes!F135 -> £ per km LORI | G136: =WINEP_Schemes!G135 -> 1e-06 | H136: =WINEP_Schemes!H135 -> 0 | I136: =WINEP_Schemes!J135 -> 0 | J136: =WINEP_Schemes!I135 -> 778365 | K136: =WINEP_Schemes!K135 -> 0 | L136: =WINEP_Schemes!L135 -> 1 | M136: =WINEP_Schemes!M135 -> WWN | N136: =WINEP_Schemes!N135 -> 0 | O136: 0 | P136: 0 | Q136: 0 | R136: 0 | S136: 0 | T136: 0 | U136: 0 | V136: 0
C137: =WINEP_Schemes!C136 -> YOR01003 | D137: =WINEP_Schemes!D136 -> 7YW200947 | E137: =WINEP_Schemes!E136 -> WOMBWELL/STW | F137: =WINEP_Schemes!F136 -> £ per km LORI | G137: =WINEP_Schemes!G136 -> 1e-06 | H137: =WINEP_Schemes!H136 -> 0 | I137: =WINEP_Schemes!J136 -> 5.197 | J137: =WINEP_Schemes!I136 -> 502014 | K137: =WINEP_Schemes!K136 -> 5.197 | L137: =WINEP_Schemes!L136 -> 1 | M137: =WINEP_Schemes!M136 -> WWN | N137: =WINEP_Schemes!N136 -> 1 | O137: 2.608966758 | P137: 2.608966758 | Q137: 0 | R137: 0 | S137: 0 | T137: 0 | U137: 0 | V137: 0
